Workbook

Sheet MOM
A1: =YEAR(表A_RAW!F2)&"年"&MONTH(表A_RAW!F2)&"月" -> 2026年3月
F2: 成長及衰退前五名之產業MOM%
A4: 成長前五名之產業 MOM% | C4: 該產業成長前五名之公司 MOM% | F4: 單月營收金額(千元) | G4: 本月與上月相較 | I4: 本月與去年同期相較 | K4: 累計營收金額(千元) | L4: 累計營收與去年同期相較
A5: 成長 排名 | B5: 產業 | C5: 排名 | D5: 公司代號&簡稱 | G5: 上月營收金額(千元) | H5: 較上月變動比率(%) | I5: 去年同期金額(千元) | J5: 較去年同期變動比率(%) | L5: 去年累計營收金額(千元) | M5: 較去年同期變動比率(%)
A6: 1 | B6: =VLOOKUP(A6,表B_RAW!N:P,3,0) -> 電子通路業 | C6: 1 | D6: =VLOOKUP($B$6&C6,表B_RAW!A:D,3,0) -> 3055 蔚華科 | F6: =IF(ISERROR(VLOOKUP($D6,表B_RAW!$C:$I,4,0)),"",VLOOKUP($D6,表B_RAW!$C:$I,4,0)) -> 27380 | G6: =IF(ISERROR(VLOOKUP($D6,表B_RAW!$C:$I,5,0)),"",VLOOKUP($D6,表B_RAW!$C:$I,5,0)) -> 8167 | H6: =IF(ISERROR(VLOOKUP($D6,表B_RAW!$C:$I,6,0)),"",VLOOKUP($D6,表B_RAW!$C:$I,6,0)/100) -> 2.3525 | I6: =IF(ISERROR(VLOOKUP($D6,表A_RAW!$C:$I,5,0)),"",VLOOKUP($D6,表A_RAW!$C:$I,5,0)) -> 22946 | J6: =IF(ISERROR(VLOOKUP($D6,表A_RAW!$C:$I,7,0)),"",VLOOKUP($D6,表A_RAW!$C:$I,7,0)) -> 0.1932362939 | K6: =IF(ISERROR(VLOOKUP($D6,表C_RAW!$C:$I,4,0)),"",VLOOKUP($D6,表C_RAW!$C:$I,4,0)) -> 84070 | L6: =IF(ISERROR(VLOOKUP($D6,表C_RAW!$C:$I,5,0)),"",VLOOKUP($D6,表C_RAW!$C:$I,5,0)) -> 66498 | M6: =IF(ISERROR(VLOOKUP($D6,表C_RAW!$C:$I,6,0)),"",VLOOKUP($D6,表C_RAW!$C:$I,6,0)/100) -> 0.2642
C7: 2 | D7: =VLOOKUP($B$6&C7,表B_RAW!A:D,3,0) -> 6265 方土昶 | F7: =IF(ISERROR(VLOOKUP($D7,表B_RAW!$C:$I,4,0)),"",VLOOKUP($D7,表B_RAW!$C:$I,4,0)) -> 391752 | G7: =IF(ISERROR(VLOOKUP($D7,表B_RAW!$C:$I,5,0)),"",VLOOKUP($D7,表B_RAW!$C:$I,5,0)) -> 171535 | H7: =IF(ISERROR(VLOOKUP($D7,表B_RAW!$C:$I,6,0)),"",VLOOKUP($D7,表B_RAW!$C:$I,6,0)/100) -> 1.2838 | I7: =IF(ISERROR(VLOOKUP($D7,表A_RAW!$C:$I,5,0)),"",VLOOKUP($D7,表A_RAW!$C:$I,5,0)) -> 64161 | J7: =IF(ISERROR(VLOOKUP($D7,表A_RAW!$C:$I,7,0)),"",VLOOKUP($D7,表A_RAW!$C:$I,7,0)) -> 5.105765184 | K7: =IF(ISERROR(VLOOKUP($D7,表C_RAW!$C:$I,4,0)),"",VLOOKUP($D7,表C_RAW!$C:$I,4,0)) -> 776273 | L7: =IF(ISERROR(VLOOKUP($D7,表C_RAW!$C:$I,5,0)),"",VLOOKUP($D7,表C_RAW!$C:$I,5,0)) -> 145770 | M7: =IF(ISERROR(VLOOKUP($D7,表C_RAW!$C:$I,6,0)),"",VLOOKUP($D7,表C_RAW!$C:$I,6,0)/100) -> 4.3253
C8: 3 | D8: =VLOOKUP($B$6&C8,表B_RAW!A:D,3,0) -> 6113 亞矽 | F8: =IF(ISERROR(VLOOKUP($D8,表B_RAW!$C:$I,4,0)),"",VLOOKUP($D8,表B_RAW!$C:$I,4,0)) -> 95841 | G8: =IF(ISERROR(VLOOKUP($D8,表B_RAW!$C:$I,5,0)),"",VLOOKUP($D8,表B_RAW!$C:$I,5,0)) -> 45112 | H8: =IF(ISERROR(VLOOKUP($D8,表B_RAW!$C:$I,6,0)),"",VLOOKUP($D8,表B_RAW!$C:$I,6,0)/100) -> 1.1245 | I8: =IF(ISERROR(VLOOKUP($D8,表A_RAW!$C:$I,5,0)),"",VLOOKUP($D8,表A_RAW!$C:$I,5,0)) -> 59461 | J8: =IF(ISERROR(VLOOKUP($D8,表A_RAW!$C:$I,7,0)),"",VLOOKUP($D8,表A_RAW!$C:$I,7,0)) -> 0.6118296026 | K8: =IF(ISERROR(VLOOKUP($D8,表C_RAW!$C:$I,4,0)),"",VLOOKUP($D8,表C_RAW!$C:$I,4,0)) -> 217190 | L8: =IF(ISERROR(VLOOKUP($D8,表C_RAW!$C:$I,5,0)),"",VLOOKUP($D8,表C_RAW!$C:$I,5,0)) -> 163164 | M8: =IF(ISERROR(VLOOKUP($D8,表C_RAW!$C:$I,6,0)),"",VLOOKUP($D8,表C_RAW!$C:$I,6,0)/100) -> 0.3311
B9: =ROUND(VLOOKUP(A6,表B_RAW!N:T,7,0),2) -> 75.56 | C9: 4 | D9: =VLOOKUP($B$6&C9,表B_RAW!A:D,3,0) -> 6227 茂綸 | F9: =IF(ISERROR(VLOOKUP($D9,表B_RAW!$C:$I,4,0)),"",VLOOKUP($D9,表B_RAW!$C:$I,4,0)) -> 2001886 | G9: =IF(ISERROR(VLOOKUP($D9,表B_RAW!$C:$I,5,0)),"",VLOOKUP($D9,表B_RAW!$C:$I,5,0)) -> 972411 | H9: =IF(ISERROR(VLOOKUP($D9,表B_RAW!$C:$I,6,0)),"",VLOOKUP($D9,表B_RAW!$C:$I,6,0)/100) -> 1.0587 | I9: =IF(ISERROR(VLOOKUP($D9,表A_RAW!$C:$I,5,0)),"",VLOOKUP($D9,表A_RAW!$C:$I,5,0)) -> 1194550 | J9: =IF(ISERROR(VLOOKUP($D9,表A_RAW!$C:$I,7,0)),"",VLOOKUP($D9,表A_RAW!$C:$I,7,0)) -> 0.6758494831 | K9: =IF(ISERROR(VLOOKUP($D9,表C_RAW!$C:$I,4,0)),"",VLOOKUP($D9,表C_RAW!$C:$I,4,0)) -> 4844098 | L9: =IF(ISERROR(VLOOKUP($D9,表C_RAW!$C:$I,5,0)),"",VLOOKUP($D9,表C_RAW!$C:$I,5,0)) -> 3440905 | M9: =IF(ISERROR(VLOOKUP($D9,表C_RAW!$C:$I,6,0)),"",VLOOKUP($D9,表C_RAW!$C:$I,6,0)/100) -> 0.4078
C10: 5 | D10: =VLOOKUP($B$6&C10,表B_RAW!A:D,3,0) -> 6474 華豫寧 | F10: =IF(ISERROR(VLOOKUP($D10,表B_RAW!$C:$I,4,0)),"",VLOOKUP($D10,表B_RAW!$C:$I,4,0)) -> 418880 | G10: =IF(ISERROR(VLOOKUP($D10,表B_RAW!$C:$I,5,0)),"",VLOOKUP($D10,表B_RAW!$C:$I,5,0)) -> 203489 | H10: =IF(ISERROR(VLOOKUP($D10,表B_RAW!$C:$I,6,0)),"",VLOOKUP($D10,表B_RAW!$C:$I,6,0)/100) -> 1.0585 | I10: =IF(ISERROR(VLOOKUP($D10,表A_RAW!$C:$I,5,0)),"",VLOOKUP($D10,表A_RAW!$C:$I,5,0)) -> 356345 | J10: =IF(ISERROR(VLOOKUP($D10,表A_RAW!$C:$I,7,0)),"",VLOOKUP($D10,表A_RAW!$C:$I,7,0)) -> 0.1754900448 | K10: =IF(ISERROR(VLOOKUP($D10,表C_RAW!$C:$I,4,0)),"",VLOOKUP($D10,表C_RAW!$C:$I,4,0)) -> 976952 | L10: =IF(ISERROR(VLOOKUP($D10,表C_RAW!$C:$I,5,0)),"",VLOOKUP($D10,表C_RAW!$C:$I,5,0)) -> 973458 | M10: =IF(ISERROR(VLOOKUP($D10,表C_RAW!$C:$I,6,0)),"",VLOOKUP($D10,表C_RAW!$C:$I,6,0)/100) -> 0.0036
A11: 2 | B11: =VLOOKUP(A11,表B_RAW!N:P,3,0) -> 建材營造 | C11: 1 | D11: =VLOOKUP($B$11&C11,表B_RAW!A:D,3,0) -> 1805 寶徠 | F11: =IF(ISERROR(VLOOKUP($D11,表B_RAW!$C:$I,4,0)),"",VLOOKUP($D11,表B_RAW!$C:$I,4,0)) -> 103470 | G11: =IF(ISERROR(VLOOKUP($D11,表B_RAW!$C:$I,5,0)),"",VLOOKUP($D11,表B_RAW!$C:$I,5,0)) -> 109 | H11: =IF(ISERROR(VLOOKUP($D11,表B_RAW!$C:$I,6,0)),"",VLOOKUP($D11,表B_RAW!$C:$I,6,0)/100) -> 948.2661 | I11: =IF(ISERROR(VLOOKUP($D11,表A_RAW!$C:$I,5,0)),"",VLOOKUP($D11,表A_RAW!$C:$I,5,0)) -> 153 | J11: =IF(ISERROR(VLOOKUP($D11,表A_RAW!$C:$I,7,0)),"",VLOOKUP($D11,表A_RAW!$C:$I,7,0)) -> 675.2745098 | K11: =IF(ISERROR(VLOOKUP($D11,表C_RAW!$C:$I,4,0)),"",VLOOKUP($D11,表C_RAW!$C:$I,4,0)) -> 103694 | L11: =IF(ISERROR(VLOOKUP($D11,表C_RAW!$C:$I,5,0)),"",VLOOKUP($D11,表C_RAW!$C:$I,5,0)) -> 88670 | M11: =IF(ISERROR(VLOOKUP($D11,表C_RAW!$C:$I,6,0)),"",VLOOKUP($D11,表C_RAW!$C:$I,6,0)/100) -> 0.1694
C12: 2 | D12: =VLOOKUP($B$11&C12,表B_RAW!A:D,3,0) -> 2530 華建 | F12: =IF(ISERROR(VLOOKUP($D12,表B_RAW!$C:$I,4,0)),"",VLOOKUP($D12,表B_RAW!$C:$I,4,0)) -> 150655 | G12: =IF(ISERROR(VLOOKUP($D12,表B_RAW!$C:$I,5,0)),"",VLOOKUP($D12,表B_RAW!$C:$I,5,0)) -> 836 | H12: =IF(ISERROR(VLOOKUP($D12,表B_RAW!$C:$I,6,0)),"",VLOOKUP($D12,表B_RAW!$C:$I,6,0)/100) -> 179.2093 | I12: =IF(ISERROR(VLOOKUP($D12,表A_RAW!$C:$I,5,0)),"",VLOOKUP($D12,表A_RAW!$C:$I,5,0)) -> 13207 | J12: =IF(ISERROR(VLOOKUP($D12,表A_RAW!$C:$I,7,0)),"",VLOOKUP($D12,表A_RAW!$C:$I,7,0)) -> 10.4072083 | K12: =IF(ISERROR(VLOOKUP($D12,表C_RAW!$C:$I,4,0)),"",VLOOKUP($D12,表C_RAW!$C:$I,4,0)) -> 186713 | L12: =IF(ISERROR(VLOOKUP($D12,表C_RAW!$C:$I,5,0)),"",VLOOKUP($D12,表C_RAW!$C:$I,5,0)) -> 161574 | M12: =IF(ISERROR(VLOOKUP($D12,表C_RAW!$C:$I,6,0)),"",VLOOKUP($D12,表C_RAW!$C:$I,6,0)/100) -> 0.1556
C13: 3 | D13: =VLOOKUP($B$11&C13,表B_RAW!A:D,3,0) -> 1438 三地開發 | F13: =IF(ISERROR(VLOOKUP($D13,表B_RAW!$C:$I,4,0)),"",VLOOKUP($D13,表B_RAW!$C:$I,4,0)) -> 197558 | G13: =IF(ISERROR(VLOOKUP($D13,表B_RAW!$C:$I,5,0)),"",VLOOKUP($D13,表B_RAW!$C:$I,5,0)) -> 1134 | H13: =IF(ISERROR(VLOOKUP($D13,表B_RAW!$C:$I,6,0)),"",VLOOKUP($D13,表B_RAW!$C:$I,6,0)/100) -> 173.2134 | I13: =IF(ISERROR(VLOOKUP($D13,表A_RAW!$C:$I,5,0)),"",VLOOKUP($D13,表A_RAW!$C:$I,5,0)) -> 241 | J13: =IF(ISERROR(VLOOKUP($D13,表A_RAW!$C:$I,7,0)),"",VLOOKUP($D13,表A_RAW!$C:$I,7,0)) -> 818.7427386 | K13: =IF(ISERROR(VLOOKUP($D13,表C_RAW!$C:$I,4,0)),"",VLOOKUP($D13,表C_RAW!$C:$I,4,0)) -> 377477 | L13: =IF(ISERROR(VLOOKUP($D13,表C_RAW!$C:$I,5,0)),"",VLOOKUP($D13,表C_RAW!$C:$I,5,0)) -> 241 | M13: =IF(ISERROR(VLOOKUP($D13,表C_RAW!$C:$I,6,0)),"",VLOOKUP($D13,表C_RAW!$C:$I,6,0)/100) -> 1565.2946
B14: =ROUND(VLOOKUP(A11,表B_RAW!N:T,7,0),2) -> 68.32 | C14: 4 | D14: =VLOOKUP($B$11&C14,表B_RAW!A:D,3,0) -> 2527 宏璟 | F14: =IF(ISERROR(VLOOKUP($D14,表B_RAW!$C:$I,4,0)),"",VLOOKUP($D14,表B_RAW!$C:$I,4,0)) -> 4526413 | G14: =IF(ISERROR(VLOOKUP($D14,表B_RAW!$C:$I,5,0)),"",VLOOKUP($D14,表B_RAW!$C:$I,5,0)) -> 29988 | H14: =IF(ISERROR(VLOOKUP($D14,表B_RAW!$C:$I,6,0)),"",VLOOKUP($D14,表B_RAW!$C:$I,6,0)/100) -> 149.9408 | I14: =IF(ISERROR(VLOOKUP($D14,表A_RAW!$C:$I,5,0)),"",VLOOKUP($D14,表A_RAW!$C:$I,5,0)) -> 113496 | J14: =IF(ISERROR(VLOOKUP($D14,表A_RAW!$C:$I,7,0)),"",VLOOKUP($D14,表A_RAW!$C:$I,7,0)) -> 38.88169627 | K14: =IF(ISERROR(VLOOKUP($D14,表C_RAW!$C:$I,4,0)),"",VLOOKUP($D14,表C_RAW!$C:$I,4,0)) -> 4588700 | L14: =IF(ISERROR(VLOOKUP($D14,表C_RAW!$C:$I,5,0)),"",VLOOKUP($D14,表C_RAW!$C:$I,5,0)) -> 176660 | M14: =IF(ISERROR(VLOOKUP($D14,表C_RAW!$C:$I,6,0)),"",VLOOKUP($D14,表C_RAW!$C:$I,6,0)/100) -> 24.9748
C15: 5 | D15: =IFERROR(VLOOKUP($B$11&C15,表B_RAW!A:D,3,0),"") -> 3521 台鋼建設 | F15: =IF(ISERROR(VLOOKUP($D15,表B_RAW!$C:$I,4,0)),"",VLOOKUP($D15,表B_RAW!$C:$I,4,0)) -> 9112 | G15: =IF(ISERROR(VLOOKUP($D15,表B_RAW!$C:$I,5,0)),"",VLOOKUP($D15,表B_RAW!$C:$I,5,0)) -> 125 | H15: =IF(ISERROR(VLOOKUP($D15,表B_RAW!$C:$I,6,0)),"",VLOOKUP($D15,表B_RAW!$C:$I,6,0)/100) -> 71.896 | I15: =IF(ISERROR(VLOOKUP($D15,表A_RAW!$C:$I,5,0)),"",VLOOKUP($D15,表A_RAW!$C:$I,5,0)) -> 15874 | J15: =IF(ISERROR(VLOOKUP($D15,表A_RAW!$C:$I,7,0)),"",VLOOKUP($D15,表A_RAW!$C:$I,7,0)) -> -0.4259795893 | K15: =IF(ISERROR(VLOOKUP($D15,表C_RAW!$C:$I,4,0)),"",VLOOKUP($D15,表C_RAW!$C:$I,4,0)) -> 10438 | L15: =IF(ISERROR(VLOOKUP($D15,表C_RAW!$C:$I,5,0)),"",VLOOKUP($D15,表C_RAW!$C:$I,5,0)) -> 17844 | M15: =IF(ISERROR(VLOOKUP($D15,表C_RAW!$C:$I,6,0)),"",VLOOKUP($D15,表C_RAW!$C:$I,6,0)/100) -> -0.415
A16: 3 | B16: =VLOOKUP(A16,表B_RAW!N:P,3,0) -> 農業科技 | C16: 1 | D16: =VLOOKUP($B$16&C16,表B_RAW!A:D,3,0) -> 6508 惠光 | F16: =IF(ISERROR(VLOOKUP($D16,表B_RAW!$C:$I,4,0)),"",VLOOKUP($D16,表B_RAW!$C:$I,4,0)) -> 231179 | G16: =IF(ISERROR(VLOOKUP($D16,表B_RAW!$C:$I,5,0)),"",VLOOKUP($D16,表B_RAW!$C:$I,5,0)) -> 92361 | H16: =IF(ISERROR(VLOOKUP($D16,表B_RAW!$C:$I,6,0)),"",VLOOKUP($D16,表B_RAW!$C:$I,6,0)/100) -> 1.503 | I16: =IF(ISERROR(VLOOKUP($D16,表A_RAW!$C:$I,5,0)),"",VLOOKUP($D16,表A_RAW!$C:$I,5,0)) -> 200950 | J16: =IF(ISERROR(VLOOKUP($D16,表A_RAW!$C:$I,7,0)),"",VLOOKUP($D16,表A_RAW!$C:$I,7,0)) -> 0.1504304553 | K16: =IF(ISERROR(VLOOKUP($D16,表C_RAW!$C:$I,4,0)),"",VLOOKUP($D16,表C_RAW!$C:$I,4,0)) -> 461506 | L16: =IF(ISERROR(VLOOKUP($D16,表C_RAW!$C:$I,5,0)),"",VLOOKUP($D16,表C_RAW!$C:$I,5,0)) -> 435396 | M16: =IF(ISERROR(VLOOKUP($D16,表C_RAW!$C:$I,6,0)),"",VLOOKUP($D16,表C_RAW!$C:$I,6,0)/100) -> 0.06
C17: 2 | D17: =VLOOKUP($B$16&C17,表B_RAW!A:D,3,0) -> 4171 瑞基 | F17: =IF(ISERROR(VLOOKUP($D17,表B_RAW!$C:$I,4,0)),"",VLOOKUP($D17,表B_RAW!$C:$I,4,0)) -> 21574 | G17: =IF(ISERROR(VLOOKUP($D17,表B_RAW!$C:$I,5,0)),"",VLOOKUP($D17,表B_RAW!$C:$I,5,0)) -> 13587 | H17: =IF(ISERROR(VLOOKUP($D17,表B_RAW!$C:$I,6,0)),"",VLOOKUP($D17,表B_RAW!$C:$I,6,0)/100) -> 0.5878 | I17: =IF(ISERROR(VLOOKUP($D17,表A_RAW!$C:$I,5,0)),"",VLOOKUP($D17,表A_RAW!$C:$I,5,0)) -> 18624 | J17: =IF(ISERROR(VLOOKUP($D17,表A_RAW!$C:$I,7,0)),"",VLOOKUP($D17,表A_RAW!$C:$I,7,0)) -> 0.1583977663 | K17: =IF(ISERROR(VLOOKUP($D17,表C_RAW!$C:$I,4,0)),"",VLOOKUP($D17,表C_RAW!$C:$I,4,0)) -> 52280 | L17: =IF(ISERROR(VLOOKUP($D17,表C_RAW!$C:$I,5,0)),"",VLOOKUP($D17,表C_RAW!$C:$I,5,0)) -> 52467 | M17: =IF(ISERROR(VLOOKUP($D17,表C_RAW!$C:$I,6,0)),"",VLOOKUP($D17,表C_RAW!$C:$I,6,0)/100) -> -0.0036
C18: 3 | D18: =VLOOKUP($B$16&C18,表B_RAW!A:D,3,0) -> 6578 達邦蛋白 | F18: =IF(ISERROR(VLOOKUP($D18,表B_RAW!$C:$I,4,0)),"",VLOOKUP($D18,表B_RAW!$C:$I,4,0)) -> 33976 | G18: =IF(ISERROR(VLOOKUP($D18,表B_RAW!$C:$I,5,0)),"",VLOOKUP($D18,表B_RAW!$C:$I,5,0)) -> 22326 | H18: =IF(ISERROR(VLOOKUP($D18,表B_RAW!$C:$I,6,0)),"",VLOOKUP($D18,表B_RAW!$C:$I,6,0)/100) -> 0.5218 | I18: =IF(ISERROR(VLOOKUP($D18,表A_RAW!$C:$I,5,0)),"",VLOOKUP($D18,表A_RAW!$C:$I,5,0)) -> 27399 | J18: =IF(ISERROR(VLOOKUP($D18,表A_RAW!$C:$I,7,0)),"",VLOOKUP($D18,表A_RAW!$C:$I,7,0)) -> 0.2400452571 | K18: =IF(ISERROR(VLOOKUP($D18,表C_RAW!$C:$I,4,0)),"",VLOOKUP($D18,表C_RAW!$C:$I,4,0)) -> 82091 | L18: =IF(ISERROR(VLOOKUP($D18,表C_RAW!$C:$I,5,0)),"",VLOOKUP($D18,表C_RAW!$C:$I,5,0)) -> 68597 | M18: =IF(ISERROR(VLOOKUP($D18,表C_RAW!$C:$I,6,0)),"",VLOOKUP($D18,表C_RAW!$C:$I,6,0)/100) -> 0.1967
B19: =ROUND(VLOOKUP(A16,表B_RAW!N:T,7,0),2) -> 66.27 | C19: 4 | D19: =VLOOKUP($B$16&C19,表B_RAW!A:D,3,0) -> 1240 茂生農經 | F19: =IF(ISERROR(VLOOKUP($D19,表B_RAW!$C:$I,4,0)),"",VLOOKUP($D19,表B_RAW!$C:$I,4,0)) -> 268329 | G19: =IF(ISERROR(VLOOKUP($D19,表B_RAW!$C:$I,5,0)),"",VLOOKUP($D19,表B_RAW!$C:$I,5,0)) -> 205555 | H19: =IF(ISERROR(VLOOKUP($D19,表B_RAW!$C:$I,6,0)),"",VLOOKUP($D19,表B_RAW!$C:$I,6,0)/100) -> 0.3054 | I19: =IF(ISERROR(VLOOKUP($D19,表A_RAW!$C:$I,5,0)),"",VLOOKUP($D19,表A_RAW!$C:$I,5,0)) -> 249994 | J19: =IF(ISERROR(VLOOKUP($D19,表A_RAW!$C:$I,7,0)),"",VLOOKUP($D19,表A_RAW!$C:$I,7,0)) -> 0.0733417602 | K19: =IF(ISERROR(VLOOKUP($D19,表C_RAW!$C:$I,4,0)),"",VLOOKUP($D19,表C_RAW!$C:$I,4,0)) -> 689952 | L19: =IF(ISERROR(VLOOKUP($D19,表C_RAW!$C:$I,5,0)),"",VLOOKUP($D19,表C_RAW!$C:$I,5,0)) -> 683656 | M19: =IF(ISERROR(VLOOKUP($D19,表C_RAW!$C:$I,6,0)),"",VLOOKUP($D19,表C_RAW!$C:$I,6,0)/100) -> 0.0092
C20: 5 | D20: =VLOOKUP($B$16&C20,表B_RAW!A:D,3,0) ->  | F20: =IF(ISERROR(VLOOKUP($D20,表B_RAW!$C:$I,4,0)),"",VLOOKUP($D20,表B_RAW!$C:$I,4,0)) ->  | G20: =IF(ISERROR(VLOOKUP($D20,表B_RAW!$C:$I,5,0)),"",VLOOKUP($D20,表B_RAW!$C:$I,5,0)) ->  | H20: =IF(ISERROR(VLOOKUP($D20,表B_RAW!$C:$I,6,0)),"",VLOOKUP($D20,表B_RAW!$C:$I,6,0)/100) ->  | I20: =IF(ISERROR(VLOOKUP($D20,表A_RAW!$C:$I,5,0)),"",VLOOKUP($D20,表A_RAW!$C:$I,5,0)) ->  | J20: =IF(ISERROR(VLOOKUP($D20,表A_RAW!$C:$I,7,0)),"",VLOOKUP($D20,表A_RAW!$C:$I,7,0)) ->  | K20: =IF(ISERROR(VLOOKUP($D20,表C_RAW!$C:$I,4,0)),"",VLOOKUP($D20,表C_RAW!$C:$I,4,0)) ->  | L20: =IF(ISERROR(VLOOKUP($D20,表C_RAW!$C:$I,5,0)),"",VLOOKUP($D20,表C_RAW!$C:$I,5,0)) ->  | M20: =IF(ISERROR(VLOOKUP($D20,表C_RAW!$C:$I,6,0)),"",VLOOKUP($D20,表C_RAW!$C:$I,6,0)/100) -> 
A21: 4 | B21: =VLOOKUP(A21,表B_RAW!N:P,3,0) -> 橡膠工業 | C21: 1 | D21: =VLOOKUP($B$21&C21,表B_RAW!A:D,3,0) -> 2101 南港 | F21: =IF(ISERROR(VLOOKUP($D21,表B_RAW!$C:$I,4,0)),"",VLOOKUP($D21,表B_RAW!$C:$I,4,0)) -> 4305990 | G21: =IF(ISERROR(VLOOKUP($D21,表B_RAW!$C:$I,5,0)),"",VLOOKUP($D21,表B_RAW!$C:$I,5,0)) -> 504480 | H21: =IF(ISERROR(VLOOKUP($D21,表B_RAW!$C:$I,6,0)),"",VLOOKUP($D21,表B_RAW!$C:$I,6,0)/100) -> 7.5355 | I21: =IF(ISERROR(VLOOKUP($D21,表A_RAW!$C:$I,5,0)),"",VLOOKUP($D21,表A_RAW!$C:$I,5,0)) -> 800199 | J21: =IF(ISERROR(VLOOKUP($D21,表A_RAW!$C:$I,7,0)),"",VLOOKUP($D21,表A_RAW!$C:$I,7,0)) -> 4.381148939 | K21: =IF(ISERROR(VLOOKUP($D21,表C_RAW!$C:$I,4,0)),"",VLOOKUP($D21,表C_RAW!$C:$I,4,0)) -> 5423988 | L21: =IF(ISERROR(VLOOKUP($D21,表C_RAW!$C:$I,5,0)),"",VLOOKUP($D21,表C_RAW!$C:$I,5,0)) -> 2068731 | M21: =IF(ISERROR(VLOOKUP($D21,表C_RAW!$C:$I,6,0)),"",VLOOKUP($D21,表C_RAW!$C:$I,6,0)/100) -> 1.6219
C22: 2 | D22: =VLOOKUP($B$21&C22,表B_RAW!A:D,3,0) -> 2105 正新 | F22: =IF(ISERROR(VLOOKUP($D22,表B_RAW!$C:$I,4,0)),"",VLOOKUP($D22,表B_RAW!$C:$I,4,0)) -> 9270169 | G22: =IF(ISERROR(VLOOKUP($D22,表B_RAW!$C:$I,5,0)),"",VLOOKUP($D22,表B_RAW!$C:$I,5,0)) -> 6088776 | H22: =IF(ISERROR(VLOOKUP($D22,表B_RAW!$C:$I,6,0)),"",VLOOKUP($D22,表B_RAW!$C:$I,6,0)/100) -> 0.5225 | I22: =IF(ISERROR(VLOOKUP($D22,表A_RAW!$C:$I,5,0)),"",VLOOKUP($D22,表A_RAW!$C:$I,5,0)) -> 8644058 | J22: =IF(ISERROR(VLOOKUP($D22,表A_RAW!$C:$I,7,0)),"",VLOOKUP($D22,表A_RAW!$C:$I,7,0)) -> 0.07243253111 | K22: =IF(ISERROR(VLOOKUP($D22,表C_RAW!$C:$I,4,0)),"",VLOOKUP($D22,表C_RAW!$C:$I,4,0)) -> 23348078 | L22: =IF(ISERROR(VLOOKUP($D22,表C_RAW!$C:$I,5,0)),"",VLOOKUP($D22,表C_RAW!$C:$I,5,0)) -> 23074181 | M22: =IF(ISERROR(VLOOKUP($D22,表C_RAW!$C:$I,6,0)),"",VLOOKUP($D22,表C_RAW!$C:$I,6,0)/100) -> 0.0119
C23: 3 | D23: =VLOOKUP($B$21&C23,表B_RAW!A:D,3,0) -> 2106 建大 | F23: =IF(ISERROR(VLOOKUP($D23,表B_RAW!$C:$I,4,0)),"",VLOOKUP($D23,表B_RAW!$C:$I,4,0)) -> 3478936 | G23: =IF(ISERROR(VLOOKUP($D23,表B_RAW!$C:$I,5,0)),"",VLOOKUP($D23,表B_RAW!$C:$I,5,0)) -> 2352365 | H23: =IF(ISERROR(VLOOKUP($D23,表B_RAW!$C:$I,6,0)),"",VLOOKUP($D23,表B_RAW!$C:$I,6,0)/100) -> 0.4789 | I23: =IF(ISERROR(VLOOKUP($D23,表A_RAW!$C:$I,5,0)),"",VLOOKUP($D23,表A_RAW!$C:$I,5,0)) -> 3221057 | J23: =IF(ISERROR(VLOOKUP($D23,表A_RAW!$C:$I,7,0)),"",VLOOKUP($D23,表A_RAW!$C:$I,7,0)) -> 0.08006036528 | K23: =IF(ISERROR(VLOOKUP($D23,表C_RAW!$C:$I,4,0)),"",VLOOKUP($D23,表C_RAW!$C:$I,4,0)) -> 8689765 | L23: =IF(ISERROR(VLOOKUP($D23,表C_RAW!$C:$I,5,0)),"",VLOOKUP($D23,表C_RAW!$C:$I,5,0)) -> 8801740 | M23: =IF(ISERROR(VLOOKUP($D23,表C_RAW!$C:$I,6,0)),"",VLOOKUP($D23,表C_RAW!$C:$I,6,0)/100) -> -0.0127
B24: =ROUND(VLOOKUP(A21,表B_RAW!N:T,7,0),2) -> 65.69 | C24: 4 | D24: =VLOOKUP($B$21&C24,表B_RAW!A:D,3,0) -> 2103 台橡 | F24: =IF(ISERROR(VLOOKUP($D24,表B_RAW!$C:$I,4,0)),"",VLOOKUP($D24,表B_RAW!$C:$I,4,0)) -> 3832448 | G24: =IF(ISERROR(VLOOKUP($D24,表B_RAW!$C:$I,5,0)),"",VLOOKUP($D24,表B_RAW!$C:$I,5,0)) -> 2798906 | H24: =IF(ISERROR(VLOOKUP($D24,表B_RAW!$C:$I,6,0)),"",VLOOKUP($D24,表B_RAW!$C:$I,6,0)/100) -> 0.3693 | I24: =IF(ISERROR(VLOOKUP($D24,表A_RAW!$C:$I,5,0)),"",VLOOKUP($D24,表A_RAW!$C:$I,5,0)) -> 3679669 | J24: =IF(ISERROR(VLOOKUP($D24,表A_RAW!$C:$I,7,0)),"",VLOOKUP($D24,表A_RAW!$C:$I,7,0)) -> 0.04151976713 | K24: =IF(ISERROR(VLOOKUP($D24,表C_RAW!$C:$I,4,0)),"",VLOOKUP($D24,表C_RAW!$C:$I,4,0)) -> 10330865 | L24: =IF(ISERROR(VLOOKUP($D24,表C_RAW!$C:$I,5,0)),"",VLOOKUP($D24,表C_RAW!$C:$I,5,0)) -> 10376899 | M24: =IF(ISERROR(VLOOKUP($D24,表C_RAW!$C:$I,6,0)),"",VLOOKUP($D24,表C_RAW!$C:$I,6,0)/100) -> -0.0044
C25: 5 | D25: =VLOOKUP($B$21&C25,表B_RAW!A:D,3,0) -> 2102 泰豐 | F25: =IF(ISERROR(VLOOKUP($D25,表B_RAW!$C:$I,4,0)),"",VLOOKUP($D25,表B_RAW!$C:$I,4,0)) -> 14243 | G25: =IF(ISERROR(VLOOKUP($D25,表B_RAW!$C:$I,5,0)),"",VLOOKUP($D25,表B_RAW!$C:$I,5,0)) -> 10671 | H25: =IF(ISERROR(VLOOKUP($D25,表B_RAW!$C:$I,6,0)),"",VLOOKUP($D25,表B_RAW!$C:$I,6,0)/100) -> 0.3347 | I25: =IF(ISERROR(VLOOKUP($D25,表A_RAW!$C:$I,5,0)),"",VLOOKUP($D25,表A_RAW!$C:$I,5,0)) -> 28913 | J25: =IF(ISERROR(VLOOKUP($D25,表A_RAW!$C:$I,7,0)),"",VLOOKUP($D25,表A_RAW!$C:$I,7,0)) -> -0.5073842216 | K25: =IF(ISERROR(VLOOKUP($D25,表C_RAW!$C:$I,4,0)),"",VLOOKUP($D25,表C_RAW!$C:$I,4,0)) -> 41123 | L25: =IF(ISERROR(VLOOKUP($D25,表C_RAW!$C:$I,5,0)),"",VLOOKUP($D25,表C_RAW!$C:$I,5,0)) -> 75855 | M25: =IF(ISERROR(VLOOKUP($D25,表C_RAW!$C:$I,6,0)),"",VLOOKUP($D25,表C_RAW!$C:$I,6,0)/100) -> -0.4579
A26: 5 | B26: =VLOOKUP(A26,表B_RAW!N:P,3,0) -> 玻璃陶瓷 | C26: 1 | D26: =VLOOKUP($B$26&C26,表B_RAW!A:D,3,0) -> 1806 冠軍 | F26: =IF(ISERROR(VLOOKUP($D26,表B_RAW!$C:$I,4,0)),"",VLOOKUP($D26,表B_RAW!$C:$I,4,0)) -> 254553 | G26: =IF(ISERROR(VLOOKUP($D26,表B_RAW!$C:$I,5,0)),"",VLOOKUP($D26,表B_RAW!$C:$I,5,0)) -> 121149 | H26: =IF(ISERROR(VLOOKUP($D26,表B_RAW!$C:$I,6,0)),"",VLOOKUP($D26,表B_RAW!$C:$I,6,0)/100) -> 1.1012 | I26: =IF(ISERROR(VLOOKUP($D26,表A_RAW!$C:$I,5,0)),"",VLOOKUP($D26,表A_RAW!$C:$I,5,0)) -> 305354 | J26: =IF(ISERROR(VLOOKUP($D26,表A_RAW!$C:$I,7,0)),"",VLOOKUP($D26,表A_RAW!$C:$I,7,0)) -> -0.1663675603 | K26: =IF(ISERROR(VLOOKUP($D26,表C_RAW!$C:$I,4,0)),"",VLOOKUP($D26,表C_RAW!$C:$I,4,0)) -> 663911 | L26: =IF(ISERROR(VLOOKUP($D26,表C_RAW!$C:$I,5,0)),"",VLOOKUP($D26,表C_RAW!$C:$I,5,0)) -> 858093 | M26: =IF(ISERROR(VLOOKUP($D26,表C_RAW!$C:$I,6,0)),"",VLOOKUP($D26,表C_RAW!$C:$I,6,0)/100) -> -0.2263
C27: 2 | D27: =VLOOKUP($B$26&C27,表B_RAW!A:D,3,0) -> 1817 凱撒衛 | F27: =IF(ISERROR(VLOOKUP($D27,表B_RAW!$C:$I,4,0)),"",VLOOKUP($D27,表B_RAW!$C:$I,4,0)) -> 227749 | G27: =IF(ISERROR(VLOOKUP($D27,表B_RAW!$C:$I,5,0)),"",VLOOKUP($D27,表B_RAW!$C:$I,5,0)) -> 128269 | H27: =IF(ISERROR(VLOOKUP($D27,表B_RAW!$C:$I,6,0)),"",VLOOKUP($D27,表B_RAW!$C:$I,6,0)/100) -> 0.7756 | I27: =IF(ISERROR(VLOOKUP($D27,表A_RAW!$C:$I,5,0)),"",VLOOKUP($D27,表A_RAW!$C:$I,5,0)) -> 256062 | J27: =IF(ISERROR(VLOOKUP($D27,表A_RAW!$C:$I,7,0)),"",VLOOKUP($D27,表A_RAW!$C:$I,7,0)) -> -0.1105708774 | K27: =IF(ISERROR(VLOOKUP($D27,表C_RAW!$C:$I,4,0)),"",VLOOKUP($D27,表C_RAW!$C:$I,4,0)) -> 611528 | L27: =IF(ISERROR(VLOOKUP($D27,表C_RAW!$C:$I,5,0)),"",VLOOKUP($D27,表C_RAW!$C:$I,5,0)) -> 616813 | M27: =IF(ISERROR(VLOOKUP($D27,表C_RAW!$C:$I,6,0)),"",VLOOKUP($D27,表C_RAW!$C:$I,6,0)/100) -> -0.0086
C28: 3 | D28: =VLOOKUP($B$26&C28,表B_RAW!A:D,3,0) -> 1802 台玻 | F28: =IF(ISERROR(VLOOKUP($D28,表B_RAW!$C:$I,4,0)),"",VLOOKUP($D28,表B_RAW!$C:$I,4,0)) -> 4138404 | G28: =IF(ISERROR(VLOOKUP($D28,表B_RAW!$C:$I,5,0)),"",VLOOKUP($D28,表B_RAW!$C:$I,5,0)) -> 2437371 | H28: =IF(ISERROR(VLOOKUP($D28,表B_RAW!$C:$I,6,0)),"",VLOOKUP($D28,表B_RAW!$C:$I,6,0)/100) -> 0.6979 | I28: =IF(ISERROR(VLOOKUP($D28,表A_RAW!$C:$I,5,0)),"",VLOOKUP($D28,表A_RAW!$C:$I,5,0)) -> 3556562 | J28: =IF(ISERROR(VLOOKUP($D28,表A_RAW!$C:$I,7,0)),"",VLOOKUP($D28,表A_RAW!$C:$I,7,0)) -> 0.1635967544 | K28: =IF(ISERROR(VLOOKUP($D28,表C_RAW!$C:$I,4,0)),"",VLOOKUP($D28,表C_RAW!$C:$I,4,0)) -> 10243816 | L28: =IF(ISERROR(VLOOKUP($D28,表C_RAW!$C:$I,5,0)),"",VLOOKUP($D28,表C_RAW!$C:$I,5,0)) -> 9634159 | M28: =IF(ISERROR(VLOOKUP($D28,表C_RAW!$C:$I,6,0)),"",VLOOKUP($D28,表C_RAW!$C:$I,6,0)/100) -> 0.0633
B29: =ROUND(VLOOKUP(A26,表B_RAW!N:T,7,0),2) -> 65 | C29: 4 | D29: =VLOOKUP($B$26&C29,表B_RAW!A:D,3,0) -> 1810 和成 | F29: =IF(ISERROR(VLOOKUP($D29,表B_RAW!$C:$I,4,0)),"",VLOOKUP($D29,表B_RAW!$C:$I,4,0)) -> 365439 | G29: =IF(ISERROR(VLOOKUP($D29,表B_RAW!$C:$I,5,0)),"",VLOOKUP($D29,表B_RAW!$C:$I,5,0)) -> 279541 | H29: =IF(ISERROR(VLOOKUP($D29,表B_RAW!$C:$I,6,0)),"",VLOOKUP($D29,表B_RAW!$C:$I,6,0)/100) -> 0.3073 | I29: =IF(ISERROR(VLOOKUP($D29,表A_RAW!$C:$I,5,0)),"",VLOOKUP($D29,表A_RAW!$C:$I,5,0)) -> 415141 | J29: =IF(ISERROR(VLOOKUP($D29,表A_RAW!$C:$I,7,0)),"",VLOOKUP($D29,表A_RAW!$C:$I,7,0)) -> -0.1197231784 | K29: =IF(ISERROR(VLOOKUP($D29,表C_RAW!$C:$I,4,0)),"",VLOOKUP($D29,表C_RAW!$C:$I,4,0)) -> 1032471 | L29: =IF(ISERROR(VLOOKUP($D29,表C_RAW!$C:$I,5,0)),"",VLOOKUP($D29,表C_RAW!$C:$I,5,0)) -> 1123544 | M29: =IF(ISERROR(VLOOKUP($D29,表C_RAW!$C:$I,6,0)),"",VLOOKUP($D29,表C_RAW!$C:$I,6,0)/100) -> -0.0811
C30: 5 | D30: =VLOOKUP($B$26&C30,表B_RAW!A:D,3,0) -> 1809 中釉 | F30: =IF(ISERROR(VLOOKUP($D30,表B_RAW!$C:$I,4,0)),"",VLOOKUP($D30,表B_RAW!$C:$I,4,0)) -> 189863 | G30: =IF(ISERROR(VLOOKUP($D30,表B_RAW!$C:$I,5,0)),"",VLOOKUP($D30,表B_RAW!$C:$I,5,0)) -> 170713 | H30: =IF(ISERROR(VLOOKUP($D30,表B_RAW!$C:$I,6,0)),"",VLOOKUP($D30,表B_RAW!$C:$I,6,0)/100) -> 0.1122 | I30: =IF(ISERROR(VLOOKUP($D30,表A_RAW!$C:$I,5,0)),"",VLOOKUP($D30,表A_RAW!$C:$I,5,0)) -> 222712 | J30: =IF(ISERROR(VLOOKUP($D30,表A_RAW!$C:$I,7,0)),"",VLOOKUP($D30,表A_RAW!$C:$I,7,0)) -> -0.1474954201 | K30: =IF(ISERROR(VLOOKUP($D30,表C_RAW!$C:$I,4,0)),"",VLOOKUP($D30,表C_RAW!$C:$I,4,0)) -> 592290 | L30: =IF(ISERROR(VLOOKUP($D30,表C_RAW!$C:$I,5,0)),"",VLOOKUP($D30,表C_RAW!$C:$I,5,0)) -> 575677 | M30: =IF(ISERROR(VLOOKUP($D30,表C_RAW!$C:$I,6,0)),"",VLOOKUP($D30,表C_RAW!$C:$I,6,0)/100) -> 0.0289
A32: 衰退前五名之產業 MOM% | C32: 該產業衰退前五名之公司 MOM% | F32: 單月營收金額(千元) | G32: 本月與上月相較 | I32: 本月與去年同期相較 | K32: 累計營收金額(千元) | L32: 累計營收與去年同期相較
A33: 衰退 排名 | B33: 產業 | C33: 排名 | D33: 公司代號&簡稱 | G33: 上月營收金額(千元) | H33: 較上月變動比率(%) | I33: 去年同期金額(千元) | J33: 較去年同期變動比率(%) | L33: 去年累計營收金額(千元) | M33: 較去年同期變動比率(%)
A34: 1 | B34: =VLOOKUP(A34,表B_RAW!O:P,2,0) -> 金融業 | C34: 1 | D34: =VLOOKUP($B$34&C34,表B_RAW!B:D,2,0) -> 6021 美好證 | F34: =IF(ISERROR(VLOOKUP($D34,表B_RAW!$C:$I,4,0)),"",VLOOKUP($D34,表B_RAW!$C:$I,4,0)) -> -495411 | G34: =IF(ISERROR(VLOOKUP($D34,表B_RAW!$C:$I,5,0)),"",VLOOKUP($D34,表B_RAW!$C:$I,5,0)) -> 603462 | H34: =IF(ISERROR(VLOOKUP($D34,表B_RAW!$C:$I,6,0)),"",VLOOKUP($D34,表B_RAW!$C:$I,6,0)/100) -> -1.8209 | I34: =IF(ISERROR(VLOOKUP($D34,表A_RAW!$C:$I,5,0)),"",VLOOKUP($D34,表A_RAW!$C:$I,5,0)) -> -264125 | J34: =IF(ISERROR(VLOOKUP($D34,表A_RAW!$C:$I,7,0)),"",VLOOKUP($D34,表A_RAW!$C:$I,7,0)) -> -0.8756687175 | K34: =IF(ISERROR(VLOOKUP($D34,表C_RAW!$C:$I,4,0)),"",VLOOKUP($D34,表C_RAW!$C:$I,4,0)) -> 603200 | L34: =IF(ISERROR(VLOOKUP($D34,表C_RAW!$C:$I,5,0)),"",VLOOKUP($D34,表C_RAW!$C:$I,5,0)) -> -147280 | M34: =IF(ISERROR(VLOOKUP($D34,表C_RAW!$C:$I,6,0)),"",VLOOKUP($D34,表C_RAW!$C:$I,6,0)/100) -> 5.0956
C35: 2 | D35: =VLOOKUP($B$34&C35,表B_RAW!B:D,2,0) -> 5864 致和證 | F35: =IF(ISERROR(VLOOKUP($D35,表B_RAW!$C:$I,4,0)),"",VLOOKUP($D35,表B_RAW!$C:$I,4,0)) -> -588535 | G35: =IF(ISERROR(VLOOKUP($D35,表B_RAW!$C:$I,5,0)),"",VLOOKUP($D35,表B_RAW!$C:$I,5,0)) -> 811530 | H35: =IF(ISERROR(VLOOKUP($D35,表B_RAW!$C:$I,6,0)),"",VLOOKUP($D35,表B_RAW!$C:$I,6,0)/100) -> -1.7252 | I35: =IF(ISERROR(VLOOKUP($D35,表A_RAW!$C:$I,5,0)),"",VLOOKUP($D35,表A_RAW!$C:$I,5,0)) -> -392299 | J35: =IF(ISERROR(VLOOKUP($D35,表A_RAW!$C:$I,7,0)),"",VLOOKUP($D35,表A_RAW!$C:$I,7,0)) -> -0.5002204951 | K35: =IF(ISERROR(VLOOKUP($D35,表C_RAW!$C:$I,4,0)),"",VLOOKUP($D35,表C_RAW!$C:$I,4,0)) -> 1705116 | L35: =IF(ISERROR(VLOOKUP($D35,表C_RAW!$C:$I,5,0)),"",VLOOKUP($D35,表C_RAW!$C:$I,5,0)) -> -426682 | M35: =IF(ISERROR(VLOOKUP($D35,表C_RAW!$C:$I,6,0)),"",VLOOKUP($D35,表C_RAW!$C:$I,6,0)/100) -> 4.9962
C36: 3 | D36: =VLOOKUP($B$34&C36,表B_RAW!B:D,2,0) -> 6020 大展證 | F36: =IF(ISERROR(VLOOKUP($D36,表B_RAW!$C:$I,4,0)),"",VLOOKUP($D36,表B_RAW!$C:$I,4,0)) -> -18910 | G36: =IF(ISERROR(VLOOKUP($D36,表B_RAW!$C:$I,5,0)),"",VLOOKUP($D36,表B_RAW!$C:$I,5,0)) -> 52197 | H36: =IF(ISERROR(VLOOKUP($D36,表B_RAW!$C:$I,6,0)),"",VLOOKUP($D36,表B_RAW!$C:$I,6,0)/100) -> -1.3623 | I36: =IF(ISERROR(VLOOKUP($D36,表A_RAW!$C:$I,5,0)),"",VLOOKUP($D36,表A_RAW!$C:$I,5,0)) -> -23724 | J36: =IF(ISERROR(VLOOKUP($D36,表A_RAW!$C:$I,7,0)),"",VLOOKUP($D36,表A_RAW!$C:$I,7,0)) -> 0.2029168774 | K36: =IF(ISERROR(VLOOKUP($D36,表C_RAW!$C:$I,4,0)),"",VLOOKUP($D36,表C_RAW!$C:$I,4,0)) -> 192565 | L36: =IF(ISERROR(VLOOKUP($D36,表C_RAW!$C:$I,5,0)),"",VLOOKUP($D36,表C_RAW!$C:$I,5,0)) -> -5900 | M36: =IF(ISERROR(VLOOKUP($D36,表C_RAW!$C:$I,6,0)),"",VLOOKUP($D36,表C_RAW!$C:$I,6,0)/100) -> 33.6381
B37: =ROUND(VLOOKUP(A34,表B_RAW!O:T,6,0),2) -> -80.15 | C37: 4 | D37: =VLOOKUP($B$34&C37,表B_RAW!B:D,2,0) -> 6016 康和證 | F37: =IF(ISERROR(VLOOKUP($D37,表B_RAW!$C:$I,4,0)),"",VLOOKUP($D37,表B_RAW!$C:$I,4,0)) -> -140687 | G37: =IF(ISERROR(VLOOKUP($D37,表B_RAW!$C:$I,5,0)),"",VLOOKUP($D37,表B_RAW!$C:$I,5,0)) -> 1256783 | H37: =IF(ISERROR(VLOOKUP($D37,表B_RAW!$C:$I,6,0)),"",VLOOKUP($D37,表B_RAW!$C:$I,6,0)/100) -> -1.1119 | I37: =IF(ISERROR(VLOOKUP($D37,表A_RAW!$C:$I,5,0)),"",VLOOKUP($D37,表A_RAW!$C:$I,5,0)) -> -324806 | J37: =IF(ISERROR(VLOOKUP($D37,表A_RAW!$C:$I,7,0)),"",VLOOKUP($D37,表A_RAW!$C:$I,7,0)) -> 0.5668583708 | K37: =IF(ISERROR(VLOOKUP($D37,表C_RAW!$C:$I,4,0)),"",VLOOKUP($D37,表C_RAW!$C:$I,4,0)) -> 2343183 | L37: =IF(ISERROR(VLOOKUP($D37,表C_RAW!$C:$I,5,0)),"",VLOOKUP($D37,表C_RAW!$C:$I,5,0)) -> 159689 | M37: =IF(ISERROR(VLOOKUP($D37,表C_RAW!$C:$I,6,0)),"",VLOOKUP($D37,表C_RAW!$C:$I,6,0)/100) -> 13.6734
C38: 5 | D38: =VLOOKUP($B$34&C38,表B_RAW!B:D,2,0) -> 6026 福邦證 | F38: =IF(ISERROR(VLOOKUP($D38,表B_RAW!$C:$I,4,0)),"",VLOOKUP($D38,表B_RAW!$C:$I,4,0)) -> 11950 | G38: =IF(ISERROR(VLOOKUP($D38,表B_RAW!$C:$I,5,0)),"",VLOOKUP($D38,表B_RAW!$C:$I,5,0)) -> 203376 | H38: =IF(ISERROR(VLOOKUP($D38,表B_RAW!$C:$I,6,0)),"",VLOOKUP($D38,表B_RAW!$C:$I,6,0)/100) -> -0.9412 | I38: =IF(ISERROR(VLOOKUP($D38,表A_RAW!$C:$I,5,0)),"",VLOOKUP($D38,表A_RAW!$C:$I,5,0)) -> -110636 | J38: =IF(ISERROR(VLOOKUP($D38,表A_RAW!$C:$I,7,0)),"",VLOOKUP($D38,表A_RAW!$C:$I,7,0)) -> 1.108011859 | K38: =IF(ISERROR(VLOOKUP($D38,表C_RAW!$C:$I,4,0)),"",VLOOKUP($D38,表C_RAW!$C:$I,4,0)) -> 247572 | L38: =IF(ISERROR(VLOOKUP($D38,表C_RAW!$C:$I,5,0)),"",VLOOKUP($D38,表C_RAW!$C:$I,5,0)) -> 185680 | M38: =IF(ISERROR(VLOOKUP($D38,表C_RAW!$C:$I,6,0)),"",VLOOKUP($D38,表C_RAW!$C:$I,6,0)/100) -> 0.3333
A39: 2 | B39: =VLOOKUP(A39,表B_RAW!O:P,2,0) -> 貿易百貨 | C39: 1 | D39: =VLOOKUP($B$39&C39,表B_RAW!B:D,2,0) -> 2601 益航 | F39: =IF(ISERROR(VLOOKUP($D39,表B_RAW!$C:$I,4,0)),"",VLOOKUP($D39,表B_RAW!$C:$I,4,0)) -> 125882 | G39: =IF(ISERROR(VLOOKUP($D39,表B_RAW!$C:$I,5,0)),"",VLOOKUP($D39,表B_RAW!$C:$I,5,0)) -> 315909 | H39: =IF(ISERROR(VLOOKUP($D39,表B_RAW!$C:$I,6,0)),"",VLOOKUP($D39,表B_RAW!$C:$I,6,0)/100) -> -0.6015 | I39: =IF(ISERROR(VLOOKUP($D39,表A_RAW!$C:$I,5,0)),"",VLOOKUP($D39,表A_RAW!$C:$I,5,0)) -> 384908 | J39: =IF(ISERROR(VLOOKUP($D39,表A_RAW!$C:$I,7,0)),"",VLOOKUP($D39,表A_RAW!$C:$I,7,0)) -> -0.6729556154 | K39: =IF(ISERROR(VLOOKUP($D39,表C_RAW!$C:$I,4,0)),"",VLOOKUP($D39,表C_RAW!$C:$I,4,0)) -> 567836 | L39: =IF(ISERROR(VLOOKUP($D39,表C_RAW!$C:$I,5,0)),"",VLOOKUP($D39,表C_RAW!$C:$I,5,0)) -> 1159027 | M39: =IF(ISERROR(VLOOKUP($D39,表C_RAW!$C:$I,6,0)),"",VLOOKUP($D39,表C_RAW!$C:$I,6,0)/100) -> -0.5101
C40: 2 | D40: =VLOOKUP($B$39&C40,表B_RAW!B:D,2,0) -> 5906 台南-KY | F40: =IF(ISERROR(VLOOKUP($D40,表B_RAW!$C:$I,4,0)),"",VLOOKUP($D40,表B_RAW!$C:$I,4,0)) -> 99834 | G40: =IF(ISERROR(VLOOKUP($D40,表B_RAW!$C:$I,5,0)),"",VLOOKUP($D40,表B_RAW!$C:$I,5,0)) -> 172281 | H40: =IF(ISERROR(VLOOKUP($D40,表B_RAW!$C:$I,6,0)),"",VLOOKUP($D40,表B_RAW!$C:$I,6,0)/100) -> -0.4205 | I40: =IF(ISERROR(VLOOKUP($D40,表A_RAW!$C:$I,5,0)),"",VLOOKUP($D40,表A_RAW!$C:$I,5,0)) -> 107534 | J40: =IF(ISERROR(VLOOKUP($D40,表A_RAW!$C:$I,7,0)),"",VLOOKUP($D40,表A_RAW!$C:$I,7,0)) -> -0.07160525973 | K40: =IF(ISERROR(VLOOKUP($D40,表C_RAW!$C:$I,4,0)),"",VLOOKUP($D40,表C_RAW!$C:$I,4,0)) -> 430263 | L40: =IF(ISERROR(VLOOKUP($D40,表C_RAW!$C:$I,5,0)),"",VLOOKUP($D40,表C_RAW!$C:$I,5,0)) -> 478698 | M40: =IF(ISERROR(VLOOKUP($D40,表C_RAW!$C:$I,6,0)),"",VLOOKUP($D40,表C_RAW!$C:$I,6,0)/100) -> -0.1012
C41: 3 | D41: =VLOOKUP($B$39&C41,表B_RAW!B:D,2,0) -> 8443 阿瘦 | F41: =IF(ISERROR(VLOOKUP($D41,表B_RAW!$C:$I,4,0)),"",VLOOKUP($D41,表B_RAW!$C:$I,4,0)) -> 84651 | G41: =IF(ISERROR(VLOOKUP($D41,表B_RAW!$C:$I,5,0)),"",VLOOKUP($D41,表B_RAW!$C:$I,5,0)) -> 103379 | H41: =IF(ISERROR(VLOOKUP($D41,表B_RAW!$C:$I,6,0)),"",VLOOKUP($D41,表B_RAW!$C:$I,6,0)/100) -> -0.1812 | I41: =IF(ISERROR(VLOOKUP($D41,表A_RAW!$C:$I,5,0)),"",VLOOKUP($D41,表A_RAW!$C:$I,5,0)) -> 92263 | J41: =IF(ISERROR(VLOOKUP($D41,表A_RAW!$C:$I,7,0)),"",VLOOKUP($D41,表A_RAW!$C:$I,7,0)) -> -0.08250327867 | K41: =IF(ISERROR(VLOOKUP($D41,表C_RAW!$C:$I,4,0)),"",VLOOKUP($D41,表C_RAW!$C:$I,4,0)) -> 285102 | L41: =IF(ISERROR(VLOOKUP($D41,表C_RAW!$C:$I,5,0)),"",VLOOKUP($D41,表C_RAW!$C:$I,5,0)) -> 300214 | M41: =IF(ISERROR(VLOOKUP($D41,表C_RAW!$C:$I,6,0)),"",VLOOKUP($D41,表C_RAW!$C:$I,6,0)/100) -> -0.0503
B42: =ROUND(VLOOKUP(A39,表B_RAW!O:T,6,0),2) -> -17.32 | C42: 4 | D42: =VLOOKUP($B$39&C42,表B_RAW!B:D,2,0) -> 2910 統領 | F42: =IF(ISERROR(VLOOKUP($D42,表B_RAW!$C:$I,4,0)),"",VLOOKUP($D42,表B_RAW!$C:$I,4,0)) -> 42555 | G42: =IF(ISERROR(VLOOKUP($D42,表B_RAW!$C:$I,5,0)),"",VLOOKUP($D42,表B_RAW!$C:$I,5,0)) -> 47903 | H42: =IF(ISERROR(VLOOKUP($D42,表B_RAW!$C:$I,6,0)),"",VLOOKUP($D42,表B_RAW!$C:$I,6,0)/100) -> -0.1116 | I42: =IF(ISERROR(VLOOKUP($D42,表A_RAW!$C:$I,5,0)),"",VLOOKUP($D42,表A_RAW!$C:$I,5,0)) -> 40034 | J42: =IF(ISERROR(VLOOKUP($D42,表A_RAW!$C:$I,7,0)),"",VLOOKUP($D42,表A_RAW!$C:$I,7,0)) -> 0.06297147425 | K42: =IF(ISERROR(VLOOKUP($D42,表C_RAW!$C:$I,4,0)),"",VLOOKUP($D42,表C_RAW!$C:$I,4,0)) -> 134947 | L42: =IF(ISERROR(VLOOKUP($D42,表C_RAW!$C:$I,5,0)),"",VLOOKUP($D42,表C_RAW!$C:$I,5,0)) -> 127260 | M42: =IF(ISERROR(VLOOKUP($D42,表C_RAW!$C:$I,6,0)),"",VLOOKUP($D42,表C_RAW!$C:$I,6,0)/100) -> 0.0604
C43: 5 | D43: =IFERROR(VLOOKUP($B$39&C43,表B_RAW!B:D,2,0),"") -> 5907 大洋-KY | F43: =IF(ISERROR(VLOOKUP($D43,表B_RAW!$C:$I,4,0)),"",VLOOKUP($D43,表B_RAW!$C:$I,4,0)) -> 224312 | G43: =IF(ISERROR(VLOOKUP($D43,表B_RAW!$C:$I,5,0)),"",VLOOKUP($D43,表B_RAW!$C:$I,5,0)) -> 241595 | H43: =IF(ISERROR(VLOOKUP($D43,表B_RAW!$C:$I,6,0)),"",VLOOKUP($D43,表B_RAW!$C:$I,6,0)/100) -> -0.0715 | I43: =IF(ISERROR(VLOOKUP($D43,表A_RAW!$C:$I,5,0)),"",VLOOKUP($D43,表A_RAW!$C:$I,5,0)) -> 257284 | J43: =IF(ISERROR(VLOOKUP($D43,表A_RAW!$C:$I,7,0)),"",VLOOKUP($D43,表A_RAW!$C:$I,7,0)) -> -0.1281541021 | K43: =IF(ISERROR(VLOOKUP($D43,表C_RAW!$C:$I,4,0)),"",VLOOKUP($D43,表C_RAW!$C:$I,4,0)) -> 713578 | L43: =IF(ISERROR(VLOOKUP($D43,表C_RAW!$C:$I,5,0)),"",VLOOKUP($D43,表C_RAW!$C:$I,5,0)) -> 796329 | M43: =IF(ISERROR(VLOOKUP($D43,表C_RAW!$C:$I,6,0)),"",VLOOKUP($D43,表C_RAW!$C:$I,6,0)/100) -> -0.1039
A44: 3 | B44: =VLOOKUP(A44,表B_RAW!O:P,2,0) -> 觀光餐旅 | C44: 1 | D44: =VLOOKUP($B$44&C44,表B_RAW!B:D,2,0) -> 5704 老爺知 | F44: =IF(ISERROR(VLOOKUP($D44,表B_RAW!$C:$I,4,0)),"",VLOOKUP($D44,表B_RAW!$C:$I,4,0)) -> 845 | G44: =IF(ISERROR(VLOOKUP($D44,表B_RAW!$C:$I,5,0)),"",VLOOKUP($D44,表B_RAW!$C:$I,5,0)) -> 54110 | H44: =IF(ISERROR(VLOOKUP($D44,表B_RAW!$C:$I,6,0)),"",VLOOKUP($D44,表B_RAW!$C:$I,6,0)/100) -> -0.9844 | I44: =IF(ISERROR(VLOOKUP($D44,表A_RAW!$C:$I,5,0)),"",VLOOKUP($D44,表A_RAW!$C:$I,5,0)) -> 19294 | J44: =IF(ISERROR(VLOOKUP($D44,表A_RAW!$C:$I,7,0)),"",VLOOKUP($D44,表A_RAW!$C:$I,7,0)) -> -0.9562040012 | K44: =IF(ISERROR(VLOOKUP($D44,表C_RAW!$C:$I,4,0)),"",VLOOKUP($D44,表C_RAW!$C:$I,4,0)) -> 99298 | L44: =IF(ISERROR(VLOOKUP($D44,表C_RAW!$C:$I,5,0)),"",VLOOKUP($D44,表C_RAW!$C:$I,5,0)) -> 73804 | M44: =IF(ISERROR(VLOOKUP($D44,表C_RAW!$C:$I,6,0)),"",VLOOKUP($D44,表C_RAW!$C:$I,6,0)/100) -> 0.3454
C45: 2 | D45: =VLOOKUP($B$44&C45,表B_RAW!B:D,2,0) -> 5364 力麗店 | F45: =IF(ISERROR(VLOOKUP($D45,表B_RAW!$C:$I,4,0)),"",VLOOKUP($D45,表B_RAW!$C:$I,4,0)) -> 7055 | G45: =IF(ISERROR(VLOOKUP($D45,表B_RAW!$C:$I,5,0)),"",VLOOKUP($D45,表B_RAW!$C:$I,5,0)) -> 32491 | H45: =IF(ISERROR(VLOOKUP($D45,表B_RAW!$C:$I,6,0)),"",VLOOKUP($D45,表B_RAW!$C:$I,6,0)/100) -> -0.7829 | I45: =IF(ISERROR(VLOOKUP($D45,表A_RAW!$C:$I,5,0)),"",VLOOKUP($D45,表A_RAW!$C:$I,5,0)) -> 18478 | J45: =IF(ISERROR(VLOOKUP($D45,表A_RAW!$C:$I,7,0)),"",VLOOKUP($D45,表A_RAW!$C:$I,7,0)) -> -0.6181946098 | K45: =IF(ISERROR(VLOOKUP($D45,表C_RAW!$C:$I,4,0)),"",VLOOKUP($D45,表C_RAW!$C:$I,4,0)) -> 59334 | L45: =IF(ISERROR(VLOOKUP($D45,表C_RAW!$C:$I,5,0)),"",VLOOKUP($D45,表C_RAW!$C:$I,5,0)) -> 70398 | M45: =IF(ISERROR(VLOOKUP($D45,表C_RAW!$C:$I,6,0)),"",VLOOKUP($D45,表C_RAW!$C:$I,6,0)/100) -> -0.1572
C46: 3 | D46: =VLOOKUP($B$44&C46,表B_RAW!B:D,2,0) -> 2712 遠雄來 | F46: =IF(ISERROR(VLOOKUP($D46,表B_RAW!$C:$I,4,0)),"",VLOOKUP($D46,表B_RAW!$C:$I,4,0)) -> 27876 | G46: =IF(ISERROR(VLOOKUP($D46,表B_RAW!$C:$I,5,0)),"",VLOOKUP($D46,表B_RAW!$C:$I,5,0)) -> 62145 | H46: =IF(ISERROR(VLOOKUP($D46,表B_RAW!$C:$I,6,0)),"",VLOOKUP($D46,表B_RAW!$C:$I,6,0)/100) -> -0.5514 | I46: =IF(ISERROR(VLOOKUP($D46,表A_RAW!$C:$I,5,0)),"",VLOOKUP($D46,表A_RAW!$C:$I,5,0)) -> 31957 | J46: =IF(ISERROR(VLOOKUP($D46,表A_RAW!$C:$I,7,0)),"",VLOOKUP($D46,表A_RAW!$C:$I,7,0)) -> -0.1277028507 | K46: =IF(ISERROR(VLOOKUP($D46,表C_RAW!$C:$I,4,0)),"",VLOOKUP($D46,表C_RAW!$C:$I,4,0)) -> 125168 | L46: =IF(ISERROR(VLOOKUP($D46,表C_RAW!$C:$I,5,0)),"",VLOOKUP($D46,表C_RAW!$C:$I,5,0)) -> 114649 | M46: =IF(ISERROR(VLOOKUP($D46,表C_RAW!$C:$I,6,0)),"",VLOOKUP($D46,表C_RAW!$C:$I,6,0)/100) -> 0.0917
B47: =ROUND(VLOOKUP(A44,表B_RAW!O:T,6,0),2) -> -11.07 | C47: 4 | D47: =VLOOKUP($B$44&C47,表B_RAW!B:D,2,0) -> 5706 鳳凰 | F47: =IF(ISERROR(VLOOKUP($D47,表B_RAW!$C:$I,4,0)),"",VLOOKUP($D47,表B_RAW!$C:$I,4,0)) -> 205268 | G47: =IF(ISERROR(VLOOKUP($D47,表B_RAW!$C:$I,5,0)),"",VLOOKUP($D47,表B_RAW!$C:$I,5,0)) -> 349242 | H47: =IF(ISERROR(VLOOKUP($D47,表B_RAW!$C:$I,6,0)),"",VLOOKUP($D47,表B_RAW!$C:$I,6,0)/100) -> -0.4122 | I47: =IF(ISERROR(VLOOKUP($D47,表A_RAW!$C:$I,5,0)),"",VLOOKUP($D47,表A_RAW!$C:$I,5,0)) -> 260782 | J47: =IF(ISERROR(VLOOKUP($D47,表A_RAW!$C:$I,7,0)),"",VLOOKUP($D47,表A_RAW!$C:$I,7,0)) -> -0.2128751217 | K47: =IF(ISERROR(VLOOKUP($D47,表C_RAW!$C:$I,4,0)),"",VLOOKUP($D47,表C_RAW!$C:$I,4,0)) -> 709403 | L47: =IF(ISERROR(VLOOKUP($D47,表C_RAW!$C:$I,5,0)),"",VLOOKUP($D47,表C_RAW!$C:$I,5,0)) -> 719950 | M47: =IF(ISERROR(VLOOKUP($D47,表C_RAW!$C:$I,6,0)),"",VLOOKUP($D47,表C_RAW!$C:$I,6,0)/100) -> -0.0146
C48: 5 | D48: =IFERROR(VLOOKUP($B$44&C48,表B_RAW!B:D,2,0),"") -> 2729 瓦城 | F48: =IF(ISERROR(VLOOKUP($D48,表B_RAW!$C:$I,4,0)),"",VLOOKUP($D48,表B_RAW!$C:$I,4,0)) -> 453095 | G48: =IF(ISERROR(VLOOKUP($D48,表B_RAW!$C:$I,5,0)),"",VLOOKUP($D48,表B_RAW!$C:$I,5,0)) -> 723845 | H48: =IF(ISERROR(VLOOKUP($D48,表B_RAW!$C:$I,6,0)),"",VLOOKUP($D48,表B_RAW!$C:$I,6,0)/100) -> -0.374 | I48: =IF(ISERROR(VLOOKUP($D48,表A_RAW!$C:$I,5,0)),"",VLOOKUP($D48,表A_RAW!$C:$I,5,0)) -> 447242 | J48: =IF(ISERROR(VLOOKUP($D48,表A_RAW!$C:$I,7,0)),"",VLOOKUP($D48,表A_RAW!$C:$I,7,0)) -> 0.01308687467 | K48: =IF(ISERROR(VLOOKUP($D48,表C_RAW!$C:$I,4,0)),"",VLOOKUP($D48,表C_RAW!$C:$I,4,0)) -> 1653229 | L48: =IF(ISERROR(VLOOKUP($D48,表C_RAW!$C:$I,5,0)),"",VLOOKUP($D48,表C_RAW!$C:$I,5,0)) -> 1596926 | M48: =IF(ISERROR(VLOOKUP($D48,表C_RAW!$C:$I,6,0)),"",VLOOKUP($D48,表C_RAW!$C:$I,6,0)/100) -> 0.0353
A49: 4 | B49: =VLOOKUP(A49,表B_RAW!O:P,2,0) -> 文化創意業 | C49: 1 | D49: =VLOOKUP($B$49&C49,表B_RAW!B:D,2,0) -> 3629 地心引力 | F49: =IF(ISERROR(VLOOKUP($D49,表B_RAW!$C:$I,4,0)),"",VLOOKUP($D49,表B_RAW!$C:$I,4,0)) -> 135 | G49: =IF(ISERROR(VLOOKUP($D49,表B_RAW!$C:$I,5,0)),"",VLOOKUP($D49,表B_RAW!$C:$I,5,0)) -> 4100 | H49: =IF(ISERROR(VLOOKUP($D49,表B_RAW!$C:$I,6,0)),"",VLOOKUP($D49,表B_RAW!$C:$I,6,0)/100) -> -0.9671 | I49: =IF(ISERROR(VLOOKUP($D49,表A_RAW!$C:$I,5,0)),"",VLOOKUP($D49,表A_RAW!$C:$I,5,0)) -> 12 | J49: =IF(ISERROR(VLOOKUP($D49,表A_RAW!$C:$I,7,0)),"",VLOOKUP($D49,表A_RAW!$C:$I,7,0)) -> 10.25 | K49: =IF(ISERROR(VLOOKUP($D49,表C_RAW!$C:$I,4,0)),"",VLOOKUP($D49,表C_RAW!$C:$I,4,0)) -> 7951 | L49: =IF(ISERROR(VLOOKUP($D49,表C_RAW!$C:$I,5,0)),"",VLOOKUP($D49,表C_RAW!$C:$I,5,0)) -> 18 | M49: =IF(ISERROR(VLOOKUP($D49,表C_RAW!$C:$I,6,0)),"",VLOOKUP($D49,表C_RAW!$C:$I,6,0)/100) -> 440.7222
C50: 2 | D50: =VLOOKUP($B$49&C50,表B_RAW!B:D,2,0) -> 4946 辣椒 | F50: =IF(ISERROR(VLOOKUP($D50,表B_RAW!$C:$I,4,0)),"",VLOOKUP($D50,表B_RAW!$C:$I,4,0)) -> 20875 | G50: =IF(ISERROR(VLOOKUP($D50,表B_RAW!$C:$I,5,0)),"",VLOOKUP($D50,表B_RAW!$C:$I,5,0)) -> 41136 | H50: =IF(ISERROR(VLOOKUP($D50,表B_RAW!$C:$I,6,0)),"",VLOOKUP($D50,表B_RAW!$C:$I,6,0)/100) -> -0.4925 | I50: =IF(ISERROR(VLOOKUP($D50,表A_RAW!$C:$I,5,0)),"",VLOOKUP($D50,表A_RAW!$C:$I,5,0)) -> 45691 | J50: =IF(ISERROR(VLOOKUP($D50,表A_RAW!$C:$I,7,0)),"",VLOOKUP($D50,表A_RAW!$C:$I,7,0)) -> -0.5431266551 | K50: =IF(ISERROR(VLOOKUP($D50,表C_RAW!$C:$I,4,0)),"",VLOOKUP($D50,表C_RAW!$C:$I,4,0)) -> 79887 | L50: =IF(ISERROR(VLOOKUP($D50,表C_RAW!$C:$I,5,0)),"",VLOOKUP($D50,表C_RAW!$C:$I,5,0)) -> 118526 | M50: =IF(ISERROR(VLOOKUP($D50,表C_RAW!$C:$I,6,0)),"",VLOOKUP($D50,表C_RAW!$C:$I,6,0)/100) -> -0.326
C51: 3 | D51: =VLOOKUP($B$49&C51,表B_RAW!B:D,2,0) -> 6596 寬宏藝術 | F51: =IF(ISERROR(VLOOKUP($D51,表B_RAW!$C:$I,4,0)),"",VLOOKUP($D51,表B_RAW!$C:$I,4,0)) -> 143311 | G51: =IF(ISERROR(VLOOKUP($D51,表B_RAW!$C:$I,5,0)),"",VLOOKUP($D51,表B_RAW!$C:$I,5,0)) -> 265335 | H51: =IF(ISERROR(VLOOKUP($D51,表B_RAW!$C:$I,6,0)),"",VLOOKUP($D51,表B_RAW!$C:$I,6,0)/100) -> -0.4599 | I51: =IF(ISERROR(VLOOKUP($D51,表A_RAW!$C:$I,5,0)),"",VLOOKUP($D51,表A_RAW!$C:$I,5,0)) -> 93888 | J51: =IF(ISERROR(VLOOKUP($D51,表A_RAW!$C:$I,7,0)),"",VLOOKUP($D51,表A_RAW!$C:$I,7,0)) -> 0.5264038003 | K51: =IF(ISERROR(VLOOKUP($D51,表C_RAW!$C:$I,4,0)),"",VLOOKUP($D51,表C_RAW!$C:$I,4,0)) -> 604059 | L51: =IF(ISERROR(VLOOKUP($D51,表C_RAW!$C:$I,5,0)),"",VLOOKUP($D51,表C_RAW!$C:$I,5,0)) -> 463283 | M51: =IF(ISERROR(VLOOKUP($D51,表C_RAW!$C:$I,6,0)),"",VLOOKUP($D51,表C_RAW!$C:$I,6,0)/100) -> 0.3039
B52: =ROUND(VLOOKUP(A49,表B_RAW!O:T,6,0),2) -> 5.51 | C52: 4 | D52: =VLOOKUP($B$49&C52,表B_RAW!B:D,2,0) -> 8923 時報 | F52: =IF(ISERROR(VLOOKUP($D52,表B_RAW!$C:$I,4,0)),"",VLOOKUP($D52,表B_RAW!$C:$I,4,0)) -> 27976 | G52: =IF(ISERROR(VLOOKUP($D52,表B_RAW!$C:$I,5,0)),"",VLOOKUP($D52,表B_RAW!$C:$I,5,0)) -> 44727 | H52: =IF(ISERROR(VLOOKUP($D52,表B_RAW!$C:$I,6,0)),"",VLOOKUP($D52,表B_RAW!$C:$I,6,0)/100) -> -0.3745 | I52: =IF(ISERROR(VLOOKUP($D52,表A_RAW!$C:$I,5,0)),"",VLOOKUP($D52,表A_RAW!$C:$I,5,0)) -> 49283 | J52: =IF(ISERROR(VLOOKUP($D52,表A_RAW!$C:$I,7,0)),"",VLOOKUP($D52,表A_RAW!$C:$I,7,0)) -> -0.432339752 | K52: =IF(ISERROR(VLOOKUP($D52,表C_RAW!$C:$I,4,0)),"",VLOOKUP($D52,表C_RAW!$C:$I,4,0)) -> 110597 | L52: =IF(ISERROR(VLOOKUP($D52,表C_RAW!$C:$I,5,0)),"",VLOOKUP($D52,表C_RAW!$C:$I,5,0)) -> 131819 | M52: =IF(ISERROR(VLOOKUP($D52,表C_RAW!$C:$I,6,0)),"",VLOOKUP($D52,表C_RAW!$C:$I,6,0)/100) -> -0.161
C53: 5 | D53: =VLOOKUP($B$49&C53,表B_RAW!B:D,2,0) -> 7584 樂意 | F53: =IF(ISERROR(VLOOKUP($D53,表B_RAW!$C:$I,4,0)),"",VLOOKUP($D53,表B_RAW!$C:$I,4,0)) -> 62312 | G53: =IF(ISERROR(VLOOKUP($D53,表B_RAW!$C:$I,5,0)),"",VLOOKUP($D53,表B_RAW!$C:$I,5,0)) -> 90577 | H53: =IF(ISERROR(VLOOKUP($D53,表B_RAW!$C:$I,6,0)),"",VLOOKUP($D53,表B_RAW!$C:$I,6,0)/100) -> -0.3121 | I53: =IF(ISERROR(VLOOKUP($D53,表A_RAW!$C:$I,5,0)),"",VLOOKUP($D53,表A_RAW!$C:$I,5,0)) -> 84332 | J53: =IF(ISERROR(VLOOKUP($D53,表A_RAW!$C:$I,7,0)),"",VLOOKUP($D53,表A_RAW!$C:$I,7,0)) -> -0.2611108476 | K53: =IF(ISERROR(VLOOKUP($D53,表C_RAW!$C:$I,4,0)),"",VLOOKUP($D53,表C_RAW!$C:$I,4,0)) -> 224647 | L53: =IF(ISERROR(VLOOKUP($D53,表C_RAW!$C:$I,5,0)),"",VLOOKUP($D53,表C_RAW!$C:$I,5,0)) -> 309300 | M53: =IF(ISERROR(VLOOKUP($D53,表C_RAW!$C:$I,6,0)),"",VLOOKUP($D53,表C_RAW!$C:$I,6,0)/100) -> -0.2737
A54: 5 | B54: =VLOOKUP(A54,表B_RAW!O:P,2,0) -> 航運業 | C54: 1 | D54: =VLOOKUP($B$54&C54,表B_RAW!B:D,2,0) -> 6757 台灣虎航 | F54: =IF(ISERROR(VLOOKUP($D54,表B_RAW!$C:$I,4,0)),"",VLOOKUP($D54,表B_RAW!$C:$I,4,0)) -> 1789551 | G54: =IF(ISERROR(VLOOKUP($D54,表B_RAW!$C:$I,5,0)),"",VLOOKUP($D54,表B_RAW!$C:$I,5,0)) -> 2088781 | H54: =IF(ISERROR(VLOOKUP($D54,表B_RAW!$C:$I,6,0)),"",VLOOKUP($D54,表B_RAW!$C:$I,6,0)/100) -> -0.1433 | I54: =IF(ISERROR(VLOOKUP($D54,表A_RAW!$C:$I,5,0)),"",VLOOKUP($D54,表A_RAW!$C:$I,5,0)) -> 1409111 | J54: =IF(ISERROR(VLOOKUP($D54,表A_RAW!$C:$I,7,0)),"",VLOOKUP($D54,表A_RAW!$C:$I,7,0)) -> 0.2699858279 | K54: =IF(ISERROR(VLOOKUP($D54,表C_RAW!$C:$I,4,0)),"",VLOOKUP($D54,表C_RAW!$C:$I,4,0)) -> 5537922 | L54: =IF(ISERROR(VLOOKUP($D54,表C_RAW!$C:$I,5,0)),"",VLOOKUP($D54,表C_RAW!$C:$I,5,0)) -> 4628654 | M54: =IF(ISERROR(VLOOKUP($D54,表C_RAW!$C:$I,6,0)),"",VLOOKUP($D54,表C_RAW!$C:$I,6,0)/100) -> 0.1964
C55: 2 | D55: =VLOOKUP($B$54&C55,表B_RAW!B:D,2,0) -> 2646 星宇航空 | F55: =IF(ISERROR(VLOOKUP($D55,表B_RAW!$C:$I,4,0)),"",VLOOKUP($D55,表B_RAW!$C:$I,4,0)) -> 4727439 | G55: =IF(ISERROR(VLOOKUP($D55,表B_RAW!$C:$I,5,0)),"",VLOOKUP($D55,表B_RAW!$C:$I,5,0)) -> 4817778 | H55: =IF(ISERROR(VLOOKUP($D55,表B_RAW!$C:$I,6,0)),"",VLOOKUP($D55,表B_RAW!$C:$I,6,0)/100) -> -0.0188 | I55: =IF(ISERROR(VLOOKUP($D55,表A_RAW!$C:$I,5,0)),"",VLOOKUP($D55,表A_RAW!$C:$I,5,0)) -> 3552147 | J55: =IF(ISERROR(VLOOKUP($D55,表A_RAW!$C:$I,7,0)),"",VLOOKUP($D55,表A_RAW!$C:$I,7,0)) -> 0.3308680637 | K55: =IF(ISERROR(VLOOKUP($D55,表C_RAW!$C:$I,4,0)),"",VLOOKUP($D55,表C_RAW!$C:$I,4,0)) -> 13759797 | L55: =IF(ISERROR(VLOOKUP($D55,表C_RAW!$C:$I,5,0)),"",VLOOKUP($D55,表C_RAW!$C:$I,5,0)) -> 11194839 | M55: =IF(ISERROR(VLOOKUP($D55,表C_RAW!$C:$I,6,0)),"",VLOOKUP($D55,表C_RAW!$C:$I,6,0)/100) -> 0.2291
C56: 3 | D56: =VLOOKUP($B$54&C56,表B_RAW!B:D,2,0) -> 2615 萬海 | F56: =IF(ISERROR(VLOOKUP($D56,表B_RAW!$C:$I,4,0)),"",VLOOKUP($D56,表B_RAW!$C:$I,4,0)) -> 10522352 | G56: =IF(ISERROR(VLOOKUP($D56,表B_RAW!$C:$I,5,0)),"",VLOOKUP($D56,表B_RAW!$C:$I,5,0)) -> 10580264 | H56: =IF(ISERROR(VLOOKUP($D56,表B_RAW!$C:$I,6,0)),"",VLOOKUP($D56,表B_RAW!$C:$I,6,0)/100) -> -0.0055 | I56: =IF(ISERROR(VLOOKUP($D56,表A_RAW!$C:$I,5,0)),"",VLOOKUP($D56,表A_RAW!$C:$I,5,0)) -> 11784582 | J56: =IF(ISERROR(VLOOKUP($D56,表A_RAW!$C:$I,7,0)),"",VLOOKUP($D56,表A_RAW!$C:$I,7,0)) -> -0.1071085932 | K56: =IF(ISERROR(VLOOKUP($D56,表C_RAW!$C:$I,4,0)),"",VLOOKUP($D56,表C_RAW!$C:$I,4,0)) -> 33640384 | L56: =IF(ISERROR(VLOOKUP($D56,表C_RAW!$C:$I,5,0)),"",VLOOKUP($D56,表C_RAW!$C:$I,5,0)) -> 37090195 | M56: =IF(ISERROR(VLOOKUP($D56,表C_RAW!$C:$I,6,0)),"",VLOOKUP($D56,表C_RAW!$C:$I,6,0)/100) -> -0.093
B57: =ROUND(VLOOKUP(A54,表B_RAW!O:T,6,0),2) -> 8.08 | C57: 4 | D57: =VLOOKUP($B$54&C57,表B_RAW!B:D,2,0) -> 2609 陽明 | F57: =IF(ISERROR(VLOOKUP($D57,表B_RAW!$C:$I,4,0)),"",VLOOKUP($D57,表B_RAW!$C:$I,4,0)) -> 12455154 | G57: =IF(ISERROR(VLOOKUP($D57,表B_RAW!$C:$I,5,0)),"",VLOOKUP($D57,表B_RAW!$C:$I,5,0)) -> 12443461 | H57: =IF(ISERROR(VLOOKUP($D57,表B_RAW!$C:$I,6,0)),"",VLOOKUP($D57,表B_RAW!$C:$I,6,0)/100) -> 0.0009 | I57: =IF(ISERROR(VLOOKUP($D57,表A_RAW!$C:$I,5,0)),"",VLOOKUP($D57,表A_RAW!$C:$I,5,0)) -> 13229338 | J57: =IF(ISERROR(VLOOKUP($D57,表A_RAW!$C:$I,7,0)),"",VLOOKUP($D57,表A_RAW!$C:$I,7,0)) -> -0.05852023737 | K57: =IF(ISERROR(VLOOKUP($D57,表C_RAW!$C:$I,4,0)),"",VLOOKUP($D57,表C_RAW!$C:$I,4,0)) -> 38660499 | L57: =IF(ISERROR(VLOOKUP($D57,表C_RAW!$C:$I,5,0)),"",VLOOKUP($D57,表C_RAW!$C:$I,5,0)) -> 45516702 | M57: =IF(ISERROR(VLOOKUP($D57,表C_RAW!$C:$I,6,0)),"",VLOOKUP($D57,表C_RAW!$C:$I,6,0)/100) -> -0.1506
C58: 5 | D58: =VLOOKUP($B$54&C58,表B_RAW!B:D,2,0) -> 5601 台聯櫃 | F58: =IF(ISERROR(VLOOKUP($D58,表B_RAW!$C:$I,4,0)),"",VLOOKUP($D58,表B_RAW!$C:$I,4,0)) -> 7597 | G58: =IF(ISERROR(VLOOKUP($D58,表B_RAW!$C:$I,5,0)),"",VLOOKUP($D58,表B_RAW!$C:$I,5,0)) -> 7571 | H58: =IF(ISERROR(VLOOKUP($D58,表B_RAW!$C:$I,6,0)),"",VLOOKUP($D58,表B_RAW!$C:$I,6,0)/100) -> 0.0034 | I58: =IF(ISERROR(VLOOKUP($D58,表A_RAW!$C:$I,5,0)),"",VLOOKUP($D58,表A_RAW!$C:$I,5,0)) -> 7658 | J58: =IF(ISERROR(VLOOKUP($D58,表A_RAW!$C:$I,7,0)),"",VLOOKUP($D58,表A_RAW!$C:$I,7,0)) -> -0.007965526247 | K58: =IF(ISERROR(VLOOKUP($D58,表C_RAW!$C:$I,4,0)),"",VLOOKUP($D58,表C_RAW!$C:$I,4,0)) -> 22973 | L58: =IF(ISERROR(VLOOKUP($D58,表C_RAW!$C:$I,5,0)),"",VLOOKUP($D58,表C_RAW!$C:$I,5,0)) -> 22854 | M58: =IF(ISERROR(VLOOKUP($D58,表C_RAW!$C:$I,6,0)),"",VLOOKUP($D58,表C_RAW!$C:$I,6,0)/100) -> 0.0052

Sheet YOY(單月)
B1: =YEAR(表A_RAW!F2)&"年"&MONTH(表A_RAW!F2)&"月" -> 2026年3月
G2: 成長及衰退前五名之產業YOY%(單月)
B4: 成長前五名之產業 YOY(單月)% | D4: 該產業成長前五名之公司 YOY(單月)% | G4: 單月營收金額(千元) | H4: 本月與上月相較 | J4: 本月與去年同期相較 | L4: 累計營收金額(千元) | M4: 累計營收與去年同期相較
B5: 成長 排名 | C5: 產業 | D5: 排名 | E5: 公司代號&簡稱 | H5: 上月營收金額(千元) | I5: 較上月變動比率(%) | J5: 去年同期金額(千元) | K5: 較去年同期變動比率(%) | M5: 去年累計營收金額(千元) | N5: 較去年同期變動比率(%)
B6: 1 | C6: =VLOOKUP(B6,表A_RAW!N:T,3,0) -> 電子通路業 | D6: 1 | E6: =VLOOKUP($C$6&D6,表A_RAW!A:I,3,0) -> 6265 方土昶 | G6: =IF(ISERROR(VLOOKUP($E6,表A_RAW!$C:$I,4,0)),"",VLOOKUP($E6,表A_RAW!$C:$I,4,0)) -> 391752 | H6: =IF(ISERROR(VLOOKUP($E6,表B_RAW!$C:$I,5,0)),"",VLOOKUP($E6,表B_RAW!$C:$I,5,0)) -> 171535 | I6: =IF(ISERROR(VLOOKUP($E6,表B_RAW!$C:$I,6,0)),"",VLOOKUP($E6,表B_RAW!$C:$I,6,0)/100) -> 1.2838 | J6: =IF(ISERROR(VLOOKUP($E6,表A_RAW!$C:$I,5,0)),"",VLOOKUP($E6,表A_RAW!$C:$I,5,0)) -> 64161 | K6: =IF(ISERROR(VLOOKUP($E6,表A_RAW!$C:$I,7,0)),"",VLOOKUP($E6,表A_RAW!$C:$I,7,0)) -> 5.105765184 | L6: =IF(ISERROR(VLOOKUP($E6,表C_RAW!$C:$I,4,0)),"",VLOOKUP($E6,表C_RAW!$C:$I,4,0)) -> 776273 | M6: =IF(ISERROR(VLOOKUP($E6,表C_RAW!$C:$I,5,0)),"",VLOOKUP($E6,表C_RAW!$C:$I,5,0)) -> 145770 | N6: =IF(ISERROR(VLOOKUP($E6,表C_RAW!$C:$I,6,0)),"",VLOOKUP($E6,表C_RAW!$C:$I,6,0)/100) -> 4.3253
D7: 2 | E7: =VLOOKUP($C$6&D7,表A_RAW!A:I,3,0) -> 8112 至上 | G7: =IF(ISERROR(VLOOKUP($E7,表A_RAW!$C:$I,4,0)),"",VLOOKUP($E7,表A_RAW!$C:$I,4,0)) -> 53315182 | H7: =IF(ISERROR(VLOOKUP($E7,表B_RAW!$C:$I,5,0)),"",VLOOKUP($E7,表B_RAW!$C:$I,5,0)) -> 31218239 | I7: =IF(ISERROR(VLOOKUP($E7,表B_RAW!$C:$I,6,0)),"",VLOOKUP($E7,表B_RAW!$C:$I,6,0)/100) -> 0.7078 | J7: =IF(ISERROR(VLOOKUP($E7,表A_RAW!$C:$I,5,0)),"",VLOOKUP($E7,表A_RAW!$C:$I,5,0)) -> 18276897 | K7: =IF(ISERROR(VLOOKUP($E7,表A_RAW!$C:$I,7,0)),"",VLOOKUP($E7,表A_RAW!$C:$I,7,0)) -> 1.917080618 | L7: =IF(ISERROR(VLOOKUP($E7,表C_RAW!$C:$I,4,0)),"",VLOOKUP($E7,表C_RAW!$C:$I,4,0)) -> 110164542 | M7: =IF(ISERROR(VLOOKUP($E7,表C_RAW!$C:$I,5,0)),"",VLOOKUP($E7,表C_RAW!$C:$I,5,0)) -> 46317437 | N7: =IF(ISERROR(VLOOKUP($E7,表C_RAW!$C:$I,6,0)),"",VLOOKUP($E7,表C_RAW!$C:$I,6,0)/100) -> 1.3785
D8: 3 | E8: =VLOOKUP($C$6&D8,表A_RAW!A:I,3,0) -> 3528 安馳 | G8: =IF(ISERROR(VLOOKUP($E8,表A_RAW!$C:$I,4,0)),"",VLOOKUP($E8,表A_RAW!$C:$I,4,0)) -> 1363557 | H8: =IF(ISERROR(VLOOKUP($E8,表B_RAW!$C:$I,5,0)),"",VLOOKUP($E8,表B_RAW!$C:$I,5,0)) -> 681191 | I8: =IF(ISERROR(VLOOKUP($E8,表B_RAW!$C:$I,6,0)),"",VLOOKUP($E8,表B_RAW!$C:$I,6,0)/100) -> 1.0017 | J8: =IF(ISERROR(VLOOKUP($E8,表A_RAW!$C:$I,5,0)),"",VLOOKUP($E8,表A_RAW!$C:$I,5,0)) -> 586610 | K8: =IF(ISERROR(VLOOKUP($E8,表A_RAW!$C:$I,7,0)),"",VLOOKUP($E8,表A_RAW!$C:$I,7,0)) -> 1.324469409 | L8: =IF(ISERROR(VLOOKUP($E8,表C_RAW!$C:$I,4,0)),"",VLOOKUP($E8,表C_RAW!$C:$I,4,0)) -> 3501682 | M8: =IF(ISERROR(VLOOKUP($E8,表C_RAW!$C:$I,5,0)),"",VLOOKUP($E8,表C_RAW!$C:$I,5,0)) -> 1726137 | N8: =IF(ISERROR(VLOOKUP($E8,表C_RAW!$C:$I,6,0)),"",VLOOKUP($E8,表C_RAW!$C:$I,6,0)/100) -> 1.0286
C9: =ROUND(VLOOKUP(B6,表A_RAW!N:T,7,0),2) -> 66.42 | D9: 4 | E9: =VLOOKUP($C$6&D9,表A_RAW!A:I,3,0) -> 3028 增你強 | G9: =IF(ISERROR(VLOOKUP($E9,表A_RAW!$C:$I,4,0)),"",VLOOKUP($E9,表A_RAW!$C:$I,4,0)) -> 7514995 | H9: =IF(ISERROR(VLOOKUP($E9,表B_RAW!$C:$I,5,0)),"",VLOOKUP($E9,表B_RAW!$C:$I,5,0)) -> 3828384 | I9: =IF(ISERROR(VLOOKUP($E9,表B_RAW!$C:$I,6,0)),"",VLOOKUP($E9,表B_RAW!$C:$I,6,0)/100) -> 0.963 | J9: =IF(ISERROR(VLOOKUP($E9,表A_RAW!$C:$I,5,0)),"",VLOOKUP($E9,表A_RAW!$C:$I,5,0)) -> 3337326 | K9: =IF(ISERROR(VLOOKUP($E9,表A_RAW!$C:$I,7,0)),"",VLOOKUP($E9,表A_RAW!$C:$I,7,0)) -> 1.251801292 | L9: =IF(ISERROR(VLOOKUP($E9,表C_RAW!$C:$I,4,0)),"",VLOOKUP($E9,表C_RAW!$C:$I,4,0)) -> 17721573 | M9: =IF(ISERROR(VLOOKUP($E9,表C_RAW!$C:$I,5,0)),"",VLOOKUP($E9,表C_RAW!$C:$I,5,0)) -> 9044884 | N9: =IF(ISERROR(VLOOKUP($E9,表C_RAW!$C:$I,6,0)),"",VLOOKUP($E9,表C_RAW!$C:$I,6,0)/100) -> 0.9593
D10: 5 | E10: =VLOOKUP($C$6&D10,表A_RAW!A:I,3,0) -> 3036 文曄 | G10: =IF(ISERROR(VLOOKUP($E10,表A_RAW!$C:$I,4,0)),"",VLOOKUP($E10,表A_RAW!$C:$I,4,0)) -> 194101276 | H10: =IF(ISERROR(VLOOKUP($E10,表B_RAW!$C:$I,5,0)),"",VLOOKUP($E10,表B_RAW!$C:$I,5,0)) -> 104424711 | I10: =IF(ISERROR(VLOOKUP($E10,表B_RAW!$C:$I,6,0)),"",VLOOKUP($E10,表B_RAW!$C:$I,6,0)/100) -> 0.8588 | J10: =IF(ISERROR(VLOOKUP($E10,表A_RAW!$C:$I,5,0)),"",VLOOKUP($E10,表A_RAW!$C:$I,5,0)) -> 88682081 | K10: =IF(ISERROR(VLOOKUP($E10,表A_RAW!$C:$I,7,0)),"",VLOOKUP($E10,表A_RAW!$C:$I,7,0)) -> 1.188731633 | L10: =IF(ISERROR(VLOOKUP($E10,表C_RAW!$C:$I,4,0)),"",VLOOKUP($E10,表C_RAW!$C:$I,4,0)) -> 494272920 | M10: =IF(ISERROR(VLOOKUP($E10,表C_RAW!$C:$I,5,0)),"",VLOOKUP($E10,表C_RAW!$C:$I,5,0)) -> 247424457 | N10: =IF(ISERROR(VLOOKUP($E10,表C_RAW!$C:$I,6,0)),"",VLOOKUP($E10,表C_RAW!$C:$I,6,0)/100) -> 0.9977
B11: 2 | C11: =VLOOKUP(B11,表A_RAW!N:T,3,0) -> 電腦及週邊設備業 | D11: 1 | E11: =VLOOKUP($C$11&D11,表A_RAW!A:I,3,0) -> 5386 青雲 | G11: =IF(ISERROR(VLOOKUP($E11,表A_RAW!$C:$I,4,0)),"",VLOOKUP($E11,表A_RAW!$C:$I,4,0)) -> 3260949 | H11: =IF(ISERROR(VLOOKUP($E11,表B_RAW!$C:$I,5,0)),"",VLOOKUP($E11,表B_RAW!$C:$I,5,0)) -> 2891514 | I11: =IF(ISERROR(VLOOKUP($E11,表B_RAW!$C:$I,6,0)),"",VLOOKUP($E11,表B_RAW!$C:$I,6,0)/100) -> 0.1278 | J11: =IF(ISERROR(VLOOKUP($E11,表A_RAW!$C:$I,5,0)),"",VLOOKUP($E11,表A_RAW!$C:$I,5,0)) -> 504172 | K11: =IF(ISERROR(VLOOKUP($E11,表A_RAW!$C:$I,7,0)),"",VLOOKUP($E11,表A_RAW!$C:$I,7,0)) -> 5.467929595 | L11: =IF(ISERROR(VLOOKUP($E11,表C_RAW!$C:$I,4,0)),"",VLOOKUP($E11,表C_RAW!$C:$I,4,0)) -> 8613491 | M11: =IF(ISERROR(VLOOKUP($E11,表C_RAW!$C:$I,5,0)),"",VLOOKUP($E11,表C_RAW!$C:$I,5,0)) -> 1246706 | N11: =IF(ISERROR(VLOOKUP($E11,表C_RAW!$C:$I,6,0)),"",VLOOKUP($E11,表C_RAW!$C:$I,6,0)/100) -> 5.909
D12: 2 | E12: =VLOOKUP($C$11&D12,表A_RAW!A:I,3,0) -> 5289 宜鼎 | G12: =IF(ISERROR(VLOOKUP($E12,表A_RAW!$C:$I,4,0)),"",VLOOKUP($E12,表A_RAW!$C:$I,4,0)) -> 5672453 | H12: =IF(ISERROR(VLOOKUP($E12,表B_RAW!$C:$I,5,0)),"",VLOOKUP($E12,表B_RAW!$C:$I,5,0)) -> 4178683 | I12: =IF(ISERROR(VLOOKUP($E12,表B_RAW!$C:$I,6,0)),"",VLOOKUP($E12,表B_RAW!$C:$I,6,0)/100) -> 0.3575 | J12: =IF(ISERROR(VLOOKUP($E12,表A_RAW!$C:$I,5,0)),"",VLOOKUP($E12,表A_RAW!$C:$I,5,0)) -> 970015 | K12: =IF(ISERROR(VLOOKUP($E12,表A_RAW!$C:$I,7,0)),"",VLOOKUP($E12,表A_RAW!$C:$I,7,0)) -> 4.847799261 | L12: =IF(ISERROR(VLOOKUP($E12,表C_RAW!$C:$I,4,0)),"",VLOOKUP($E12,表C_RAW!$C:$I,4,0)) -> 13182608 | M12: =IF(ISERROR(VLOOKUP($E12,表C_RAW!$C:$I,5,0)),"",VLOOKUP($E12,表C_RAW!$C:$I,5,0)) -> 2618742 | N12: =IF(ISERROR(VLOOKUP($E12,表C_RAW!$C:$I,6,0)),"",VLOOKUP($E12,表C_RAW!$C:$I,6,0)/100) -> 4.0339
D13: 3 | E13: =VLOOKUP($C$11&D13,表A_RAW!A:I,3,0) -> 7711 永擎 | G13: =IF(ISERROR(VLOOKUP($E13,表A_RAW!$C:$I,4,0)),"",VLOOKUP($E13,表A_RAW!$C:$I,4,0)) -> 3548769 | H13: =IF(ISERROR(VLOOKUP($E13,表B_RAW!$C:$I,5,0)),"",VLOOKUP($E13,表B_RAW!$C:$I,5,0)) -> 525774 | I13: =IF(ISERROR(VLOOKUP($E13,表B_RAW!$C:$I,6,0)),"",VLOOKUP($E13,表B_RAW!$C:$I,6,0)/100) -> 5.7496 | J13: =IF(ISERROR(VLOOKUP($E13,表A_RAW!$C:$I,5,0)),"",VLOOKUP($E13,表A_RAW!$C:$I,5,0)) -> 1159092 | K13: =IF(ISERROR(VLOOKUP($E13,表A_RAW!$C:$I,7,0)),"",VLOOKUP($E13,表A_RAW!$C:$I,7,0)) -> 2.061680177 | L13: =IF(ISERROR(VLOOKUP($E13,表C_RAW!$C:$I,4,0)),"",VLOOKUP($E13,表C_RAW!$C:$I,4,0)) -> 8891334 | M13: =IF(ISERROR(VLOOKUP($E13,表C_RAW!$C:$I,5,0)),"",VLOOKUP($E13,表C_RAW!$C:$I,5,0)) -> 4632547 | N13: =IF(ISERROR(VLOOKUP($E13,表C_RAW!$C:$I,6,0)),"",VLOOKUP($E13,表C_RAW!$C:$I,6,0)/100) -> 0.9193
C14: =ROUND(VLOOKUP(B11,表A_RAW!N:T,7,0),2) -> 52 | D14: 4 | E14: =VLOOKUP($C$11&D14,表A_RAW!A:I,3,0) -> 3231 緯創 | G14: =IF(ISERROR(VLOOKUP($E14,表A_RAW!$C:$I,4,0)),"",VLOOKUP($E14,表A_RAW!$C:$I,4,0)) -> 333043315 | H14: =IF(ISERROR(VLOOKUP($E14,表B_RAW!$C:$I,5,0)),"",VLOOKUP($E14,表B_RAW!$C:$I,5,0)) -> 284893080 | I14: =IF(ISERROR(VLOOKUP($E14,表B_RAW!$C:$I,6,0)),"",VLOOKUP($E14,表B_RAW!$C:$I,6,0)/100) -> 0.169 | J14: =IF(ISERROR(VLOOKUP($E14,表A_RAW!$C:$I,5,0)),"",VLOOKUP($E14,表A_RAW!$C:$I,5,0)) -> 152984771 | K14: =IF(ISERROR(VLOOKUP($E14,表A_RAW!$C:$I,7,0)),"",VLOOKUP($E14,表A_RAW!$C:$I,7,0)) -> 1.17697038 | L14: =IF(ISERROR(VLOOKUP($E14,表C_RAW!$C:$I,4,0)),"",VLOOKUP($E14,表C_RAW!$C:$I,4,0)) -> 846303026 | M14: =IF(ISERROR(VLOOKUP($E14,表C_RAW!$C:$I,5,0)),"",VLOOKUP($E14,表C_RAW!$C:$I,5,0)) -> 346485069 | N14: =IF(ISERROR(VLOOKUP($E14,表C_RAW!$C:$I,6,0)),"",VLOOKUP($E14,表C_RAW!$C:$I,6,0)/100) -> 1.4425
D15: 5 | E15: =VLOOKUP($C$11&D15,表A_RAW!A:I,3,0) -> 4924 欣厚-KY | G15: =IF(ISERROR(VLOOKUP($E15,表A_RAW!$C:$I,4,0)),"",VLOOKUP($E15,表A_RAW!$C:$I,4,0)) -> 83443 | H15: =IF(ISERROR(VLOOKUP($E15,表B_RAW!$C:$I,5,0)),"",VLOOKUP($E15,表B_RAW!$C:$I,5,0)) -> 61796 | I15: =IF(ISERROR(VLOOKUP($E15,表B_RAW!$C:$I,6,0)),"",VLOOKUP($E15,表B_RAW!$C:$I,6,0)/100) -> 0.3503 | J15: =IF(ISERROR(VLOOKUP($E15,表A_RAW!$C:$I,5,0)),"",VLOOKUP($E15,表A_RAW!$C:$I,5,0)) -> 38463 | K15: =IF(ISERROR(VLOOKUP($E15,表A_RAW!$C:$I,7,0)),"",VLOOKUP($E15,表A_RAW!$C:$I,7,0)) -> 1.169435561 | L15: =IF(ISERROR(VLOOKUP($E15,表C_RAW!$C:$I,4,0)),"",VLOOKUP($E15,表C_RAW!$C:$I,4,0)) -> 237754 | M15: =IF(ISERROR(VLOOKUP($E15,表C_RAW!$C:$I,5,0)),"",VLOOKUP($E15,表C_RAW!$C:$I,5,0)) -> 172250 | N15: =IF(ISERROR(VLOOKUP($E15,表C_RAW!$C:$I,6,0)),"",VLOOKUP($E15,表C_RAW!$C:$I,6,0)/100) -> 0.3803
B16: 3 | C16: =VLOOKUP(B16,表A_RAW!N:T,3,0) -> 其他電子業 | D16: 1 | E16: =VLOOKUP($C$16&D16,表A_RAW!A:I,3,0) -> 3067 全域 | G16: =IF(ISERROR(VLOOKUP($E16,表A_RAW!$C:$I,4,0)),"",VLOOKUP($E16,表A_RAW!$C:$I,4,0)) -> 17689 | H16: =IF(ISERROR(VLOOKUP($E16,表B_RAW!$C:$I,5,0)),"",VLOOKUP($E16,表B_RAW!$C:$I,5,0)) -> 1915 | I16: =IF(ISERROR(VLOOKUP($E16,表B_RAW!$C:$I,6,0)),"",VLOOKUP($E16,表B_RAW!$C:$I,6,0)/100) -> 8.2371 | J16: =IF(ISERROR(VLOOKUP($E16,表A_RAW!$C:$I,5,0)),"",VLOOKUP($E16,表A_RAW!$C:$I,5,0)) -> 3442 | K16: =IF(ISERROR(VLOOKUP($E16,表A_RAW!$C:$I,7,0)),"",VLOOKUP($E16,表A_RAW!$C:$I,7,0)) -> 4.139163277 | L16: =IF(ISERROR(VLOOKUP($E16,表C_RAW!$C:$I,4,0)),"",VLOOKUP($E16,表C_RAW!$C:$I,4,0)) -> 26116 | M16: =IF(ISERROR(VLOOKUP($E16,表C_RAW!$C:$I,5,0)),"",VLOOKUP($E16,表C_RAW!$C:$I,5,0)) -> 14382 | N16: =IF(ISERROR(VLOOKUP($E16,表C_RAW!$C:$I,6,0)),"",VLOOKUP($E16,表C_RAW!$C:$I,6,0)/100) -> 0.8159
D17: 2 | E17: =VLOOKUP($C$16&D17,表A_RAW!A:I,3,0) -> 6903 巨漢 | G17: =IF(ISERROR(VLOOKUP($E17,表A_RAW!$C:$I,4,0)),"",VLOOKUP($E17,表A_RAW!$C:$I,4,0)) -> 734462 | H17: =IF(ISERROR(VLOOKUP($E17,表B_RAW!$C:$I,5,0)),"",VLOOKUP($E17,表B_RAW!$C:$I,5,0)) -> 471747 | I17: =IF(ISERROR(VLOOKUP($E17,表B_RAW!$C:$I,6,0)),"",VLOOKUP($E17,表B_RAW!$C:$I,6,0)/100) -> 0.5569 | J17: =IF(ISERROR(VLOOKUP($E17,表A_RAW!$C:$I,5,0)),"",VLOOKUP($E17,表A_RAW!$C:$I,5,0)) -> 174684 | K17: =IF(ISERROR(VLOOKUP($E17,表A_RAW!$C:$I,7,0)),"",VLOOKUP($E17,表A_RAW!$C:$I,7,0)) -> 3.204517872 | L17: =IF(ISERROR(VLOOKUP($E17,表C_RAW!$C:$I,4,0)),"",VLOOKUP($E17,表C_RAW!$C:$I,4,0)) -> 1925756 | M17: =IF(ISERROR(VLOOKUP($E17,表C_RAW!$C:$I,5,0)),"",VLOOKUP($E17,表C_RAW!$C:$I,5,0)) -> 419832 | N17: =IF(ISERROR(VLOOKUP($E17,表C_RAW!$C:$I,6,0)),"",VLOOKUP($E17,表C_RAW!$C:$I,6,0)/100) -> 3.587
D18: 3 | E18: =VLOOKUP($C$16&D18,表A_RAW!A:I,3,0) -> 6735 美達科技 | G18: =IF(ISERROR(VLOOKUP($E18,表A_RAW!$C:$I,4,0)),"",VLOOKUP($E18,表A_RAW!$C:$I,4,0)) -> 43863 | H18: =IF(ISERROR(VLOOKUP($E18,表B_RAW!$C:$I,5,0)),"",VLOOKUP($E18,表B_RAW!$C:$I,5,0)) -> 24364 | I18: =IF(ISERROR(VLOOKUP($E18,表B_RAW!$C:$I,6,0)),"",VLOOKUP($E18,表B_RAW!$C:$I,6,0)/100) -> 0.8003 | J18: =IF(ISERROR(VLOOKUP($E18,表A_RAW!$C:$I,5,0)),"",VLOOKUP($E18,表A_RAW!$C:$I,5,0)) -> 10977 | K18: =IF(ISERROR(VLOOKUP($E18,表A_RAW!$C:$I,7,0)),"",VLOOKUP($E18,表A_RAW!$C:$I,7,0)) -> 2.995900519 | L18: =IF(ISERROR(VLOOKUP($E18,表C_RAW!$C:$I,4,0)),"",VLOOKUP($E18,表C_RAW!$C:$I,4,0)) -> 93677 | M18: =IF(ISERROR(VLOOKUP($E18,表C_RAW!$C:$I,5,0)),"",VLOOKUP($E18,表C_RAW!$C:$I,5,0)) -> 64310 | N18: =IF(ISERROR(VLOOKUP($E18,表C_RAW!$C:$I,6,0)),"",VLOOKUP($E18,表C_RAW!$C:$I,6,0)/100) -> 0.4566
C19: =ROUND(VLOOKUP(B16,表A_RAW!N:T,7,0),2) -> 41.4 | D19: 4 | E19: =VLOOKUP($C$16&D19,表A_RAW!A:I,3,0) -> 3498 陽程 | G19: =IF(ISERROR(VLOOKUP($E19,表A_RAW!$C:$I,4,0)),"",VLOOKUP($E19,表A_RAW!$C:$I,4,0)) -> 75810 | H19: =IF(ISERROR(VLOOKUP($E19,表B_RAW!$C:$I,5,0)),"",VLOOKUP($E19,表B_RAW!$C:$I,5,0)) -> 77675 | I19: =IF(ISERROR(VLOOKUP($E19,表B_RAW!$C:$I,6,0)),"",VLOOKUP($E19,表B_RAW!$C:$I,6,0)/100) -> -0.024 | J19: =IF(ISERROR(VLOOKUP($E19,表A_RAW!$C:$I,5,0)),"",VLOOKUP($E19,表A_RAW!$C:$I,5,0)) -> 29504 | K19: =IF(ISERROR(VLOOKUP($E19,表A_RAW!$C:$I,7,0)),"",VLOOKUP($E19,表A_RAW!$C:$I,7,0)) -> 1.569482104 | L19: =IF(ISERROR(VLOOKUP($E19,表C_RAW!$C:$I,4,0)),"",VLOOKUP($E19,表C_RAW!$C:$I,4,0)) -> 250818 | M19: =IF(ISERROR(VLOOKUP($E19,表C_RAW!$C:$I,5,0)),"",VLOOKUP($E19,表C_RAW!$C:$I,5,0)) -> 141423 | N19: =IF(ISERROR(VLOOKUP($E19,表C_RAW!$C:$I,6,0)),"",VLOOKUP($E19,表C_RAW!$C:$I,6,0)/100) -> 0.7735
D20: 5 | E20: =VLOOKUP($C$16&D20,表A_RAW!A:I,3,0) -> 6691 洋基工程 | G20: =IF(ISERROR(VLOOKUP($E20,表A_RAW!$C:$I,4,0)),"",VLOOKUP($E20,表A_RAW!$C:$I,4,0)) -> 2808117 | H20: =IF(ISERROR(VLOOKUP($E20,表B_RAW!$C:$I,5,0)),"",VLOOKUP($E20,表B_RAW!$C:$I,5,0)) -> 1802251 | I20: =IF(ISERROR(VLOOKUP($E20,表B_RAW!$C:$I,6,0)),"",VLOOKUP($E20,表B_RAW!$C:$I,6,0)/100) -> 0.5581 | J20: =IF(ISERROR(VLOOKUP($E20,表A_RAW!$C:$I,5,0)),"",VLOOKUP($E20,表A_RAW!$C:$I,5,0)) -> 1320063 | K20: =IF(ISERROR(VLOOKUP($E20,表A_RAW!$C:$I,7,0)),"",VLOOKUP($E20,表A_RAW!$C:$I,7,0)) -> 1.127259835 | L20: =IF(ISERROR(VLOOKUP($E20,表C_RAW!$C:$I,4,0)),"",VLOOKUP($E20,表C_RAW!$C:$I,4,0)) -> 6977227 | M20: =IF(ISERROR(VLOOKUP($E20,表C_RAW!$C:$I,5,0)),"",VLOOKUP($E20,表C_RAW!$C:$I,5,0)) -> 3946391 | N20: =IF(ISERROR(VLOOKUP($E20,表C_RAW!$C:$I,6,0)),"",VLOOKUP($E20,表C_RAW!$C:$I,6,0)/100) -> 0.768
B21: 4 | C21: =VLOOKUP(B21,表A_RAW!N:T,3,0) -> 建材營造 | D21: 1 | E21: =VLOOKUP($C$21&D21,表A_RAW!A:I,3,FALSE) -> 9906 欣巴巴 | G21: =IF(ISERROR(VLOOKUP($E21,表A_RAW!$C:$I,4,0)),"",VLOOKUP($E21,表A_RAW!$C:$I,4,0)) -> 333928 | H21: =IF(ISERROR(VLOOKUP($E21,表B_RAW!$C:$I,5,0)),"",VLOOKUP($E21,表B_RAW!$C:$I,5,0)) -> 190249 | I21: =IF(ISERROR(VLOOKUP($E21,表B_RAW!$C:$I,6,0)),"",VLOOKUP($E21,表B_RAW!$C:$I,6,0)/100) -> 0.7552 | J21: =IF(ISERROR(VLOOKUP($E21,表A_RAW!$C:$I,5,0)),"",VLOOKUP($E21,表A_RAW!$C:$I,5,0)) -> 15 | K21: =IF(ISERROR(VLOOKUP($E21,表A_RAW!$C:$I,7,0)),"",VLOOKUP($E21,表A_RAW!$C:$I,7,0)) -> 22260.86667 | L21: =IF(ISERROR(VLOOKUP($E21,表C_RAW!$C:$I,4,0)),"",VLOOKUP($E21,表C_RAW!$C:$I,4,0)) -> 816381 | M21: =IF(ISERROR(VLOOKUP($E21,表C_RAW!$C:$I,5,0)),"",VLOOKUP($E21,表C_RAW!$C:$I,5,0)) -> 81275 | N21: =IF(ISERROR(VLOOKUP($E21,表C_RAW!$C:$I,6,0)),"",VLOOKUP($E21,表C_RAW!$C:$I,6,0)/100) -> 9.0447
D22: 2 | E22: =VLOOKUP($C$21&D22,表A_RAW!A:I,3,FALSE) -> 5514 三豐 | G22: =IF(ISERROR(VLOOKUP($E22,表A_RAW!$C:$I,4,0)),"",VLOOKUP($E22,表A_RAW!$C:$I,4,0)) -> 529395 | H22: =IF(ISERROR(VLOOKUP($E22,表B_RAW!$C:$I,5,0)),"",VLOOKUP($E22,表B_RAW!$C:$I,5,0)) -> 103596 | I22: =IF(ISERROR(VLOOKUP($E22,表B_RAW!$C:$I,6,0)),"",VLOOKUP($E22,表B_RAW!$C:$I,6,0)/100) -> 4.1102 | J22: =IF(ISERROR(VLOOKUP($E22,表A_RAW!$C:$I,5,0)),"",VLOOKUP($E22,表A_RAW!$C:$I,5,0)) -> 482 | K22: =IF(ISERROR(VLOOKUP($E22,表A_RAW!$C:$I,7,0)),"",VLOOKUP($E22,表A_RAW!$C:$I,7,0)) -> 1097.329876 | L22: =IF(ISERROR(VLOOKUP($E22,表C_RAW!$C:$I,4,0)),"",VLOOKUP($E22,表C_RAW!$C:$I,4,0)) -> 666499 | M22: =IF(ISERROR(VLOOKUP($E22,表C_RAW!$C:$I,5,0)),"",VLOOKUP($E22,表C_RAW!$C:$I,5,0)) -> 1445 | N22: =IF(ISERROR(VLOOKUP($E22,表C_RAW!$C:$I,6,0)),"",VLOOKUP($E22,表C_RAW!$C:$I,6,0)/100) -> 460.245
D23: 3 | E23: =VLOOKUP($C$21&D23,表A_RAW!A:I,3,FALSE) -> 1438 三地開發 | G23: =IF(ISERROR(VLOOKUP($E23,表A_RAW!$C:$I,4,0)),"",VLOOKUP($E23,表A_RAW!$C:$I,4,0)) -> 197558 | H23: =IF(ISERROR(VLOOKUP($E23,表B_RAW!$C:$I,5,0)),"",VLOOKUP($E23,表B_RAW!$C:$I,5,0)) -> 1134 | I23: =IF(ISERROR(VLOOKUP($E23,表B_RAW!$C:$I,6,0)),"",VLOOKUP($E23,表B_RAW!$C:$I,6,0)/100) -> 173.2134 | J23: =IF(ISERROR(VLOOKUP($E23,表A_RAW!$C:$I,5,0)),"",VLOOKUP($E23,表A_RAW!$C:$I,5,0)) -> 241 | K23: =IF(ISERROR(VLOOKUP($E23,表A_RAW!$C:$I,7,0)),"",VLOOKUP($E23,表A_RAW!$C:$I,7,0)) -> 818.7427386 | L23: =IF(ISERROR(VLOOKUP($E23,表C_RAW!$C:$I,4,0)),"",VLOOKUP($E23,表C_RAW!$C:$I,4,0)) -> 377477 | M23: =IF(ISERROR(VLOOKUP($E23,表C_RAW!$C:$I,5,0)),"",VLOOKUP($E23,表C_RAW!$C:$I,5,0)) -> 241 | N23: =IF(ISERROR(VLOOKUP($E23,表C_RAW!$C:$I,6,0)),"",VLOOKUP($E23,表C_RAW!$C:$I,6,0)/100) -> 1565.2946
C24: =ROUND(VLOOKUP(B21,表A_RAW!N:T,7,0),2) -> 39.44 | D24: 4 | E24: =VLOOKUP($C$21&D24,表A_RAW!A:I,3,FALSE) -> 2548 華固 | G24: =IF(ISERROR(VLOOKUP($E24,表A_RAW!$C:$I,4,0)),"",VLOOKUP($E24,表A_RAW!$C:$I,4,0)) -> 1965711 | H24: =IF(ISERROR(VLOOKUP($E24,表B_RAW!$C:$I,5,0)),"",VLOOKUP($E24,表B_RAW!$C:$I,5,0)) -> 1137637 | I24: =IF(ISERROR(VLOOKUP($E24,表B_RAW!$C:$I,6,0)),"",VLOOKUP($E24,表B_RAW!$C:$I,6,0)/100) -> 0.7279 | J24: =IF(ISERROR(VLOOKUP($E24,表A_RAW!$C:$I,5,0)),"",VLOOKUP($E24,表A_RAW!$C:$I,5,0)) -> 2399 | K24: =IF(ISERROR(VLOOKUP($E24,表A_RAW!$C:$I,7,0)),"",VLOOKUP($E24,表A_RAW!$C:$I,7,0)) -> 818.3876615 | L24: =IF(ISERROR(VLOOKUP($E24,表C_RAW!$C:$I,4,0)),"",VLOOKUP($E24,表C_RAW!$C:$I,4,0)) -> 4206418 | M24: =IF(ISERROR(VLOOKUP($E24,表C_RAW!$C:$I,5,0)),"",VLOOKUP($E24,表C_RAW!$C:$I,5,0)) -> 11454 | N24: =IF(ISERROR(VLOOKUP($E24,表C_RAW!$C:$I,6,0)),"",VLOOKUP($E24,表C_RAW!$C:$I,6,0)/100) -> 366.2445
D25: 5 | E25: =VLOOKUP($C$21&D25,表A_RAW!A:I,3,FALSE) -> 1808 潤隆 | G25: =IF(ISERROR(VLOOKUP($E25,表A_RAW!$C:$I,4,0)),"",VLOOKUP($E25,表A_RAW!$C:$I,4,0)) -> 2201874 | H25: =IF(ISERROR(VLOOKUP($E25,表B_RAW!$C:$I,5,0)),"",VLOOKUP($E25,表B_RAW!$C:$I,5,0)) -> 1652480 | I25: =IF(ISERROR(VLOOKUP($E25,表B_RAW!$C:$I,6,0)),"",VLOOKUP($E25,表B_RAW!$C:$I,6,0)/100) -> 0.3325 | J25: =IF(ISERROR(VLOOKUP($E25,表A_RAW!$C:$I,5,0)),"",VLOOKUP($E25,表A_RAW!$C:$I,5,0)) -> 3221 | K25: =IF(ISERROR(VLOOKUP($E25,表A_RAW!$C:$I,7,0)),"",VLOOKUP($E25,表A_RAW!$C:$I,7,0)) -> 682.5995033 | L25: =IF(ISERROR(VLOOKUP($E25,表C_RAW!$C:$I,4,0)),"",VLOOKUP($E25,表C_RAW!$C:$I,4,0)) -> 5392216 | M25: =IF(ISERROR(VLOOKUP($E25,表C_RAW!$C:$I,5,0)),"",VLOOKUP($E25,表C_RAW!$C:$I,5,0)) -> 30910 | N25: =IF(ISERROR(VLOOKUP($E25,表C_RAW!$C:$I,6,0)),"",VLOOKUP($E25,表C_RAW!$C:$I,6,0)/100) -> 173.4489
B26: 5 | C26: =VLOOKUP(B26,表A_RAW!N:T,3,0) -> 半導體業 | D26: 1 | E26: =VLOOKUP($C$26&D26,表A_RAW!A:I,3,FALSE) -> 3555 博士旺 | G26: =IF(ISERROR(VLOOKUP($E26,表A_RAW!$C:$I,4,0)),"",VLOOKUP($E26,表A_RAW!$C:$I,4,0)) -> 102925 | H26: =IF(ISERROR(VLOOKUP($E26,表B_RAW!$C:$I,5,0)),"",VLOOKUP($E26,表B_RAW!$C:$I,5,0)) -> 100013 | I26: =IF(ISERROR(VLOOKUP($E26,表B_RAW!$C:$I,6,0)),"",VLOOKUP($E26,表B_RAW!$C:$I,6,0)/100) -> 0.0291 | J26: =IF(ISERROR(VLOOKUP($E26,表A_RAW!$C:$I,5,0)),"",VLOOKUP($E26,表A_RAW!$C:$I,5,0)) -> 2135 | K26: =IF(ISERROR(VLOOKUP($E26,表A_RAW!$C:$I,7,0)),"",VLOOKUP($E26,表A_RAW!$C:$I,7,0)) -> 47.20843091 | L26: =IF(ISERROR(VLOOKUP($E26,表C_RAW!$C:$I,4,0)),"",VLOOKUP($E26,表C_RAW!$C:$I,4,0)) -> 273286 | M26: =IF(ISERROR(VLOOKUP($E26,表C_RAW!$C:$I,5,0)),"",VLOOKUP($E26,表C_RAW!$C:$I,5,0)) -> 6353 | N26: =IF(ISERROR(VLOOKUP($E26,表C_RAW!$C:$I,6,0)),"",VLOOKUP($E26,表C_RAW!$C:$I,6,0)/100) -> 42.0168
D27: 2 | E27: =VLOOKUP($C$26&D27,表A_RAW!A:I,3,FALSE) -> 2408 南亞科 | G27: =IF(ISERROR(VLOOKUP($E27,表A_RAW!$C:$I,4,0)),"",VLOOKUP($E27,表A_RAW!$C:$I,4,0)) -> 18169760 | H27: =IF(ISERROR(VLOOKUP($E27,表B_RAW!$C:$I,5,0)),"",VLOOKUP($E27,表B_RAW!$C:$I,5,0)) -> 15607184 | I27: =IF(ISERROR(VLOOKUP($E27,表B_RAW!$C:$I,6,0)),"",VLOOKUP($E27,表B_RAW!$C:$I,6,0)/100) -> 0.1642 | J27: =IF(ISERROR(VLOOKUP($E27,表A_RAW!$C:$I,5,0)),"",VLOOKUP($E27,表A_RAW!$C:$I,5,0)) -> 2752833 | K27: =IF(ISERROR(VLOOKUP($E27,表A_RAW!$C:$I,7,0)),"",VLOOKUP($E27,表A_RAW!$C:$I,7,0)) -> 5.600385857 | L27: =IF(ISERROR(VLOOKUP($E27,表C_RAW!$C:$I,4,0)),"",VLOOKUP($E27,表C_RAW!$C:$I,4,0)) -> 49086932 | M27: =IF(ISERROR(VLOOKUP($E27,表C_RAW!$C:$I,5,0)),"",VLOOKUP($E27,表C_RAW!$C:$I,5,0)) -> 7187940 | N27: =IF(ISERROR(VLOOKUP($E27,表C_RAW!$C:$I,6,0)),"",VLOOKUP($E27,表C_RAW!$C:$I,6,0)/100) -> 5.8291
D28: 3 | E28: =VLOOKUP($C$26&D28,表A_RAW!A:I,3,FALSE) -> 5351 鈺創 | G28: =IF(ISERROR(VLOOKUP($E28,表A_RAW!$C:$I,4,0)),"",VLOOKUP($E28,表A_RAW!$C:$I,4,0)) -> 1102522 | H28: =IF(ISERROR(VLOOKUP($E28,表B_RAW!$C:$I,5,0)),"",VLOOKUP($E28,表B_RAW!$C:$I,5,0)) -> 869173 | I28: =IF(ISERROR(VLOOKUP($E28,表B_RAW!$C:$I,6,0)),"",VLOOKUP($E28,表B_RAW!$C:$I,6,0)/100) -> 0.2685 | J28: =IF(ISERROR(VLOOKUP($E28,表A_RAW!$C:$I,5,0)),"",VLOOKUP($E28,表A_RAW!$C:$I,5,0)) -> 220672 | K28: =IF(ISERROR(VLOOKUP($E28,表A_RAW!$C:$I,7,0)),"",VLOOKUP($E28,表A_RAW!$C:$I,7,0)) -> 3.996202509 | L28: =IF(ISERROR(VLOOKUP($E28,表C_RAW!$C:$I,4,0)),"",VLOOKUP($E28,表C_RAW!$C:$I,4,0)) -> 2735412 | M28: =IF(ISERROR(VLOOKUP($E28,表C_RAW!$C:$I,5,0)),"",VLOOKUP($E28,表C_RAW!$C:$I,5,0)) -> 627130 | N28: =IF(ISERROR(VLOOKUP($E28,表C_RAW!$C:$I,6,0)),"",VLOOKUP($E28,表C_RAW!$C:$I,6,0)/100) -> 3.3618
C29: =ROUND(VLOOKUP(B26,表A_RAW!N:T,7,0),2) -> 37.66 | D29: 4 | E29: =VLOOKUP($C$26&D29,表A_RAW!A:I,3,FALSE) -> 2451 創見 | G29: =IF(ISERROR(VLOOKUP($E29,表A_RAW!$C:$I,4,0)),"",VLOOKUP($E29,表A_RAW!$C:$I,4,0)) -> 5683818 | H29: =IF(ISERROR(VLOOKUP($E29,表B_RAW!$C:$I,5,0)),"",VLOOKUP($E29,表B_RAW!$C:$I,5,0)) -> 3184337 | I29: =IF(ISERROR(VLOOKUP($E29,表B_RAW!$C:$I,6,0)),"",VLOOKUP($E29,表B_RAW!$C:$I,6,0)/100) -> 0.7849 | J29: =IF(ISERROR(VLOOKUP($E29,表A_RAW!$C:$I,5,0)),"",VLOOKUP($E29,表A_RAW!$C:$I,5,0)) -> 1182715 | K29: =IF(ISERROR(VLOOKUP($E29,表A_RAW!$C:$I,7,0)),"",VLOOKUP($E29,表A_RAW!$C:$I,7,0)) -> 3.805737646 | L29: =IF(ISERROR(VLOOKUP($E29,表C_RAW!$C:$I,4,0)),"",VLOOKUP($E29,表C_RAW!$C:$I,4,0)) -> 13628469 | M29: =IF(ISERROR(VLOOKUP($E29,表C_RAW!$C:$I,5,0)),"",VLOOKUP($E29,表C_RAW!$C:$I,5,0)) -> 2982852 | N29: =IF(ISERROR(VLOOKUP($E29,表C_RAW!$C:$I,6,0)),"",VLOOKUP($E29,表C_RAW!$C:$I,6,0)/100) -> 3.5689
D30: 5 | E30: =VLOOKUP($C$26&D30,表A_RAW!A:I,3,FALSE) -> 8271 宇瞻 | G30: =IF(ISERROR(VLOOKUP($E30,表A_RAW!$C:$I,4,0)),"",VLOOKUP($E30,表A_RAW!$C:$I,4,0)) -> 3070136 | H30: =IF(ISERROR(VLOOKUP($E30,表B_RAW!$C:$I,5,0)),"",VLOOKUP($E30,表B_RAW!$C:$I,5,0)) -> 1879562 | I30: =IF(ISERROR(VLOOKUP($E30,表B_RAW!$C:$I,6,0)),"",VLOOKUP($E30,表B_RAW!$C:$I,6,0)/100) -> 0.6334 | J30: =IF(ISERROR(VLOOKUP($E30,表A_RAW!$C:$I,5,0)),"",VLOOKUP($E30,表A_RAW!$C:$I,5,0)) -> 781782 | K30: =IF(ISERROR(VLOOKUP($E30,表A_RAW!$C:$I,7,0)),"",VLOOKUP($E30,表A_RAW!$C:$I,7,0)) -> 2.927099882 | L30: =IF(ISERROR(VLOOKUP($E30,表C_RAW!$C:$I,4,0)),"",VLOOKUP($E30,表C_RAW!$C:$I,4,0)) -> 7042184 | M30: =IF(ISERROR(VLOOKUP($E30,表C_RAW!$C:$I,5,0)),"",VLOOKUP($E30,表C_RAW!$C:$I,5,0)) -> 2049196 | N30: =IF(ISERROR(VLOOKUP($E30,表C_RAW!$C:$I,6,0)),"",VLOOKUP($E30,表C_RAW!$C:$I,6,0)/100) -> 2.4366
B32: 衰退前五名之產業 YOY(單月)% | D32: 該產業衰退前五名之公司 YOY(單月)% | G32: 單月營收金額(千元) | H32: 本月與上月相較 | J32: 本月與去年同期相較 | L32: 累計營收金額(千元) | M32: 累計營收與去年同期相較
B33: 衰退 排名 | C33: 產業 | D33: 排名 | E33: 公司代號&簡稱 | H33: 上月營收金額(千元) | I33: 較上月變動比率(%) | J33: 去年同期金額(千元) | K33: 較去年同期變動比率(%) | M33: 去年累計營收金額(千元) | N33: 較去年同期變動比率(%)
B34: 1 | C34: =VLOOKUP(B34,表A_RAW!O:T,2,0) -> 水泥工業 | D34: 1 | E34: =VLOOKUP($C$34&D34,表A_RAW!B:I,2,0) -> 1109 信大 | G34: =IF(ISERROR(VLOOKUP($E34,表A_RAW!$C:$I,4,0)),"",VLOOKUP($E34,表A_RAW!$C:$I,4,0)) -> 314014 | H34: =IF(ISERROR(VLOOKUP($E34,表B_RAW!$C:$I,5,0)),"",VLOOKUP($E34,表B_RAW!$C:$I,5,0)) -> 167550 | I34: =IF(ISERROR(VLOOKUP($E34,表B_RAW!$C:$I,6,0)),"",VLOOKUP($E34,表B_RAW!$C:$I,6,0)/100) -> 0.8742 | J34: =IF(ISERROR(VLOOKUP($E34,表A_RAW!$C:$I,5,0)),"",VLOOKUP($E34,表A_RAW!$C:$I,5,0)) -> 446709 | K34: =IF(ISERROR(VLOOKUP($E34,表A_RAW!$C:$I,7,0)),"",VLOOKUP($E34,表A_RAW!$C:$I,7,0)) -> -0.2970502049 | L34: =IF(ISERROR(VLOOKUP($E34,表C_RAW!$C:$I,4,0)),"",VLOOKUP($E34,表C_RAW!$C:$I,4,0)) -> 855341 | M34: =IF(ISERROR(VLOOKUP($E34,表C_RAW!$C:$I,5,0)),"",VLOOKUP($E34,表C_RAW!$C:$I,5,0)) -> 989911 | N34: =IF(ISERROR(VLOOKUP($E34,表C_RAW!$C:$I,6,0)),"",VLOOKUP($E34,表C_RAW!$C:$I,6,0)/100) -> -0.1359
D35: 2 | E35: =VLOOKUP($C$34&D35,表A_RAW!B:I,2,0) -> 1110 東泥 | G35: =IF(ISERROR(VLOOKUP($E35,表A_RAW!$C:$I,4,0)),"",VLOOKUP($E35,表A_RAW!$C:$I,4,0)) -> 224535 | H35: =IF(ISERROR(VLOOKUP($E35,表B_RAW!$C:$I,5,0)),"",VLOOKUP($E35,表B_RAW!$C:$I,5,0)) -> 159417 | I35: =IF(ISERROR(VLOOKUP($E35,表B_RAW!$C:$I,6,0)),"",VLOOKUP($E35,表B_RAW!$C:$I,6,0)/100) -> 0.4085 | J35: =IF(ISERROR(VLOOKUP($E35,表A_RAW!$C:$I,5,0)),"",VLOOKUP($E35,表A_RAW!$C:$I,5,0)) -> 274954 | K35: =IF(ISERROR(VLOOKUP($E35,表A_RAW!$C:$I,7,0)),"",VLOOKUP($E35,表A_RAW!$C:$I,7,0)) -> -0.1833724914 | L35: =IF(ISERROR(VLOOKUP($E35,表C_RAW!$C:$I,4,0)),"",VLOOKUP($E35,表C_RAW!$C:$I,4,0)) -> 582643 | M35: =IF(ISERROR(VLOOKUP($E35,表C_RAW!$C:$I,5,0)),"",VLOOKUP($E35,表C_RAW!$C:$I,5,0)) -> 740524 | N35: =IF(ISERROR(VLOOKUP($E35,表C_RAW!$C:$I,6,0)),"",VLOOKUP($E35,表C_RAW!$C:$I,6,0)/100) -> -0.2132
D36: 3 | E36: =VLOOKUP($C$34&D36,表A_RAW!B:I,2,0) -> 1102 亞泥 | G36: =IF(ISERROR(VLOOKUP($E36,表A_RAW!$C:$I,4,0)),"",VLOOKUP($E36,表A_RAW!$C:$I,4,0)) -> 5349407 | H36: =IF(ISERROR(VLOOKUP($E36,表B_RAW!$C:$I,5,0)),"",VLOOKUP($E36,表B_RAW!$C:$I,5,0)) -> 3493115 | I36: =IF(ISERROR(VLOOKUP($E36,表B_RAW!$C:$I,6,0)),"",VLOOKUP($E36,表B_RAW!$C:$I,6,0)/100) -> 0.5314 | J36: =IF(ISERROR(VLOOKUP($E36,表A_RAW!$C:$I,5,0)),"",VLOOKUP($E36,表A_RAW!$C:$I,5,0)) -> 6532662 | K36: =IF(ISERROR(VLOOKUP($E36,表A_RAW!$C:$I,7,0)),"",VLOOKUP($E36,表A_RAW!$C:$I,7,0)) -> -0.1811290711 | L36: =IF(ISERROR(VLOOKUP($E36,表C_RAW!$C:$I,4,0)),"",VLOOKUP($E36,表C_RAW!$C:$I,4,0)) -> 14829486 | M36: =IF(ISERROR(VLOOKUP($E36,表C_RAW!$C:$I,5,0)),"",VLOOKUP($E36,表C_RAW!$C:$I,5,0)) -> 16594707 | N36: =IF(ISERROR(VLOOKUP($E36,表C_RAW!$C:$I,6,0)),"",VLOOKUP($E36,表C_RAW!$C:$I,6,0)/100) -> -0.1064
C37: =ROUND(VLOOKUP(B34,表A_RAW!O:T,6,0),2) -> -12.55 | D37: 4 | E37: =VLOOKUP($C$34&D37,表A_RAW!B:I,2,0) -> 1104 環泥 | G37: =IF(ISERROR(VLOOKUP($E37,表A_RAW!$C:$I,4,0)),"",VLOOKUP($E37,表A_RAW!$C:$I,4,0)) -> 580759 | H37: =IF(ISERROR(VLOOKUP($E37,表B_RAW!$C:$I,5,0)),"",VLOOKUP($E37,表B_RAW!$C:$I,5,0)) -> 460060 | I37: =IF(ISERROR(VLOOKUP($E37,表B_RAW!$C:$I,6,0)),"",VLOOKUP($E37,表B_RAW!$C:$I,6,0)/100) -> 0.2624 | J37: =IF(ISERROR(VLOOKUP($E37,表A_RAW!$C:$I,5,0)),"",VLOOKUP($E37,表A_RAW!$C:$I,5,0)) -> 702215 | K37: =IF(ISERROR(VLOOKUP($E37,表A_RAW!$C:$I,7,0)),"",VLOOKUP($E37,表A_RAW!$C:$I,7,0)) -> -0.1729612725 | L37: =IF(ISERROR(VLOOKUP($E37,表C_RAW!$C:$I,4,0)),"",VLOOKUP($E37,表C_RAW!$C:$I,4,0)) -> 1759047 | M37: =IF(ISERROR(VLOOKUP($E37,表C_RAW!$C:$I,5,0)),"",VLOOKUP($E37,表C_RAW!$C:$I,5,0)) -> 1928654 | N37: =IF(ISERROR(VLOOKUP($E37,表C_RAW!$C:$I,6,0)),"",VLOOKUP($E37,表C_RAW!$C:$I,6,0)/100) -> -0.0879
D38: 5 | E38: =VLOOKUP($C$34&D38,表A_RAW!B:I,2,0) -> 1108 幸福 | G38: =IF(ISERROR(VLOOKUP($E38,表A_RAW!$C:$I,4,0)),"",VLOOKUP($E38,表A_RAW!$C:$I,4,0)) -> 346885 | H38: =IF(ISERROR(VLOOKUP($E38,表B_RAW!$C:$I,5,0)),"",VLOOKUP($E38,表B_RAW!$C:$I,5,0)) -> 259157 | I38: =IF(ISERROR(VLOOKUP($E38,表B_RAW!$C:$I,6,0)),"",VLOOKUP($E38,表B_RAW!$C:$I,6,0)/100) -> 0.3385 | J38: =IF(ISERROR(VLOOKUP($E38,表A_RAW!$C:$I,5,0)),"",VLOOKUP($E38,表A_RAW!$C:$I,5,0)) -> 408312 | K38: =IF(ISERROR(VLOOKUP($E38,表A_RAW!$C:$I,7,0)),"",VLOOKUP($E38,表A_RAW!$C:$I,7,0)) -> -0.1504413292 | L38: =IF(ISERROR(VLOOKUP($E38,表C_RAW!$C:$I,4,0)),"",VLOOKUP($E38,表C_RAW!$C:$I,4,0)) -> 980706 | M38: =IF(ISERROR(VLOOKUP($E38,表C_RAW!$C:$I,5,0)),"",VLOOKUP($E38,表C_RAW!$C:$I,5,0)) -> 1212710 | N38: =IF(ISERROR(VLOOKUP($E38,表C_RAW!$C:$I,6,0)),"",VLOOKUP($E38,表C_RAW!$C:$I,6,0)/100) -> -0.1913
B39: 2 | C39: =VLOOKUP(B39,表A_RAW!O:T,2,0) -> 運動休閒 | D39: 1 | E39: =VLOOKUP($C$39&D39,表A_RAW!B:I,2,0) -> 1432 大魯閣 | G39: =IF(ISERROR(VLOOKUP($E39,表A_RAW!$C:$I,4,0)),"",VLOOKUP($E39,表A_RAW!$C:$I,4,0)) -> 60006 | H39: =IF(ISERROR(VLOOKUP($E39,表B_RAW!$C:$I,5,0)),"",VLOOKUP($E39,表B_RAW!$C:$I,5,0)) -> 72081 | I39: =IF(ISERROR(VLOOKUP($E39,表B_RAW!$C:$I,6,0)),"",VLOOKUP($E39,表B_RAW!$C:$I,6,0)/100) -> -0.1675 | J39: =IF(ISERROR(VLOOKUP($E39,表A_RAW!$C:$I,5,0)),"",VLOOKUP($E39,表A_RAW!$C:$I,5,0)) -> 104877 | K39: =IF(ISERROR(VLOOKUP($E39,表A_RAW!$C:$I,7,0)),"",VLOOKUP($E39,表A_RAW!$C:$I,7,0)) -> -0.4278440459 | L39: =IF(ISERROR(VLOOKUP($E39,表C_RAW!$C:$I,4,0)),"",VLOOKUP($E39,表C_RAW!$C:$I,4,0)) -> 198085 | M39: =IF(ISERROR(VLOOKUP($E39,表C_RAW!$C:$I,5,0)),"",VLOOKUP($E39,表C_RAW!$C:$I,5,0)) -> 335189 | N39: =IF(ISERROR(VLOOKUP($E39,表C_RAW!$C:$I,6,0)),"",VLOOKUP($E39,表C_RAW!$C:$I,6,0)/100) -> -0.409
D40: 2 | E40: =VLOOKUP($C$39&D40,表A_RAW!B:I,2,0) -> 8933 愛地雅 | G40: =IF(ISERROR(VLOOKUP($E40,表A_RAW!$C:$I,4,0)),"",VLOOKUP($E40,表A_RAW!$C:$I,4,0)) -> 188767 | H40: =IF(ISERROR(VLOOKUP($E40,表B_RAW!$C:$I,5,0)),"",VLOOKUP($E40,表B_RAW!$C:$I,5,0)) -> 180726 | I40: =IF(ISERROR(VLOOKUP($E40,表B_RAW!$C:$I,6,0)),"",VLOOKUP($E40,表B_RAW!$C:$I,6,0)/100) -> 0.0445 | J40: =IF(ISERROR(VLOOKUP($E40,表A_RAW!$C:$I,5,0)),"",VLOOKUP($E40,表A_RAW!$C:$I,5,0)) -> 275160 | K40: =IF(ISERROR(VLOOKUP($E40,表A_RAW!$C:$I,7,0)),"",VLOOKUP($E40,表A_RAW!$C:$I,7,0)) -> -0.313973688 | L40: =IF(ISERROR(VLOOKUP($E40,表C_RAW!$C:$I,4,0)),"",VLOOKUP($E40,表C_RAW!$C:$I,4,0)) -> 486719 | M40: =IF(ISERROR(VLOOKUP($E40,表C_RAW!$C:$I,5,0)),"",VLOOKUP($E40,表C_RAW!$C:$I,5,0)) -> 743876 | N40: =IF(ISERROR(VLOOKUP($E40,表C_RAW!$C:$I,6,0)),"",VLOOKUP($E40,表C_RAW!$C:$I,6,0)/100) -> -0.3457
D41: 3 | E41: =VLOOKUP($C$39&D41,表A_RAW!B:I,2,0) -> 8928 鉅明 | G41: =IF(ISERROR(VLOOKUP($E41,表A_RAW!$C:$I,4,0)),"",VLOOKUP($E41,表A_RAW!$C:$I,4,0)) -> 287304 | H41: =IF(ISERROR(VLOOKUP($E41,表B_RAW!$C:$I,5,0)),"",VLOOKUP($E41,表B_RAW!$C:$I,5,0)) -> 218852 | I41: =IF(ISERROR(VLOOKUP($E41,表B_RAW!$C:$I,6,0)),"",VLOOKUP($E41,表B_RAW!$C:$I,6,0)/100) -> 0.3128 | J41: =IF(ISERROR(VLOOKUP($E41,表A_RAW!$C:$I,5,0)),"",VLOOKUP($E41,表A_RAW!$C:$I,5,0)) -> 376004 | K41: =IF(ISERROR(VLOOKUP($E41,表A_RAW!$C:$I,7,0)),"",VLOOKUP($E41,表A_RAW!$C:$I,7,0)) -> -0.2359017457 | L41: =IF(ISERROR(VLOOKUP($E41,表C_RAW!$C:$I,4,0)),"",VLOOKUP($E41,表C_RAW!$C:$I,4,0)) -> 754460 | M41: =IF(ISERROR(VLOOKUP($E41,表C_RAW!$C:$I,5,0)),"",VLOOKUP($E41,表C_RAW!$C:$I,5,0)) -> 1038415 | N41: =IF(ISERROR(VLOOKUP($E41,表C_RAW!$C:$I,6,0)),"",VLOOKUP($E41,表C_RAW!$C:$I,6,0)/100) -> -0.2735
C42: =ROUND(VLOOKUP(B39,表A_RAW!O:T,6,0),2) -> -8.81 | D42: 4 | E42: =VLOOKUP($C$39&D42,表A_RAW!B:I,2,0) -> 6965 中傑-KY | G42: =IF(ISERROR(VLOOKUP($E42,表A_RAW!$C:$I,4,0)),"",VLOOKUP($E42,表A_RAW!$C:$I,4,0)) -> 1830133 | H42: =IF(ISERROR(VLOOKUP($E42,表B_RAW!$C:$I,5,0)),"",VLOOKUP($E42,表B_RAW!$C:$I,5,0)) -> 1406641 | I42: =IF(ISERROR(VLOOKUP($E42,表B_RAW!$C:$I,6,0)),"",VLOOKUP($E42,表B_RAW!$C:$I,6,0)/100) -> 0.3011 | J42: =IF(ISERROR(VLOOKUP($E42,表A_RAW!$C:$I,5,0)),"",VLOOKUP($E42,表A_RAW!$C:$I,5,0)) -> 2326533 | K42: =IF(ISERROR(VLOOKUP($E42,表A_RAW!$C:$I,7,0)),"",VLOOKUP($E42,表A_RAW!$C:$I,7,0)) -> -0.2133646933 | L42: =IF(ISERROR(VLOOKUP($E42,表C_RAW!$C:$I,4,0)),"",VLOOKUP($E42,表C_RAW!$C:$I,4,0)) -> 4881896 | M42: =IF(ISERROR(VLOOKUP($E42,表C_RAW!$C:$I,5,0)),"",VLOOKUP($E42,表C_RAW!$C:$I,5,0)) -> 6108069 | N42: =IF(ISERROR(VLOOKUP($E42,表C_RAW!$C:$I,6,0)),"",VLOOKUP($E42,表C_RAW!$C:$I,6,0)/100) -> -0.2007
D43: 5 | E43: =IFERROR(VLOOKUP($C$39&D43,表A_RAW!B:I,2,0),"") -> 6890 來億-KY | G43: =IF(ISERROR(VLOOKUP($E43,表A_RAW!$C:$I,4,0)),"",VLOOKUP($E43,表A_RAW!$C:$I,4,0)) -> 2779557 | H43: =IF(ISERROR(VLOOKUP($E43,表B_RAW!$C:$I,5,0)),"",VLOOKUP($E43,表B_RAW!$C:$I,5,0)) -> 1776161 | I43: =IF(ISERROR(VLOOKUP($E43,表B_RAW!$C:$I,6,0)),"",VLOOKUP($E43,表B_RAW!$C:$I,6,0)/100) -> 0.5649 | J43: =IF(ISERROR(VLOOKUP($E43,表A_RAW!$C:$I,5,0)),"",VLOOKUP($E43,表A_RAW!$C:$I,5,0)) -> 3500227 | K43: =IF(ISERROR(VLOOKUP($E43,表A_RAW!$C:$I,7,0)),"",VLOOKUP($E43,表A_RAW!$C:$I,7,0)) -> -0.2058923607 | L43: =IF(ISERROR(VLOOKUP($E43,表C_RAW!$C:$I,4,0)),"",VLOOKUP($E43,表C_RAW!$C:$I,4,0)) -> 7077691 | M43: =IF(ISERROR(VLOOKUP($E43,表C_RAW!$C:$I,5,0)),"",VLOOKUP($E43,表C_RAW!$C:$I,5,0)) -> 9682827 | N43: =IF(ISERROR(VLOOKUP($E43,表C_RAW!$C:$I,6,0)),"",VLOOKUP($E43,表C_RAW!$C:$I,6,0)/100) -> -0.269
B44: 3 | C44: =VLOOKUP(B44,表A_RAW!O:T,2,0) -> 其他 | D44: 1 | E44: =VLOOKUP($C$44&D44,表A_RAW!B:I,2,0) -> 7777 能率亞洲 | G44: =IF(ISERROR(VLOOKUP($E44,表A_RAW!$C:$I,4,0)),"",VLOOKUP($E44,表A_RAW!$C:$I,4,0)) -> -106459 | H44: =IF(ISERROR(VLOOKUP($E44,表B_RAW!$C:$I,5,0)),"",VLOOKUP($E44,表B_RAW!$C:$I,5,0)) -> 7299 | I44: =IF(ISERROR(VLOOKUP($E44,表B_RAW!$C:$I,6,0)),"",VLOOKUP($E44,表B_RAW!$C:$I,6,0)/100) -> -15.5854 | J44: =IF(ISERROR(VLOOKUP($E44,表A_RAW!$C:$I,5,0)),"",VLOOKUP($E44,表A_RAW!$C:$I,5,0)) -> -42368 | K44: =IF(ISERROR(VLOOKUP($E44,表A_RAW!$C:$I,7,0)),"",VLOOKUP($E44,表A_RAW!$C:$I,7,0)) -> -1.512721866 | L44: =IF(ISERROR(VLOOKUP($E44,表C_RAW!$C:$I,4,0)),"",VLOOKUP($E44,表C_RAW!$C:$I,4,0)) -> -45019 | M44: =IF(ISERROR(VLOOKUP($E44,表C_RAW!$C:$I,5,0)),"",VLOOKUP($E44,表C_RAW!$C:$I,5,0)) -> -56662 | N44: =IF(ISERROR(VLOOKUP($E44,表C_RAW!$C:$I,6,0)),"",VLOOKUP($E44,表C_RAW!$C:$I,6,0)/100) -> 0.2055
D45: 2 | E45: =VLOOKUP($C$44&D45,表A_RAW!B:I,2,0) -> 8444 綠河-KY | G45: =IF(ISERROR(VLOOKUP($E45,表A_RAW!$C:$I,4,0)),"",VLOOKUP($E45,表A_RAW!$C:$I,4,0)) -> 110920 | H45: =IF(ISERROR(VLOOKUP($E45,表B_RAW!$C:$I,5,0)),"",VLOOKUP($E45,表B_RAW!$C:$I,5,0)) -> 134269 | I45: =IF(ISERROR(VLOOKUP($E45,表B_RAW!$C:$I,6,0)),"",VLOOKUP($E45,表B_RAW!$C:$I,6,0)/100) -> -0.1739 | J45: =IF(ISERROR(VLOOKUP($E45,表A_RAW!$C:$I,5,0)),"",VLOOKUP($E45,表A_RAW!$C:$I,5,0)) -> 381208 | K45: =IF(ISERROR(VLOOKUP($E45,表A_RAW!$C:$I,7,0)),"",VLOOKUP($E45,表A_RAW!$C:$I,7,0)) -> -0.7090302407 | L45: =IF(ISERROR(VLOOKUP($E45,表C_RAW!$C:$I,4,0)),"",VLOOKUP($E45,表C_RAW!$C:$I,4,0)) -> 465135 | M45: =IF(ISERROR(VLOOKUP($E45,表C_RAW!$C:$I,5,0)),"",VLOOKUP($E45,表C_RAW!$C:$I,5,0)) -> 1091473 | N45: =IF(ISERROR(VLOOKUP($E45,表C_RAW!$C:$I,6,0)),"",VLOOKUP($E45,表C_RAW!$C:$I,6,0)/100) -> -0.5738
D46: 3 | E46: =VLOOKUP($C$44&D46,表A_RAW!B:I,2,0) -> 8466 美吉吉-KY | G46: =IF(ISERROR(VLOOKUP($E46,表A_RAW!$C:$I,4,0)),"",VLOOKUP($E46,表A_RAW!$C:$I,4,0)) -> 117250 | H46: =IF(ISERROR(VLOOKUP($E46,表B_RAW!$C:$I,5,0)),"",VLOOKUP($E46,表B_RAW!$C:$I,5,0)) -> 214530 | I46: =IF(ISERROR(VLOOKUP($E46,表B_RAW!$C:$I,6,0)),"",VLOOKUP($E46,表B_RAW!$C:$I,6,0)/100) -> -0.4535 | J46: =IF(ISERROR(VLOOKUP($E46,表A_RAW!$C:$I,5,0)),"",VLOOKUP($E46,表A_RAW!$C:$I,5,0)) -> 326931 | K46: =IF(ISERROR(VLOOKUP($E46,表A_RAW!$C:$I,7,0)),"",VLOOKUP($E46,表A_RAW!$C:$I,7,0)) -> -0.6413616329 | L46: =IF(ISERROR(VLOOKUP($E46,表C_RAW!$C:$I,4,0)),"",VLOOKUP($E46,表C_RAW!$C:$I,4,0)) -> 646684 | M46: =IF(ISERROR(VLOOKUP($E46,表C_RAW!$C:$I,5,0)),"",VLOOKUP($E46,表C_RAW!$C:$I,5,0)) -> 906955 | N46: =IF(ISERROR(VLOOKUP($E46,表C_RAW!$C:$I,6,0)),"",VLOOKUP($E46,表C_RAW!$C:$I,6,0)/100) -> -0.287
C47: =ROUND(VLOOKUP(B44,表A_RAW!O:T,6,0),2) -> -2.65 | D47: 4 | E47: =VLOOKUP($C$44&D47,表A_RAW!B:I,2,0) -> 2348 海悅 | G47: =IF(ISERROR(VLOOKUP($E47,表A_RAW!$C:$I,4,0)),"",VLOOKUP($E47,表A_RAW!$C:$I,4,0)) -> 347356 | H47: =IF(ISERROR(VLOOKUP($E47,表B_RAW!$C:$I,5,0)),"",VLOOKUP($E47,表B_RAW!$C:$I,5,0)) -> 775057 | I47: =IF(ISERROR(VLOOKUP($E47,表B_RAW!$C:$I,6,0)),"",VLOOKUP($E47,表B_RAW!$C:$I,6,0)/100) -> -0.5518 | J47: =IF(ISERROR(VLOOKUP($E47,表A_RAW!$C:$I,5,0)),"",VLOOKUP($E47,表A_RAW!$C:$I,5,0)) -> 923389 | K47: =IF(ISERROR(VLOOKUP($E47,表A_RAW!$C:$I,7,0)),"",VLOOKUP($E47,表A_RAW!$C:$I,7,0)) -> -0.6238248452 | L47: =IF(ISERROR(VLOOKUP($E47,表C_RAW!$C:$I,4,0)),"",VLOOKUP($E47,表C_RAW!$C:$I,4,0)) -> 1308212 | M47: =IF(ISERROR(VLOOKUP($E47,表C_RAW!$C:$I,5,0)),"",VLOOKUP($E47,表C_RAW!$C:$I,5,0)) -> 1648473 | N47: =IF(ISERROR(VLOOKUP($E47,表C_RAW!$C:$I,6,0)),"",VLOOKUP($E47,表C_RAW!$C:$I,6,0)/100) -> -0.2064
D48: 5 | E48: =VLOOKUP($C$44&D48,表A_RAW!B:I,2,0) -> 2724 藝舍-KY | G48: =IF(ISERROR(VLOOKUP($E48,表A_RAW!$C:$I,4,0)),"",VLOOKUP($E48,表A_RAW!$C:$I,4,0)) -> 10949 | H48: =IF(ISERROR(VLOOKUP($E48,表B_RAW!$C:$I,5,0)),"",VLOOKUP($E48,表B_RAW!$C:$I,5,0)) -> 5043 | I48: =IF(ISERROR(VLOOKUP($E48,表B_RAW!$C:$I,6,0)),"",VLOOKUP($E48,表B_RAW!$C:$I,6,0)/100) -> 1.1711 | J48: =IF(ISERROR(VLOOKUP($E48,表A_RAW!$C:$I,5,0)),"",VLOOKUP($E48,表A_RAW!$C:$I,5,0)) -> 18252 | K48: =IF(ISERROR(VLOOKUP($E48,表A_RAW!$C:$I,7,0)),"",VLOOKUP($E48,表A_RAW!$C:$I,7,0)) -> -0.4001205347 | L48: =IF(ISERROR(VLOOKUP($E48,表C_RAW!$C:$I,4,0)),"",VLOOKUP($E48,表C_RAW!$C:$I,4,0)) -> 32041 | M48: =IF(ISERROR(VLOOKUP($E48,表C_RAW!$C:$I,5,0)),"",VLOOKUP($E48,表C_RAW!$C:$I,5,0)) -> 40234 | N48: =IF(ISERROR(VLOOKUP($E48,表C_RAW!$C:$I,6,0)),"",VLOOKUP($E48,表C_RAW!$C:$I,6,0)/100) -> -0.2036
B49: 4 | C49: =VLOOKUP(B49,表A_RAW!O:T,2,0) -> 汽車工業 | D49: 1 | E49: =VLOOKUP($C$49&D49,表A_RAW!B:I,2,0) -> 2247 汎德永業 | G49: =IF(ISERROR(VLOOKUP($E49,表A_RAW!$C:$I,4,0)),"",VLOOKUP($E49,表A_RAW!$C:$I,4,0)) -> 2851918 | H49: =IF(ISERROR(VLOOKUP($E49,表B_RAW!$C:$I,5,0)),"",VLOOKUP($E49,表B_RAW!$C:$I,5,0)) -> 1958148 | I49: =IF(ISERROR(VLOOKUP($E49,表B_RAW!$C:$I,6,0)),"",VLOOKUP($E49,表B_RAW!$C:$I,6,0)/100) -> 0.4564 | J49: =IF(ISERROR(VLOOKUP($E49,表A_RAW!$C:$I,5,0)),"",VLOOKUP($E49,表A_RAW!$C:$I,5,0)) -> 4204874 | K49: =IF(ISERROR(VLOOKUP($E49,表A_RAW!$C:$I,7,0)),"",VLOOKUP($E49,表A_RAW!$C:$I,7,0)) -> -0.3217589873 | L49: =IF(ISERROR(VLOOKUP($E49,表C_RAW!$C:$I,4,0)),"",VLOOKUP($E49,表C_RAW!$C:$I,4,0)) -> 8954402 | M49: =IF(ISERROR(VLOOKUP($E49,表C_RAW!$C:$I,5,0)),"",VLOOKUP($E49,表C_RAW!$C:$I,5,0)) -> 13150715 | N49: =IF(ISERROR(VLOOKUP($E49,表C_RAW!$C:$I,6,0)),"",VLOOKUP($E49,表C_RAW!$C:$I,6,0)/100) -> -0.3191
D50: 2 | E50: =VLOOKUP($C$49&D50,表A_RAW!B:I,2,0) -> 4557 永新-KY | G50: =IF(ISERROR(VLOOKUP($E50,表A_RAW!$C:$I,4,0)),"",VLOOKUP($E50,表A_RAW!$C:$I,4,0)) -> 230422 | H50: =IF(ISERROR(VLOOKUP($E50,表B_RAW!$C:$I,5,0)),"",VLOOKUP($E50,表B_RAW!$C:$I,5,0)) -> 220583 | I50: =IF(ISERROR(VLOOKUP($E50,表B_RAW!$C:$I,6,0)),"",VLOOKUP($E50,表B_RAW!$C:$I,6,0)/100) -> 0.0446 | J50: =IF(ISERROR(VLOOKUP($E50,表A_RAW!$C:$I,5,0)),"",VLOOKUP($E50,表A_RAW!$C:$I,5,0)) -> 332155 | K50: =IF(ISERROR(VLOOKUP($E50,表A_RAW!$C:$I,7,0)),"",VLOOKUP($E50,表A_RAW!$C:$I,7,0)) -> -0.3062817058 | L50: =IF(ISERROR(VLOOKUP($E50,表C_RAW!$C:$I,4,0)),"",VLOOKUP($E50,表C_RAW!$C:$I,4,0)) -> 763384 | M50: =IF(ISERROR(VLOOKUP($E50,表C_RAW!$C:$I,5,0)),"",VLOOKUP($E50,表C_RAW!$C:$I,5,0)) -> 1063882 | N50: =IF(ISERROR(VLOOKUP($E50,表C_RAW!$C:$I,6,0)),"",VLOOKUP($E50,表C_RAW!$C:$I,6,0)/100) -> -0.2825
D51: 3 | E51: =VLOOKUP($C$49&D51,表A_RAW!B:I,2,0) -> 1524 耿鼎 | G51: =IF(ISERROR(VLOOKUP($E51,表A_RAW!$C:$I,4,0)),"",VLOOKUP($E51,表A_RAW!$C:$I,4,0)) -> 200268 | H51: =IF(ISERROR(VLOOKUP($E51,表B_RAW!$C:$I,5,0)),"",VLOOKUP($E51,表B_RAW!$C:$I,5,0)) -> 150333 | I51: =IF(ISERROR(VLOOKUP($E51,表B_RAW!$C:$I,6,0)),"",VLOOKUP($E51,表B_RAW!$C:$I,6,0)/100) -> 0.3322 | J51: =IF(ISERROR(VLOOKUP($E51,表A_RAW!$C:$I,5,0)),"",VLOOKUP($E51,表A_RAW!$C:$I,5,0)) -> 287723 | K51: =IF(ISERROR(VLOOKUP($E51,表A_RAW!$C:$I,7,0)),"",VLOOKUP($E51,表A_RAW!$C:$I,7,0)) -> -0.3039555406 | L51: =IF(ISERROR(VLOOKUP($E51,表C_RAW!$C:$I,4,0)),"",VLOOKUP($E51,表C_RAW!$C:$I,4,0)) -> 562184 | M51: =IF(ISERROR(VLOOKUP($E51,表C_RAW!$C:$I,5,0)),"",VLOOKUP($E51,表C_RAW!$C:$I,5,0)) -> 752356 | N51: =IF(ISERROR(VLOOKUP($E51,表C_RAW!$C:$I,6,0)),"",VLOOKUP($E51,表C_RAW!$C:$I,6,0)/100) -> -0.2528
C52: =ROUND(VLOOKUP(B49,表A_RAW!O:T,6,0),2) -> -1.73 | D52: 4 | E52: =VLOOKUP($C$49&D52,表A_RAW!B:I,2,0) -> 2231 為升 | G52: =IF(ISERROR(VLOOKUP($E52,表A_RAW!$C:$I,4,0)),"",VLOOKUP($E52,表A_RAW!$C:$I,4,0)) -> 244066 | H52: =IF(ISERROR(VLOOKUP($E52,表B_RAW!$C:$I,5,0)),"",VLOOKUP($E52,表B_RAW!$C:$I,5,0)) -> 197596 | I52: =IF(ISERROR(VLOOKUP($E52,表B_RAW!$C:$I,6,0)),"",VLOOKUP($E52,表B_RAW!$C:$I,6,0)/100) -> 0.2352 | J52: =IF(ISERROR(VLOOKUP($E52,表A_RAW!$C:$I,5,0)),"",VLOOKUP($E52,表A_RAW!$C:$I,5,0)) -> 334081 | K52: =IF(ISERROR(VLOOKUP($E52,表A_RAW!$C:$I,7,0)),"",VLOOKUP($E52,表A_RAW!$C:$I,7,0)) -> -0.2694406446 | L52: =IF(ISERROR(VLOOKUP($E52,表C_RAW!$C:$I,4,0)),"",VLOOKUP($E52,表C_RAW!$C:$I,4,0)) -> 759355 | M52: =IF(ISERROR(VLOOKUP($E52,表C_RAW!$C:$I,5,0)),"",VLOOKUP($E52,表C_RAW!$C:$I,5,0)) -> 881220 | N52: =IF(ISERROR(VLOOKUP($E52,表C_RAW!$C:$I,6,0)),"",VLOOKUP($E52,表C_RAW!$C:$I,6,0)/100) -> -0.1383
D53: 5 | E53: =VLOOKUP($C$49&D53,表A_RAW!B:I,2,0) -> 1339 昭輝 | G53: =IF(ISERROR(VLOOKUP($E53,表A_RAW!$C:$I,4,0)),"",VLOOKUP($E53,表A_RAW!$C:$I,4,0)) -> 139986 | H53: =IF(ISERROR(VLOOKUP($E53,表B_RAW!$C:$I,5,0)),"",VLOOKUP($E53,表B_RAW!$C:$I,5,0)) -> 110249 | I53: =IF(ISERROR(VLOOKUP($E53,表B_RAW!$C:$I,6,0)),"",VLOOKUP($E53,表B_RAW!$C:$I,6,0)/100) -> 0.2697 | J53: =IF(ISERROR(VLOOKUP($E53,表A_RAW!$C:$I,5,0)),"",VLOOKUP($E53,表A_RAW!$C:$I,5,0)) -> 183034 | K53: =IF(ISERROR(VLOOKUP($E53,表A_RAW!$C:$I,7,0)),"",VLOOKUP($E53,表A_RAW!$C:$I,7,0)) -> -0.2351912759 | L53: =IF(ISERROR(VLOOKUP($E53,表C_RAW!$C:$I,4,0)),"",VLOOKUP($E53,表C_RAW!$C:$I,4,0)) -> 394274 | M53: =IF(ISERROR(VLOOKUP($E53,表C_RAW!$C:$I,5,0)),"",VLOOKUP($E53,表C_RAW!$C:$I,5,0)) -> 494804 | N53: =IF(ISERROR(VLOOKUP($E53,表C_RAW!$C:$I,6,0)),"",VLOOKUP($E53,表C_RAW!$C:$I,6,0)/100) -> -0.2032
B54: 5 | C54: =VLOOKUP(B54,表A_RAW!O:T,2,0) -> 紡織纖維 | D54: 1 | E54: =VLOOKUP($C$54&D54,表A_RAW!B:I,2,0) -> 1418 東華 | G54: =IF(ISERROR(VLOOKUP($E54,表A_RAW!$C:$I,4,0)),"",VLOOKUP($E54,表A_RAW!$C:$I,4,0)) -> 17 | H54: =IF(ISERROR(VLOOKUP($E54,表B_RAW!$C:$I,5,0)),"",VLOOKUP($E54,表B_RAW!$C:$I,5,0)) -> 18 | I54: =IF(ISERROR(VLOOKUP($E54,表B_RAW!$C:$I,6,0)),"",VLOOKUP($E54,表B_RAW!$C:$I,6,0)/100) -> -0.0556 | J54: =IF(ISERROR(VLOOKUP($E54,表A_RAW!$C:$I,5,0)),"",VLOOKUP($E54,表A_RAW!$C:$I,5,0)) -> 849 | K54: =IF(ISERROR(VLOOKUP($E54,表A_RAW!$C:$I,7,0)),"",VLOOKUP($E54,表A_RAW!$C:$I,7,0)) -> -0.9799764429 | L54: =IF(ISERROR(VLOOKUP($E54,表C_RAW!$C:$I,4,0)),"",VLOOKUP($E54,表C_RAW!$C:$I,4,0)) -> 648 | M54: =IF(ISERROR(VLOOKUP($E54,表C_RAW!$C:$I,5,0)),"",VLOOKUP($E54,表C_RAW!$C:$I,5,0)) -> 2840 | N54: =IF(ISERROR(VLOOKUP($E54,表C_RAW!$C:$I,6,0)),"",VLOOKUP($E54,表C_RAW!$C:$I,6,0)/100) -> -0.7718
D55: 2 | E55: =VLOOKUP($C$54&D55,表A_RAW!B:I,2,0) -> 1468 昶和 | G55: =IF(ISERROR(VLOOKUP($E55,表A_RAW!$C:$I,4,0)),"",VLOOKUP($E55,表A_RAW!$C:$I,4,0)) -> 25383 | H55: =IF(ISERROR(VLOOKUP($E55,表B_RAW!$C:$I,5,0)),"",VLOOKUP($E55,表B_RAW!$C:$I,5,0)) -> 27453 | I55: =IF(ISERROR(VLOOKUP($E55,表B_RAW!$C:$I,6,0)),"",VLOOKUP($E55,表B_RAW!$C:$I,6,0)/100) -> -0.0754 | J55: =IF(ISERROR(VLOOKUP($E55,表A_RAW!$C:$I,5,0)),"",VLOOKUP($E55,表A_RAW!$C:$I,5,0)) -> 121656 | K55: =IF(ISERROR(VLOOKUP($E55,表A_RAW!$C:$I,7,0)),"",VLOOKUP($E55,表A_RAW!$C:$I,7,0)) -> -0.7913543105 | L55: =IF(ISERROR(VLOOKUP($E55,表C_RAW!$C:$I,4,0)),"",VLOOKUP($E55,表C_RAW!$C:$I,4,0)) -> 127625 | M55: =IF(ISERROR(VLOOKUP($E55,表C_RAW!$C:$I,5,0)),"",VLOOKUP($E55,表C_RAW!$C:$I,5,0)) -> 246458 | N55: =IF(ISERROR(VLOOKUP($E55,表C_RAW!$C:$I,6,0)),"",VLOOKUP($E55,表C_RAW!$C:$I,6,0)/100) -> -0.4822
D56: 3 | E56: =VLOOKUP($C$54&D56,表A_RAW!B:I,2,0) -> 4413 飛寶企業 | G56: =IF(ISERROR(VLOOKUP($E56,表A_RAW!$C:$I,4,0)),"",VLOOKUP($E56,表A_RAW!$C:$I,4,0)) -> 20414 | H56: =IF(ISERROR(VLOOKUP($E56,表B_RAW!$C:$I,5,0)),"",VLOOKUP($E56,表B_RAW!$C:$I,5,0)) -> 30990 | I56: =IF(ISERROR(VLOOKUP($E56,表B_RAW!$C:$I,6,0)),"",VLOOKUP($E56,表B_RAW!$C:$I,6,0)/100) -> -0.3413 | J56: =IF(ISERROR(VLOOKUP($E56,表A_RAW!$C:$I,5,0)),"",VLOOKUP($E56,表A_RAW!$C:$I,5,0)) -> 47022 | K56: =IF(ISERROR(VLOOKUP($E56,表A_RAW!$C:$I,7,0)),"",VLOOKUP($E56,表A_RAW!$C:$I,7,0)) -> -0.5658627876 | L56: =IF(ISERROR(VLOOKUP($E56,表C_RAW!$C:$I,4,0)),"",VLOOKUP($E56,表C_RAW!$C:$I,4,0)) -> 118497 | M56: =IF(ISERROR(VLOOKUP($E56,表C_RAW!$C:$I,5,0)),"",VLOOKUP($E56,表C_RAW!$C:$I,5,0)) -> 130473 | N56: =IF(ISERROR(VLOOKUP($E56,表C_RAW!$C:$I,6,0)),"",VLOOKUP($E56,表C_RAW!$C:$I,6,0)/100) -> -0.0918
C57: =ROUND(VLOOKUP(B54,表A_RAW!O:T,6,0),2) -> -0.19 | D57: 4 | E57: =VLOOKUP($C$54&D57,表A_RAW!B:I,2,0) -> 4402 郡都開發 | G57: =IF(ISERROR(VLOOKUP($E57,表A_RAW!$C:$I,4,0)),"",VLOOKUP($E57,表A_RAW!$C:$I,4,0)) -> 1433 | H57: =IF(ISERROR(VLOOKUP($E57,表B_RAW!$C:$I,5,0)),"",VLOOKUP($E57,表B_RAW!$C:$I,5,0)) -> 1769 | I57: =IF(ISERROR(VLOOKUP($E57,表B_RAW!$C:$I,6,0)),"",VLOOKUP($E57,表B_RAW!$C:$I,6,0)/100) -> -0.1899 | J57: =IF(ISERROR(VLOOKUP($E57,表A_RAW!$C:$I,5,0)),"",VLOOKUP($E57,表A_RAW!$C:$I,5,0)) -> 3153 | K57: =IF(ISERROR(VLOOKUP($E57,表A_RAW!$C:$I,7,0)),"",VLOOKUP($E57,表A_RAW!$C:$I,7,0)) -> -0.5455122106 | L57: =IF(ISERROR(VLOOKUP($E57,表C_RAW!$C:$I,4,0)),"",VLOOKUP($E57,表C_RAW!$C:$I,4,0)) -> 5055 | M57: =IF(ISERROR(VLOOKUP($E57,表C_RAW!$C:$I,5,0)),"",VLOOKUP($E57,表C_RAW!$C:$I,5,0)) -> 6961 | N57: =IF(ISERROR(VLOOKUP($E57,表C_RAW!$C:$I,6,0)),"",VLOOKUP($E57,表C_RAW!$C:$I,6,0)/100) -> -0.2738
D58: 5 | E58: =IFERROR(VLOOKUP($C$54&D58,表A_RAW!B:I,2,0),"") -> 4406 新昕纖 | G58: =IF(ISERROR(VLOOKUP($E58,表A_RAW!$C:$I,4,0)),"",VLOOKUP($E58,表A_RAW!$C:$I,4,0)) -> 20250 | H58: =IF(ISERROR(VLOOKUP($E58,表B_RAW!$C:$I,5,0)),"",VLOOKUP($E58,表B_RAW!$C:$I,5,0)) -> 17610 | I58: =IF(ISERROR(VLOOKUP($E58,表B_RAW!$C:$I,6,0)),"",VLOOKUP($E58,表B_RAW!$C:$I,6,0)/100) -> 0.1499 | J58: =IF(ISERROR(VLOOKUP($E58,表A_RAW!$C:$I,5,0)),"",VLOOKUP($E58,表A_RAW!$C:$I,5,0)) -> 42998 | K58: =IF(ISERROR(VLOOKUP($E58,表A_RAW!$C:$I,7,0)),"",VLOOKUP($E58,表A_RAW!$C:$I,7,0)) -> -0.5290478627 | L58: =IF(ISERROR(VLOOKUP($E58,表C_RAW!$C:$I,4,0)),"",VLOOKUP($E58,表C_RAW!$C:$I,4,0)) -> 76818 | M58: =IF(ISERROR(VLOOKUP($E58,表C_RAW!$C:$I,5,0)),"",VLOOKUP($E58,表C_RAW!$C:$I,5,0)) -> 123720 | N58: =IF(ISERROR(VLOOKUP($E58,表C_RAW!$C:$I,6,0)),"",VLOOKUP($E58,表C_RAW!$C:$I,6,0)/100) -> -0.3791

Sheet YOY(累計)
B1: =YEAR(表A_RAW!F2)&"年"&MONTH(表A_RAW!F2)&"月" -> 2026年3月
C2: 成長及衰退前五名之產業YOY%(累計)
B4: 成長前五名之產業 YOY(累計)% | D4: 該產業成長前五名之公司 YOY(累計)% | G4: 單月營收金額(千元) | H4: 本月與上月相較 | J4: 本月與去年同期相較 | L4: 累計營收金額(千元) | M4: 累計營收與去年同期相較
B5: 成長 排名 | C5: 產業 | D5: 排名 | E5: 公司代號&簡稱 | H5: 上月營收金額(千元) | I5: 較上月變動比率(%) | J5: 去年同期金額(千元) | K5: 較去年同期變動比率(%) | M5: 去年累計營收金額(千元) | N5: 較去年同期變動比率(%)
B6: 1 | C6: =VLOOKUP(B6,表C_RAW!N:P,3,0) -> 電子通路業 | D6: 1 | E6: =IFERROR(VLOOKUP($C$6&D6,表C_RAW!A:D,3,0),"") -> 6265 方土昶 | G6: =IF(ISERROR(VLOOKUP($E6,表B_RAW!$C:$I,4,0)),"",VLOOKUP($E6,表B_RAW!$C:$I,4,0)) -> 391752 | H6: =IF(ISERROR(VLOOKUP($E6,表B_RAW!$C:$I,5,0)),"",VLOOKUP($E6,表B_RAW!$C:$I,5,0)) -> 171535 | I6: =IF(ISERROR(VLOOKUP($E6,表B_RAW!$C:$I,6,0)),"",VLOOKUP($E6,表B_RAW!$C:$I,6,0)/100) -> 1.2838 | J6: =IF(ISERROR(VLOOKUP($E6,表A_RAW!$C:$I,5,0)),"",VLOOKUP($E6,表A_RAW!$C:$I,5,0)) -> 64161 | K6: =IF(ISERROR(VLOOKUP($E6,表A_RAW!$C:$I,7,0)),"",VLOOKUP($E6,表A_RAW!$C:$I,7,0)) -> 5.105765184 | L6: =IF(ISERROR(VLOOKUP($E6,表C_RAW!$C:$I,4,0)),"",VLOOKUP($E6,表C_RAW!$C:$I,4,0)) -> 776273 | M6: =IF(ISERROR(VLOOKUP($E6,表C_RAW!$C:$I,5,0)),"",VLOOKUP($E6,表C_RAW!$C:$I,5,0)) -> 145770 | N6: =IF(ISERROR(VLOOKUP($E6,表C_RAW!$C:$I,6,0)),"",VLOOKUP($E6,表C_RAW!$C:$I,6,0)/100) -> 4.3253
D7: 2 | E7: =IFERROR(VLOOKUP($C$6&D7,表C_RAW!A:D,3,0),"") -> 8112 至上 | G7: =IF(ISERROR(VLOOKUP($E7,表B_RAW!$C:$I,4,0)),"",VLOOKUP($E7,表B_RAW!$C:$I,4,0)) -> 53315182 | H7: =IF(ISERROR(VLOOKUP($E7,表B_RAW!$C:$I,5,0)),"",VLOOKUP($E7,表B_RAW!$C:$I,5,0)) -> 31218239 | I7: =IF(ISERROR(VLOOKUP($E7,表B_RAW!$C:$I,6,0)),"",VLOOKUP($E7,表B_RAW!$C:$I,6,0)/100) -> 0.7078 | J7: =IF(ISERROR(VLOOKUP($E7,表A_RAW!$C:$I,5,0)),"",VLOOKUP($E7,表A_RAW!$C:$I,5,0)) -> 18276897 | K7: =IF(ISERROR(VLOOKUP($E7,表A_RAW!$C:$I,7,0)),"",VLOOKUP($E7,表A_RAW!$C:$I,7,0)) -> 1.917080618 | L7: =IF(ISERROR(VLOOKUP($E7,表C_RAW!$C:$I,4,0)),"",VLOOKUP($E7,表C_RAW!$C:$I,4,0)) -> 110164542 | M7: =IF(ISERROR(VLOOKUP($E7,表C_RAW!$C:$I,5,0)),"",VLOOKUP($E7,表C_RAW!$C:$I,5,0)) -> 46317437 | N7: =IF(ISERROR(VLOOKUP($E7,表C_RAW!$C:$I,6,0)),"",VLOOKUP($E7,表C_RAW!$C:$I,6,0)/100) -> 1.3785
D8: 3 | E8: =IFERROR(VLOOKUP($C$6&D8,表C_RAW!A:D,3,0),"") -> 3528 安馳 | G8: =IF(ISERROR(VLOOKUP($E8,表B_RAW!$C:$I,4,0)),"",VLOOKUP($E8,表B_RAW!$C:$I,4,0)) -> 1363557 | H8: =IF(ISERROR(VLOOKUP($E8,表B_RAW!$C:$I,5,0)),"",VLOOKUP($E8,表B_RAW!$C:$I,5,0)) -> 681191 | I8: =IF(ISERROR(VLOOKUP($E8,表B_RAW!$C:$I,6,0)),"",VLOOKUP($E8,表B_RAW!$C:$I,6,0)/100) -> 1.0017 | J8: =IF(ISERROR(VLOOKUP($E8,表A_RAW!$C:$I,5,0)),"",VLOOKUP($E8,表A_RAW!$C:$I,5,0)) -> 586610 | K8: =IF(ISERROR(VLOOKUP($E8,表A_RAW!$C:$I,7,0)),"",VLOOKUP($E8,表A_RAW!$C:$I,7,0)) -> 1.324469409 | L8: =IF(ISERROR(VLOOKUP($E8,表C_RAW!$C:$I,4,0)),"",VLOOKUP($E8,表C_RAW!$C:$I,4,0)) -> 3501682 | M8: =IF(ISERROR(VLOOKUP($E8,表C_RAW!$C:$I,5,0)),"",VLOOKUP($E8,表C_RAW!$C:$I,5,0)) -> 1726137 | N8: =IF(ISERROR(VLOOKUP($E8,表C_RAW!$C:$I,6,0)),"",VLOOKUP($E8,表C_RAW!$C:$I,6,0)/100) -> 1.0286
C9: =ROUND(VLOOKUP(B6,表C_RAW!N:T,7,0),2) -> 54.69 | D9: 4 | E9: =IFERROR(VLOOKUP($C$6&D9,表C_RAW!A:D,3,0),"") -> 3036 文曄 | G9: =IF(ISERROR(VLOOKUP($E9,表B_RAW!$C:$I,4,0)),"",VLOOKUP($E9,表B_RAW!$C:$I,4,0)) -> 194101276 | H9: =IF(ISERROR(VLOOKUP($E9,表B_RAW!$C:$I,5,0)),"",VLOOKUP($E9,表B_RAW!$C:$I,5,0)) -> 104424711 | I9: =IF(ISERROR(VLOOKUP($E9,表B_RAW!$C:$I,6,0)),"",VLOOKUP($E9,表B_RAW!$C:$I,6,0)/100) -> 0.8588 | J9: =IF(ISERROR(VLOOKUP($E9,表A_RAW!$C:$I,5,0)),"",VLOOKUP($E9,表A_RAW!$C:$I,5,0)) -> 88682081 | K9: =IF(ISERROR(VLOOKUP($E9,表A_RAW!$C:$I,7,0)),"",VLOOKUP($E9,表A_RAW!$C:$I,7,0)) -> 1.188731633 | L9: =IF(ISERROR(VLOOKUP($E9,表C_RAW!$C:$I,4,0)),"",VLOOKUP($E9,表C_RAW!$C:$I,4,0)) -> 494272920 | M9: =IF(ISERROR(VLOOKUP($E9,表C_RAW!$C:$I,5,0)),"",VLOOKUP($E9,表C_RAW!$C:$I,5,0)) -> 247424457 | N9: =IF(ISERROR(VLOOKUP($E9,表C_RAW!$C:$I,6,0)),"",VLOOKUP($E9,表C_RAW!$C:$I,6,0)/100) -> 0.9977
D10: 5 | E10: =IFERROR(VLOOKUP($C$6&D10,表C_RAW!A:D,3,0),"") -> 3028 增你強 | G10: =IF(ISERROR(VLOOKUP($E10,表B_RAW!$C:$I,4,0)),"",VLOOKUP($E10,表B_RAW!$C:$I,4,0)) -> 7514995 | H10: =IF(ISERROR(VLOOKUP($E10,表B_RAW!$C:$I,5,0)),"",VLOOKUP($E10,表B_RAW!$C:$I,5,0)) -> 3828384 | I10: =IF(ISERROR(VLOOKUP($E10,表B_RAW!$C:$I,6,0)),"",VLOOKUP($E10,表B_RAW!$C:$I,6,0)/100) -> 0.963 | J10: =IF(ISERROR(VLOOKUP($E10,表A_RAW!$C:$I,5,0)),"",VLOOKUP($E10,表A_RAW!$C:$I,5,0)) -> 3337326 | K10: =IF(ISERROR(VLOOKUP($E10,表A_RAW!$C:$I,7,0)),"",VLOOKUP($E10,表A_RAW!$C:$I,7,0)) -> 1.251801292 | L10: =IF(ISERROR(VLOOKUP($E10,表C_RAW!$C:$I,4,0)),"",VLOOKUP($E10,表C_RAW!$C:$I,4,0)) -> 17721573 | M10: =IF(ISERROR(VLOOKUP($E10,表C_RAW!$C:$I,5,0)),"",VLOOKUP($E10,表C_RAW!$C:$I,5,0)) -> 9044884 | N10: =IF(ISERROR(VLOOKUP($E10,表C_RAW!$C:$I,6,0)),"",VLOOKUP($E10,表C_RAW!$C:$I,6,0)/100) -> 0.9593
B11: 2 | C11: =VLOOKUP(B11,表C_RAW!N:P,3,0) -> 電腦及週邊設備業 | D11: 1 | E11: =VLOOKUP($C$11&D11,表C_RAW!A:D,3,0) -> 5386 青雲 | G11: =IF(ISERROR(VLOOKUP($E11,表B_RAW!$C:$I,4,0)),"",VLOOKUP($E11,表B_RAW!$C:$I,4,0)) -> 3260949 | H11: =IF(ISERROR(VLOOKUP($E11,表B_RAW!$C:$I,5,0)),"",VLOOKUP($E11,表B_RAW!$C:$I,5,0)) -> 2891514 | I11: =IF(ISERROR(VLOOKUP($E11,表B_RAW!$C:$I,6,0)),"",VLOOKUP($E11,表B_RAW!$C:$I,6,0)/100) -> 0.1278 | J11: =IF(ISERROR(VLOOKUP($E11,表A_RAW!$C:$I,5,0)),"",VLOOKUP($E11,表A_RAW!$C:$I,5,0)) -> 504172 | K11: =IF(ISERROR(VLOOKUP($E11,表A_RAW!$C:$I,7,0)),"",VLOOKUP($E11,表A_RAW!$C:$I,7,0)) -> 5.467929595 | L11: =IF(ISERROR(VLOOKUP($E11,表C_RAW!$C:$I,4,0)),"",VLOOKUP($E11,表C_RAW!$C:$I,4,0)) -> 8613491 | M11: =IF(ISERROR(VLOOKUP($E11,表C_RAW!$C:$I,5,0)),"",VLOOKUP($E11,表C_RAW!$C:$I,5,0)) -> 1246706 | N11: =IF(ISERROR(VLOOKUP($E11,表C_RAW!$C:$I,6,0)),"",VLOOKUP($E11,表C_RAW!$C:$I,6,0)/100) -> 5.909
D12: 2 | E12: =VLOOKUP($C$11&D12,表C_RAW!A:D,3,0) -> 5289 宜鼎 | G12: =IF(ISERROR(VLOOKUP($E12,表B_RAW!$C:$I,4,0)),"",VLOOKUP($E12,表B_RAW!$C:$I,4,0)) -> 5672453 | H12: =IF(ISERROR(VLOOKUP($E12,表B_RAW!$C:$I,5,0)),"",VLOOKUP($E12,表B_RAW!$C:$I,5,0)) -> 4178683 | I12: =IF(ISERROR(VLOOKUP($E12,表B_RAW!$C:$I,6,0)),"",VLOOKUP($E12,表B_RAW!$C:$I,6,0)/100) -> 0.3575 | J12: =IF(ISERROR(VLOOKUP($E12,表A_RAW!$C:$I,5,0)),"",VLOOKUP($E12,表A_RAW!$C:$I,5,0)) -> 970015 | K12: =IF(ISERROR(VLOOKUP($E12,表A_RAW!$C:$I,7,0)),"",VLOOKUP($E12,表A_RAW!$C:$I,7,0)) -> 4.847799261 | L12: =IF(ISERROR(VLOOKUP($E12,表C_RAW!$C:$I,4,0)),"",VLOOKUP($E12,表C_RAW!$C:$I,4,0)) -> 13182608 | M12: =IF(ISERROR(VLOOKUP($E12,表C_RAW!$C:$I,5,0)),"",VLOOKUP($E12,表C_RAW!$C:$I,5,0)) -> 2618742 | N12: =IF(ISERROR(VLOOKUP($E12,表C_RAW!$C:$I,6,0)),"",VLOOKUP($E12,表C_RAW!$C:$I,6,0)/100) -> 4.0339
D13: 3 | E13: =VLOOKUP($C$11&D13,表C_RAW!A:D,3,0) -> 3231 緯創 | G13: =IF(ISERROR(VLOOKUP($E13,表B_RAW!$C:$I,4,0)),"",VLOOKUP($E13,表B_RAW!$C:$I,4,0)) -> 333043315 | H13: =IF(ISERROR(VLOOKUP($E13,表B_RAW!$C:$I,5,0)),"",VLOOKUP($E13,表B_RAW!$C:$I,5,0)) -> 284893080 | I13: =IF(ISERROR(VLOOKUP($E13,表B_RAW!$C:$I,6,0)),"",VLOOKUP($E13,表B_RAW!$C:$I,6,0)/100) -> 0.169 | J13: =IF(ISERROR(VLOOKUP($E13,表A_RAW!$C:$I,5,0)),"",VLOOKUP($E13,表A_RAW!$C:$I,5,0)) -> 152984771 | K13: =IF(ISERROR(VLOOKUP($E13,表A_RAW!$C:$I,7,0)),"",VLOOKUP($E13,表A_RAW!$C:$I,7,0)) -> 1.17697038 | L13: =IF(ISERROR(VLOOKUP($E13,表C_RAW!$C:$I,4,0)),"",VLOOKUP($E13,表C_RAW!$C:$I,4,0)) -> 846303026 | M13: =IF(ISERROR(VLOOKUP($E13,表C_RAW!$C:$I,5,0)),"",VLOOKUP($E13,表C_RAW!$C:$I,5,0)) -> 346485069 | N13: =IF(ISERROR(VLOOKUP($E13,表C_RAW!$C:$I,6,0)),"",VLOOKUP($E13,表C_RAW!$C:$I,6,0)/100) -> 1.4425
C14: =ROUND(VLOOKUP(B11,表C_RAW!N:T,7,0),2) -> 49.37 | D14: 4 | E14: =VLOOKUP($C$11&D14,表C_RAW!A:D,3,0) -> 3017 奇鋐 | G14: =IF(ISERROR(VLOOKUP($E14,表B_RAW!$C:$I,4,0)),"",VLOOKUP($E14,表B_RAW!$C:$I,4,0)) -> 18017169 | H14: =IF(ISERROR(VLOOKUP($E14,表B_RAW!$C:$I,5,0)),"",VLOOKUP($E14,表B_RAW!$C:$I,5,0)) -> 14017320 | I14: =IF(ISERROR(VLOOKUP($E14,表B_RAW!$C:$I,6,0)),"",VLOOKUP($E14,表B_RAW!$C:$I,6,0)/100) -> 0.2854 | J14: =IF(ISERROR(VLOOKUP($E14,表A_RAW!$C:$I,5,0)),"",VLOOKUP($E14,表A_RAW!$C:$I,5,0)) -> 8509853 | K14: =IF(ISERROR(VLOOKUP($E14,表A_RAW!$C:$I,7,0)),"",VLOOKUP($E14,表A_RAW!$C:$I,7,0)) -> 1.117212718 | L14: =IF(ISERROR(VLOOKUP($E14,表C_RAW!$C:$I,4,0)),"",VLOOKUP($E14,表C_RAW!$C:$I,4,0)) -> 49037946 | M14: =IF(ISERROR(VLOOKUP($E14,表C_RAW!$C:$I,5,0)),"",VLOOKUP($E14,表C_RAW!$C:$I,5,0)) -> 23332951 | N14: =IF(ISERROR(VLOOKUP($E14,表C_RAW!$C:$I,6,0)),"",VLOOKUP($E14,表C_RAW!$C:$I,6,0)/100) -> 1.1017
D15: 5 | E15: =VLOOKUP($C$11&D15,表C_RAW!A:D,3,0) -> 7711 永擎 | G15: =IF(ISERROR(VLOOKUP($E15,表B_RAW!$C:$I,4,0)),"",VLOOKUP($E15,表B_RAW!$C:$I,4,0)) -> 3548769 | H15: =IF(ISERROR(VLOOKUP($E15,表B_RAW!$C:$I,5,0)),"",VLOOKUP($E15,表B_RAW!$C:$I,5,0)) -> 525774 | I15: =IF(ISERROR(VLOOKUP($E15,表B_RAW!$C:$I,6,0)),"",VLOOKUP($E15,表B_RAW!$C:$I,6,0)/100) -> 5.7496 | J15: =IF(ISERROR(VLOOKUP($E15,表A_RAW!$C:$I,5,0)),"",VLOOKUP($E15,表A_RAW!$C:$I,5,0)) -> 1159092 | K15: =IF(ISERROR(VLOOKUP($E15,表A_RAW!$C:$I,7,0)),"",VLOOKUP($E15,表A_RAW!$C:$I,7,0)) -> 2.061680177 | L15: =IF(ISERROR(VLOOKUP($E15,表C_RAW!$C:$I,4,0)),"",VLOOKUP($E15,表C_RAW!$C:$I,4,0)) -> 8891334 | M15: =IF(ISERROR(VLOOKUP($E15,表C_RAW!$C:$I,5,0)),"",VLOOKUP($E15,表C_RAW!$C:$I,5,0)) -> 4632547 | N15: =IF(ISERROR(VLOOKUP($E15,表C_RAW!$C:$I,6,0)),"",VLOOKUP($E15,表C_RAW!$C:$I,6,0)/100) -> 0.9193
B16: 3 | C16: =VLOOKUP(B16,表C_RAW!N:P,3,0) -> 建材營造 | D16: 1 | E16: =VLOOKUP($C$16&D16,表C_RAW!A:D,3,0) -> 1438 三地開發 | G16: =IF(ISERROR(VLOOKUP($E16,表B_RAW!$C:$I,4,0)),"",VLOOKUP($E16,表B_RAW!$C:$I,4,0)) -> 197558 | H16: =IF(ISERROR(VLOOKUP($E16,表B_RAW!$C:$I,5,0)),"",VLOOKUP($E16,表B_RAW!$C:$I,5,0)) -> 1134 | I16: =IF(ISERROR(VLOOKUP($E16,表B_RAW!$C:$I,6,0)),"",VLOOKUP($E16,表B_RAW!$C:$I,6,0)/100) -> 173.2134 | J16: =IF(ISERROR(VLOOKUP($E16,表A_RAW!$C:$I,5,0)),"",VLOOKUP($E16,表A_RAW!$C:$I,5,0)) -> 241 | K16: =IF(ISERROR(VLOOKUP($E16,表A_RAW!$C:$I,7,0)),"",VLOOKUP($E16,表A_RAW!$C:$I,7,0)) -> 818.7427386 | L16: =IF(ISERROR(VLOOKUP($E16,表C_RAW!$C:$I,4,0)),"",VLOOKUP($E16,表C_RAW!$C:$I,4,0)) -> 377477 | M16: =IF(ISERROR(VLOOKUP($E16,表C_RAW!$C:$I,5,0)),"",VLOOKUP($E16,表C_RAW!$C:$I,5,0)) -> 241 | N16: =IF(ISERROR(VLOOKUP($E16,表C_RAW!$C:$I,6,0)),"",VLOOKUP($E16,表C_RAW!$C:$I,6,0)/100) -> 1565.2946
D17: 2 | E17: =VLOOKUP($C$16&D17,表C_RAW!A:D,3,0) -> 5514 三豐 | G17: =IF(ISERROR(VLOOKUP($E17,表B_RAW!$C:$I,4,0)),"",VLOOKUP($E17,表B_RAW!$C:$I,4,0)) -> 529395 | H17: =IF(ISERROR(VLOOKUP($E17,表B_RAW!$C:$I,5,0)),"",VLOOKUP($E17,表B_RAW!$C:$I,5,0)) -> 103596 | I17: =IF(ISERROR(VLOOKUP($E17,表B_RAW!$C:$I,6,0)),"",VLOOKUP($E17,表B_RAW!$C:$I,6,0)/100) -> 4.1102 | J17: =IF(ISERROR(VLOOKUP($E17,表A_RAW!$C:$I,5,0)),"",VLOOKUP($E17,表A_RAW!$C:$I,5,0)) -> 482 | K17: =IF(ISERROR(VLOOKUP($E17,表A_RAW!$C:$I,7,0)),"",VLOOKUP($E17,表A_RAW!$C:$I,7,0)) -> 1097.329876 | L17: =IF(ISERROR(VLOOKUP($E17,表C_RAW!$C:$I,4,0)),"",VLOOKUP($E17,表C_RAW!$C:$I,4,0)) -> 666499 | M17: =IF(ISERROR(VLOOKUP($E17,表C_RAW!$C:$I,5,0)),"",VLOOKUP($E17,表C_RAW!$C:$I,5,0)) -> 1445 | N17: =IF(ISERROR(VLOOKUP($E17,表C_RAW!$C:$I,6,0)),"",VLOOKUP($E17,表C_RAW!$C:$I,6,0)/100) -> 460.245
D18: 3 | E18: =VLOOKUP($C$16&D18,表C_RAW!A:D,3,0) -> 2548 華固 | G18: =IF(ISERROR(VLOOKUP($E18,表B_RAW!$C:$I,4,0)),"",VLOOKUP($E18,表B_RAW!$C:$I,4,0)) -> 1965711 | H18: =IF(ISERROR(VLOOKUP($E18,表B_RAW!$C:$I,5,0)),"",VLOOKUP($E18,表B_RAW!$C:$I,5,0)) -> 1137637 | I18: =IF(ISERROR(VLOOKUP($E18,表B_RAW!$C:$I,6,0)),"",VLOOKUP($E18,表B_RAW!$C:$I,6,0)/100) -> 0.7279 | J18: =IF(ISERROR(VLOOKUP($E18,表A_RAW!$C:$I,5,0)),"",VLOOKUP($E18,表A_RAW!$C:$I,5,0)) -> 2399 | K18: =IF(ISERROR(VLOOKUP($E18,表A_RAW!$C:$I,7,0)),"",VLOOKUP($E18,表A_RAW!$C:$I,7,0)) -> 818.3876615 | L18: =IF(ISERROR(VLOOKUP($E18,表C_RAW!$C:$I,4,0)),"",VLOOKUP($E18,表C_RAW!$C:$I,4,0)) -> 4206418 | M18: =IF(ISERROR(VLOOKUP($E18,表C_RAW!$C:$I,5,0)),"",VLOOKUP($E18,表C_RAW!$C:$I,5,0)) -> 11454 | N18: =IF(ISERROR(VLOOKUP($E18,表C_RAW!$C:$I,6,0)),"",VLOOKUP($E18,表C_RAW!$C:$I,6,0)/100) -> 366.2445
C19: =ROUND(VLOOKUP(B16,表C_RAW!N:T,7,0),2) -> 42.41 | D19: 4 | E19: =VLOOKUP($C$16&D19,表C_RAW!A:D,3,0) -> 6219 富旺 | G19: =IF(ISERROR(VLOOKUP($E19,表B_RAW!$C:$I,4,0)),"",VLOOKUP($E19,表B_RAW!$C:$I,4,0)) -> 276199 | H19: =IF(ISERROR(VLOOKUP($E19,表B_RAW!$C:$I,5,0)),"",VLOOKUP($E19,表B_RAW!$C:$I,5,0)) -> 255442 | I19: =IF(ISERROR(VLOOKUP($E19,表B_RAW!$C:$I,6,0)),"",VLOOKUP($E19,表B_RAW!$C:$I,6,0)/100) -> 0.0813 | J19: =IF(ISERROR(VLOOKUP($E19,表A_RAW!$C:$I,5,0)),"",VLOOKUP($E19,表A_RAW!$C:$I,5,0)) -> -723 | K19: =IF(ISERROR(VLOOKUP($E19,表A_RAW!$C:$I,7,0)),"",VLOOKUP($E19,表A_RAW!$C:$I,7,0)) -> 383.0179806 | L19: =IF(ISERROR(VLOOKUP($E19,表C_RAW!$C:$I,4,0)),"",VLOOKUP($E19,表C_RAW!$C:$I,4,0)) -> 1148689 | M19: =IF(ISERROR(VLOOKUP($E19,表C_RAW!$C:$I,5,0)),"",VLOOKUP($E19,表C_RAW!$C:$I,5,0)) -> 6065 | N19: =IF(ISERROR(VLOOKUP($E19,表C_RAW!$C:$I,6,0)),"",VLOOKUP($E19,表C_RAW!$C:$I,6,0)/100) -> 188.3964
D20: 5 | E20: =VLOOKUP($C$16&D20,表C_RAW!A:D,3,0) -> 1808 潤隆 | G20: =IF(ISERROR(VLOOKUP($E20,表B_RAW!$C:$I,4,0)),"",VLOOKUP($E20,表B_RAW!$C:$I,4,0)) -> 2201874 | H20: =IF(ISERROR(VLOOKUP($E20,表B_RAW!$C:$I,5,0)),"",VLOOKUP($E20,表B_RAW!$C:$I,5,0)) -> 1652480 | I20: =IF(ISERROR(VLOOKUP($E20,表B_RAW!$C:$I,6,0)),"",VLOOKUP($E20,表B_RAW!$C:$I,6,0)/100) -> 0.3325 | J20: =IF(ISERROR(VLOOKUP($E20,表A_RAW!$C:$I,5,0)),"",VLOOKUP($E20,表A_RAW!$C:$I,5,0)) -> 3221 | K20: =IF(ISERROR(VLOOKUP($E20,表A_RAW!$C:$I,7,0)),"",VLOOKUP($E20,表A_RAW!$C:$I,7,0)) -> 682.5995033 | L20: =IF(ISERROR(VLOOKUP($E20,表C_RAW!$C:$I,4,0)),"",VLOOKUP($E20,表C_RAW!$C:$I,4,0)) -> 5392216 | M20: =IF(ISERROR(VLOOKUP($E20,表C_RAW!$C:$I,5,0)),"",VLOOKUP($E20,表C_RAW!$C:$I,5,0)) -> 30910 | N20: =IF(ISERROR(VLOOKUP($E20,表C_RAW!$C:$I,6,0)),"",VLOOKUP($E20,表C_RAW!$C:$I,6,0)/100) -> 173.4489
B21: 4 | C21: =VLOOKUP(B21,表C_RAW!N:P,3,0) -> 半導體業 | D21: 1 | E21: =VLOOKUP($C$21&D21,表C_RAW!A:D,3,0) -> 3555 博士旺 | G21: =IF(ISERROR(VLOOKUP($E21,表B_RAW!$C:$I,4,0)),"",VLOOKUP($E21,表B_RAW!$C:$I,4,0)) -> 102925 | H21: =IF(ISERROR(VLOOKUP($E21,表B_RAW!$C:$I,5,0)),"",VLOOKUP($E21,表B_RAW!$C:$I,5,0)) -> 100013 | I21: =IF(ISERROR(VLOOKUP($E21,表B_RAW!$C:$I,6,0)),"",VLOOKUP($E21,表B_RAW!$C:$I,6,0)/100) -> 0.0291 | J21: =IF(ISERROR(VLOOKUP($E21,表A_RAW!$C:$I,5,0)),"",VLOOKUP($E21,表A_RAW!$C:$I,5,0)) -> 2135 | K21: =IF(ISERROR(VLOOKUP($E21,表A_RAW!$C:$I,7,0)),"",VLOOKUP($E21,表A_RAW!$C:$I,7,0)) -> 47.20843091 | L21: =IF(ISERROR(VLOOKUP($E21,表C_RAW!$C:$I,4,0)),"",VLOOKUP($E21,表C_RAW!$C:$I,4,0)) -> 273286 | M21: =IF(ISERROR(VLOOKUP($E21,表C_RAW!$C:$I,5,0)),"",VLOOKUP($E21,表C_RAW!$C:$I,5,0)) -> 6353 | N21: =IF(ISERROR(VLOOKUP($E21,表C_RAW!$C:$I,6,0)),"",VLOOKUP($E21,表C_RAW!$C:$I,6,0)/100) -> 42.0168
D22: 2 | E22: =VLOOKUP($C$21&D22,表C_RAW!A:D,3,0) -> 2408 南亞科 | G22: =IF(ISERROR(VLOOKUP($E22,表B_RAW!$C:$I,4,0)),"",VLOOKUP($E22,表B_RAW!$C:$I,4,0)) -> 18169760 | H22: =IF(ISERROR(VLOOKUP($E22,表B_RAW!$C:$I,5,0)),"",VLOOKUP($E22,表B_RAW!$C:$I,5,0)) -> 15607184 | I22: =IF(ISERROR(VLOOKUP($E22,表B_RAW!$C:$I,6,0)),"",VLOOKUP($E22,表B_RAW!$C:$I,6,0)/100) -> 0.1642 | J22: =IF(ISERROR(VLOOKUP($E22,表A_RAW!$C:$I,5,0)),"",VLOOKUP($E22,表A_RAW!$C:$I,5,0)) -> 2752833 | K22: =IF(ISERROR(VLOOKUP($E22,表A_RAW!$C:$I,7,0)),"",VLOOKUP($E22,表A_RAW!$C:$I,7,0)) -> 5.600385857 | L22: =IF(ISERROR(VLOOKUP($E22,表C_RAW!$C:$I,4,0)),"",VLOOKUP($E22,表C_RAW!$C:$I,4,0)) -> 49086932 | M22: =IF(ISERROR(VLOOKUP($E22,表C_RAW!$C:$I,5,0)),"",VLOOKUP($E22,表C_RAW!$C:$I,5,0)) -> 7187940 | N22: =IF(ISERROR(VLOOKUP($E22,表C_RAW!$C:$I,6,0)),"",VLOOKUP($E22,表C_RAW!$C:$I,6,0)/100) -> 5.8291
D23: 3 | E23: =VLOOKUP($C$21&D23,表C_RAW!A:D,3,0) -> 2451 創見 | G23: =IF(ISERROR(VLOOKUP($E23,表B_RAW!$C:$I,4,0)),"",VLOOKUP($E23,表B_RAW!$C:$I,4,0)) -> 5683818 | H23: =IF(ISERROR(VLOOKUP($E23,表B_RAW!$C:$I,5,0)),"",VLOOKUP($E23,表B_RAW!$C:$I,5,0)) -> 3184337 | I23: =IF(ISERROR(VLOOKUP($E23,表B_RAW!$C:$I,6,0)),"",VLOOKUP($E23,表B_RAW!$C:$I,6,0)/100) -> 0.7849 | J23: =IF(ISERROR(VLOOKUP($E23,表A_RAW!$C:$I,5,0)),"",VLOOKUP($E23,表A_RAW!$C:$I,5,0)) -> 1182715 | K23: =IF(ISERROR(VLOOKUP($E23,表A_RAW!$C:$I,7,0)),"",VLOOKUP($E23,表A_RAW!$C:$I,7,0)) -> 3.805737646 | L23: =IF(ISERROR(VLOOKUP($E23,表C_RAW!$C:$I,4,0)),"",VLOOKUP($E23,表C_RAW!$C:$I,4,0)) -> 13628469 | M23: =IF(ISERROR(VLOOKUP($E23,表C_RAW!$C:$I,5,0)),"",VLOOKUP($E23,表C_RAW!$C:$I,5,0)) -> 2982852 | N23: =IF(ISERROR(VLOOKUP($E23,表C_RAW!$C:$I,6,0)),"",VLOOKUP($E23,表C_RAW!$C:$I,6,0)/100) -> 3.5689
C24: =ROUND(VLOOKUP(B21,表C_RAW!N:T,7,0),2) -> 29.74 | D24: 4 | E24: =VLOOKUP($C$21&D24,表C_RAW!A:D,3,0) -> 8054 安國 | G24: =IF(ISERROR(VLOOKUP($E24,表B_RAW!$C:$I,4,0)),"",VLOOKUP($E24,表B_RAW!$C:$I,4,0)) -> 518864 | H24: =IF(ISERROR(VLOOKUP($E24,表B_RAW!$C:$I,5,0)),"",VLOOKUP($E24,表B_RAW!$C:$I,5,0)) -> 288586 | I24: =IF(ISERROR(VLOOKUP($E24,表B_RAW!$C:$I,6,0)),"",VLOOKUP($E24,表B_RAW!$C:$I,6,0)/100) -> 0.798 | J24: =IF(ISERROR(VLOOKUP($E24,表A_RAW!$C:$I,5,0)),"",VLOOKUP($E24,表A_RAW!$C:$I,5,0)) -> 156054 | K24: =IF(ISERROR(VLOOKUP($E24,表A_RAW!$C:$I,7,0)),"",VLOOKUP($E24,表A_RAW!$C:$I,7,0)) -> 2.324900355 | L24: =IF(ISERROR(VLOOKUP($E24,表C_RAW!$C:$I,4,0)),"",VLOOKUP($E24,表C_RAW!$C:$I,4,0)) -> 1703274 | M24: =IF(ISERROR(VLOOKUP($E24,表C_RAW!$C:$I,5,0)),"",VLOOKUP($E24,表C_RAW!$C:$I,5,0)) -> 381221 | N24: =IF(ISERROR(VLOOKUP($E24,表C_RAW!$C:$I,6,0)),"",VLOOKUP($E24,表C_RAW!$C:$I,6,0)/100) -> 3.4679
D25: 5 | E25: =VLOOKUP($C$21&D25,表C_RAW!A:D,3,0) -> 5351 鈺創 | G25: =IF(ISERROR(VLOOKUP($E25,表B_RAW!$C:$I,4,0)),"",VLOOKUP($E25,表B_RAW!$C:$I,4,0)) -> 1102522 | H25: =IF(ISERROR(VLOOKUP($E25,表B_RAW!$C:$I,5,0)),"",VLOOKUP($E25,表B_RAW!$C:$I,5,0)) -> 869173 | I25: =IF(ISERROR(VLOOKUP($E25,表B_RAW!$C:$I,6,0)),"",VLOOKUP($E25,表B_RAW!$C:$I,6,0)/100) -> 0.2685 | J25: =IF(ISERROR(VLOOKUP($E25,表A_RAW!$C:$I,5,0)),"",VLOOKUP($E25,表A_RAW!$C:$I,5,0)) -> 220672 | K25: =IF(ISERROR(VLOOKUP($E25,表A_RAW!$C:$I,7,0)),"",VLOOKUP($E25,表A_RAW!$C:$I,7,0)) -> 3.996202509 | L25: =IF(ISERROR(VLOOKUP($E25,表C_RAW!$C:$I,4,0)),"",VLOOKUP($E25,表C_RAW!$C:$I,4,0)) -> 2735412 | M25: =IF(ISERROR(VLOOKUP($E25,表C_RAW!$C:$I,5,0)),"",VLOOKUP($E25,表C_RAW!$C:$I,5,0)) -> 627130 | N25: =IF(ISERROR(VLOOKUP($E25,表C_RAW!$C:$I,6,0)),"",VLOOKUP($E25,表C_RAW!$C:$I,6,0)/100) -> 3.3618
B26: 5 | C26: =VLOOKUP(B26,表C_RAW!N:P,3,0) -> 金融業 | D26: 1 | E26: =VLOOKUP($C$26&D26,表C_RAW!A:D,3,0) -> 6020 大展證 | G26: =IF(ISERROR(VLOOKUP($E26,表B_RAW!$C:$I,4,0)),"",VLOOKUP($E26,表B_RAW!$C:$I,4,0)) -> -18910 | H26: =IF(ISERROR(VLOOKUP($E26,表B_RAW!$C:$I,5,0)),"",VLOOKUP($E26,表B_RAW!$C:$I,5,0)) -> 52197 | I26: =IF(ISERROR(VLOOKUP($E26,表B_RAW!$C:$I,6,0)),"",VLOOKUP($E26,表B_RAW!$C:$I,6,0)/100) -> -1.3623 | J26: =IF(ISERROR(VLOOKUP($E26,表A_RAW!$C:$I,5,0)),"",VLOOKUP($E26,表A_RAW!$C:$I,5,0)) -> -23724 | K26: =IF(ISERROR(VLOOKUP($E26,表A_RAW!$C:$I,7,0)),"",VLOOKUP($E26,表A_RAW!$C:$I,7,0)) -> 0.2029168774 | L26: =IF(ISERROR(VLOOKUP($E26,表C_RAW!$C:$I,4,0)),"",VLOOKUP($E26,表C_RAW!$C:$I,4,0)) -> 192565 | M26: =IF(ISERROR(VLOOKUP($E26,表C_RAW!$C:$I,5,0)),"",VLOOKUP($E26,表C_RAW!$C:$I,5,0)) -> -5900 | N26: =IF(ISERROR(VLOOKUP($E26,表C_RAW!$C:$I,6,0)),"",VLOOKUP($E26,表C_RAW!$C:$I,6,0)/100) -> 33.6381
D27: 2 | E27: =VLOOKUP($C$26&D27,表C_RAW!A:D,3,0) -> 6016 康和證 | G27: =IF(ISERROR(VLOOKUP($E27,表B_RAW!$C:$I,4,0)),"",VLOOKUP($E27,表B_RAW!$C:$I,4,0)) -> -140687 | H27: =IF(ISERROR(VLOOKUP($E27,表B_RAW!$C:$I,5,0)),"",VLOOKUP($E27,表B_RAW!$C:$I,5,0)) -> 1256783 | I27: =IF(ISERROR(VLOOKUP($E27,表B_RAW!$C:$I,6,0)),"",VLOOKUP($E27,表B_RAW!$C:$I,6,0)/100) -> -1.1119 | J27: =IF(ISERROR(VLOOKUP($E27,表A_RAW!$C:$I,5,0)),"",VLOOKUP($E27,表A_RAW!$C:$I,5,0)) -> -324806 | K27: =IF(ISERROR(VLOOKUP($E27,表A_RAW!$C:$I,7,0)),"",VLOOKUP($E27,表A_RAW!$C:$I,7,0)) -> 0.5668583708 | L27: =IF(ISERROR(VLOOKUP($E27,表C_RAW!$C:$I,4,0)),"",VLOOKUP($E27,表C_RAW!$C:$I,4,0)) -> 2343183 | M27: =IF(ISERROR(VLOOKUP($E27,表C_RAW!$C:$I,5,0)),"",VLOOKUP($E27,表C_RAW!$C:$I,5,0)) -> 159689 | N27: =IF(ISERROR(VLOOKUP($E27,表C_RAW!$C:$I,6,0)),"",VLOOKUP($E27,表C_RAW!$C:$I,6,0)/100) -> 13.6734
D28: 3 | E28: =VLOOKUP($C$26&D28,表C_RAW!A:D,3,0) -> 6021 美好證 | G28: =IF(ISERROR(VLOOKUP($E28,表B_RAW!$C:$I,4,0)),"",VLOOKUP($E28,表B_RAW!$C:$I,4,0)) -> -495411 | H28: =IF(ISERROR(VLOOKUP($E28,表B_RAW!$C:$I,5,0)),"",VLOOKUP($E28,表B_RAW!$C:$I,5,0)) -> 603462 | I28: =IF(ISERROR(VLOOKUP($E28,表B_RAW!$C:$I,6,0)),"",VLOOKUP($E28,表B_RAW!$C:$I,6,0)/100) -> -1.8209 | J28: =IF(ISERROR(VLOOKUP($E28,表A_RAW!$C:$I,5,0)),"",VLOOKUP($E28,表A_RAW!$C:$I,5,0)) -> -264125 | K28: =IF(ISERROR(VLOOKUP($E28,表A_RAW!$C:$I,7,0)),"",VLOOKUP($E28,表A_RAW!$C:$I,7,0)) -> -0.8756687175 | L28: =IF(ISERROR(VLOOKUP($E28,表C_RAW!$C:$I,4,0)),"",VLOOKUP($E28,表C_RAW!$C:$I,4,0)) -> 603200 | M28: =IF(ISERROR(VLOOKUP($E28,表C_RAW!$C:$I,5,0)),"",VLOOKUP($E28,表C_RAW!$C:$I,5,0)) -> -147280 | N28: =IF(ISERROR(VLOOKUP($E28,表C_RAW!$C:$I,6,0)),"",VLOOKUP($E28,表C_RAW!$C:$I,6,0)/100) -> 5.0956
C29: =ROUND(VLOOKUP(B26,表C_RAW!N:T,7,0),2) -> 29.74 | D29: 4 | E29: =VLOOKUP($C$26&D29,表C_RAW!A:D,3,0) -> 5864 致和證 | G29: =IF(ISERROR(VLOOKUP($E29,表B_RAW!$C:$I,4,0)),"",VLOOKUP($E29,表B_RAW!$C:$I,4,0)) -> -588535 | H29: =IF(ISERROR(VLOOKUP($E29,表B_RAW!$C:$I,5,0)),"",VLOOKUP($E29,表B_RAW!$C:$I,5,0)) -> 811530 | I29: =IF(ISERROR(VLOOKUP($E29,表B_RAW!$C:$I,6,0)),"",VLOOKUP($E29,表B_RAW!$C:$I,6,0)/100) -> -1.7252 | J29: =IF(ISERROR(VLOOKUP($E29,表A_RAW!$C:$I,5,0)),"",VLOOKUP($E29,表A_RAW!$C:$I,5,0)) -> -392299 | K29: =IF(ISERROR(VLOOKUP($E29,表A_RAW!$C:$I,7,0)),"",VLOOKUP($E29,表A_RAW!$C:$I,7,0)) -> -0.5002204951 | L29: =IF(ISERROR(VLOOKUP($E29,表C_RAW!$C:$I,4,0)),"",VLOOKUP($E29,表C_RAW!$C:$I,4,0)) -> 1705116 | M29: =IF(ISERROR(VLOOKUP($E29,表C_RAW!$C:$I,5,0)),"",VLOOKUP($E29,表C_RAW!$C:$I,5,0)) -> -426682 | N29: =IF(ISERROR(VLOOKUP($E29,表C_RAW!$C:$I,6,0)),"",VLOOKUP($E29,表C_RAW!$C:$I,6,0)/100) -> 4.9962
D30: 5 | E30: =VLOOKUP($C$26&D30,表C_RAW!A:D,3,0) -> 6015 宏遠證 | G30: =IF(ISERROR(VLOOKUP($E30,表B_RAW!$C:$I,4,0)),"",VLOOKUP($E30,表B_RAW!$C:$I,4,0)) -> 131653 | H30: =IF(ISERROR(VLOOKUP($E30,表B_RAW!$C:$I,5,0)),"",VLOOKUP($E30,表B_RAW!$C:$I,5,0)) -> 256048 | I30: =IF(ISERROR(VLOOKUP($E30,表B_RAW!$C:$I,6,0)),"",VLOOKUP($E30,表B_RAW!$C:$I,6,0)/100) -> -0.4858 | J30: =IF(ISERROR(VLOOKUP($E30,表A_RAW!$C:$I,5,0)),"",VLOOKUP($E30,表A_RAW!$C:$I,5,0)) -> -19124 | K30: =IF(ISERROR(VLOOKUP($E30,表A_RAW!$C:$I,7,0)),"",VLOOKUP($E30,表A_RAW!$C:$I,7,0)) -> 7.88417695 | L30: =IF(ISERROR(VLOOKUP($E30,表C_RAW!$C:$I,4,0)),"",VLOOKUP($E30,表C_RAW!$C:$I,4,0)) -> 806313 | M30: =IF(ISERROR(VLOOKUP($E30,表C_RAW!$C:$I,5,0)),"",VLOOKUP($E30,表C_RAW!$C:$I,5,0)) -> 175995 | N30: =IF(ISERROR(VLOOKUP($E30,表C_RAW!$C:$I,6,0)),"",VLOOKUP($E30,表C_RAW!$C:$I,6,0)/100) -> 3.5815
B32: 衰退前五名之產業 YOY(累計)% | D32: 該產業衰退前五名之公司 YOY(累計)% | G32: 單月營收金額(千元) | H32: 本月與上月相較 | J32: 本月與去年同期相較 | L32: 累計營收金額(千元) | M32: 累計營收與去年同期相較
B33: 衰退 排名 | C33: 產業 | D33: 排名 | E33: 公司代號&簡稱 | H33: 上月營收金額(千元) | I33: 較上月變動比率(%) | J33: 去年同期金額(千元) | K33: 較去年同期變動比率(%) | M33: 去年累計營收金額(千元) | N33: 較去年同期變動比率(%)
B34: 1 | C34: =VLOOKUP(B34,表C_RAW!O:P,2,0) -> 運動休閒 | D34: 1 | E34: =VLOOKUP($C$34&D34,表C_RAW!B:D,2,0) -> 1432 大魯閣 | G34: =IF(ISERROR(VLOOKUP($E34,表B_RAW!$C:$I,4,0)),"",VLOOKUP($E34,表B_RAW!$C:$I,4,0)) -> 60006 | H34: =IF(ISERROR(VLOOKUP($E34,表B_RAW!$C:$I,5,0)),"",VLOOKUP($E34,表B_RAW!$C:$I,5,0)) -> 72081 | I34: =IF(ISERROR(VLOOKUP($E34,表B_RAW!$C:$I,6,0)),"",VLOOKUP($E34,表B_RAW!$C:$I,6,0)/100) -> -0.1675 | J34: =IF(ISERROR(VLOOKUP($E34,表A_RAW!$C:$I,5,0)),"",VLOOKUP($E34,表A_RAW!$C:$I,5,0)) -> 104877 | K34: =IF(ISERROR(VLOOKUP($E34,表A_RAW!$C:$I,7,0)),"",VLOOKUP($E34,表A_RAW!$C:$I,7,0)) -> -0.4278440459 | L34: =IF(ISERROR(VLOOKUP($E34,表C_RAW!$C:$I,4,0)),"",VLOOKUP($E34,表C_RAW!$C:$I,4,0)) -> 198085 | M34: =IF(ISERROR(VLOOKUP($E34,表C_RAW!$C:$I,5,0)),"",VLOOKUP($E34,表C_RAW!$C:$I,5,0)) -> 335189 | N34: =IF(ISERROR(VLOOKUP($E34,表C_RAW!$C:$I,6,0)),"",VLOOKUP($E34,表C_RAW!$C:$I,6,0)/100) -> -0.409
D35: 2 | E35: =VLOOKUP($C$34&D35,表C_RAW!B:D,2,0) -> 8933 愛地雅 | G35: =IF(ISERROR(VLOOKUP($E35,表B_RAW!$C:$I,4,0)),"",VLOOKUP($E35,表B_RAW!$C:$I,4,0)) -> 188767 | H35: =IF(ISERROR(VLOOKUP($E35,表B_RAW!$C:$I,5,0)),"",VLOOKUP($E35,表B_RAW!$C:$I,5,0)) -> 180726 | I35: =IF(ISERROR(VLOOKUP($E35,表B_RAW!$C:$I,6,0)),"",VLOOKUP($E35,表B_RAW!$C:$I,6,0)/100) -> 0.0445 | J35: =IF(ISERROR(VLOOKUP($E35,表A_RAW!$C:$I,5,0)),"",VLOOKUP($E35,表A_RAW!$C:$I,5,0)) -> 275160 | K35: =IF(ISERROR(VLOOKUP($E35,表A_RAW!$C:$I,7,0)),"",VLOOKUP($E35,表A_RAW!$C:$I,7,0)) -> -0.313973688 | L35: =IF(ISERROR(VLOOKUP($E35,表C_RAW!$C:$I,4,0)),"",VLOOKUP($E35,表C_RAW!$C:$I,4,0)) -> 486719 | M35: =IF(ISERROR(VLOOKUP($E35,表C_RAW!$C:$I,5,0)),"",VLOOKUP($E35,表C_RAW!$C:$I,5,0)) -> 743876 | N35: =IF(ISERROR(VLOOKUP($E35,表C_RAW!$C:$I,6,0)),"",VLOOKUP($E35,表C_RAW!$C:$I,6,0)/100) -> -0.3457
D36: 3 | E36: =VLOOKUP($C$34&D36,表C_RAW!B:D,2,0) -> 9914 美利達 | G36: =IF(ISERROR(VLOOKUP($E36,表B_RAW!$C:$I,4,0)),"",VLOOKUP($E36,表B_RAW!$C:$I,4,0)) -> 2405697 | H36: =IF(ISERROR(VLOOKUP($E36,表B_RAW!$C:$I,5,0)),"",VLOOKUP($E36,表B_RAW!$C:$I,5,0)) -> 1696693 | I36: =IF(ISERROR(VLOOKUP($E36,表B_RAW!$C:$I,6,0)),"",VLOOKUP($E36,表B_RAW!$C:$I,6,0)/100) -> 0.4179 | J36: =IF(ISERROR(VLOOKUP($E36,表A_RAW!$C:$I,5,0)),"",VLOOKUP($E36,表A_RAW!$C:$I,5,0)) -> 2894434 | K36: =IF(ISERROR(VLOOKUP($E36,表A_RAW!$C:$I,7,0)),"",VLOOKUP($E36,表A_RAW!$C:$I,7,0)) -> -0.1688540834 | L36: =IF(ISERROR(VLOOKUP($E36,表C_RAW!$C:$I,4,0)),"",VLOOKUP($E36,表C_RAW!$C:$I,4,0)) -> 5493746 | M36: =IF(ISERROR(VLOOKUP($E36,表C_RAW!$C:$I,5,0)),"",VLOOKUP($E36,表C_RAW!$C:$I,5,0)) -> 7572112 | N36: =IF(ISERROR(VLOOKUP($E36,表C_RAW!$C:$I,6,0)),"",VLOOKUP($E36,表C_RAW!$C:$I,6,0)/100) -> -0.2745
C37: =ROUND(VLOOKUP(B34,表C_RAW!O:T,6,0),2) -> -8.79 | D37: 4 | E37: =VLOOKUP($C$34&D37,表C_RAW!B:D,2,0) -> 8928 鉅明 | G37: =IF(ISERROR(VLOOKUP($E37,表B_RAW!$C:$I,4,0)),"",VLOOKUP($E37,表B_RAW!$C:$I,4,0)) -> 287304 | H37: =IF(ISERROR(VLOOKUP($E37,表B_RAW!$C:$I,5,0)),"",VLOOKUP($E37,表B_RAW!$C:$I,5,0)) -> 218852 | I37: =IF(ISERROR(VLOOKUP($E37,表B_RAW!$C:$I,6,0)),"",VLOOKUP($E37,表B_RAW!$C:$I,6,0)/100) -> 0.3128 | J37: =IF(ISERROR(VLOOKUP($E37,表A_RAW!$C:$I,5,0)),"",VLOOKUP($E37,表A_RAW!$C:$I,5,0)) -> 376004 | K37: =IF(ISERROR(VLOOKUP($E37,表A_RAW!$C:$I,7,0)),"",VLOOKUP($E37,表A_RAW!$C:$I,7,0)) -> -0.2359017457 | L37: =IF(ISERROR(VLOOKUP($E37,表C_RAW!$C:$I,4,0)),"",VLOOKUP($E37,表C_RAW!$C:$I,4,0)) -> 754460 | M37: =IF(ISERROR(VLOOKUP($E37,表C_RAW!$C:$I,5,0)),"",VLOOKUP($E37,表C_RAW!$C:$I,5,0)) -> 1038415 | N37: =IF(ISERROR(VLOOKUP($E37,表C_RAW!$C:$I,6,0)),"",VLOOKUP($E37,表C_RAW!$C:$I,6,0)/100) -> -0.2735
D38: 5 | E38: =VLOOKUP($C$34&D38,表C_RAW!B:D,2,0) -> 6890 來億-KY | G38: =IF(ISERROR(VLOOKUP($E38,表B_RAW!$C:$I,4,0)),"",VLOOKUP($E38,表B_RAW!$C:$I,4,0)) -> 2779557 | H38: =IF(ISERROR(VLOOKUP($E38,表B_RAW!$C:$I,5,0)),"",VLOOKUP($E38,表B_RAW!$C:$I,5,0)) -> 1776161 | I38: =IF(ISERROR(VLOOKUP($E38,表B_RAW!$C:$I,6,0)),"",VLOOKUP($E38,表B_RAW!$C:$I,6,0)/100) -> 0.5649 | J38: =IF(ISERROR(VLOOKUP($E38,表A_RAW!$C:$I,5,0)),"",VLOOKUP($E38,表A_RAW!$C:$I,5,0)) -> 3500227 | K38: =IF(ISERROR(VLOOKUP($E38,表A_RAW!$C:$I,7,0)),"",VLOOKUP($E38,表A_RAW!$C:$I,7,0)) -> -0.2058923607 | L38: =IF(ISERROR(VLOOKUP($E38,表C_RAW!$C:$I,4,0)),"",VLOOKUP($E38,表C_RAW!$C:$I,4,0)) -> 7077691 | M38: =IF(ISERROR(VLOOKUP($E38,表C_RAW!$C:$I,5,0)),"",VLOOKUP($E38,表C_RAW!$C:$I,5,0)) -> 9682827 | N38: =IF(ISERROR(VLOOKUP($E38,表C_RAW!$C:$I,6,0)),"",VLOOKUP($E38,表C_RAW!$C:$I,6,0)/100) -> -0.269
B39: 2 | C39: =VLOOKUP(B39,表C_RAW!O:P,2,0) -> 水泥工業 | D39: 1 | E39: =VLOOKUP($C$39&D39,表C_RAW!B:D,2,0) -> 1110 東泥 | G39: =IF(ISERROR(VLOOKUP($E39,表B_RAW!$C:$I,4,0)),"",VLOOKUP($E39,表B_RAW!$C:$I,4,0)) -> 224535 | H39: =IF(ISERROR(VLOOKUP($E39,表B_RAW!$C:$I,5,0)),"",VLOOKUP($E39,表B_RAW!$C:$I,5,0)) -> 159417 | I39: =IF(ISERROR(VLOOKUP($E39,表B_RAW!$C:$I,6,0)),"",VLOOKUP($E39,表B_RAW!$C:$I,6,0)/100) -> 0.4085 | J39: =IF(ISERROR(VLOOKUP($E39,表A_RAW!$C:$I,5,0)),"",VLOOKUP($E39,表A_RAW!$C:$I,5,0)) -> 274954 | K39: =IF(ISERROR(VLOOKUP($E39,表A_RAW!$C:$I,7,0)),"",VLOOKUP($E39,表A_RAW!$C:$I,7,0)) -> -0.1833724914 | L39: =IF(ISERROR(VLOOKUP($E39,表C_RAW!$C:$I,4,0)),"",VLOOKUP($E39,表C_RAW!$C:$I,4,0)) -> 582643 | M39: =IF(ISERROR(VLOOKUP($E39,表C_RAW!$C:$I,5,0)),"",VLOOKUP($E39,表C_RAW!$C:$I,5,0)) -> 740524 | N39: =IF(ISERROR(VLOOKUP($E39,表C_RAW!$C:$I,6,0)),"",VLOOKUP($E39,表C_RAW!$C:$I,6,0)/100) -> -0.2132
D40: 2 | E40: =VLOOKUP($C$39&D40,表C_RAW!B:D,2,0) -> 1108 幸福 | G40: =IF(ISERROR(VLOOKUP($E40,表B_RAW!$C:$I,4,0)),"",VLOOKUP($E40,表B_RAW!$C:$I,4,0)) -> 346885 | H40: =IF(ISERROR(VLOOKUP($E40,表B_RAW!$C:$I,5,0)),"",VLOOKUP($E40,表B_RAW!$C:$I,5,0)) -> 259157 | I40: =IF(ISERROR(VLOOKUP($E40,表B_RAW!$C:$I,6,0)),"",VLOOKUP($E40,表B_RAW!$C:$I,6,0)/100) -> 0.3385 | J40: =IF(ISERROR(VLOOKUP($E40,表A_RAW!$C:$I,5,0)),"",VLOOKUP($E40,表A_RAW!$C:$I,5,0)) -> 408312 | K40: =IF(ISERROR(VLOOKUP($E40,表A_RAW!$C:$I,7,0)),"",VLOOKUP($E40,表A_RAW!$C:$I,7,0)) -> -0.1504413292 | L40: =IF(ISERROR(VLOOKUP($E40,表C_RAW!$C:$I,4,0)),"",VLOOKUP($E40,表C_RAW!$C:$I,4,0)) -> 980706 | M40: =IF(ISERROR(VLOOKUP($E40,表C_RAW!$C:$I,5,0)),"",VLOOKUP($E40,表C_RAW!$C:$I,5,0)) -> 1212710 | N40: =IF(ISERROR(VLOOKUP($E40,表C_RAW!$C:$I,6,0)),"",VLOOKUP($E40,表C_RAW!$C:$I,6,0)/100) -> -0.1913
D41: 3 | E41: =VLOOKUP($C$39&D41,表C_RAW!B:D,2,0) -> 1109 信大 | G41: =IF(ISERROR(VLOOKUP($E41,表B_RAW!$C:$I,4,0)),"",VLOOKUP($E41,表B_RAW!$C:$I,4,0)) -> 314014 | H41: =IF(ISERROR(VLOOKUP($E41,表B_RAW!$C:$I,5,0)),"",VLOOKUP($E41,表B_RAW!$C:$I,5,0)) -> 167550 | I41: =IF(ISERROR(VLOOKUP($E41,表B_RAW!$C:$I,6,0)),"",VLOOKUP($E41,表B_RAW!$C:$I,6,0)/100) -> 0.8742 | J41: =IF(ISERROR(VLOOKUP($E41,表A_RAW!$C:$I,5,0)),"",VLOOKUP($E41,表A_RAW!$C:$I,5,0)) -> 446709 | K41: =IF(ISERROR(VLOOKUP($E41,表A_RAW!$C:$I,7,0)),"",VLOOKUP($E41,表A_RAW!$C:$I,7,0)) -> -0.2970502049 | L41: =IF(ISERROR(VLOOKUP($E41,表C_RAW!$C:$I,4,0)),"",VLOOKUP($E41,表C_RAW!$C:$I,4,0)) -> 855341 | M41: =IF(ISERROR(VLOOKUP($E41,表C_RAW!$C:$I,5,0)),"",VLOOKUP($E41,表C_RAW!$C:$I,5,0)) -> 989911 | N41: =IF(ISERROR(VLOOKUP($E41,表C_RAW!$C:$I,6,0)),"",VLOOKUP($E41,表C_RAW!$C:$I,6,0)/100) -> -0.1359
C42: =ROUND(VLOOKUP(B39,表C_RAW!O:T,6,0),2) -> -7.41 | D42: 4 | E42: =VLOOKUP($C$39&D42,表C_RAW!B:D,2,0) -> 1102 亞泥 | G42: =IF(ISERROR(VLOOKUP($E42,表B_RAW!$C:$I,4,0)),"",VLOOKUP($E42,表B_RAW!$C:$I,4,0)) -> 5349407 | H42: =IF(ISERROR(VLOOKUP($E42,表B_RAW!$C:$I,5,0)),"",VLOOKUP($E42,表B_RAW!$C:$I,5,0)) -> 3493115 | I42: =IF(ISERROR(VLOOKUP($E42,表B_RAW!$C:$I,6,0)),"",VLOOKUP($E42,表B_RAW!$C:$I,6,0)/100) -> 0.5314 | J42: =IF(ISERROR(VLOOKUP($E42,表A_RAW!$C:$I,5,0)),"",VLOOKUP($E42,表A_RAW!$C:$I,5,0)) -> 6532662 | K42: =IF(ISERROR(VLOOKUP($E42,表A_RAW!$C:$I,7,0)),"",VLOOKUP($E42,表A_RAW!$C:$I,7,0)) -> -0.1811290711 | L42: =IF(ISERROR(VLOOKUP($E42,表C_RAW!$C:$I,4,0)),"",VLOOKUP($E42,表C_RAW!$C:$I,4,0)) -> 14829486 | M42: =IF(ISERROR(VLOOKUP($E42,表C_RAW!$C:$I,5,0)),"",VLOOKUP($E42,表C_RAW!$C:$I,5,0)) -> 16594707 | N42: =IF(ISERROR(VLOOKUP($E42,表C_RAW!$C:$I,6,0)),"",VLOOKUP($E42,表C_RAW!$C:$I,6,0)/100) -> -0.1064
D43: 5 | E43: =IFERROR(VLOOKUP($C$39&D43,表C_RAW!B:D,2,0),"") -> 1104 環泥 | G43: =IF(ISERROR(VLOOKUP($E43,表B_RAW!$C:$I,4,0)),"",VLOOKUP($E43,表B_RAW!$C:$I,4,0)) -> 580759 | H43: =IF(ISERROR(VLOOKUP($E43,表B_RAW!$C:$I,5,0)),"",VLOOKUP($E43,表B_RAW!$C:$I,5,0)) -> 460060 | I43: =IF(ISERROR(VLOOKUP($E43,表B_RAW!$C:$I,6,0)),"",VLOOKUP($E43,表B_RAW!$C:$I,6,0)/100) -> 0.2624 | J43: =IF(ISERROR(VLOOKUP($E43,表A_RAW!$C:$I,5,0)),"",VLOOKUP($E43,表A_RAW!$C:$I,5,0)) -> 702215 | K43: =IF(ISERROR(VLOOKUP($E43,表A_RAW!$C:$I,7,0)),"",VLOOKUP($E43,表A_RAW!$C:$I,7,0)) -> -0.1729612725 | L43: =IF(ISERROR(VLOOKUP($E43,表C_RAW!$C:$I,4,0)),"",VLOOKUP($E43,表C_RAW!$C:$I,4,0)) -> 1759047 | M43: =IF(ISERROR(VLOOKUP($E43,表C_RAW!$C:$I,5,0)),"",VLOOKUP($E43,表C_RAW!$C:$I,5,0)) -> 1928654 | N43: =IF(ISERROR(VLOOKUP($E43,表C_RAW!$C:$I,6,0)),"",VLOOKUP($E43,表C_RAW!$C:$I,6,0)/100) -> -0.0879
B44: 3 | C44: =VLOOKUP(B44,表C_RAW!O:P,2,0) -> 紡織纖維 | D44: 1 | E44: =VLOOKUP($C$44&D44,表C_RAW!B:D,2,0) -> 1463 強盛新 | G44: =IF(ISERROR(VLOOKUP($E44,表B_RAW!$C:$I,4,0)),"",VLOOKUP($E44,表B_RAW!$C:$I,4,0)) -> 25235 | H44: =IF(ISERROR(VLOOKUP($E44,表B_RAW!$C:$I,5,0)),"",VLOOKUP($E44,表B_RAW!$C:$I,5,0)) -> 16307 | I44: =IF(ISERROR(VLOOKUP($E44,表B_RAW!$C:$I,6,0)),"",VLOOKUP($E44,表B_RAW!$C:$I,6,0)/100) -> 0.5475 | J44: =IF(ISERROR(VLOOKUP($E44,表A_RAW!$C:$I,5,0)),"",VLOOKUP($E44,表A_RAW!$C:$I,5,0)) -> 25315 | K44: =IF(ISERROR(VLOOKUP($E44,表A_RAW!$C:$I,7,0)),"",VLOOKUP($E44,表A_RAW!$C:$I,7,0)) -> -0.00316018171 | L44: =IF(ISERROR(VLOOKUP($E44,表C_RAW!$C:$I,4,0)),"",VLOOKUP($E44,表C_RAW!$C:$I,4,0)) -> 68559 | M44: =IF(ISERROR(VLOOKUP($E44,表C_RAW!$C:$I,5,0)),"",VLOOKUP($E44,表C_RAW!$C:$I,5,0)) -> 654241 | N44: =IF(ISERROR(VLOOKUP($E44,表C_RAW!$C:$I,6,0)),"",VLOOKUP($E44,表C_RAW!$C:$I,6,0)/100) -> -0.8952
D45: 2 | E45: =VLOOKUP($C$44&D45,表C_RAW!B:D,2,0) -> 1418 東華 | G45: =IF(ISERROR(VLOOKUP($E45,表B_RAW!$C:$I,4,0)),"",VLOOKUP($E45,表B_RAW!$C:$I,4,0)) -> 17 | H45: =IF(ISERROR(VLOOKUP($E45,表B_RAW!$C:$I,5,0)),"",VLOOKUP($E45,表B_RAW!$C:$I,5,0)) -> 18 | I45: =IF(ISERROR(VLOOKUP($E45,表B_RAW!$C:$I,6,0)),"",VLOOKUP($E45,表B_RAW!$C:$I,6,0)/100) -> -0.0556 | J45: =IF(ISERROR(VLOOKUP($E45,表A_RAW!$C:$I,5,0)),"",VLOOKUP($E45,表A_RAW!$C:$I,5,0)) -> 849 | K45: =IF(ISERROR(VLOOKUP($E45,表A_RAW!$C:$I,7,0)),"",VLOOKUP($E45,表A_RAW!$C:$I,7,0)) -> -0.9799764429 | L45: =IF(ISERROR(VLOOKUP($E45,表C_RAW!$C:$I,4,0)),"",VLOOKUP($E45,表C_RAW!$C:$I,4,0)) -> 648 | M45: =IF(ISERROR(VLOOKUP($E45,表C_RAW!$C:$I,5,0)),"",VLOOKUP($E45,表C_RAW!$C:$I,5,0)) -> 2840 | N45: =IF(ISERROR(VLOOKUP($E45,表C_RAW!$C:$I,6,0)),"",VLOOKUP($E45,表C_RAW!$C:$I,6,0)/100) -> -0.7718
D46: 3 | E46: =VLOOKUP($C$44&D46,表C_RAW!B:D,2,0) -> 1468 昶和 | G46: =IF(ISERROR(VLOOKUP($E46,表B_RAW!$C:$I,4,0)),"",VLOOKUP($E46,表B_RAW!$C:$I,4,0)) -> 25383 | H46: =IF(ISERROR(VLOOKUP($E46,表B_RAW!$C:$I,5,0)),"",VLOOKUP($E46,表B_RAW!$C:$I,5,0)) -> 27453 | I46: =IF(ISERROR(VLOOKUP($E46,表B_RAW!$C:$I,6,0)),"",VLOOKUP($E46,表B_RAW!$C:$I,6,0)/100) -> -0.0754 | J46: =IF(ISERROR(VLOOKUP($E46,表A_RAW!$C:$I,5,0)),"",VLOOKUP($E46,表A_RAW!$C:$I,5,0)) -> 121656 | K46: =IF(ISERROR(VLOOKUP($E46,表A_RAW!$C:$I,7,0)),"",VLOOKUP($E46,表A_RAW!$C:$I,7,0)) -> -0.7913543105 | L46: =IF(ISERROR(VLOOKUP($E46,表C_RAW!$C:$I,4,0)),"",VLOOKUP($E46,表C_RAW!$C:$I,4,0)) -> 127625 | M46: =IF(ISERROR(VLOOKUP($E46,表C_RAW!$C:$I,5,0)),"",VLOOKUP($E46,表C_RAW!$C:$I,5,0)) -> 246458 | N46: =IF(ISERROR(VLOOKUP($E46,表C_RAW!$C:$I,6,0)),"",VLOOKUP($E46,表C_RAW!$C:$I,6,0)/100) -> -0.4822
C47: =ROUND(VLOOKUP(B44,表C_RAW!O:T,6,0),2) -> -4.75 | D47: 4 | E47: =VLOOKUP($C$44&D47,表C_RAW!B:D,2,0) -> 1446 宏和 | G47: =IF(ISERROR(VLOOKUP($E47,表B_RAW!$C:$I,4,0)),"",VLOOKUP($E47,表B_RAW!$C:$I,4,0)) -> 97846 | H47: =IF(ISERROR(VLOOKUP($E47,表B_RAW!$C:$I,5,0)),"",VLOOKUP($E47,表B_RAW!$C:$I,5,0)) -> 76133 | I47: =IF(ISERROR(VLOOKUP($E47,表B_RAW!$C:$I,6,0)),"",VLOOKUP($E47,表B_RAW!$C:$I,6,0)/100) -> 0.2852 | J47: =IF(ISERROR(VLOOKUP($E47,表A_RAW!$C:$I,5,0)),"",VLOOKUP($E47,表A_RAW!$C:$I,5,0)) -> 139973 | K47: =IF(ISERROR(VLOOKUP($E47,表A_RAW!$C:$I,7,0)),"",VLOOKUP($E47,表A_RAW!$C:$I,7,0)) -> -0.3009651861 | L47: =IF(ISERROR(VLOOKUP($E47,表C_RAW!$C:$I,4,0)),"",VLOOKUP($E47,表C_RAW!$C:$I,4,0)) -> 180694 | M47: =IF(ISERROR(VLOOKUP($E47,表C_RAW!$C:$I,5,0)),"",VLOOKUP($E47,表C_RAW!$C:$I,5,0)) -> 293912 | N47: =IF(ISERROR(VLOOKUP($E47,表C_RAW!$C:$I,6,0)),"",VLOOKUP($E47,表C_RAW!$C:$I,6,0)/100) -> -0.3852
D48: 5 | E48: =IFERROR(VLOOKUP($C$44&D48,表C_RAW!B:D,2,0),"") -> 4406 新昕纖 | G48: =IF(ISERROR(VLOOKUP($E48,表B_RAW!$C:$I,4,0)),"",VLOOKUP($E48,表B_RAW!$C:$I,4,0)) -> 20250 | H48: =IF(ISERROR(VLOOKUP($E48,表B_RAW!$C:$I,5,0)),"",VLOOKUP($E48,表B_RAW!$C:$I,5,0)) -> 17610 | I48: =IF(ISERROR(VLOOKUP($E48,表B_RAW!$C:$I,6,0)),"",VLOOKUP($E48,表B_RAW!$C:$I,6,0)/100) -> 0.1499 | J48: =IF(ISERROR(VLOOKUP($E48,表A_RAW!$C:$I,5,0)),"",VLOOKUP($E48,表A_RAW!$C:$I,5,0)) -> 42998 | K48: =IF(ISERROR(VLOOKUP($E48,表A_RAW!$C:$I,7,0)),"",VLOOKUP($E48,表A_RAW!$C:$I,7,0)) -> -0.5290478627 | L48: =IF(ISERROR(VLOOKUP($E48,表C_RAW!$C:$I,4,0)),"",VLOOKUP($E48,表C_RAW!$C:$I,4,0)) -> 76818 | M48: =IF(ISERROR(VLOOKUP($E48,表C_RAW!$C:$I,5,0)),"",VLOOKUP($E48,表C_RAW!$C:$I,5,0)) -> 123720 | N48: =IF(ISERROR(VLOOKUP($E48,表C_RAW!$C:$I,6,0)),"",VLOOKUP($E48,表C_RAW!$C:$I,6,0)/100) -> -0.3791
B49: 4 | C49: =VLOOKUP(B49,表C_RAW!O:P,2,0) -> 航運業 | D49: 1 | E49: =VLOOKUP($C$49&D49,表C_RAW!B:D,2,0) -> 2643 捷迅 | G49: =IF(ISERROR(VLOOKUP($E49,表B_RAW!$C:$I,4,0)),"",VLOOKUP($E49,表B_RAW!$C:$I,4,0)) -> 442443 | H49: =IF(ISERROR(VLOOKUP($E49,表B_RAW!$C:$I,5,0)),"",VLOOKUP($E49,表B_RAW!$C:$I,5,0)) -> 339142 | I49: =IF(ISERROR(VLOOKUP($E49,表B_RAW!$C:$I,6,0)),"",VLOOKUP($E49,表B_RAW!$C:$I,6,0)/100) -> 0.3046 | J49: =IF(ISERROR(VLOOKUP($E49,表A_RAW!$C:$I,5,0)),"",VLOOKUP($E49,表A_RAW!$C:$I,5,0)) -> 752538 | K49: =IF(ISERROR(VLOOKUP($E49,表A_RAW!$C:$I,7,0)),"",VLOOKUP($E49,表A_RAW!$C:$I,7,0)) -> -0.4120655701 | L49: =IF(ISERROR(VLOOKUP($E49,表C_RAW!$C:$I,4,0)),"",VLOOKUP($E49,表C_RAW!$C:$I,4,0)) -> 1456158 | M49: =IF(ISERROR(VLOOKUP($E49,表C_RAW!$C:$I,5,0)),"",VLOOKUP($E49,表C_RAW!$C:$I,5,0)) -> 1935185 | N49: =IF(ISERROR(VLOOKUP($E49,表C_RAW!$C:$I,6,0)),"",VLOOKUP($E49,表C_RAW!$C:$I,6,0)/100) -> -0.2475
D50: 2 | E50: =VLOOKUP($C$49&D50,表C_RAW!B:D,2,0) -> 2603 長榮 | G50: =IF(ISERROR(VLOOKUP($E50,表B_RAW!$C:$I,4,0)),"",VLOOKUP($E50,表B_RAW!$C:$I,4,0)) -> 27522156 | H50: =IF(ISERROR(VLOOKUP($E50,表B_RAW!$C:$I,5,0)),"",VLOOKUP($E50,表B_RAW!$C:$I,5,0)) -> 27138742 | I50: =IF(ISERROR(VLOOKUP($E50,表B_RAW!$C:$I,6,0)),"",VLOOKUP($E50,表B_RAW!$C:$I,6,0)/100) -> 0.0141 | J50: =IF(ISERROR(VLOOKUP($E50,表A_RAW!$C:$I,5,0)),"",VLOOKUP($E50,表A_RAW!$C:$I,5,0)) -> 33489238 | K50: =IF(ISERROR(VLOOKUP($E50,表A_RAW!$C:$I,7,0)),"",VLOOKUP($E50,表A_RAW!$C:$I,7,0)) -> -0.1781790914 | L50: =IF(ISERROR(VLOOKUP($E50,表C_RAW!$C:$I,4,0)),"",VLOOKUP($E50,表C_RAW!$C:$I,4,0)) -> 86559525 | M50: =IF(ISERROR(VLOOKUP($E50,表C_RAW!$C:$I,5,0)),"",VLOOKUP($E50,表C_RAW!$C:$I,5,0)) -> 109970561 | N50: =IF(ISERROR(VLOOKUP($E50,表C_RAW!$C:$I,6,0)),"",VLOOKUP($E50,表C_RAW!$C:$I,6,0)/100) -> -0.2129
D51: 3 | E51: =VLOOKUP($C$49&D51,表C_RAW!B:D,2,0) -> 2642 宅配通 | G51: =IF(ISERROR(VLOOKUP($E51,表B_RAW!$C:$I,4,0)),"",VLOOKUP($E51,表B_RAW!$C:$I,4,0)) -> 262367 | H51: =IF(ISERROR(VLOOKUP($E51,表B_RAW!$C:$I,5,0)),"",VLOOKUP($E51,表B_RAW!$C:$I,5,0)) -> 247114 | I51: =IF(ISERROR(VLOOKUP($E51,表B_RAW!$C:$I,6,0)),"",VLOOKUP($E51,表B_RAW!$C:$I,6,0)/100) -> 0.0617 | J51: =IF(ISERROR(VLOOKUP($E51,表A_RAW!$C:$I,5,0)),"",VLOOKUP($E51,表A_RAW!$C:$I,5,0)) -> 326360 | K51: =IF(ISERROR(VLOOKUP($E51,表A_RAW!$C:$I,7,0)),"",VLOOKUP($E51,表A_RAW!$C:$I,7,0)) -> -0.1960810148 | L51: =IF(ISERROR(VLOOKUP($E51,表C_RAW!$C:$I,4,0)),"",VLOOKUP($E51,表C_RAW!$C:$I,4,0)) -> 816736 | M51: =IF(ISERROR(VLOOKUP($E51,表C_RAW!$C:$I,5,0)),"",VLOOKUP($E51,表C_RAW!$C:$I,5,0)) -> 975500 | N51: =IF(ISERROR(VLOOKUP($E51,表C_RAW!$C:$I,6,0)),"",VLOOKUP($E51,表C_RAW!$C:$I,6,0)/100) -> -0.1628
C52: =ROUND(VLOOKUP(B49,表C_RAW!O:T,6,0),2) -> -4.67 | D52: 4 | E52: =VLOOKUP($C$49&D52,表C_RAW!B:D,2,0) -> 2609 陽明 | G52: =IF(ISERROR(VLOOKUP($E52,表B_RAW!$C:$I,4,0)),"",VLOOKUP($E52,表B_RAW!$C:$I,4,0)) -> 12455154 | H52: =IF(ISERROR(VLOOKUP($E52,表B_RAW!$C:$I,5,0)),"",VLOOKUP($E52,表B_RAW!$C:$I,5,0)) -> 12443461 | I52: =IF(ISERROR(VLOOKUP($E52,表B_RAW!$C:$I,6,0)),"",VLOOKUP($E52,表B_RAW!$C:$I,6,0)/100) -> 0.0009 | J52: =IF(ISERROR(VLOOKUP($E52,表A_RAW!$C:$I,5,0)),"",VLOOKUP($E52,表A_RAW!$C:$I,5,0)) -> 13229338 | K52: =IF(ISERROR(VLOOKUP($E52,表A_RAW!$C:$I,7,0)),"",VLOOKUP($E52,表A_RAW!$C:$I,7,0)) -> -0.05852023737 | L52: =IF(ISERROR(VLOOKUP($E52,表C_RAW!$C:$I,4,0)),"",VLOOKUP($E52,表C_RAW!$C:$I,4,0)) -> 38660499 | M52: =IF(ISERROR(VLOOKUP($E52,表C_RAW!$C:$I,5,0)),"",VLOOKUP($E52,表C_RAW!$C:$I,5,0)) -> 45516702 | N52: =IF(ISERROR(VLOOKUP($E52,表C_RAW!$C:$I,6,0)),"",VLOOKUP($E52,表C_RAW!$C:$I,6,0)/100) -> -0.1506
D53: 5 | E53: =VLOOKUP($C$49&D53,表C_RAW!B:D,2,0) -> 7716 昱臺國際 | G53: =IF(ISERROR(VLOOKUP($E53,表B_RAW!$C:$I,4,0)),"",VLOOKUP($E53,表B_RAW!$C:$I,4,0)) -> 153014 | H53: =IF(ISERROR(VLOOKUP($E53,表B_RAW!$C:$I,5,0)),"",VLOOKUP($E53,表B_RAW!$C:$I,5,0)) -> 130862 | I53: =IF(ISERROR(VLOOKUP($E53,表B_RAW!$C:$I,6,0)),"",VLOOKUP($E53,表B_RAW!$C:$I,6,0)/100) -> 0.1693 | J53: =IF(ISERROR(VLOOKUP($E53,表A_RAW!$C:$I,5,0)),"",VLOOKUP($E53,表A_RAW!$C:$I,5,0)) -> 206931 | K53: =IF(ISERROR(VLOOKUP($E53,表A_RAW!$C:$I,7,0)),"",VLOOKUP($E53,表A_RAW!$C:$I,7,0)) -> -0.2605554509 | L53: =IF(ISERROR(VLOOKUP($E53,表C_RAW!$C:$I,4,0)),"",VLOOKUP($E53,表C_RAW!$C:$I,4,0)) -> 446323 | M53: =IF(ISERROR(VLOOKUP($E53,表C_RAW!$C:$I,5,0)),"",VLOOKUP($E53,表C_RAW!$C:$I,5,0)) -> 520140 | N53: =IF(ISERROR(VLOOKUP($E53,表C_RAW!$C:$I,6,0)),"",VLOOKUP($E53,表C_RAW!$C:$I,6,0)/100) -> -0.1419
B54: 5 | C54: =VLOOKUP(B54,表C_RAW!O:P,2,0) -> 電器電纜 | D54: 1 | E54: =VLOOKUP($C$54&D54,表C_RAW!B:D,2,0) -> 4930 燦星網 | G54: =IF(ISERROR(VLOOKUP($E54,表B_RAW!$C:$I,4,0)),"",VLOOKUP($E54,表B_RAW!$C:$I,4,0)) -> 383912 | H54: =IF(ISERROR(VLOOKUP($E54,表B_RAW!$C:$I,5,0)),"",VLOOKUP($E54,表B_RAW!$C:$I,5,0)) -> 352891 | I54: =IF(ISERROR(VLOOKUP($E54,表B_RAW!$C:$I,6,0)),"",VLOOKUP($E54,表B_RAW!$C:$I,6,0)/100) -> 0.0879 | J54: =IF(ISERROR(VLOOKUP($E54,表A_RAW!$C:$I,5,0)),"",VLOOKUP($E54,表A_RAW!$C:$I,5,0)) -> 584024 | K54: =IF(ISERROR(VLOOKUP($E54,表A_RAW!$C:$I,7,0)),"",VLOOKUP($E54,表A_RAW!$C:$I,7,0)) -> -0.342643453 | L54: =IF(ISERROR(VLOOKUP($E54,表C_RAW!$C:$I,4,0)),"",VLOOKUP($E54,表C_RAW!$C:$I,4,0)) -> 1399643 | M54: =IF(ISERROR(VLOOKUP($E54,表C_RAW!$C:$I,5,0)),"",VLOOKUP($E54,表C_RAW!$C:$I,5,0)) -> 1742365 | N54: =IF(ISERROR(VLOOKUP($E54,表C_RAW!$C:$I,6,0)),"",VLOOKUP($E54,表C_RAW!$C:$I,6,0)/100) -> -0.1967
D55: 2 | E55: =VLOOKUP($C$54&D55,表C_RAW!B:D,2,0) -> 1615 大山 | G55: =IF(ISERROR(VLOOKUP($E55,表B_RAW!$C:$I,4,0)),"",VLOOKUP($E55,表B_RAW!$C:$I,4,0)) -> 690228 | H55: =IF(ISERROR(VLOOKUP($E55,表B_RAW!$C:$I,5,0)),"",VLOOKUP($E55,表B_RAW!$C:$I,5,0)) -> 238215 | I55: =IF(ISERROR(VLOOKUP($E55,表B_RAW!$C:$I,6,0)),"",VLOOKUP($E55,表B_RAW!$C:$I,6,0)/100) -> 1.8975 | J55: =IF(ISERROR(VLOOKUP($E55,表A_RAW!$C:$I,5,0)),"",VLOOKUP($E55,表A_RAW!$C:$I,5,0)) -> 630869 | K55: =IF(ISERROR(VLOOKUP($E55,表A_RAW!$C:$I,7,0)),"",VLOOKUP($E55,表A_RAW!$C:$I,7,0)) -> 0.09409084929 | L55: =IF(ISERROR(VLOOKUP($E55,表C_RAW!$C:$I,4,0)),"",VLOOKUP($E55,表C_RAW!$C:$I,4,0)) -> 1317763 | M55: =IF(ISERROR(VLOOKUP($E55,表C_RAW!$C:$I,5,0)),"",VLOOKUP($E55,表C_RAW!$C:$I,5,0)) -> 1514664 | N55: =IF(ISERROR(VLOOKUP($E55,表C_RAW!$C:$I,6,0)),"",VLOOKUP($E55,表C_RAW!$C:$I,6,0)/100) -> -0.13
D56: 3 | E56: =VLOOKUP($C$54&D56,表C_RAW!B:D,2,0) -> 1611 中電 | G56: =IF(ISERROR(VLOOKUP($E56,表B_RAW!$C:$I,4,0)),"",VLOOKUP($E56,表B_RAW!$C:$I,4,0)) -> 91782 | H56: =IF(ISERROR(VLOOKUP($E56,表B_RAW!$C:$I,5,0)),"",VLOOKUP($E56,表B_RAW!$C:$I,5,0)) -> 65325 | I56: =IF(ISERROR(VLOOKUP($E56,表B_RAW!$C:$I,6,0)),"",VLOOKUP($E56,表B_RAW!$C:$I,6,0)/100) -> 0.405 | J56: =IF(ISERROR(VLOOKUP($E56,表A_RAW!$C:$I,5,0)),"",VLOOKUP($E56,表A_RAW!$C:$I,5,0)) -> 98503 | K56: =IF(ISERROR(VLOOKUP($E56,表A_RAW!$C:$I,7,0)),"",VLOOKUP($E56,表A_RAW!$C:$I,7,0)) -> -0.06823142442 | L56: =IF(ISERROR(VLOOKUP($E56,表C_RAW!$C:$I,4,0)),"",VLOOKUP($E56,表C_RAW!$C:$I,4,0)) -> 252419 | M56: =IF(ISERROR(VLOOKUP($E56,表C_RAW!$C:$I,5,0)),"",VLOOKUP($E56,表C_RAW!$C:$I,5,0)) -> 283314 | N56: =IF(ISERROR(VLOOKUP($E56,表C_RAW!$C:$I,6,0)),"",VLOOKUP($E56,表C_RAW!$C:$I,6,0)/100) -> -0.109
C57: =ROUND(VLOOKUP(B54,表C_RAW!O:T,6,0),2) -> -3.23 | D57: 4 | E57: =VLOOKUP($C$54&D57,表C_RAW!B:D,2,0) -> 1614 三洋電 | G57: =IF(ISERROR(VLOOKUP($E57,表B_RAW!$C:$I,4,0)),"",VLOOKUP($E57,表B_RAW!$C:$I,4,0)) -> 381336 | H57: =IF(ISERROR(VLOOKUP($E57,表B_RAW!$C:$I,5,0)),"",VLOOKUP($E57,表B_RAW!$C:$I,5,0)) -> 419514 | I57: =IF(ISERROR(VLOOKUP($E57,表B_RAW!$C:$I,6,0)),"",VLOOKUP($E57,表B_RAW!$C:$I,6,0)/100) -> -0.091 | J57: =IF(ISERROR(VLOOKUP($E57,表A_RAW!$C:$I,5,0)),"",VLOOKUP($E57,表A_RAW!$C:$I,5,0)) -> 444449 | K57: =IF(ISERROR(VLOOKUP($E57,表A_RAW!$C:$I,7,0)),"",VLOOKUP($E57,表A_RAW!$C:$I,7,0)) -> -0.1420027945 | L57: =IF(ISERROR(VLOOKUP($E57,表C_RAW!$C:$I,4,0)),"",VLOOKUP($E57,表C_RAW!$C:$I,4,0)) -> 1262257 | M57: =IF(ISERROR(VLOOKUP($E57,表C_RAW!$C:$I,5,0)),"",VLOOKUP($E57,表C_RAW!$C:$I,5,0)) -> 1391386 | N57: =IF(ISERROR(VLOOKUP($E57,表C_RAW!$C:$I,6,0)),"",VLOOKUP($E57,表C_RAW!$C:$I,6,0)/100) -> -0.0928
D58: 5 | E58: =VLOOKUP($C$54&D58,表C_RAW!B:D,2,0) -> 1626 艾美特-KY | G58: =IF(ISERROR(VLOOKUP($E58,表B_RAW!$C:$I,4,0)),"",VLOOKUP($E58,表B_RAW!$C:$I,4,0)) -> 888905 | H58: =IF(ISERROR(VLOOKUP($E58,表B_RAW!$C:$I,5,0)),"",VLOOKUP($E58,表B_RAW!$C:$I,5,0)) -> 348225 | I58: =IF(ISERROR(VLOOKUP($E58,表B_RAW!$C:$I,6,0)),"",VLOOKUP($E58,表B_RAW!$C:$I,6,0)/100) -> 1.5527 | J58: =IF(ISERROR(VLOOKUP($E58,表A_RAW!$C:$I,5,0)),"",VLOOKUP($E58,表A_RAW!$C:$I,5,0)) -> 1003963 | K58: =IF(ISERROR(VLOOKUP($E58,表A_RAW!$C:$I,7,0)),"",VLOOKUP($E58,表A_RAW!$C:$I,7,0)) -> -0.114603825 | L58: =IF(ISERROR(VLOOKUP($E58,表C_RAW!$C:$I,4,0)),"",VLOOKUP($E58,表C_RAW!$C:$I,4,0)) -> 1835215 | M58: =IF(ISERROR(VLOOKUP($E58,表C_RAW!$C:$I,5,0)),"",VLOOKUP($E58,表C_RAW!$C:$I,5,0)) -> 2008429 | N58: =IF(ISERROR(VLOOKUP($E58,表C_RAW!$C:$I,6,0)),"",VLOOKUP($E58,表C_RAW!$C:$I,6,0)/100) -> -0.0862

Sheet 表A_RAW
D1: TSE新產業_名稱 | E1: TSE新產業_代碼 | F1: 單月營收(千元) | G1: 去年單月營收(千元) | H1: 本月較去年同期變動金額 | I1: 較去年同期變動比率(%) | J1: 產業位址 | K1: 產業家數 | L1: 排名(正向) | M1: 排名(反向) | N1: 排名(正向) | O1: 排名(反向) | P1: 產業營收 | Q1: 單月營收(千元) | R1: 去年單月營收(千元) | S1: 本月較去年同期變動金額 | T1: 較去年同期變動比率(%) | U1: 排名(正向) | V1: 排名(反向)
A2: 排名(正向) | B2: 排名(反向) | C2: 公司 | E2: 2026-03-31 | F2: 2026-03-31 | G2: 2026-03-31 | N2: =U2 -> 34 | O2: =V2 -> 1 | P2: =_xlfn.UNIQUE($D$3:$D$2500,FALSE,FALSE) -> 水泥工業 | Q2: =SUMIF($D:$D,$P2,F:F) -> 19471152 | R2: =SUMIF($D:$D,$P2,G:G) -> 22266520 | S2: =Q2-R2 -> -2795368 | T2: =IF(VLOOKUP(P2,$D:$K,8,0)=1,"",S2/R2*100) -> -12.5541306 | U2: =IF($T2="",0,_xlfn.RANK.EQ(T2,T:T)) -> 34 | V2: =IF($T2="",0,_xlfn.RANK.EQ(T2,T:T,1)) -> 1
A3: =$D3&L3 -> 水泥工業2 | B3: =$D3&M3 -> 水泥工業6 | C3: 1101 台泥 | D3: 水泥工業 | E3: M1100 | F3: 12412837 | G3: 13635386 | H3: =F3-G3 -> -1222549 | I3: =IF(ISERROR((H3/G3)*100),"",(H3/(ABS(G3)))) -> -0.08966002136 | J3: =IF(E3="","",MATCH(E3,E:E,0)) -> 3 | K3: =COUNTIF(D:D,D3) -> 7 | L3: =IF(I3="","",RANK(I3,OFFSET(I$1,$J3-1,,$K3,),0)) -> 2 | M3: =IF(I3="","",RANK(I3,OFFSET(I$1,$J3-1,,$K3,),1)) -> 6 | N3: =U3 -> 25 | O3: =V3 -> 10 | P3: 食品工業 | Q3: =SUMIF($D:$D,$P3,F:F) -> 86958136 | R3: 84294393 | S3: =Q3-R3 -> 2663743 | T3: =IF(VLOOKUP(P3,$D:$K,8,0)=1,"",S3/R3*100) -> 3.160047668 | U3: =IF($T3="",0,_xlfn.RANK.EQ(T3,T:T)) -> 25 | V3: =IF($T3="",0,_xlfn.RANK.EQ(T3,T:T,1)) -> 10
A4: 水泥工業5 | B4: 水泥工業3 | C4: 1102 亞泥 | D4: 水泥工業 | E4: M1100 | F4: 5349407 | G4: 6532662 | H4: =F4-G4 -> -1183255 | I4: =IF(ISERROR((H4/G4)*100),"",(H4/(ABS(G4)))) -> -0.1811290711 | J4: =IF(E4="","",MATCH(E4,E:E,0)) -> 3 | K4: =COUNTIF(D:D,D4) -> 7 | L4: =IF(I4="","",RANK(I4,OFFSET(I$1,$J4-1,,$K4,),0)) -> 5 | M4: =IF(I4="","",RANK(I4,OFFSET(I$1,$J4-1,,$K4,),1)) -> 3 | N4: 15 | O4: 20 | P4: 塑膠工業 | Q4: 101219337 | R4: 90006205 | S4: 11213132 | T4: 12.45817663 | U4: 15 | V4: 20
A5: 水泥工業1 | B5: 水泥工業7 | C5: 1103 嘉泥 | D5: 水泥工業 | E5: M1100 | F5: 242715 | G5: 266282 | H5: -23567 | I5: =IF(ISERROR((H5/G5)*100),"",(H5/(ABS(G5)))) -> -0.0885039169 | J5: 3 | K5: 7 | L5: =IF(I5="","",RANK(I5,OFFSET(I$1,$J5-1,,$K5,),0)) -> 1 | M5: 7 | N5: 30 | O5: 5 | P5: 紡織纖維 | Q5: 52577591 | R5: 52679536 | S5: -101945 | T5: -0.1935191684 | U5: 30 | V5: 5
A6: 水泥工業4 | B6: 水泥工業4 | C6: 1104 環泥 | D6: 水泥工業 | E6: M1100 | F6: 580759 | G6: 702215 | H6: -121456 | I6: -0.1729612725 | J6: 3 | K6: 7 | L6: 4 | M6: 4 | N6: 17 | O6: 18 | P6: 電機機械 | Q6: 52724779 | R6: 47275872 | S6: 5448907 | T6: 11.52576731 | U6: 17 | V6: 18
A7: 水泥工業3 | B7: 水泥工業5 | C7: 1108 幸福 | D7: 水泥工業 | E7: M1100 | F7: 346885 | G7: 408312 | H7: -61427 | I7: -0.1504413292 | J7: 3 | K7: 7 | L7: 3 | M7: 5 | N7: 26 | O7: 9 | P7: 電器電纜 | Q7: 27053805 | R7: 26333621 | S7: 720184 | T7: 2.734846074 | U7: 26 | V7: 9
A8: 水泥工業7 | B8: 水泥工業1 | C8: 1109 信大 | D8: 水泥工業 | E8: M1100 | F8: 314014 | G8: 446709 | H8: -132695 | I8: -0.2970502049 | J8: 3 | K8: 7 | L8: 7 | M8: 1 | N8: 18 | O8: 17 | P8: 化學工業 | Q8: 30631680 | R8: 28111807 | S8: 2519873 | T8: 8.963753202 | U8: 18 | V8: 17
A9: 水泥工業6 | B9: 水泥工業2 | C9: 1110 東泥 | D9: 水泥工業 | E9: M1100 | F9: 224535 | G9: 274954 | H9: -50419 | I9: -0.1833724914 | J9: 3 | K9: 7 | L9: 6 | M9: 2 | N9: 11 | O9: 24 | P9: 生技醫療業 | Q9: 32803815 | R9: 28255490 | S9: 4548325 | T9: 16.09713723 | U9: 11 | V9: 24
A10: 食品工業28 | B10: 食品工業6 | C10: 1201 味全 | D10: 食品工業 | E10: M1200 | F10: 1684666 | G10: 1773075 | H10: -88409 | I10: -0.04986196297 | J10: 10 | K10: 33 | L10: 28 | M10: 6 | N10: 19 | O10: 16 | P10: 玻璃陶瓷 | Q10: 5176008 | R10: 4755831 | S10: 420177 | T10: 8.834985936 | U10: 19 | V10: 16
A11: 食品工業30 | B11: 食品工業4 | C11: 1203 味王 | D11: 食品工業 | E11: M1200 | F11: 464822 | G11: 521527 | H11: -56705 | I11: -0.1087287906 | J11: 10 | K11: 33 | L11: 30 | M11: 4 | N11: 22 | O11: 13 | P11: 造紙工業 | Q11: 18485749 | R11: 17494302 | S11: 991447 | T11: 5.667256687 | U11: 22 | V11: 13
A12: 食品工業12 | B12: 食品工業22 | C12: 1210 大成 | D12: 食品工業 | E12: M1200 | F12: 9209941 | G12: 8770327 | H12: 439614 | I12: 0.05012515497 | J12: 10 | K12: 33 | L12: 12 | M12: 22 | N12: 29 | O12: 6 | P12: 鋼鐵工業 | Q12: 86565949 | R12: 85964876 | S12: 601073 | T12: 0.6992076624 | U12: 29 | V12: 6
A13: 食品工業9 | B13: 食品工業25 | C13: 1213 大飲 | D13: 食品工業 | E13: M1200 | F13: 23319 | G13: 19695 | H13: 3624 | I13: 0.1840060929 | J13: 10 | K13: 33 | L13: 9 | M13: 25 | N13: 7 | O13: 28 | P13: 橡膠工業 | Q13: 23544114 | R13: 19037112 | S13: 4507002 | T13: 23.67482 | U13: 7 | V13: 28
A14: 食品工業10 | B14: 食品工業24 | C14: 1215 卜蜂 | D14: 食品工業 | E14: M1200 | F14: 2511460 | G14: 2335353 | H14: 176107 | I14: 0.07540915656 | J14: 10 | K14: 33 | L14: 10 | M14: 24 | N14: 31 | O14: 4 | P14: 汽車工業 | Q14: 59630548 | R14: 60680016 | S14: -1049468 | T14: -1.729511739 | U14: 31 | V14: 4
A15: 食品工業18 | B15: 食品工業16 | C15: 1216 統一 | D15: 食品工業 | E15: M1200 | F15: 57379159 | G15: 55935541 | H15: 1443618 | I15: 0.02580859994 | J15: 10 | K15: 33 | L15: 18 | M15: 16 | N15: 5 | O15: 30 | P15: 半導體業 | Q15: 797241198 | R15: 579153182 | S15: 218088016 | T15: =IF(VLOOKUP(P15,$D:$K,8,0)=1,"",S15/R15*100) -> 37.65636153 | U15: 5 | V15: 30
A16: 食品工業27 | B16: 食品工業7 | C16: 1217 愛之味 | D16: 食品工業 | E16: M1200 | F16: 384534 | G16: 402634 | H16: -18100 | I16: -0.04495397805 | J16: 10 | K16: 33 | L16: 27 | M16: 7 | N16: 2 | O16: 33 | P16: 電腦及週邊設備業 | Q16: 1393439015 | R16: 916721775 | S16: 476717240 | T16: =IF(VLOOKUP(P16,$D:$K,8,0)=1,"",S16/R16*100) -> 52.0023908 | U16: 2 | V16: 33
A17: 食品工業11 | B17: 食品工業23 | C17: 1218 泰山 | D17: 食品工業 | E17: M1200 | F17: 872329 | G17: 825493 | H17: 46836 | I17: 0.05673700443 | J17: 10 | K17: 33 | L17: 11 | M17: 23 | N17: 20 | O17: 15 | P17: 光電業 | Q17: 117615988 | R17: 108719137 | S17: 8896851 | T17: 8.183334825 | U17: 20 | V17: 15
A18: 食品工業21 | B18: 食品工業13 | C18: 1219 福壽 | D18: 食品工業 | E18: M1200 | F18: 1303877 | G18: 1294322 | H18: 9555 | I18: 0.007382243368 | J18: 10 | K18: 33 | L18: 21 | M18: 13 | N18: 10 | O18: 25 | P18: 通訊網路業 | Q18: 127975605 | R18: 108878072 | S18: 19097533 | T18: 17.54029315 | U18: 10 | V18: 25
A19: 食品工業26 | B19: 食品工業8 | C19: 1220 台榮 | D19: 食品工業 | E19: M1200 | F19: 260429 | G19: 269636 | H19: -9207 | I19: -0.03414603391 | J19: 10 | K19: 33 | L19: 26 | M19: 8 | N19: 8 | O19: 27 | P19: 電子零組件 | Q19: 270263971 | R19: 223646719 | S19: 46617252 | T19: 20.84414751 | U19: 8 | V19: 27
A20: 食品工業19 | B20: 食品工業15 | C20: 1225 福懋油 | D20: 食品工業 | E20: M1200 | F20: 1078686 | G20: 1061994 | H20: 16692 | I20: 0.01571760292 | J20: 10 | K20: 33 | L20: 19 | M20: 15 | N20: 1 | O20: 34 | P20: 電子通路業 | Q20: 527337700 | R20: 316877612 | S20: =Q20-R20 -> 210460088 | T20: 66.4168373 | U20: 1 | V20: 34
A21: 食品工業13 | B21: 食品工業21 | C21: 1227 佳格 | D21: 食品工業 | E21: M1200 | F21: 2101944 | G21: 2006555 | H21: 95389 | I21: 0.04753869194 | J21: 10 | K21: 33 | L21: 13 | M21: 21 | N21: 14 | O21: 21 | P21: 資訊服務業 | Q21: 18466398 | R21: 16239704 | S21: 2226694 | T21: 13.71141986 | U21: 14 | V21: 21
A22: 食品工業5 | B22: 食品工業29 | C22: 1229 聯華 | D22: 食品工業 | E22: M1200 | F22: 932321 | G22: 768711 | H22: 163610 | I22: 0.2128368138 | J22: 10 | K22: 33 | L22: 5 | M22: 29 | N22: 3 | O22: 32 | P22: 其他電子業 | Q22: 897305048 | R22: 634576118 | S22: 262728930 | T22: 41.40227193 | U22: 3 | V22: 32
A23: 食品工業25 | B23: 食品工業9 | C23: 1231 聯華食 | D23: 食品工業 | E23: M1200 | F23: 973737 | G23: 1001578 | H23: -27841 | I23: -0.02779713612 | J23: 10 | K23: 33 | L23: 25 | M23: 9 | N23: 4 | O23: 31 | P23: 建材營造 | Q23: 64024147 | R23: 45913882 | S23: 18110265 | T23: 39.44398559 | U23: 4 | V23: 31
A24: 食品工業15 | B24: 食品工業19 | C24: 1232 大統益 | D24: 食品工業 | E24: M1200 | F24: 2019725 | G24: 1935400 | H24: 84325 | I24: 0.04356980469 | J24: 10 | K24: 33 | L24: 15 | M24: 19 | N24: 28 | O24: 7 | P24: 航運業 | Q24: 124990118 | R24: 124075426 | S24: 914692 | T24: 0.7372064151 | U24: 28 | V24: 7
A25: 食品工業16 | B25: 食品工業18 | C25: 1233 天仁 | D25: 食品工業 | E25: M1200 | F25: 175658 | G25: 169134 | H25: 6524 | I25: 0.03857296581 | J25: 10 | K25: 33 | L25: 16 | M25: 18 | N25: 23 | O25: 12 | P25: 觀光餐旅 | Q25: 17155424 | R25: 16310823 | S25: 844601 | T25: 5.17816299 | U25: 23 | V25: 12
A26: 食品工業7 | B26: 食品工業27 | C26: 1234 黑松 | D26: 食品工業 | E26: M1200 | F26: 728461 | G26: 609760 | H26: 118701 | I26: 0.1946683941 | J26: 10 | K26: 33 | L26: 7 | M26: 27 | N26: 9 | O26: 26 | P26: 金融業 | Q26: 38671455 | R26: 32523354 | S26: 6148101 | T26: 18.90364997 | U26: 9 | V26: 26
A27: 食品工業3 | B27: 食品工業31 | C27: 1235 興泰 | D27: 食品工業 | E27: M1200 | F27: 27060 | G27: 18067 | H27: 8993 | I27: 0.4977583439 | J27: 10 | K27: 33 | L27: 3 | M27: 31 | N27: 27 | O27: 8 | P27: 貿易百貨 | Q27: 39018642 | R27: 38047319 | S27: 971323 | T27: 2.55293415 | U27: 27 | V27: 8
A28: 食品工業33 | B28: 食品工業1 | C28: 1236 宏亞 | D28: 食品工業 | E28: M1200 | F28: 103266 | G28: 133073 | H28: -29807 | I28: -0.2239898402 | J28: 10 | K28: 33 | L28: 33 | M28: 1 | N28: 6 | O28: 29 | P28: 文化創意業 | Q28: 6648837 | R28: 5326127 | S28: 1322710 | T28: 24.83436839 | U28: 6 | V28: 29
A29: 食品工業2 | B29: 食品工業32 | C29: 1256 鮮活果汁-KY | D29: 食品工業 | E29: M1200 | F29: 356169 | G29: 226637 | H29: 129532 | I29: 0.5715395103 | J29: 10 | K29: 33 | L29: 2 | M29: 32 | N29: 16 | O29: 19 | P29: 農業科技 | Q29: 555058 | R29: 496967 | S29: 58091 | T29: 11.68910612 | U29: 16 | V29: 19
A30: 食品工業20 | B30: 食品工業14 | C30: 1264 德麥 | D30: 食品工業 | E30: M1200 | F30: 562663 | G30: 554832 | H30: 7831 | I30: 0.01411418231 | J30: 10 | K30: 33 | L30: 20 | M30: 14 | N30: =U30 -> 12 | O30: =V30 -> 23 | P30: 綠能環保 | Q30: =SUMIF($D:$D,$P30,F:F) -> 13971148 | R30: =SUMIF($D:$D,$P30,G:G) -> 12186636 | S30: =Q30-R30 -> 1784512 | T30: 14.64318783 | U30: 12 | V30: 23
A31: 食品工業17 | B31: 食品工業17 | C31: 1294 漢田生技 | D31: 食品工業 | E31: M1200 | F31: 76113 | G31: 73692 | H31: 2421 | I31: 0.03285295554 | J31: 10 | K31: 33 | L31: 17 | M31: 17 | N31: 21 | O31: 14 | P31: 數位雲端 | Q31: 20246733 | R31: 19153669 | S31: 1093064 | T31: 5.706812622 | U31: 21 | V31: 14
A32: 食品工業32 | B32: 食品工業2 | C32: 1295 生合 | D32: 食品工業 | E32: M1200 | F32: 79388 | G32: 95889 | H32: -16501 | I32: -0.1720843892 | J32: 10 | K32: 33 | L32: 32 | M32: 2 | N32: 33 | O32: 2 | P32: 運動休閒 | Q32: 56539169 | R32: 62003004 | S32: -5463835 | T32: -8.812210131 | U32: 33 | V32: 2
A33: 食品工業22 | B33: 食品工業12 | C33: 1702 南僑 | D33: 食品工業 | E33: M1200 | F33: 2065666 | G33: 2055925 | H33: 9741 | I33: 0.004738013303 | J33: 10 | K33: 33 | L33: 22 | M33: 12 | N33: 24 | O33: 11 | P33: 居家生活 | Q33: 23921362 | R33: 22748302 | S33: 1173060 | T33: 5.156692574 | U33: 24 | V33: 11
A34: 食品工業8 | B34: 食品工業26 | C34: 1737 臺鹽 | D34: 食品工業 | E34: M1200 | F34: 297553 | G34: 249440 | H34: 48113 | I34: 0.1928840603 | J34: 10 | K34: 33 | L34: 8 | M34: 26 | N34: 13 | O34: 22 | P34: 油電燃氣業 | Q34: 75390002 | R34: 65869095 | S34: 9520907 | T34: 14.45428543 | U34: 13 | V34: 22
A35: 食品工業31 | B35: 食品工業3 | C35: 1796 金穎生技 | D35: 食品工業 | E35: M1200 | F35: 52751 | G35: 60579 | H35: -7828 | I35: -0.1292196966 | J35: 10 | K35: 33 | L35: 31 | M35: 3 | N35: 32 | O35: 3 | P35: 其他 | Q35: 55222339 | R35: 56725548 | S35: -1503209 | T35: -2.649968229 | U35: 32 | V35: 3
A36: 食品工業1 | B36: 食品工業33 | C36: 3054 立萬利 | D36: 食品工業 | E36: M1200 | F36: 64646 | G36: 5427 | H36: 59219 | I36: 10.91192187 | J36: 10 | K36: 33 | L36: 1 | M36: 33 | N36: 0 | O36: 0 | P36: 存託憑證 | W36: *存託憑證不納入統計
A37: 食品工業14 | B37: 食品工業20 | C37: 4205 中華食 | D37: 食品工業 | E37: M1200 | F37: 168752 | G37: 161331 | H37: 7421 | I37: 0.04599859915 | J37: 10 | K37: 33 | L37: 14 | M37: 20 | N37: 0 | O37: 0 | P37: 0
A38: 食品工業23 | B38: 食品工業11 | C38: 4207 環泰 | D38: 食品工業 | E38: M1200 | F38: 479396 | G38: 491655 | H38: -12259 | I38: -0.02493415098 | J38: 10 | K38: 33 | L38: 23 | M38: 11 | N38: 0 | O38: 0
A39: 食品工業6 | B39: 食品工業28 | C39: 6846 綠茵 | D39: 食品工業 | E39: M1200 | F39: 99378 | G39: 82485 | H39: 16893 | I39: 0.2048008729 | J39: 10 | K39: 33 | L39: 6 | M39: 28 | N39: 0 | O39: 0
A40: 食品工業24 | B40: 食品工業10 | C40: 7743 金利食安 | D40: 食品工業 | E40: M1200 | F40: 60164 | G40: 61801 | H40: -1637 | I40: -0.02648824453 | J40: 10 | K40: 33 | L40: 24 | M40: 10 | N40: 0 | O40: 0
A41: 食品工業4 | B41: 食品工業30 | C41: 7780 大研生醫* | D41: 食品工業 | E41: M1200 | F41: 189757 | G41: 134664 | H41: 55093 | I41: 0.4091145369 | J41: 10 | K41: 33 | L41: 4 | M41: 30 | N41: 0 | O41: 0
A42: 食品工業29 | B42: 食品工業5 | C42: 7791 皇家可口 | D42: 食品工業 | E42: M1200 | F42: 170346 | G42: 188161 | H42: -17815 | I42: -0.09467955634 | J42: 10 | K42: 33 | L42: 29 | M42: 5 | N42: 0 | O42: 0
A43: 塑膠工業15 | B43: 塑膠工業11 | C43: 1301 台塑 | D43: 塑膠工業 | E43: M1300 | F43: 17354391 | G43: 17092363 | H43: 262028 | I43: 0.01533012141 | J43: 43 | K43: 25 | L43: 15 | M43: 11 | N43: 0 | O43: 0
A44: 塑膠工業7 | B44: 塑膠工業19 | C44: 1303 南亞 | D44: 塑膠工業 | E44: M1300 | F44: 27167406 | G44: 23012738 | H44: 4154668 | I44: 0.1805377526 | J44: 43 | K44: 25 | L44: 7 | M44: 19 | N44: 0 | O44: 0
A45: 塑膠工業17 | B45: 塑膠工業9 | C45: 1304 台聚 | D45: 塑膠工業 | E45: M1300 | F45: 4320562 | G45: 4296504 | H45: 24058 | I45: 0.005599436193 | J45: 43 | K45: 25 | L45: 17 | M45: 9 | N45: 0 | O45: 0
A46: 塑膠工業3 | B46: 塑膠工業23 | C46: 1305 華夏 | D46: 塑膠工業 | E46: M1300 | F46: 1082256 | G46: 836342 | H46: 245914 | I46: 0.2940352153 | J46: 43 | K46: 25 | L46: 3 | M46: 23 | N46: 0 | O46: 0
A47: 塑膠工業18 | B47: 塑膠工業8 | C47: 1307 三芳 | D47: 塑膠工業 | E47: M1300 | F47: 1011105 | G47: 1022024 | H47: -10919 | I47: -0.01068370214 | J47: 43 | K47: 25 | L47: 18 | M47: 8 | N47: 0 | O47: 0
A48: 塑膠工業21 | B48: 塑膠工業5 | C48: 1308 亞聚 | D48: 塑膠工業 | E48: M1300 | F48: 476656 | G48: 564425 | H48: -87769 | I48: -0.1555016167 | J48: 43 | K48: 25 | L48: 21 | M48: 5 | N48: 0 | O48: 0
A49: 塑膠工業20 | B49: 塑膠工業6 | C49: 1309 台達化 | D49: 塑膠工業 | E49: M1300 | F49: 1376599 | G49: 1502160 | H49: -125561 | I49: -0.0835869681 | J49: 43 | K49: 25 | L49: 20 | M49: 6 | N49: 0 | O49: 0
A50: 塑膠工業5 | B50: 塑膠工業21 | C50: 1310 台苯 | D50: 塑膠工業 | E50: M1300 | F50: 854539 | G50: 695651 | H50: 158888 | I50: 0.2284018854 | J50: 43 | K50: 25 | L50: 5 | M50: 21 | N50: 0 | O50: 0
A51: 塑膠工業8 | B51: 塑膠工業18 | C51: 1312 國喬 | D51: 塑膠工業 | E51: M1300 | F51: 3110910 | G51: 2647259 | H51: 463651 | I51: 0.1751437997 | J51: 43 | K51: 25 | L51: 8 | M51: 18 | N51: 0 | O51: 0
A52: 塑膠工業11 | B52: 塑膠工業15 | C52: 1313 聯成 | D52: 塑膠工業 | E52: M1300 | F52: 6489125 | G52: 5864531 | H52: 624594 | I52: 0.1065036573 | J52: 43 | K52: 25 | L52: 11 | M52: 15 | N52: 0 | O52: 0
A53: 塑膠工業23 | B53: 塑膠工業3 | C53: 1314 中石化 | D53: 塑膠工業 | E53: M1300 | F53: 1404411 | G53: 2105503 | H53: -701092 | I53: -0.3329807652 | J53: 43 | K53: 25 | L53: 23 | M53: 3 | N53: 0 | O53: 0
A54: 塑膠工業22 | B54: 塑膠工業4 | C54: 1315 達新 | D54: 塑膠工業 | E54: M1300 | F54: 127113 | G54: 154471 | H54: -27358 | I54: -0.1771076772 | J54: 43 | K54: 25 | L54: 22 | M54: 4 | N54: 0 | O54: 0
A55: 塑膠工業16 | B55: 塑膠工業10 | C55: 1321 大洋 | D55: 塑膠工業 | E55: M1300 | F55: 372645 | G55: 367145 | H55: 5500 | I55: 0.01498045731 | J55: 43 | K55: 25 | L55: 16 | M55: 10 | N55: 0 | O55: 0
A56: 塑膠工業14 | B56: 塑膠工業12 | C56: 1323 永裕 | D56: 塑膠工業 | E56: M1300 | F56: 203039 | G56: 194938 | H56: 8101 | I56: 0.04155680268 | J56: 43 | K56: 25 | L56: 14 | M56: 12 | N56: 0 | O56: 0
A57: 塑膠工業13 | B57: 塑膠工業13 | C57: 1324 地球 | D57: 塑膠工業 | E57: M1300 | F57: 72918 | G57: 67682 | H57: 5236 | I57: 0.07736178009 | J57: 43 | K57: 25 | L57: 13 | M57: 13 | N57: 0 | O57: 0
A58: 塑膠工業24 | B58: 塑膠工業2 | C58: 1325 恒大 | D58: 塑膠工業 | E58: M1300 | F58: 18082 | G58: 29830 | H58: -11748 | I58: -0.393831713 | J58: 43 | K58: 25 | L58: 24 | M58: 2 | N58: 0 | O58: 0
A59: 塑膠工業6 | B59: 塑膠工業20 | C59: 1326 台化 | D59: 塑膠工業 | E59: M1300 | F59: 33728547 | G59: 27746732 | H59: 5981815 | I59: 0.2155862896 | J59: 43 | K59: 25 | L59: 6 | M59: 20 | N59: 0 | O59: 0
A60: 塑膠工業2 | B60: 塑膠工業24 | C60: 1337 再生-KY | D60: 塑膠工業 | E60: M1300 | F60: 61900 | G60: 45670 | H60: 16230 | I60: 0.35537552 | J60: 43 | K60: 25 | L60: 2 | M60: 24 | N60: 0 | O60: 0
A61: 塑膠工業25 | B61: 塑膠工業1 | C61: 1340 勝悅-KY | D61: 塑膠工業 | E61: M1300 | F61: 3601 | G61: 28561 | H61: -24960 | I61: -0.8739189804 | J61: 43 | K61: 25 | L61: 25 | M61: 1 | N61: 0 | O61: 0
A62: 塑膠工業10 | B62: 塑膠工業16 | C62: 1341 富林-KY | D62: 塑膠工業 | E62: M1300 | F62: 308343 | G62: 268649 | H62: 39694 | I62: 0.1477541327 | J62: 43 | K62: 25 | L62: 10 | M62: 16 | N62: 0 | O62: 0
A63: 塑膠工業4 | B63: 塑膠工業22 | C63: 4303 信立 | D63: 塑膠工業 | E63: M1300 | F63: 94379 | G63: 75568 | H63: 18811 | I63: 0.2489281177 | J63: 43 | K63: 25 | L63: 4 | M63: 22 | N63: 0 | O63: 0
A64: 塑膠工業1 | B64: 塑膠工業25 | C64: 4304 勝昱 | D64: 塑膠工業 | E64: M1300 | F64: 46805 | G64: 30265 | H64: 16540 | I64: 0.5465058649 | J64: 43 | K64: 25 | L64: 1 | M64: 25 | N64: 0 | O64: 0
A65: 塑膠工業19 | B65: 塑膠工業7 | C65: 4305 世坤 | D65: 塑膠工業 | E65: M1300 | F65: 90913 | G65: 92067 | H65: -1154 | I65: -0.01253434998 | J65: 43 | K65: 25 | L65: 19 | M65: 7 | N65: 0 | O65: 0
A66: 塑膠工業9 | B66: 塑膠工業17 | C66: 4306 炎洲 | D66: 塑膠工業 | E66: M1300 | F66: 1241633 | G66: 1080099 | H66: 161534 | I66: 0.1495548093 | J66: 43 | K66: 25 | L66: 9 | M66: 17 | N66: 0 | O66: 0
A67: =$D67&L67 -> 塑膠工業12 | B67: =$D67&M67 -> 塑膠工業14 | C67: 9950 萬國通 | D67: 塑膠工業 | E67: M1300 | F67: 201459 | G67: 185028 | H67: 16431 | I67: 0.0888027758 | J67: =IF(E67="","",MATCH(E67,E:E,0)) -> 43 | K67: =COUNTIF(D:D,D67) -> 25 | L67: 12 | M67: 14 | N67: 0 | O67: 0
A68: 紡織纖維24 | B68: 紡織纖維29 | C68: 1402 遠東新 | D68: 紡織纖維 | E68: M1400 | F68: 21386882 | G68: 22109493 | H68: =F68-G68 -> -722611 | I68: =IF(ISERROR((H68/G68)*100),"",(H68/(ABS(G68)))) -> -0.03268329129 | J68: 68 | K68: 52 | L68: =IF(I68="","",RANK(I68,OFFSET(I$1,$J68-1,,$K68,),0)) -> 24 | M68: =IF(I68="","",RANK(I68,OFFSET(I$1,$J68-1,,$K68,),1)) -> 29 | N68: 0 | O68: 0
A69: 紡織纖維21 | B69: 紡織纖維32 | C69: 1409 新纖 | D69: 紡織纖維 | E69: M1400 | F69: 3945363 | G69: 3763379 | H69: 181984 | I69: 0.04835654341 | J69: 68 | K69: 52 | L69: 21 | M69: 32 | N69: 0 | O69: 0
A70: 紡織纖維8 | B70: 紡織纖維45 | C70: 1410 南染 | D70: 紡織纖維 | E70: M1400 | F70: 23195 | G70: 19090 | H70: 4105 | I70: 0.2150340492 | J70: 68 | K70: 52 | L70: 8 | M70: 45 | N70: 0 | O70: 0
A71: 紡織纖維34 | B71: 紡織纖維19 | C71: 1413 宏洲 | D71: 紡織纖維 | E71: M1400 | F71: 187414 | G71: 225392 | H71: -37978 | I71: -0.1684975509 | J71: 68 | K71: 52 | L71: 34 | M71: 19 | N71: 0 | O71: 0
A72: 紡織纖維39 | B72: 紡織纖維14 | C72: 1414 東和 | D72: 紡織纖維 | E72: M1400 | F72: 39742 | G72: 52596 | H72: -12854 | I72: -0.2443912085 | J72: 68 | K72: 52 | L72: 39 | M72: 14 | N72: 0 | O72: 0
A73: 紡織纖維18 | B73: 紡織纖維35 | C73: 1417 嘉裕 | D73: 紡織纖維 | E73: M1400 | F73: 20338 | G73: 18799 | H73: 1539 | I73: 0.08186605671 | J73: 68 | K73: 52 | L73: 18 | M73: 35 | N73: 0 | O73: 0
A74: 紡織纖維52 | B74: 紡織纖維1 | C74: 1418 東華 | D74: 紡織纖維 | E74: M1400 | F74: 17 | G74: 849 | H74: -832 | I74: -0.9799764429 | J74: 68 | K74: 52 | L74: 52 | M74: 1 | N74: 0 | O74: 0
A75: 紡織纖維2 | B75: 紡織纖維51 | C75: 1419 新紡 | D75: 紡織纖維 | E75: M1400 | F75: 563421 | G75: 396037 | H75: 167384 | I75: 0.4226473789 | J75: 68 | K75: 52 | L75: 2 | M75: 51 | N75: 0 | O75: 0
A76: 紡織纖維40 | B76: 紡織纖維13 | C76: 1423 利華 | D76: 紡織纖維 | E76: M1400 | F76: 7995 | G76: 10615 | H76: -2620 | I76: -0.246820537 | J76: 68 | K76: 52 | L76: 40 | M76: 13 | N76: 0 | O76: 0
A77: 紡織纖維26 | B77: 紡織纖維27 | C77: 1434 福懋 | D77: 紡織纖維 | E77: M1400 | F77: 2682740 | G77: 2815178 | H77: -132438 | I77: -0.04704427216 | J77: 68 | K77: 52 | L77: 26 | M77: 27 | N77: 0 | O77: 0
A78: 紡織纖維25 | B78: 紡織纖維28 | C78: 1440 南紡 | D78: 紡織纖維 | E78: M1400 | F78: 1404035 | G78: 1459502 | H78: -55467 | I78: -0.03800405892 | J78: 68 | K78: 52 | L78: 25 | M78: 28 | N78: 0 | O78: 0
A79: 紡織纖維43 | B79: 紡織纖維10 | C79: 1441 大東 | D79: 紡織纖維 | E79: M1400 | F79: 114577 | G79: 159859 | H79: -45282 | I79: -0.2832621247 | J79: 68 | K79: 52 | L79: 43 | M79: 10 | N79: 0 | O79: 0
A80: 紡織纖維7 | B80: 紡織纖維46 | C80: 1444 力麗 | D80: 紡織纖維 | E80: M1400 | F80: 950193 | G80: 717018 | H80: 233175 | I80: 0.325201041 | J80: 68 | K80: 52 | L80: 7 | M80: 46 | N80: 0 | O80: 0
A81: 紡織纖維41 | B81: 紡織纖維12 | C81: 1445 大宇 | D81: 紡織纖維 | E81: M1400 | F81: 52314 | G81: 70057 | H81: -17743 | I81: -0.2532651983 | J81: 68 | K81: 52 | L81: 41 | M81: 12 | N81: 0 | O81: 0
A82: 紡織纖維45 | B82: 紡織纖維8 | C82: 1446 宏和 | D82: 紡織纖維 | E82: M1400 | F82: 97846 | G82: 139973 | H82: -42127 | I82: -0.3009651861 | J82: 68 | K82: 52 | L82: 45 | M82: 8 | N82: 0 | O82: 0
A83: 紡織纖維5 | B83: 紡織纖維48 | C83: 1447 力鵬 | D83: 紡織纖維 | E83: M1400 | F83: 3871493 | G83: 2854108 | H83: 1017385 | I83: 0.3564633854 | J83: 68 | K83: 52 | L83: 5 | M83: 48 | N83: 0 | O83: 0
A84: 紡織纖維6 | B84: 紡織纖維47 | C84: 1449 佳和 | D84: 紡織纖維 | E84: M1400 | F84: 280131 | G84: 209648 | H84: 70483 | I84: 0.3361968633 | J84: 68 | K84: 52 | L84: 6 | M84: 47 | N84: 0 | O84: 0
A85: 紡織纖維13 | B85: 紡織纖維40 | C85: 1451 年興 | D85: 紡織纖維 | E85: M1400 | F85: 518409 | G85: 454137 | H85: 64272 | I85: 0.1415255749 | J85: 68 | K85: 52 | L85: 13 | M85: 40 | N85: 0 | O85: 0
A86: 紡織纖維3 | B86: 紡織纖維50 | C86: 1452 宏益 | D86: 紡織纖維 | E86: M1400 | F86: 161166 | G86: 114758 | H86: 46408 | I86: 0.4043988219 | J86: 68 | K86: 52 | L86: 3 | M86: 50 | N86: 0 | O86: 0
A87: 紡織纖維42 | B87: 紡織纖維11 | C87: 1454 台富 | D87: 紡織纖維 | E87: M1400 | F87: 111197 | G87: 150716 | H87: -39519 | I87: -0.2622083919 | J87: 68 | K87: 52 | L87: 42 | M87: 11 | N87: 0 | O87: 0
A88: 紡織纖維35 | B88: 紡織纖維18 | C88: 1455 集盛 | D88: 紡織纖維 | E88: M1400 | F88: 529750 | G88: 670533 | H88: -140783 | I88: -0.2099568552 | J88: 68 | K88: 52 | L88: 35 | M88: 18 | N88: 0 | O88: 0
A89: 紡織纖維32 | B89: 紡織纖維21 | C89: 1457 宜進 | D89: 紡織纖維 | E89: M1400 | F89: 272585 | G89: 316845 | H89: -44260 | I89: -0.1396897537 | J89: 68 | K89: 52 | L89: 32 | M89: 21 | N89: 0 | O89: 0
A90: 紡織纖維44 | B90: 紡織纖維9 | C90: 1459 聯發 | D90: 紡織纖維 | E90: M1400 | F90: 99917 | G90: 142301 | H90: -42384 | I90: -0.2978475204 | J90: 68 | K90: 52 | L90: 44 | M90: 9 | N90: 0 | O90: 0
A91: 紡織纖維36 | B91: 紡織纖維17 | C91: 1460 宏遠 | D91: 紡織纖維 | E91: M1400 | F91: 585553 | G91: 758415 | H91: -172862 | I91: -0.2279253443 | J91: 68 | K91: 52 | L91: 36 | M91: 17 | N91: 0 | O91: 0
A92: 紡織纖維23 | B92: 紡織纖維30 | C92: 1463 強盛新 | D92: 紡織纖維 | E92: M1400 | F92: 25235 | G92: 25315 | H92: -80 | I92: -0.00316018171 | J92: 68 | K92: 52 | L92: 23 | M92: 30 | N92: 0 | O92: 0
A93: 紡織纖維29 | B93: 紡織纖維24 | C93: 1464 得力 | D93: 紡織纖維 | E93: M1400 | F93: 1131849 | G93: 1224006 | H93: -92157 | I93: -0.07529129759 | J93: 68 | K93: 52 | L93: 29 | M93: 24 | N93: 0 | O93: 0
A94: 紡織纖維4 | B94: 紡織纖維49 | C94: 1465 偉全 | D94: 紡織纖維 | E94: M1400 | F94: 34511 | G94: 25046 | H94: 9465 | I94: 0.3779046554 | J94: 68 | K94: 52 | L94: 4 | M94: 49 | N94: =U94 -> 0 | O94: =V94 -> 0
A95: 紡織纖維33 | B95: 紡織纖維20 | C95: 1466 聚隆 | D95: 紡織纖維 | E95: M1400 | F95: 193314 | G95: 230134 | H95: -36820 | I95: -0.1599937428 | J95: 68 | K95: 52 | L95: 33 | M95: 20 | N95: 0 | O95: 0
A96: 紡織纖維11 | B96: 紡織纖維42 | C96: 1467 南緯 | D96: 紡織纖維 | E96: M1400 | F96: 462982 | G96: 401238 | H96: 61744 | I96: 0.1538837299 | J96: 68 | K96: 52 | L96: 11 | M96: 42 | N96: 0 | O96: 0
A97: 紡織纖維51 | B97: 紡織纖維2 | C97: 1468 昶和 | D97: 紡織纖維 | E97: M1400 | F97: 25383 | G97: 121656 | H97: -96273 | I97: -0.7913543105 | J97: 68 | K97: 52 | L97: 51 | M97: 2 | N97: 0 | O97: 0
A98: 紡織纖維38 | B98: 紡織纖維15 | C98: 1470 大統新創 | D98: 紡織纖維 | E98: M1400 | F98: 69060 | G98: 90888 | H98: -21828 | I98: -0.240163718 | J98: 68 | K98: 52 | L98: 38 | M98: 15 | N98: 0 | O98: 0
A99: 紡織纖維37 | B99: 紡織纖維16 | C99: 1473 台南 | D99: 紡織纖維 | E99: M1400 | F99: 555361 | G99: 729893 | H99: -174532 | I99: -0.2391199806 | J99: 68 | K99: 52 | L99: 37 | M99: 16 | N99: 0 | O99: 0
A100: 紡織纖維14 | B100: 紡織纖維39 | C100: 1474 弘裕 | D100: 紡織纖維 | E100: M1400 | F100: 302809 | G100: 272895 | H100: 29914 | I100: 0.1096172521 | J100: 68 | K100: 52 | L100: 14 | M100: 39 | N100: 0 | O100: 0
A101: 紡織纖維9 | B101: 紡織纖維44 | C101: 1475 業旺 | D101: 紡織纖維 | E101: M1400 | F101: 130790 | G101: 109086 | H101: 21704 | I101: 0.1989622866 | J101: 68 | K101: 52 | L101: 9 | M101: 44 | N101: 0 | O101: 0
A102: 紡織纖維19 | B102: 紡織纖維34 | C102: 1476 儒鴻 | D102: 紡織纖維 | E102: M1400 | F102: 3599533 | G102: 3410647 | H102: 188886 | I102: 0.05538128103 | J102: 68 | K102: 52 | L102: 19 | M102: 34 | N102: 0 | O102: 0
A103: 紡織纖維30 | B103: 紡織纖維23 | C103: 1477 聚陽 | D103: 紡織纖維 | E103: M1400 | F103: 3130764 | G103: 3453770 | H103: -323006 | I103: -0.09352273023 | J103: 68 | K103: 52 | L103: 30 | M103: 23 | N103: 0 | O103: 0
A104: 紡織纖維27 | B104: 紡織纖維26 | C104: 4401 東隆興 | D104: 紡織纖維 | E104: M1400 | F104: 342230 | G104: 363879 | H104: -21649 | I104: -0.05949505193 | J104: 68 | K104: 52 | L104: 27 | M104: 26 | N104: 0 | O104: 0
A105: 紡織纖維49 | B105: 紡織纖維4 | C105: 4402 郡都開發 | D105: 紡織纖維 | E105: M1400 | F105: 1433 | G105: 3153 | H105: -1720 | I105: -0.5455122106 | J105: 68 | K105: 52 | L105: 49 | M105: 4 | N105: 0 | O105: 0
A106: 紡織纖維48 | B106: 紡織纖維5 | C106: 4406 新昕纖 | D106: 紡織纖維 | E106: M1400 | F106: 20250 | G106: 42998 | H106: -22748 | I106: -0.5290478627 | J106: 68 | K106: 52 | L106: 48 | M106: 5 | N106: 0 | O106: 0
A107: 紡織纖維50 | B107: 紡織纖維3 | C107: 4413 飛寶企業 | D107: 紡織纖維 | E107: M1400 | F107: 20414 | G107: 47022 | H107: -26608 | I107: -0.5658627876 | J107: 68 | K107: 52 | L107: 50 | M107: 3 | N107: 0 | O107: 0
A108: 紡織纖維17 | B108: 紡織纖維36 | C108: 4414 如興 | D108: 紡織纖維 | E108: M1400 | F108: 995456 | G108: 913361 | H108: 82095 | I108: 0.08988231378 | J108: 68 | K108: 52 | L108: 17 | M108: 36 | N108: 0 | O108: 0
A109: 紡織纖維46 | B109: 紡織纖維7 | C109: 4417 金洲 | D109: 紡織纖維 | E109: M1400 | F109: 214976 | G109: 312829 | H109: -97853 | I109: -0.3128002839 | J109: 68 | K109: 52 | L109: 46 | M109: 7 | N109: 0 | O109: 0
A110: 紡織纖維28 | B110: 紡織纖維25 | C110: 4420 光明 | D110: 紡織纖維 | E110: M1400 | F110: 97347 | G110: 104144 | H110: -6797 | I110: -0.06526540175 | J110: 68 | K110: 52 | L110: 28 | M110: 25 | N110: 0 | O110: 0
A111: 紡織纖維22 | B111: 紡織纖維31 | C111: 4426 利勤 | D111: 紡織纖維 | E111: M1400 | F111: 85224 | G111: 83247 | H111: 1977 | I111: 0.02374860355 | J111: 68 | K111: 52 | L111: 22 | M111: 31 | N111: 0 | O111: 0
A112: 紡織纖維10 | B112: 紡織纖維43 | C112: 4432 銘旺實 | D112: 紡織纖維 | E112: M1400 | F112: 70559 | G112: 59177 | H112: 11382 | I112: 0.1923382395 | J112: 68 | K112: 52 | L112: 10 | M112: 43 | N112: 0 | O112: 0
A113: 紡織纖維47 | B113: 紡織纖維6 | C113: 4433 興采 | D113: 紡織纖維 | E113: M1400 | F113: 212471 | G113: 316391 | H113: -103920 | I113: -0.3284543492 | J113: 68 | K113: 52 | L113: 47 | M113: 6 | N113: 0 | O113: 0
A114: 紡織纖維20 | B114: 紡織纖維33 | C114: 4438 廣越 | D114: 紡織纖維 | E114: M1400 | F114: 960944 | G114: 914980 | H114: 45964 | I114: 0.05023497781 | J114: 68 | K114: 52 | L114: 20 | M114: 33 | N114: 0 | O114: 0
A115: 紡織纖維16 | B115: 紡織纖維37 | C115: 4439 冠星-KY | D115: 紡織纖維 | E115: M1400 | F115: 872017 | G115: 791355 | H115: 80662 | I115: 0.1019289699 | J115: 68 | K115: 52 | L115: 16 | M115: 37 | N115: 0 | O115: 0
A116: 紡織纖維1 | B116: 紡織纖維52 | C116: 4440 宜新實業 | D116: 紡織纖維 | E116: M1400 | F116: 116431 | G116: 73356 | H116: 43075 | I116: 0.587204864 | J116: 68 | K116: 52 | L116: 1 | M116: 52 | N116: 0 | O116: 0
A117: 紡織纖維15 | B117: 紡織纖維38 | C117: 4441 振大環球 | D117: 紡織纖維 | E117: M1400 | F117: 602614 | G117: 544476 | H117: 58138 | I117: 0.1067778929 | J117: 68 | K117: 52 | L117: 15 | M117: 38 | N117: 0 | O117: 0
A118: 紡織纖維31 | B118: 紡織纖維22 | C118: 4442 竣邦-KY | D118: 紡織纖維 | E118: M1400 | F118: 164870 | G118: 182741 | H118: -17871 | I118: -0.09779414581 | J118: 68 | K118: 52 | L118: 31 | M118: 22 | N118: 0 | O118: 0
A119: 紡織纖維12 | B119: 紡織纖維41 | C119: 6506 雙邦 | D119: 紡織纖維 | E119: M1400 | F119: 232491 | G119: 202555 | H119: 29936 | I119: 0.1477919577 | J119: 68 | K119: 52 | L119: 12 | M119: 41 | N119: 0 | O119: 0
A120: 電機機械17 | B120: 電機機械82 | C120: 1503 士電 | D120: 電機機械 | E120: M1500 | F120: 4230241 | G120: 3125640 | H120: 1104601 | I120: 0.3533999437 | J120: 120 | K120: 98 | L120: 17 | M120: 82 | N120: 0 | O120: 0
A121: 電機機械49 | B121: 電機機械50 | C121: 1504 東元 | D121: 電機機械 | E121: M1500 | F121: 5126597 | G121: 4962534 | H121: 164063 | I121: 0.03306032765 | J121: 120 | K121: 98 | L121: 49 | M121: 50 | N121: 0 | O121: 0
A122: 電機機械54 | B122: 電機機械45 | C122: 1506 正道 | D122: 電機機械 | E122: M1500 | F122: 98012 | G122: 96330 | H122: 1682 | I122: 0.01746081179 | J122: 120 | K122: 98 | L122: 54 | M122: 45 | N122: 0 | O122: 0
A123: 電機機械45 | B123: 電機機械54 | C123: 1513 中興電 | D123: 電機機械 | E123: M1500 | F123: 2477893 | G123: 2363392 | H123: 114501 | I123: 0.04844773952 | J123: 120 | K123: 98 | L123: 45 | M123: 54 | N123: 0 | O123: 0
A124: 電機機械47 | B124: 電機機械52 | C124: 1514 亞力 | D124: 電機機械 | E124: M1500 | F124: 795495 | G124: 769323 | H124: 26172 | I124: 0.03401952106 | J124: 120 | K124: 98 | L124: 47 | M124: 52 | N124: 0 | O124: 0
A125: 電機機械87 | B125: 電機機械12 | C125: 1515 力山 | D125: 電機機械 | E125: M1500 | F125: 311608 | G125: 439032 | H125: -127424 | I125: -0.2902385248 | J125: 120 | K125: 98 | L125: 87 | M125: 12 | N125: 0 | O125: 0
A126: 電機機械83 | B126: 電機機械16 | C126: 1517 利奇 | D126: 電機機械 | E126: M1500 | F126: 159825 | G126: 208301 | H126: -48476 | I126: -0.2327209183 | J126: 120 | K126: 98 | L126: 83 | M126: 16 | N126: 0 | O126: 0
A127: 電機機械48 | B127: 電機機械51 | C127: 1519 華城 | D127: 電機機械 | E127: M1500 | F127: 2036539 | G127: 1969871 | H127: 66668 | I127: 0.03384384054 | J127: 120 | K127: 98 | L127: 48 | M127: 51 | N127: 0 | O127: 0
A128: 電機機械65 | B128: 電機機械34 | C128: 1526 日馳 | D128: 電機機械 | E128: M1500 | F128: 66644 | G128: 70882 | H128: -4238 | I128: -0.05978950933 | J128: 120 | K128: 98 | L128: 65 | M128: 34 | N128: 0 | O128: 0
A129: 電機機械63 | B129: 電機機械36 | C129: 1527 鑽全 | D129: 電機機械 | E129: M1500 | F129: 243765 | G129: 254845 | H129: -11080 | I129: -0.04347740784 | J129: 120 | K129: 98 | L129: 63 | M129: 36 | N129: 0 | O129: 0
A130: 電機機械20 | B130: 電機機械79 | C130: 1528 恩德 | D130: 電機機械 | E130: M1500 | F130: 277042 | G130: 211641 | H130: 65401 | I130: 0.3090185739 | J130: 120 | K130: 98 | L130: 20 | M130: 79 | N130: 0 | O130: 0
A131: =$D131&L131 -> 電機機械98 | B131: =$D131&M131 -> 電機機械1 | C131: 1529 樂事綠能 | D131: 電機機械 | E131: M1500 | F131: 33030 | G131: 106410 | H131: -73380 | I131: -0.6895968424 | J131: =IF(E131="","",MATCH(E131,E:E,0)) -> 120 | K131: =COUNTIF(D:D,D131) -> 98 | L131: 98 | M131: 1 | N131: 0 | O131: 0
A132: 電機機械58 | B132: 電機機械41 | C132: 1530 亞崴 | D132: 電機機械 | E132: M1500 | F132: 172667 | G132: 173725 | H132: =F132-G132 -> -1058 | I132: =IF(ISERROR((H132/G132)*100),"",(H132/(ABS(G132)))) -> -0.006090084904 | J132: 120 | K132: 98 | L132: =IF(I132="","",RANK(I132,OFFSET(I$1,$J132-1,,$K132,),0)) -> 58 | M132: =IF(I132="","",RANK(I132,OFFSET(I$1,$J132-1,,$K132,),1)) -> 41 | N132: 0 | O132: 0
A133: 電機機械80 | B133: 電機機械19 | C133: 1531 高林股 | D133: 電機機械 | E133: M1500 | F133: 127592 | G133: 160176 | H133: -32584 | I133: -0.2034262311 | J133: 120 | K133: 98 | L133: 80 | M133: 19 | N133: 0 | O133: 0
A134: 電機機械34 | B134: 電機機械65 | C134: 1532 勤美 | D134: 電機機械 | E134: M1500 | F134: 1237316 | G134: 1084321 | H134: 152995 | I134: 0.1410975163 | J134: 120 | K134: 98 | L134: 34 | M134: 65 | N134: 0 | O134: 0
A135: 電機機械68 | B135: 電機機械31 | C135: 1535 中宇 | D135: 電機機械 | E135: M1500 | F135: 799835 | G135: 855310 | H135: -55475 | I135: -0.06485952462 | J135: 120 | K135: 98 | L135: 68 | M135: 31 | N135: 0 | O135: 0
A136: 電機機械72 | B136: 電機機械27 | C136: 1537 廣隆 | D136: 電機機械 | E136: M1500 | F136: 548412 | G136: 598654 | H136: -50242 | I136: -0.08392493828 | J136: 120 | K136: 98 | L136: 72 | M136: 27 | N136: 0 | O136: 0
A137: 電機機械95 | B137: 電機機械4 | C137: 1538 正峰 | D137: 電機機械 | E137: M1500 | F137: 3994 | G137: 10092 | H137: -6098 | I137: -0.604240983 | J137: 120 | K137: 98 | L137: 95 | M137: 4 | N137: 0 | O137: 0
A138: 電機機械92 | B138: 電機機械7 | C138: 1539 巨庭 | D138: 電機機械 | E138: M1500 | F138: 65670 | G138: 116572 | H138: -50902 | I138: -0.4366571732 | J138: 120 | K138: 98 | L138: 92 | M138: 7 | N138: 0 | O138: 0
A139: 電機機械91 | B139: 電機機械8 | C139: 1540 喬福 | D139: 電機機械 | E139: M1500 | F139: 28359 | G139: 47758 | H139: -19399 | I139: -0.4061937267 | J139: 120 | K139: 98 | L139: 91 | M139: 8 | N139: 0 | O139: 0
A140: 電機機械94 | B140: 電機機械5 | C140: 1541 錩泰 | D140: 電機機械 | E140: M1500 | F140: 159545 | G140: 337239 | H140: -177694 | I140: -0.5269082164 | J140: 120 | K140: 98 | L140: 94 | M140: 5 | N140: 0 | O140: 0
A141: 電機機械44 | B141: 電機機械55 | C141: 1558 伸興 | D141: 電機機械 | E141: M1500 | F141: 699348 | G141: 659913 | H141: 39435 | I141: 0.05975787717 | J141: 120 | K141: 98 | L141: 44 | M141: 55 | N141: 0 | O141: 0
A142: 電機機械19 | B142: 電機機械80 | C142: 1560 中砂 | D142: 電機機械 | E142: M1500 | F142: 789165 | G142: 601745 | H142: 187420 | I142: 0.3114608347 | J142: 120 | K142: 98 | L142: 19 | M142: 80 | N142: 0 | O142: 0
A143: 電機機械13 | B143: 電機機械86 | C143: 1570 力肯 | D143: 電機機械 | E143: M1500 | F143: 52171 | G143: 37267 | H143: 14904 | I143: 0.3999248665 | J143: 120 | K143: 98 | L143: 13 | M143: 86 | N143: 0 | O143: 0
A144: 電機機械78 | B144: 電機機械21 | C144: 1580 新麥 | D144: 電機機械 | E144: M1500 | F144: 351484 | G144: 414021 | H144: -62537 | I144: -0.1510478937 | J144: 120 | K144: 98 | L144: 78 | M144: 21 | N144: 0 | O144: 0
A145: 電機機械11 | B145: 電機機械88 | C145: 1583 程泰 | D145: 電機機械 | E145: M1500 | F145: 414405 | G145: 287153 | H145: 127252 | I145: 0.4431505156 | J145: 120 | K145: 98 | L145: 11 | M145: 88 | N145: 0 | O145: 0
A146: 電機機械69 | B146: 電機機械30 | C146: 1586 和勤 | D146: 電機機械 | E146: M1500 | F146: 184217 | G146: 197556 | H146: -13339 | I146: -0.06752009557 | J146: 120 | K146: 98 | L146: 69 | M146: 30 | N146: 0 | O146: 0
A147: 電機機械59 | B147: 電機機械40 | C147: 1589 永冠-KY | D147: 電機機械 | E147: M1500 | F147: 667961 | G147: 677836 | H147: -9875 | I147: -0.01456842068 | J147: 120 | K147: 98 | L147: 59 | M147: 40 | N147: 0 | O147: 0
A148: 電機機械30 | B148: 電機機械69 | C148: 1590 亞德客-KY | D148: 電機機械 | E148: M1500 | F148: 4139710 | G148: 3505568 | H148: 634142 | I148: 0.1808956494 | J148: 120 | K148: 98 | L148: 30 | M148: 69 | N148: 0 | O148: 0
A149: 電機機械1 | B149: 電機機械98 | C149: 1591 駿吉-KY | D149: 電機機械 | E149: M1500 | F149: 50028 | G149: 2158 | H149: 47870 | I149: 22.18257646 | J149: 120 | K149: 98 | L149: 1 | M149: 98 | N149: 0 | O149: 0
A150: 電機機械15 | B150: 電機機械84 | C150: 1597 直得 | D150: 電機機械 | E150: M1500 | F150: 120499 | G150: 86976 | H150: 33523 | I150: 0.3854281641 | J150: 120 | K150: 98 | L150: 15 | M150: 84 | N150: 0 | O150: 0
A151: 電機機械24 | B151: 電機機械75 | C151: 1599 宏佳騰 | D151: 電機機械 | E151: M1500 | F151: 246130 | G151: 197084 | H151: 49046 | I151: 0.2488583548 | J151: 120 | K151: 98 | L151: 24 | M151: 75 | N151: 0 | O151: 0
A152: 電機機械31 | B152: 電機機械68 | C152: 2049 上銀 | D152: 電機機械 | E152: M1500 | F152: 2357195 | G152: 2007897 | H152: 349298 | I152: 0.1739621106 | J152: 120 | K152: 98 | L152: 31 | M152: 68 | N152: 0 | O152: 0
A153: 電機機械51 | B153: 電機機械48 | C153: 2066 世德 | D153: 電機機械 | E153: M1500 | F153: 254162 | G153: 248354 | H153: 5808 | I153: 0.02338597325 | J153: 120 | K153: 98 | L153: 51 | M153: 48 | N153: 0 | O153: 0
A154: 電機機械77 | B154: 電機機械22 | C154: 2067 嘉鋼 | D154: 電機機械 | E154: M1500 | F154: 87921 | G154: 102404 | H154: -14483 | I154: -0.1414300223 | J154: 120 | K154: 98 | L154: 77 | M154: 22 | N154: 0 | O154: 0
A155: 電機機械28 | B155: 電機機械71 | C155: 2070 精湛 | D155: 電機機械 | E155: M1500 | F155: 75686 | G155: 61612 | H155: 14074 | I155: 0.2284295267 | J155: 120 | K155: 98 | L155: 28 | M155: 71 | N155: 0 | O155: 0
A156: 電機機械3 | B156: 電機機械96 | C156: 2230 泰茂 | D156: 電機機械 | E156: M1500 | F156: 222286 | G156: 77600 | H156: 144686 | I156: 1.864510309 | J156: 120 | K156: 98 | L156: 3 | M156: 96 | N156: 0 | O156: 0
A157: 電機機械82 | B157: 電機機械17 | C157: 2235 謚源 | D157: 電機機械 | E157: M1500 | F157: 50651 | G157: 65835 | H157: -15184 | I157: -0.2306371991 | J157: 120 | K157: 98 | L157: 82 | M157: 17 | N157: 0 | O157: 0
A158: 電機機械40 | B158: 電機機械59 | C158: 2371 大同 | D158: 電機機械 | E158: M1500 | F158: 4261004 | G158: 3944554 | H158: 316450 | I158: 0.08022453236 | J158: 120 | K158: 98 | L158: 40 | M158: 59 | N158: =U158 -> 0 | O158: =V158 -> 0
A159: 電機機械29 | B159: 電機機械70 | C159: 3162 精確 | D159: 電機機械 | E159: M1500 | F159: 774396 | G159: 638159 | H159: 136237 | I159: 0.2134844138 | J159: 120 | K159: 98 | L159: 29 | M159: 70 | N159: 0 | O159: 0
A160: 電機機械4 | B160: 電機機械95 | C160: 3167 大量 | D160: 電機機械 | E160: M1500 | F160: 773478 | G160: 313349 | H160: 460129 | I160: 1.468423387 | J160: 120 | K160: 98 | L160: 4 | M160: 95 | N160: 0 | O160: 0
A161: 電機機械86 | B161: 電機機械13 | C161: 3226 龍鋒 | D161: 電機機械 | E161: M1500 | F161: 114630 | G161: 160549 | H161: -45919 | I161: -0.2860123701 | J161: 120 | K161: 98 | L161: 86 | M161: 13 | N161: 0 | O161: 0
A162: 電機機械97 | B162: 電機機械2 | C162: 3379 彬台 | D162: 電機機械 | E162: M1500 | F162: 32373 | G162: 95351 | H162: -62978 | I162: -0.6604859939 | J162: 120 | K162: 98 | L162: 97 | M162: 2 | N162: 0 | O162: 0
A163: 電機機械81 | B163: 電機機械18 | C163: 3426 台興 | D163: 電機機械 | E163: M1500 | F163: 56006 | G163: 70685 | H163: -14679 | I163: -0.207667822 | J163: 120 | K163: 98 | L163: 81 | M163: 18 | N163: 0 | O163: 0
A164: 電機機械6 | B164: 電機機械93 | C164: 3685 元創精密 | D164: 電機機械 | E164: M1500 | F164: 169195 | G164: 88860 | H164: 80335 | I164: 0.9040625703 | J164: 120 | K164: 98 | L164: 6 | M164: 93 | N164: 0 | O164: 0
A165: 電機機械14 | B165: 電機機械85 | C165: 4502 健信 | D165: 電機機械 | E165: M1500 | F165: 92948 | G165: 67004 | H165: 25944 | I165: 0.3872007641 | J165: 120 | K165: 98 | L165: 14 | M165: 85 | N165: 0 | O165: 0
A166: 電機機械5 | B166: 電機機械94 | C166: 4503 金雨 | D166: 電機機械 | E166: M1500 | F166: 88840 | G166: 43391 | H166: 45449 | I166: 1.04742919 | J166: 120 | K166: 98 | L166: 5 | M166: 94 | N166: 0 | O166: 0
A167: 電機機械38 | B167: 電機機械61 | C167: 4506 崇友 | D167: 電機機械 | E167: M1500 | F167: 691130 | G167: 632409 | H167: 58721 | I167: 0.09285288476 | J167: 120 | K167: 98 | L167: 38 | M167: 61 | N167: 0 | O167: 0
A168: 電機機械16 | B168: 電機機械83 | C168: 4510 高鋒 | D168: 電機機械 | E168: M1500 | F168: 145097 | G168: 106589 | H168: 38508 | I168: 0.3612755538 | J168: 120 | K168: 98 | L168: 16 | M168: 83 | N168: 0 | O168: 0
A169: 電機機械57 | B169: 電機機械42 | C169: 4513 福裕 | D169: 電機機械 | E169: M1500 | F169: 85855 | G169: 86120 | H169: -265 | I169: -0.003077101719 | J169: 120 | K169: 98 | L169: 57 | M169: 42 | N169: 0 | O169: 0
A170: 電機機械23 | B170: 電機機械76 | C170: 4523 永彰 | D170: 電機機械 | E170: M1500 | F170: 90390 | G170: 71328 | H170: 19062 | I170: 0.2672442799 | J170: 120 | K170: 98 | L170: 23 | M170: 76 | N170: 0 | O170: 0
A171: 電機機械90 | B171: 電機機械9 | C171: 4526 東台 | D171: 電機機械 | E171: M1500 | F171: 457427 | G171: 693718 | H171: -236291 | I171: -0.3406153509 | J171: 120 | K171: 98 | L171: 90 | M171: 9 | N171: 0 | O171: 0
A172: 電機機械62 | B172: 電機機械37 | C172: 4527 方方土霖 | D172: 電機機械 | E172: M1500 | F172: 259374 | G172: 268823 | H172: -9449 | I172: -0.03514952218 | J172: 120 | K172: 98 | L172: 62 | M172: 37 | N172: 0 | O172: 0
A173: 電機機械70 | B173: 電機機械29 | C173: 4528 江興鍛 | D173: 電機機械 | E173: M1500 | F173: 112396 | G173: 120588 | H173: -8192 | I173: -0.06793379109 | J173: 120 | K173: 98 | L173: 70 | M173: 29 | N173: 0 | O173: 0
A174: 電機機械61 | B174: 電機機械38 | C174: 4532 瑞智 | D174: 電機機械 | E174: M1500 | F174: 2287991 | G174: 2367041 | H174: -79050 | I174: -0.03339612622 | J174: 120 | K174: 98 | L174: 61 | M174: 38 | N174: 0 | O174: 0
A175: 電機機械21 | B175: 電機機械78 | C175: 4533 協易機 | D175: 電機機械 | E175: M1500 | F175: 281073 | G175: 217571 | H175: 63502 | I175: 0.291867942 | J175: 120 | K175: 98 | L175: 21 | M175: 78 | N175: 0 | O175: 0
A176: 電機機械22 | B176: 電機機械77 | C176: 4534 慶騰 | D176: 電機機械 | E176: M1500 | F176: 89778 | G176: 70641 | H176: 19137 | I176: 0.2709049985 | J176: 120 | K176: 98 | L176: 22 | M176: 77 | N176: 0 | O176: 0
A177: 電機機械56 | B177: 電機機械43 | C177: 4535 至興 | D177: 電機機械 | E177: M1500 | F177: 219400 | G177: 219690 | H177: -290 | I177: -0.001320041877 | J177: 120 | K177: 98 | L177: 56 | M177: 43 | N177: 0 | O177: 0
A178: 電機機械50 | B178: 電機機械49 | C178: 4538 大詠城 | D178: 電機機械 | E178: M1500 | F178: 30569 | G178: 29646 | H178: 923 | I178: 0.03113404844 | J178: 120 | K178: 98 | L178: 50 | M178: 49 | N178: 0 | O178: 0
A179: 電機機械7 | B179: 電機機械92 | C179: 4540 全球傳動 | D179: 電機機械 | E179: M1500 | F179: 346896 | G179: 198168 | H179: 148728 | I179: 0.7505147148 | J179: 120 | K179: 98 | L179: 7 | M179: 92 | N179: 0 | O179: 0
A180: 電機機械9 | B180: 電機機械90 | C180: 4543 萬在 | D180: 電機機械 | E180: M1500 | F180: 102889 | G180: 69020 | H180: 33869 | I180: 0.4907128369 | J180: 120 | K180: 98 | L180: 9 | M180: 90 | N180: 0 | O180: 0
A181: 電機機械39 | B181: 電機機械60 | C181: 4549 桓達 | D181: 電機機械 | E181: M1500 | F181: 112628 | G181: 103069 | H181: 9559 | I181: 0.09274369597 | J181: 120 | K181: 98 | L181: 39 | M181: 60 | N181: 0 | O181: 0
A182: 電機機械73 | B182: 電機機械26 | C182: 4550 長佳 | D182: 電機機械 | E182: M1500 | F182: 53866 | G182: 59385 | H182: -5519 | I182: -0.09293592658 | J182: 120 | K182: 98 | L182: 73 | M182: 26 | N182: 0 | O182: 0
A183: 電機機械66 | B183: 電機機械33 | C183: 4552 力達-KY | D183: 電機機械 | E183: M1500 | F183: 320145 | G183: 341046 | H183: -20901 | I183: -0.06128498795 | J183: 120 | K183: 98 | L183: 66 | M183: 33 | N183: 0 | O183: 0
A184: 電機機械64 | B184: 電機機械35 | C184: 4555 氣立 | D184: 電機機械 | E184: M1500 | F184: 134206 | G184: 142103 | H184: -7897 | I184: -0.05557236652 | J184: 120 | K184: 98 | L184: 64 | M184: 35 | N184: 0 | O184: 0
A185: 電機機械84 | B185: 電機機械15 | C185: 4558 寶緯 | D185: 電機機械 | E185: M1500 | F185: 122094 | G185: 165031 | H185: -42937 | I185: -0.260175361 | J185: 120 | K185: 98 | L185: 84 | M185: 15 | N185: 0 | O185: 0
A186: 電機機械52 | B186: 電機機械47 | C186: 4560 強信-KY | D186: 電機機械 | E186: M1500 | F186: 178821 | G186: 174777 | H186: 4044 | I186: 0.02313805592 | J186: 120 | K186: 98 | L186: 52 | M186: 47 | N186: 0 | O186: 0
A187: 電機機械41 | B187: 電機機械58 | C187: 4561 健椿 | D187: 電機機械 | E187: M1500 | F187: 94359 | G187: 87456 | H187: 6903 | I187: 0.07893111965 | J187: 120 | K187: 98 | L187: 41 | M187: 58 | N187: 0 | O187: 0
A188: 電機機械43 | B188: 電機機械56 | C188: 4562 穎漢 | D188: 電機機械 | E188: M1500 | F188: 72816 | G188: 68645 | H188: 4171 | I188: 0.06076189089 | J188: 120 | K188: 98 | L188: 43 | M188: 56 | N188: 0 | O188: 0
A189: 電機機械85 | B189: 電機機械14 | C189: 4563 百德 | D189: 電機機械 | E189: M1500 | F189: 239183 | G189: 330276 | H189: -91093 | I189: -0.2758087176 | J189: 120 | K189: 98 | L189: 85 | M189: 14 | N189: 0 | O189: 0
A190: 電機機械93 | B190: 電機機械6 | C190: 4564 元翎 | D190: 電機機械 | E190: M1500 | F190: 46462 | G190: 92143 | H190: -45681 | I190: -0.4957620221 | J190: 120 | K190: 98 | L190: 93 | M190: 6 | N190: 0 | O190: 0
A191: 電機機械35 | B191: 電機機械64 | C191: 4566 時碩工業 | D191: 電機機械 | E191: M1500 | F191: 466952 | G191: 414675 | H191: 52277 | I191: 0.1260674022 | J191: 120 | K191: 98 | L191: 35 | M191: 64 | N191: 0 | O191: 0
A192: 電機機械89 | B192: 電機機械10 | C192: 4568 科際精密 | D192: 電機機械 | E192: M1500 | F192: 61213 | G192: 89915 | H192: -28702 | I192: -0.3192125897 | J192: 120 | K192: 98 | L192: 89 | M192: 10 | N192: 0 | O192: 0
A193: 電機機械71 | B193: 電機機械28 | C193: 4571 鈞興-KY | D193: 電機機械 | E193: M1500 | F193: 264368 | G193: 285379 | H193: -21011 | I193: -0.07362489882 | J193: 120 | K193: 98 | L193: 71 | M193: 28 | N193: 0 | O193: 0
A194: 電機機械36 | B194: 電機機械63 | C194: 4572 駐龍 | D194: 電機機械 | E194: M1500 | F194: 64032 | G194: 58426 | H194: 5606 | I194: 0.09595043303 | J194: 120 | K194: 98 | L194: 36 | M194: 63 | N194: 0 | O194: 0
A195: =$D195&L195 -> 電機機械8 | B195: =$D195&M195 -> 電機機械91 | C195: 4576 大銀微系統 | D195: 電機機械 | E195: M1500 | F195: 321496 | G195: 215041 | H195: 106455 | I195: 0.4950451309 | J195: =IF(E195="","",MATCH(E195,E:E,0)) -> 120 | K195: =COUNTIF(D:D,D195) -> 98 | L195: 8 | M195: 91 | N195: 0 | O195: 0
A196: 電機機械32 | B196: 電機機械67 | C196: 4580 捷流閥業 | D196: 電機機械 | E196: M1500 | F196: 206306 | G196: 176100 | H196: =F196-G196 -> 30206 | I196: =IF(ISERROR((H196/G196)*100),"",(H196/(ABS(G196)))) -> 0.1715275412 | J196: 120 | K196: 98 | L196: =IF(I196="","",RANK(I196,OFFSET(I$1,$J196-1,,$K196,),0)) -> 32 | M196: =IF(I196="","",RANK(I196,OFFSET(I$1,$J196-1,,$K196,),1)) -> 67 | N196: 0 | O196: 0
A197: 電機機械46 | B197: 電機機械53 | C197: 4583 台灣精銳 | D197: 電機機械 | E197: M1500 | F197: 312129 | G197: 299100 | H197: 13029 | I197: 0.04356068205 | J197: 120 | K197: 98 | L197: 46 | M197: 53 | N197: 0 | O197: 0
A198: 電機機械88 | B198: 電機機械11 | C198: 4584 君帆 | D198: 電機機械 | E198: M1500 | F198: 86433 | G198: 123398 | H198: -36965 | I198: -0.2995591501 | J198: 120 | K198: 98 | L198: 88 | M198: 11 | N198: 0 | O198: 0
A199: 電機機械27 | B199: 電機機械72 | C199: 5288 豐祥-KY | D199: 電機機械 | E199: M1500 | F199: 835163 | G199: 678636 | H199: 156527 | I199: 0.2306494203 | J199: 120 | K199: 98 | L199: 27 | M199: 72 | N199: 0 | O199: 0
A200: 電機機械67 | B200: 電機機械32 | C200: 6122 擎邦 | D200: 電機機械 | E200: M1500 | F200: 349062 | G200: 371892 | H200: -22830 | I200: -0.06138879029 | J200: 120 | K200: 98 | L200: 67 | M200: 32 | N200: 0 | O200: 0
... 2800 more rows

Sheet 表B_RAW
A1: 排名(正向) | B1: 排名(反向) | D1: TSE新產業_名稱 | E1: TSE新產業_代碼 | F1: 單月營收(千元) | G1: 單月營收(千元) | H1: 單月營收與上月比％ | J1: 產業位址 | K1: 產業家數 | L1: 排名(正向) | M1: 排名(反向) | N1: 排名(正向) | O1: 排名(反向) | P1: 產業營收 | Q1: 單月營收(千元) | R1: 上月單月營收(千元) | S1: 本月較上月變動金額 | T1: 單月營收與上月比％ | U1: 排名(正向) | V1: 排名(反向)
C2: 公司 | F2: 2026-03-31 | G2: 2026-02-26 | H2: 2026-03-31 | N2: =U2 -> 8 | O2: =V2 -> 27 | P2: =_xlfn.UNIQUE($D$3:$D$2500,FALSE,FALSE) -> 水泥工業 | Q2: =SUMIF($D:$D,$P2,F:F) -> 19471152 | R2: =SUMIF($D:$D,$P2,G:G) -> 13321823 | S2: =Q2-R2 -> 6149329 | T2: =IF(VLOOKUP(P2,$D:$K,8,0)=1,"",ROUND(S2/R2*100,3)) -> 46.16 | U2: =IF($T2="",0,_xlfn.RANK.EQ(T2,T:T)) -> 8 | V2: =IF($T2="",0,_xlfn.RANK.EQ(T2,T:T,1)) -> 27
A3: =D3&L3 -> 水泥工業3 | B3: =D3&M3 -> 水泥工業5 | C3: 1101 台泥 | D3: 水泥工業 | E3: M1100 | F3: 12412837 | G3: 8593689 | H3: 44.44 | I3: =F3-G3 -> 3819148 | J3: =IF(E3="","",MATCH(E3,E:E,0)) -> 3 | K3: =COUNTIF(D:D,D3) -> 7 | L3: =IF(H3="","",RANK(H3,OFFSET(H$1,$J3-1,,$K3,),0)) -> 3 | M3: =IF(H3="","",RANK(H3,OFFSET(H$1,$J3-1,,$K3,),1)) -> 5 | N3: =U3 -> 29 | O3: =V3 -> 6 | P3: 食品工業 | Q3: =SUMIF($D:$D,$P3,F:F) -> 86958136 | R3: =SUMIF($D:$D,$P3,G:G) -> 76862637 | S3: =Q3-R3 -> 10095499 | T3: =IF(VLOOKUP(P3,$D:$K,8,0)=1,"",ROUND(S3/R3*100,3)) -> 13.134 | U3: =IF($T3="",0,_xlfn.RANK.EQ(T3,T:T)) -> 29 | V3: =IF($T3="",0,_xlfn.RANK.EQ(T3,T:T,1)) -> 6
A4: =D4&L4 -> 水泥工業2 | B4: =D4&M4 -> 水泥工業6 | C4: 1102 亞泥 | D4: 水泥工業 | E4: M1100 | F4: 5349407 | G4: 3493115 | H4: 53.14 | I4: =F4-G4 -> 1856292 | J4: =IF(E4="","",MATCH(E4,E:E,0)) -> 3 | K4: =COUNTIF(D:D,D4) -> 7 | L4: =IF(H4="","",RANK(H4,OFFSET(H$1,$J4-1,,$K4,),0)) -> 2 | M4: =IF(H4="","",RANK(H4,OFFSET(H$1,$J4-1,,$K4,),1)) -> 6 | N4: 7 | O4: 28 | P4: 塑膠工業 | Q4: 101219337 | R4: 66024448 | S4: 35194889 | T4: 53.306 | U4: 7 | V4: 28
A5: 水泥工業6 | B5: 水泥工業2 | C5: 1103 嘉泥 | D5: 水泥工業 | E5: M1100 | F5: 242715 | G5: 188835 | H5: 28.53 | I5: 53880 | J5: 3 | K5: 7 | L5: 6 | M5: 2 | N5: 18 | O5: 17 | P5: 紡織纖維 | Q5: 52577591 | R5: 40170315 | S5: 12407276 | T5: 30.887 | U5: 18 | V5: 17
A6: 水泥工業7 | B6: 水泥工業1 | C6: 1104 環泥 | D6: 水泥工業 | E6: M1100 | F6: 580759 | G6: 460060 | H6: 26.24 | I6: 120699 | J6: 3 | K6: 7 | L6: 7 | M6: 1 | N6: 13 | O6: 22 | P6: 電機機械 | Q6: 52724779 | R6: 38299994 | S6: 14424785 | T6: 37.663 | U6: 13 | V6: 22
A7: 水泥工業5 | B7: 水泥工業3 | C7: 1108 幸福 | D7: 水泥工業 | E7: M1100 | F7: 346885 | G7: 259157 | H7: 33.85 | I7: 87728 | J7: 3 | K7: 7 | L7: 5 | M7: 3 | N7: 11 | O7: 24 | P7: 電器電纜 | Q7: 27053805 | R7: 19525412 | S7: 7528393 | T7: 38.557 | U7: 11 | V7: 24
A8: 水泥工業1 | B8: 水泥工業7 | C8: 1109 信大 | D8: 水泥工業 | E8: M1100 | F8: 314014 | G8: 167550 | H8: 87.42 | I8: 146464 | J8: 3 | K8: 7 | L8: 1 | M8: 7 | N8: 10 | O8: 25 | P8: 化學工業 | Q8: 30631680 | R8: 21957627 | S8: 8674053 | T8: 39.504 | U8: 10 | V8: 25
A9: 水泥工業4 | B9: 水泥工業4 | C9: 1110 東泥 | D9: 水泥工業 | E9: M1100 | F9: 224535 | G9: 159417 | H9: 40.85 | I9: 65118 | J9: 3 | K9: 7 | L9: 4 | M9: 4 | N9: 14 | O9: 21 | P9: 生技醫療業 | Q9: 32803815 | R9: 24471067 | S9: 8332748 | T9: 34.051 | U9: 14 | V9: 21
A10: 食品工業27 | B10: 食品工業7 | C10: 1201 味全 | D10: 食品工業 | E10: M1200 | F10: 1684666 | G10: 1640170 | H10: 2.71 | I10: 44496 | J10: 10 | K10: 33 | L10: 27 | M10: 7 | N10: 5 | O10: 30 | P10: 玻璃陶瓷 | Q10: 5176008 | R10: 3137043 | S10: 2038965 | T10: 64.996 | U10: 5 | V10: 30
A11: 食品工業17 | B11: 食品工業17 | C11: 1203 味王 | D11: 食品工業 | E11: M1200 | F11: 464822 | G11: 386214 | H11: 20.35 | I11: 78608 | J11: 10 | K11: 33 | L11: 17 | M11: 17 | N11: 6 | O11: 29 | P11: 造紙工業 | Q11: 18485749 | R11: 11429394 | S11: 7056355 | T11: 61.739 | U11: 6 | V11: 29
A12: 食品工業16 | B12: 食品工業18 | C12: 1210 大成 | D12: 食品工業 | E12: M1200 | F12: 9209941 | G12: 7628102 | H12: 20.74 | I12: 1581839 | J12: 10 | K12: 33 | L12: 16 | M12: 18 | N12: 20 | O12: 15 | P12: 鋼鐵工業 | Q12: 86565949 | R12: 67612778 | S12: 18953171 | T12: 28.032 | U12: 20 | V12: 15
A13: 食品工業32 | B13: 食品工業2 | C13: 1213 大飲 | D13: 食品工業 | E13: M1200 | F13: 23319 | G13: 29013 | H13: -19.63 | I13: -5694 | J13: 10 | K13: 33 | L13: 32 | M13: 2 | N13: 4 | O13: 31 | P13: 橡膠工業 | Q13: 23544114 | R13: 14209480 | S13: 9334634 | T13: 65.693 | U13: 4 | V13: 31
A14: 食品工業12 | B14: 食品工業22 | C14: 1215 卜蜂 | D14: 食品工業 | E14: M1200 | F14: 2511460 | G14: 2030010 | H14: 23.72 | I14: 481450 | J14: 10 | K14: 33 | L14: 12 | M14: 22 | N14: 21 | O14: 14 | P14: 汽車工業 | Q14: 59630548 | R14: 47117999 | S14: 12512549 | T14: 26.556 | U14: 21 | V14: 14
A15: 食品工業24 | B15: 食品工業10 | C15: 1216 統一 | D15: 食品工業 | E15: M1200 | F15: 57379159 | G15: 51532816 | H15: 11.34 | I15: 5846343 | J15: 10 | K15: 33 | L15: 24 | M15: 10 | N15: 19 | O15: 16 | P15: 半導體業 | Q15: 797241198 | R15: 611375143 | S15: 185866055 | T15: 30.401 | U15: 19 | V15: 16
A16: 食品工業18 | B16: 食品工業16 | C16: 1217 愛之味 | D16: 食品工業 | E16: M1200 | F16: 384534 | G16: 319659 | H16: 20.3 | I16: 64875 | J16: 10 | K16: 33 | L16: 18 | M16: 16 | N16: 12 | O16: 23 | P16: 電腦及週邊設備業 | Q16: 1393439015 | R16: 1010698157 | S16: 382740858 | T16: 37.869 | U16: 12 | V16: 23
A17: 食品工業26 | B17: 食品工業8 | C17: 1218 泰山 | D17: 食品工業 | E17: M1200 | F17: 872329 | G17: 837121 | H17: 4.21 | I17: 35208 | J17: 10 | K17: 33 | L17: 26 | M17: 8 | N17: 23 | O17: 12 | P17: 光電業 | Q17: 117615988 | R17: 93993674 | S17: 23622314 | T17: 25.132 | U17: 23 | V17: 12
A18: 食品工業13 | B18: 食品工業21 | C18: 1219 福壽 | D18: 食品工業 | E18: M1200 | F18: 1303877 | G18: 1059567 | H18: 23.06 | I18: 244310 | J18: 10 | K18: 33 | L18: 13 | M18: 21 | N18: 25 | O18: 10 | P18: 通訊網路業 | Q18: 127975605 | R18: 107765248 | S18: 20210357 | T18: 18.754 | U18: 25 | V18: 10
A19: 食品工業4 | B19: 食品工業30 | C19: 1220 台榮 | D19: 食品工業 | E19: M1200 | F19: 260429 | G19: 183280 | H19: 42.09 | I19: 77149 | J19: 10 | K19: 33 | L19: 4 | M19: 30 | N19: 22 | O19: 13 | P19: 電子零組件 | Q19: 270263971 | R19: 214384642 | S19: 55879329 | T19: 26.065 | U19: 22 | V19: 13
A20: 食品工業15 | B20: 食品工業19 | C20: 1225 福懋油 | D20: 食品工業 | E20: M1200 | F20: 1078686 | G20: 889099 | H20: 21.32 | I20: 189587 | J20: 10 | K20: 33 | L20: 15 | M20: 19 | N20: 1 | O20: 34 | P20: 電子通路業 | Q20: 527337700 | R20: 300382164 | S20: 226955536 | T20: 75.556 | U20: 1 | V20: 34
A21: 食品工業21 | B21: 食品工業13 | C21: 1227 佳格 | D21: 食品工業 | E21: M1200 | F21: 2101944 | G21: 1872242 | H21: 12.27 | I21: 229702 | J21: 10 | K21: 33 | L21: 21 | M21: 13 | N21: 16 | O21: 19 | P21: 資訊服務業 | Q21: 18466398 | R21: 13927763 | S21: 4538635 | T21: 32.587 | U21: 16 | V21: 19
A22: 食品工業7 | B22: 食品工業27 | C22: 1229 聯華 | D22: 食品工業 | E22: M1200 | F22: 932321 | G22: 687463 | H22: 35.62 | I22: 244858 | J22: 10 | K22: 33 | L22: 7 | M22: 27 | N22: 15 | O22: 20 | P22: 其他電子業 | Q22: 897305048 | R22: 671727441 | S22: 225577607 | T22: 33.582 | U22: 15 | V22: 20
A23: 食品工業30 | B23: 食品工業4 | C23: 1231 聯華食 | D23: 食品工業 | E23: M1200 | F23: 973737 | G23: 1103687 | H23: -11.77 | I23: -129950 | J23: 10 | K23: 33 | L23: 30 | M23: 4 | N23: 2 | O23: 33 | P23: 建材營造 | Q23: 64024147 | R23: 38037463 | S23: 25986684 | T23: 68.319 | U23: 2 | V23: 33
A24: 食品工業14 | B24: 食品工業20 | C24: 1232 大統益 | D24: 食品工業 | E24: M1200 | F24: 2019725 | G24: 1661070 | H24: 21.59 | I24: 358655 | J24: 10 | K24: 33 | L24: 14 | M24: 20 | N24: 30 | O24: 5 | P24: 航運業 | Q24: 124990118 | R24: 115647338 | S24: 9342780 | T24: 8.079 | U24: 30 | V24: 5
A25: 食品工業31 | B25: 食品工業3 | C25: 1233 天仁 | D25: 食品工業 | E25: M1200 | F25: 175658 | G25: 200044 | H25: -12.19 | I25: -24386 | J25: 10 | K25: 33 | L25: 31 | M25: 3 | N25: 32 | O25: 3 | P25: 觀光餐旅 | Q25: 17155424 | R25: 19289803 | S25: -2134379 | T25: -11.065 | U25: 32 | V25: 3
A26: 食品工業29 | B26: 食品工業5 | C26: 1234 黑松 | D26: 食品工業 | E26: M1200 | F26: 728461 | G26: 805443 | H26: -9.56 | I26: -76982 | J26: 10 | K26: 33 | L26: 29 | M26: 5 | N26: 34 | O26: 1 | P26: 金融業 | Q26: 38671455 | R26: 194815936 | S26: -156144481 | T26: -80.15 | U26: 34 | V26: 1
A27: 食品工業2 | B27: 食品工業32 | C27: 1235 興泰 | D27: 食品工業 | E27: M1200 | F27: 27060 | G27: 15848 | H27: 70.75 | I27: 11212 | J27: 10 | K27: 33 | L27: 2 | M27: 32 | N27: 33 | O27: 2 | P27: 貿易百貨 | Q27: 39018642 | R27: 47193226 | S27: -8174584 | T27: -17.322 | U27: 33 | V27: 2
A28: 食品工業33 | B28: 食品工業1 | C28: 1236 宏亞 | D28: 食品工業 | E28: M1200 | F28: 103266 | G28: 138565 | H28: -25.47 | I28: -35299 | J28: 10 | K28: 33 | L28: 33 | M28: 1 | N28: 31 | O28: 4 | P28: 文化創意業 | Q28: 6648837 | R28: 6301539 | S28: 347298 | T28: 5.511 | U28: 31 | V28: 4
A29: 食品工業25 | B29: 食品工業9 | C29: 1256 鮮活果汁-KY | D29: 食品工業 | E29: M1200 | F29: 356169 | G29: 336653 | H29: 5.8 | I29: 19516 | J29: 10 | K29: 33 | L29: 25 | M29: 9 | N29: 3 | O29: 32 | P29: 農業科技 | Q29: 555058 | R29: 333829 | S29: 221229 | T29: 66.27 | U29: 3 | V29: 32
A30: 食品工業10 | B30: 食品工業24 | C30: 1264 德麥 | D30: 食品工業 | E30: M1200 | F30: 562663 | G30: 451745 | H30: 24.55 | I30: 110918 | J30: 10 | K30: 33 | L30: 10 | M30: 24 | N30: =U30 -> 17 | O30: =V30 -> 18 | P30: 綠能環保 | Q30: =SUMIF($D:$D,$P30,F:F) -> 13971148 | R30: =SUMIF($D:$D,$P30,G:G) -> 10603142 | S30: =Q30-R30 -> 3368006 | T30: 31.764 | U30: 17 | V30: 18
A31: 食品工業11 | B31: 食品工業23 | C31: 1294 漢田生技 | D31: 食品工業 | E31: M1200 | F31: 76113 | G31: 61511 | H31: 23.74 | I31: 14602 | J31: 10 | K31: 33 | L31: 11 | M31: 23 | N31: 26 | O31: 9 | P31: 數位雲端 | Q31: 20246733 | R31: 17549275 | S31: 2697458 | T31: 15.371 | U31: 26 | V31: 9
A32: 食品工業3 | B32: 食品工業31 | C32: 1295 生合 | D32: 食品工業 | E32: M1200 | F32: 79388 | G32: 54071 | H32: 46.82 | I32: 25317 | J32: 10 | K32: 33 | L32: 3 | M32: 31 | N32: 27 | O32: 8 | P32: 運動休閒 | Q32: 56539169 | R32: 49776756 | S32: 6762413 | T32: 13.585 | U32: 27 | V32: 8
A33: 食品工業9 | B33: 食品工業25 | C33: 1702 南僑 | D33: 食品工業 | E33: M1200 | F33: 2065666 | G33: 1645241 | H33: 25.55 | I33: 420425 | J33: 10 | K33: 33 | L33: 9 | M33: 25 | N33: 28 | O33: 7 | P33: 居家生活 | Q33: 23921362 | R33: 21062692 | S33: 2858670 | T33: 13.572 | U33: 28 | V33: 7
A34: 食品工業6 | B34: 食品工業28 | C34: 1737 臺鹽 | D34: 食品工業 | E34: M1200 | F34: 297553 | G34: 214779 | H34: 38.54 | I34: 82774 | J34: 10 | K34: 33 | L34: 6 | M34: 28 | N34: 9 | O34: 26 | P34: 油電燃氣業 | Q34: 75390002 | R34: 53078572 | S34: 22311430 | T34: 42.035 | U34: 9 | V34: 26
A35: 食品工業19 | B35: 食品工業15 | C35: 1796 金穎生技 | D35: 食品工業 | E35: M1200 | F35: 52751 | G35: 46034 | H35: 14.59 | I35: 6717 | J35: 10 | K35: 33 | L35: 19 | M35: 15 | N35: 24 | O35: 11 | P35: 其他 | Q35: 55222339 | R35: 44561684 | S35: 10660655 | T35: 23.923 | U35: 24 | V35: 11
A36: 食品工業23 | B36: 食品工業11 | C36: 3054 立萬利 | D36: 食品工業 | E36: M1200 | F36: 64646 | G36: 57808 | H36: 11.83 | I36: 6838 | J36: 10 | K36: 33 | L36: 23 | M36: 11 | N36: 0 | O36: 0 | P36: 存託憑證 | W36: *存託憑證不納入統計
A37: 食品工業22 | B37: 食品工業12 | C37: 4205 中華食 | D37: 食品工業 | E37: M1200 | F37: 168752 | G37: 150367 | H37: 12.23 | I37: 18385 | J37: 10 | K37: 33 | L37: 22 | M37: 12 | N37: 0 | O37: 0 | P37: 0
A38: 食品工業20 | B38: 食品工業14 | C38: 4207 環泰 | D38: 食品工業 | E38: M1200 | F38: 479396 | G38: 422738 | H38: 13.4 | I38: 56658 | J38: 10 | K38: 33 | L38: 20 | M38: 14 | N38: 0 | O38: 0
A39: 食品工業1 | B39: 食品工業33 | C39: 6846 綠茵 | D39: 食品工業 | E39: M1200 | F39: 99378 | G39: 42817 | H39: 132.1 | I39: 56561 | J39: 10 | K39: 33 | L39: 1 | M39: 33 | N39: 0 | O39: 0
A40: 食品工業8 | B40: 食品工業26 | C40: 7743 金利食安 | D40: 食品工業 | E40: M1200 | F40: 60164 | G40: 47587 | H40: 26.43 | I40: 12577 | J40: 10 | K40: 33 | L40: 8 | M40: 26 | N40: 0 | O40: 0
A41: 食品工業5 | B41: 食品工業29 | C41: 7780 大研生醫* | D41: 食品工業 | E41: M1200 | F41: 189757 | G41: 135700 | H41: 39.84 | I41: 54057 | J41: 10 | K41: 33 | L41: 5 | M41: 29 | N41: 0 | O41: 0
A42: 食品工業28 | B42: 食品工業6 | C42: 7791 皇家可口 | D42: 食品工業 | E42: M1200 | F42: 170346 | G42: 176173 | H42: -3.31 | I42: -5827 | J42: 10 | K42: 33 | L42: 28 | M42: 6 | N42: 0 | O42: 0
A43: 塑膠工業10 | B43: 塑膠工業16 | C43: 1301 台塑 | D43: 塑膠工業 | E43: M1300 | F43: 17354391 | G43: 10739649 | H43: 61.59 | I43: 6614742 | J43: 43 | K43: 25 | L43: 10 | M43: 16 | N43: 0 | O43: 0
A44: 塑膠工業15 | B44: 塑膠工業11 | C44: 1303 南亞 | D44: 塑膠工業 | E44: M1300 | F44: 27167406 | G44: 18556362 | H44: 46.4 | I44: 8611044 | J44: 43 | K44: 25 | L44: 15 | M44: 11 | N44: 0 | O44: 0
A45: 塑膠工業12 | B45: 塑膠工業14 | C45: 1304 台聚 | D45: 塑膠工業 | E45: M1300 | F45: 4320562 | G45: 2843587 | H45: 51.94 | I45: 1476975 | J45: 43 | K45: 25 | L45: 12 | M45: 14 | N45: 0 | O45: 0
A46: 塑膠工業17 | B46: 塑膠工業9 | C46: 1305 華夏 | D46: 塑膠工業 | E46: M1300 | F46: 1082256 | G46: 785281 | H46: 37.82 | I46: 296975 | J46: 43 | K46: 25 | L46: 17 | M46: 9 | N46: 0 | O46: 0
A47: 塑膠工業20 | B47: 塑膠工業6 | C47: 1307 三芳 | D47: 塑膠工業 | E47: M1300 | F47: 1011105 | G47: 789802 | H47: 28.02 | I47: 221303 | J47: 43 | K47: 25 | L47: 20 | M47: 6 | N47: 0 | O47: 0
A48: 塑膠工業22 | B48: 塑膠工業4 | C48: 1308 亞聚 | D48: 塑膠工業 | E48: M1300 | F48: 476656 | G48: 377128 | H48: 26.39 | I48: 99528 | J48: 43 | K48: 25 | L48: 22 | M48: 4 | N48: 0 | O48: 0
A49: 塑膠工業9 | B49: 塑膠工業17 | C49: 1309 台達化 | D49: 塑膠工業 | E49: M1300 | F49: 1376599 | G49: 824009 | H49: 67.06 | I49: 552590 | J49: 43 | K49: 25 | L49: 9 | M49: 17 | N49: 0 | O49: 0
A50: 塑膠工業18 | B50: 塑膠工業8 | C50: 1310 台苯 | D50: 塑膠工業 | E50: M1300 | F50: 854539 | G50: 624367 | H50: 36.86 | I50: 230172 | J50: 43 | K50: 25 | L50: 18 | M50: 8 | N50: 0 | O50: 0
A51: 塑膠工業13 | B51: 塑膠工業13 | C51: 1312 國喬 | D51: 塑膠工業 | E51: M1300 | F51: 3110910 | G51: 2072655 | H51: 50.09 | I51: 1038255 | J51: 43 | K51: 25 | L51: 13 | M51: 13 | N51: 0 | O51: 0
A52: 塑膠工業1 | B52: 塑膠工業25 | C52: 1313 聯成 | D52: 塑膠工業 | E52: M1300 | F52: 6489125 | G52: 2565385 | H52: 152.95 | I52: 3923740 | J52: 43 | K52: 25 | L52: 1 | M52: 25 | N52: 0 | O52: 0
A53: 塑膠工業21 | B53: 塑膠工業5 | C53: 1314 中石化 | D53: 塑膠工業 | E53: M1300 | F53: 1404411 | G53: 1098234 | H53: 27.88 | I53: 306177 | J53: 43 | K53: 25 | L53: 21 | M53: 5 | N53: 0 | O53: 0
A54: 塑膠工業24 | B54: 塑膠工業2 | C54: 1315 達新 | D54: 塑膠工業 | E54: M1300 | F54: 127113 | G54: 144318 | H54: -11.92 | I54: -17205 | J54: 43 | K54: 25 | L54: 24 | M54: 2 | N54: 0 | O54: 0
A55: 塑膠工業5 | B55: 塑膠工業21 | C55: 1321 大洋 | D55: 塑膠工業 | E55: M1300 | F55: 372645 | G55: 194063 | H55: 92.02 | I55: 178582 | J55: 43 | K55: 25 | L55: 5 | M55: 21 | N55: 0 | O55: 0
A56: 塑膠工業19 | B56: 塑膠工業7 | C56: 1323 永裕 | D56: 塑膠工業 | E56: M1300 | F56: 203039 | G56: 149301 | H56: 35.99 | I56: 53738 | J56: 43 | K56: 25 | L56: 19 | M56: 7 | N56: 0 | O56: 0
A57: 塑膠工業4 | B57: 塑膠工業22 | C57: 1324 地球 | D57: 塑膠工業 | E57: M1300 | F57: 72918 | G57: 36917 | H57: 97.52 | I57: 36001 | J57: 43 | K57: 25 | L57: 4 | M57: 22 | N57: 0 | O57: 0
A58: 塑膠工業23 | B58: 塑膠工業3 | C58: 1325 恒大 | D58: 塑膠工業 | E58: M1300 | F58: 18082 | G58: 14835 | H58: 21.89 | I58: 3247 | J58: 43 | K58: 25 | L58: 23 | M58: 3 | N58: 0 | O58: 0
A59: 塑膠工業14 | B59: 塑膠工業12 | C59: 1326 台化 | D59: 塑膠工業 | E59: M1300 | F59: 33728547 | G59: 22981250 | H59: 46.77 | I59: 10747297 | J59: 43 | K59: 25 | L59: 14 | M59: 12 | N59: 0 | O59: 0
A60: 塑膠工業8 | B60: 塑膠工業18 | C60: 1337 再生-KY | D60: 塑膠工業 | E60: M1300 | F60: 61900 | G60: 36192 | H60: 71.03 | I60: 25708 | J60: 43 | K60: 25 | L60: 8 | M60: 18 | N60: 0 | O60: 0
A61: 塑膠工業25 | B61: 塑膠工業1 | C61: 1340 勝悅-KY | D61: 塑膠工業 | E61: M1300 | F61: 3601 | G61: 5030 | H61: -28.41 | I61: -1429 | J61: 43 | K61: 25 | L61: 25 | M61: 1 | N61: 0 | O61: 0
A62: 塑膠工業2 | B62: 塑膠工業24 | C62: 1341 富林-KY | D62: 塑膠工業 | E62: M1300 | F62: 308343 | G62: 123597 | H62: 149.47 | I62: 184746 | J62: 43 | K62: 25 | L62: 2 | M62: 24 | N62: 0 | O62: 0
A63: 塑膠工業7 | B63: 塑膠工業19 | C63: 4303 信立 | D63: 塑膠工業 | E63: M1300 | F63: 94379 | G63: 50335 | H63: 87.5 | I63: 44044 | J63: 43 | K63: 25 | L63: 7 | M63: 19 | N63: 0 | O63: 0
A64: 塑膠工業3 | B64: 塑膠工業23 | C64: 4304 勝昱 | D64: 塑膠工業 | E64: M1300 | F64: 46805 | G64: 20527 | H64: 128.02 | I64: 26278 | J64: 43 | K64: 25 | L64: 3 | M64: 23 | N64: 0 | O64: 0
A65: 塑膠工業6 | B65: 塑膠工業20 | C65: 4305 世坤 | D65: 塑膠工業 | E65: M1300 | F65: 90913 | G65: 47721 | H65: 90.51 | I65: 43192 | J65: 43 | K65: 25 | L65: 6 | M65: 20 | N65: 0 | O65: 0
A66: 塑膠工業11 | B66: 塑膠工業15 | C66: 4306 炎洲 | D66: 塑膠工業 | E66: M1300 | F66: 1241633 | G66: 799288 | H66: 55.34 | I66: 442345 | J66: 43 | K66: 25 | L66: 11 | M66: 15 | N66: 0 | O66: 0
A67: 塑膠工業16 | B67: 塑膠工業10 | C67: 9950 萬國通 | D67: 塑膠工業 | E67: M1300 | F67: 201459 | G67: 144615 | H67: 39.31 | I67: 56844 | J67: 43 | K67: 25 | L67: 16 | M67: 10 | N67: 0 | O67: 0
A68: =D68&L68 -> 紡織纖維36 | B68: =D68&M68 -> 紡織纖維17 | C68: 1402 遠東新 | D68: 紡織纖維 | E68: M1400 | F68: 21386882 | G68: 17896522 | H68: 19.5 | I68: =F68-G68 -> 3490360 | J68: =IF(E68="","",MATCH(E68,E:E,0)) -> 68 | K68: =COUNTIF(D:D,D68) -> 52 | L68: =IF(H68="","",RANK(H68,OFFSET(H$1,$J68-1,,$K68,),0)) -> 36 | M68: =IF(H68="","",RANK(H68,OFFSET(H$1,$J68-1,,$K68,),1)) -> 17 | N68: 0 | O68: 0
A69: 紡織纖維28 | B69: 紡織纖維25 | C69: 1409 新纖 | D69: 紡織纖維 | E69: M1400 | F69: 3945363 | G69: 2768316 | H69: 42.52 | I69: 1177047 | J69: 68 | K69: 52 | L69: 28 | M69: 25 | N69: 0 | O69: 0
A70: 紡織纖維7 | B70: 紡織纖維46 | C70: 1410 南染 | D70: 紡織纖維 | E70: M1400 | F70: 23195 | G70: 12885 | H70: 80.02 | I70: 10310 | J70: 68 | K70: 52 | L70: 7 | M70: 46 | N70: 0 | O70: 0
A71: 紡織纖維9 | B71: 紡織纖維44 | C71: 1413 宏洲 | D71: 紡織纖維 | E71: M1400 | F71: 187414 | G71: 105547 | H71: 77.56 | I71: 81867 | J71: 68 | K71: 52 | L71: 9 | M71: 44 | N71: 0 | O71: 0
A72: 紡織纖維34 | B72: 紡織纖維19 | C72: 1414 東和 | D72: 紡織纖維 | E72: M1400 | F72: 39742 | G72: 32662 | H72: 21.68 | I72: 7080 | J72: 68 | K72: 52 | L72: 34 | M72: 19 | N72: 0 | O72: 0
A73: 紡織纖維47 | B73: 紡織纖維6 | C73: 1417 嘉裕 | D73: 紡織纖維 | E73: M1400 | F73: 20338 | G73: 23236 | H73: -12.47 | I73: -2898 | J73: 68 | K73: 52 | L73: 47 | M73: 6 | N73: 0 | O73: 0
A74: 紡織纖維44 | B74: 紡織纖維9 | C74: 1418 東華 | D74: 紡織纖維 | E74: M1400 | F74: 17 | G74: 18 | H74: -5.56 | I74: -1 | J74: 68 | K74: 52 | L74: 44 | M74: 9 | N74: 0 | O74: 0
A75: 紡織纖維22 | B75: 紡織纖維31 | C75: 1419 新紡 | D75: 紡織纖維 | E75: M1400 | F75: 563421 | G75: 379790 | H75: 48.35 | I75: 183631 | J75: 68 | K75: 52 | L75: 22 | M75: 31 | N75: 0 | O75: 0
A76: 紡織纖維52 | B76: 紡織纖維1 | C76: 1423 利華 | D76: 紡織纖維 | E76: M1400 | F76: 7995 | G76: 17386 | H76: -54.01 | I76: -9391 | J76: 68 | K76: 52 | L76: 52 | M76: 1 | N76: 0 | O76: 0
A77: 紡織纖維24 | B77: 紡織纖維29 | C77: 1434 福懋 | D77: 紡織纖維 | E77: M1400 | F77: 2682740 | G77: 1869940 | H77: 43.47 | I77: 812800 | J77: 68 | K77: 52 | L77: 24 | M77: 29 | N77: 0 | O77: 0
A78: 紡織纖維15 | B78: 紡織纖維38 | C78: 1440 南紡 | D78: 紡織纖維 | E78: M1400 | F78: 1404035 | G78: 865498 | H78: 62.22 | I78: 538537 | J78: 68 | K78: 52 | L78: 15 | M78: 38 | N78: 0 | O78: 0
A79: 紡織纖維6 | B79: 紡織纖維47 | C79: 1441 大東 | D79: 紡織纖維 | E79: M1400 | F79: 114577 | G79: 57056 | H79: 100.81 | I79: 57521 | J79: 68 | K79: 52 | L79: 6 | M79: 47 | N79: 0 | O79: 0
A80: 紡織纖維25 | B80: 紡織纖維28 | C80: 1444 力麗 | D80: 紡織纖維 | E80: M1400 | F80: 950193 | G80: 665239 | H80: 42.83 | I80: 284954 | J80: 68 | K80: 52 | L80: 25 | M80: 28 | N80: 0 | O80: 0
A81: 紡織纖維37 | B81: 紡織纖維16 | C81: 1445 大宇 | D81: 紡織纖維 | E81: M1400 | F81: 52314 | G81: 45054 | H81: 16.11 | I81: 7260 | J81: 68 | K81: 52 | L81: 37 | M81: 16 | N81: 0 | O81: 0
A82: 紡織纖維31 | B82: 紡織纖維22 | C82: 1446 宏和 | D82: 紡織纖維 | E82: M1400 | F82: 97846 | G82: 76133 | H82: 28.52 | I82: 21713 | J82: 68 | K82: 52 | L82: 31 | M82: 22 | N82: 0 | O82: 0
A83: 紡織纖維1 | B83: 紡織纖維52 | C83: 1447 力鵬 | D83: 紡織纖維 | E83: M1400 | F83: 3871493 | G83: 1723100 | H83: 124.68 | I83: 2148393 | J83: 68 | K83: 52 | L83: 1 | M83: 52 | N83: 0 | O83: 0
A84: 紡織纖維43 | B84: 紡織纖維10 | C84: 1449 佳和 | D84: 紡織纖維 | E84: M1400 | F84: 280131 | G84: 283925 | H84: -1.34 | I84: -3794 | J84: 68 | K84: 52 | L84: 43 | M84: 10 | N84: 0 | O84: 0
A85: 紡織纖維39 | B85: 紡織纖維14 | C85: 1451 年興 | D85: 紡織纖維 | E85: M1400 | F85: 518409 | G85: 458977 | H85: 12.95 | I85: 59432 | J85: 68 | K85: 52 | L85: 39 | M85: 14 | N85: 0 | O85: 0
A86: 紡織纖維3 | B86: 紡織纖維50 | C86: 1452 宏益 | D86: 紡織纖維 | E86: M1400 | F86: 161166 | G86: 75246 | H86: 114.19 | I86: 85920 | J86: 68 | K86: 52 | L86: 3 | M86: 50 | N86: 0 | O86: 0
A87: 紡織纖維20 | B87: 紡織纖維33 | C87: 1454 台富 | D87: 紡織纖維 | E87: M1400 | F87: 111197 | G87: 74526 | H87: 49.21 | I87: 36671 | J87: 68 | K87: 52 | L87: 20 | M87: 33 | N87: 0 | O87: 0
A88: 紡織纖維13 | B88: 紡織纖維40 | C88: 1455 集盛 | D88: 紡織纖維 | E88: M1400 | F88: 529750 | G88: 318242 | H88: 66.46 | I88: 211508 | J88: 68 | K88: 52 | L88: 13 | M88: 40 | N88: 0 | O88: 0
A89: 紡織纖維10 | B89: 紡織纖維43 | C89: 1457 宜進 | D89: 紡織纖維 | E89: M1400 | F89: 272585 | G89: 156605 | H89: 74.06 | I89: 115980 | J89: 68 | K89: 52 | L89: 10 | M89: 43 | N89: 0 | O89: 0
A90: 紡織纖維4 | B90: 紡織纖維49 | C90: 1459 聯發 | D90: 紡織纖維 | E90: M1400 | F90: 99917 | G90: 47656 | H90: 109.66 | I90: 52261 | J90: 68 | K90: 52 | L90: 4 | M90: 49 | N90: 0 | O90: 0
A91: 紡織纖維30 | B91: 紡織纖維23 | C91: 1460 宏遠 | D91: 紡織纖維 | E91: M1400 | F91: 585553 | G91: 450189 | H91: 30.07 | I91: 135364 | J91: 68 | K91: 52 | L91: 30 | M91: 23 | N91: 0 | O91: 0
A92: 紡織纖維18 | B92: 紡織纖維35 | C92: 1463 強盛新 | D92: 紡織纖維 | E92: M1400 | F92: 25235 | G92: 16307 | H92: 54.75 | I92: 8928 | J92: 68 | K92: 52 | L92: 18 | M92: 35 | N92: 0 | O92: 0
A93: 紡織纖維26 | B93: 紡織纖維27 | C93: 1464 得力 | D93: 紡織纖維 | E93: M1400 | F93: 1131849 | G93: 792863 | H93: 42.75 | I93: 338986 | J93: 68 | K93: 52 | L93: 26 | M93: 27 | N93: 0 | O93: 0
A94: 紡織纖維11 | B94: 紡織纖維42 | C94: 1465 偉全 | D94: 紡織纖維 | E94: M1400 | F94: 34511 | G94: 20212 | H94: 70.75 | I94: 14299 | J94: 68 | K94: 52 | L94: 11 | M94: 42 | N94: =U94 -> 0 | O94: =V94 -> 0
A95: 紡織纖維35 | B95: 紡織纖維18 | C95: 1466 聚隆 | D95: 紡織纖維 | E95: M1400 | F95: 193314 | G95: 159530 | H95: 21.18 | I95: 33784 | J95: 68 | K95: 52 | L95: 35 | M95: 18 | N95: 0 | O95: 0
A96: 紡織纖維33 | B96: 紡織纖維20 | C96: 1467 南緯 | D96: 紡織纖維 | E96: M1400 | F96: 462982 | G96: 373739 | H96: 23.88 | I96: 89243 | J96: 68 | K96: 52 | L96: 33 | M96: 20 | N96: 0 | O96: 0
A97: 紡織纖維45 | B97: 紡織纖維8 | C97: 1468 昶和 | D97: 紡織纖維 | E97: M1400 | F97: 25383 | G97: 27453 | H97: -7.54 | I97: -2070 | J97: 68 | K97: 52 | L97: 45 | M97: 8 | N97: 0 | O97: 0
A98: 紡織纖維27 | B98: 紡織纖維26 | C98: 1470 大統新創 | D98: 紡織纖維 | E98: M1400 | F98: 69060 | G98: 48383 | H98: 42.74 | I98: 20677 | J98: 68 | K98: 52 | L98: 27 | M98: 26 | N98: 0 | O98: 0
A99: 紡織纖維50 | B99: 紡織纖維3 | C99: 1473 台南 | D99: 紡織纖維 | E99: M1400 | F99: 555361 | G99: 707190 | H99: -21.47 | I99: -151829 | J99: 68 | K99: 52 | L99: 50 | M99: 3 | N99: 0 | O99: 0
A100: 紡織纖維5 | B100: 紡織纖維48 | C100: 1474 弘裕 | D100: 紡織纖維 | E100: M1400 | F100: 302809 | G100: 148784 | H100: 103.52 | I100: 154025 | J100: 68 | K100: 52 | L100: 5 | M100: 48 | N100: 0 | O100: 0
A101: 紡織纖維21 | B101: 紡織纖維32 | C101: 1475 業旺 | D101: 紡織纖維 | E101: M1400 | F101: 130790 | G101: 87958 | H101: 48.7 | I101: 42832 | J101: 68 | K101: 52 | L101: 21 | M101: 32 | N101: 0 | O101: 0
A102: 紡織纖維23 | B102: 紡織纖維30 | C102: 1476 儒鴻 | D102: 紡織纖維 | E102: M1400 | F102: 3599533 | G102: 2439916 | H102: 47.53 | I102: 1159617 | J102: 68 | K102: 52 | L102: 23 | M102: 30 | N102: 0 | O102: 0
A103: 紡織纖維40 | B103: 紡織纖維13 | C103: 1477 聚陽 | D103: 紡織纖維 | E103: M1400 | F103: 3130764 | G103: 2937964 | H103: 6.56 | I103: 192800 | J103: 68 | K103: 52 | L103: 40 | M103: 13 | N103: 0 | O103: 0
A104: 紡織纖維14 | B104: 紡織纖維39 | C104: 4401 東隆興 | D104: 紡織纖維 | E104: M1400 | F104: 342230 | G104: 209731 | H104: 63.18 | I104: 132499 | J104: 68 | K104: 52 | L104: 14 | M104: 39 | N104: 0 | O104: 0
A105: 紡織纖維49 | B105: 紡織纖維4 | C105: 4402 郡都開發 | D105: 紡織纖維 | E105: M1400 | F105: 1433 | G105: 1769 | H105: -18.99 | I105: -336 | J105: 68 | K105: 52 | L105: 49 | M105: 4 | N105: 0 | O105: 0
A106: 紡織纖維38 | B106: 紡織纖維15 | C106: 4406 新昕纖 | D106: 紡織纖維 | E106: M1400 | F106: 20250 | G106: 17610 | H106: 14.99 | I106: 2640 | J106: 68 | K106: 52 | L106: 38 | M106: 15 | N106: 0 | O106: 0
A107: 紡織纖維51 | B107: 紡織纖維2 | C107: 4413 飛寶企業 | D107: 紡織纖維 | E107: M1400 | F107: 20414 | G107: 30990 | H107: -34.13 | I107: -10576 | J107: 68 | K107: 52 | L107: 51 | M107: 2 | N107: 0 | O107: 0
A108: 紡織纖維48 | B108: 紡織纖維5 | C108: 4414 如興 | D108: 紡織纖維 | E108: M1400 | F108: 995456 | G108: 1137585 | H108: -12.49 | I108: -142129 | J108: 68 | K108: 52 | L108: 48 | M108: 5 | N108: 0 | O108: 0
A109: 紡織纖維19 | B109: 紡織纖維34 | C109: 4417 金洲 | D109: 紡織纖維 | E109: M1400 | F109: 214976 | G109: 142381 | H109: 50.99 | I109: 72595 | J109: 68 | K109: 52 | L109: 19 | M109: 34 | N109: 0 | O109: 0
A110: 紡織纖維12 | B110: 紡織纖維41 | C110: 4420 光明 | D110: 紡織纖維 | E110: M1400 | F110: 97347 | G110: 57062 | H110: 70.6 | I110: 40285 | J110: 68 | K110: 52 | L110: 12 | M110: 41 | N110: 0 | O110: 0
A111: 紡織纖維16 | B111: 紡織纖維37 | C111: 4426 利勤 | D111: 紡織纖維 | E111: M1400 | F111: 85224 | G111: 52697 | H111: 61.72 | I111: 32527 | J111: 68 | K111: 52 | L111: 16 | M111: 37 | N111: 0 | O111: 0
A112: 紡織纖維46 | B112: 紡織纖維7 | C112: 4432 銘旺實 | D112: 紡織纖維 | E112: M1400 | F112: 70559 | G112: 77632 | H112: -9.11 | I112: -7073 | J112: 68 | K112: 52 | L112: 46 | M112: 7 | N112: 0 | O112: 0
A113: 紡織纖維29 | B113: 紡織纖維24 | C113: 4433 興采 | D113: 紡織纖維 | E113: M1400 | F113: 212471 | G113: 156087 | H113: 36.12 | I113: 56384 | J113: 68 | K113: 52 | L113: 29 | M113: 24 | N113: 0 | O113: 0
A114: 紡織纖維32 | B114: 紡織纖維21 | C114: 4438 廣越 | D114: 紡織纖維 | E114: M1400 | F114: 960944 | G114: 772311 | H114: 24.42 | I114: 188633 | J114: 68 | K114: 52 | L114: 32 | M114: 21 | N114: 0 | O114: 0
A115: 紡織纖維2 | B115: 紡織纖維51 | C115: 4439 冠星-KY | D115: 紡織纖維 | E115: M1400 | F115: 872017 | G115: 400746 | H115: 117.6 | I115: 471271 | J115: 68 | K115: 52 | L115: 2 | M115: 51 | N115: 0 | O115: 0
A116: 紡織纖維17 | B116: 紡織纖維36 | C116: 4440 宜新實業 | D116: 紡織纖維 | E116: M1400 | F116: 116431 | G116: 72752 | H116: 60.04 | I116: 43679 | J116: 68 | K116: 52 | L116: 17 | M116: 36 | N116: 0 | O116: 0
A117: 紡織纖維42 | B117: 紡織纖維11 | C117: 4441 振大環球 | D117: 紡織纖維 | E117: M1400 | F117: 602614 | G117: 586105 | H117: 2.82 | I117: 16509 | J117: 68 | K117: 52 | L117: 42 | M117: 11 | N117: 0 | O117: 0
A118: 紡織纖維41 | B118: 紡織纖維12 | C118: 4442 竣邦-KY | D118: 紡織纖維 | E118: M1400 | F118: 164870 | G118: 159920 | H118: 3.1 | I118: 4950 | J118: 68 | K118: 52 | L118: 41 | M118: 12 | N118: 0 | O118: 0
A119: 紡織纖維8 | B119: 紡織纖維45 | C119: 6506 雙邦 | D119: 紡織纖維 | E119: M1400 | F119: 232491 | G119: 130890 | H119: 77.62 | I119: 101601 | J119: 68 | K119: 52 | L119: 8 | M119: 45 | N119: 0 | O119: 0
A120: 電機機械35 | B120: 電機機械64 | C120: 1503 士電 | D120: 電機機械 | E120: M1500 | F120: 4230241 | G120: 2844510 | H120: 48.72 | I120: 1385731 | J120: 120 | K120: 98 | L120: 35 | M120: 64 | N120: 0 | O120: 0
A121: 電機機械67 | B121: 電機機械32 | C121: 1504 東元 | D121: 電機機械 | E121: M1500 | F121: 5126597 | G121: 4428182 | H121: 15.77 | I121: 698415 | J121: 120 | K121: 98 | L121: 67 | M121: 32 | N121: 0 | O121: 0
A122: 電機機械86 | B122: 電機機械13 | C122: 1506 正道 | D122: 電機機械 | E122: M1500 | F122: 98012 | G122: 96478 | H122: 1.59 | I122: 1534 | J122: 120 | K122: 98 | L122: 86 | M122: 13 | N122: 0 | O122: 0
A123: 電機機械47 | B123: 電機機械52 | C123: 1513 中興電 | D123: 電機機械 | E123: M1500 | F123: 2477893 | G123: 1879058 | H123: 31.87 | I123: 598835 | J123: 120 | K123: 98 | L123: 47 | M123: 52 | N123: 0 | O123: 0
A124: 電機機械85 | B124: 電機機械14 | C124: 1514 亞力 | D124: 電機機械 | E124: M1500 | F124: 795495 | G124: 778370 | H124: 2.2 | I124: 17125 | J124: 120 | K124: 98 | L124: 85 | M124: 14 | N124: 0 | O124: 0
A125: 電機機械78 | B125: 電機機械21 | C125: 1515 力山 | D125: 電機機械 | E125: M1500 | F125: 311608 | G125: 288446 | H125: 8.03 | I125: 23162 | J125: 120 | K125: 98 | L125: 78 | M125: 21 | N125: 0 | O125: 0
A126: 電機機械24 | B126: 電機機械75 | C126: 1517 利奇 | D126: 電機機械 | E126: M1500 | F126: 159825 | G126: 94467 | H126: 69.19 | I126: 65358 | J126: 120 | K126: 98 | L126: 24 | M126: 75 | N126: 0 | O126: 0
A127: 電機機械34 | B127: 電機機械65 | C127: 1519 華城 | D127: 電機機械 | E127: M1500 | F127: 2036539 | G127: 1363202 | H127: 49.39 | I127: 673337 | J127: 120 | K127: 98 | L127: 34 | M127: 65 | N127: 0 | O127: 0
A128: 電機機械28 | B128: 電機機械71 | C128: 1526 日馳 | D128: 電機機械 | E128: M1500 | F128: 66644 | G128: 40240 | H128: 65.62 | I128: 26404 | J128: 120 | K128: 98 | L128: 28 | M128: 71 | N128: 0 | O128: 0
A129: 電機機械25 | B129: 電機機械74 | C129: 1527 鑽全 | D129: 電機機械 | E129: M1500 | F129: 243765 | G129: 145143 | H129: 67.95 | I129: 98622 | J129: 120 | K129: 98 | L129: 25 | M129: 74 | N129: 0 | O129: 0
A130: 電機機械58 | B130: 電機機械41 | C130: 1528 恩德 | D130: 電機機械 | E130: M1500 | F130: 277042 | G130: 220658 | H130: 25.55 | I130: 56384 | J130: 120 | K130: 98 | L130: 58 | M130: 41 | N130: 0 | O130: 0
A131: 電機機械95 | B131: 電機機械4 | C131: 1529 樂事綠能 | D131: 電機機械 | E131: M1500 | F131: 33030 | G131: 58630 | H131: -43.66 | I131: -25600 | J131: 120 | K131: 98 | L131: 95 | M131: 4 | N131: 0 | O131: 0
A132: =D132&L132 -> 電機機械46 | B132: =D132&M132 -> 電機機械53 | C132: 1530 亞崴 | D132: 電機機械 | E132: M1500 | F132: 172667 | G132: 130895 | H132: 31.91 | I132: =F132-G132 -> 41772 | J132: =IF(E132="","",MATCH(E132,E:E,0)) -> 120 | K132: =COUNTIF(D:D,D132) -> 98 | L132: =IF(H132="","",RANK(H132,OFFSET(H$1,$J132-1,,$K132,),0)) -> 46 | M132: =IF(H132="","",RANK(H132,OFFSET(H$1,$J132-1,,$K132,),1)) -> 53 | N132: 0 | O132: 0
A133: 電機機械60 | B133: 電機機械39 | C133: 1531 高林股 | D133: 電機機械 | E133: M1500 | F133: 127592 | G133: 102687 | H133: 24.25 | I133: 24905 | J133: 120 | K133: 98 | L133: 60 | M133: 39 | N133: 0 | O133: 0
A134: 電機機械54 | B134: 電機機械45 | C134: 1532 勤美 | D134: 電機機械 | E134: M1500 | F134: 1237316 | G134: 973567 | H134: 27.09 | I134: 263749 | J134: 120 | K134: 98 | L134: 54 | M134: 45 | N134: 0 | O134: 0
A135: 電機機械83 | B135: 電機機械16 | C135: 1535 中宇 | D135: 電機機械 | E135: M1500 | F135: 799835 | G135: 772725 | H135: 3.51 | I135: 27110 | J135: 120 | K135: 98 | L135: 83 | M135: 16 | N135: 0 | O135: 0
A136: 電機機械87 | B136: 電機機械12 | C136: 1537 廣隆 | D136: 電機機械 | E136: M1500 | F136: 548412 | G136: 546743 | H136: 0.31 | I136: 1669 | J136: 120 | K136: 98 | L136: 87 | M136: 12 | N136: 0 | O136: 0
A137: 電機機械17 | B137: 電機機械82 | C137: 1538 正峰 | D137: 電機機械 | E137: M1500 | F137: 3994 | G137: 2160 | H137: 84.91 | I137: 1834 | J137: 120 | K137: 98 | L137: 17 | M137: 82 | N137: 0 | O137: 0
A138: 電機機械93 | B138: 電機機械6 | C138: 1539 巨庭 | D138: 電機機械 | E138: M1500 | F138: 65670 | G138: 84208 | H138: -22.01 | I138: -18538 | J138: 120 | K138: 98 | L138: 93 | M138: 6 | N138: 0 | O138: 0
A139: 電機機械48 | B139: 電機機械51 | C139: 1540 喬福 | D139: 電機機械 | E139: M1500 | F139: 28359 | G139: 21574 | H139: 31.45 | I139: 6785 | J139: 120 | K139: 98 | L139: 48 | M139: 51 | N139: 0 | O139: 0
A140: 電機機械92 | B140: 電機機械7 | C140: 1541 錩泰 | D140: 電機機械 | E140: M1500 | F140: 159545 | G140: 191159 | H140: -16.54 | I140: -31614 | J140: 120 | K140: 98 | L140: 92 | M140: 7 | N140: 0 | O140: 0
A141: 電機機械43 | B141: 電機機械56 | C141: 1558 伸興 | D141: 電機機械 | E141: M1500 | F141: 699348 | G141: 506940 | H141: 37.95 | I141: 192408 | J141: 120 | K141: 98 | L141: 43 | M141: 56 | N141: 0 | O141: 0
A142: 電機機械82 | B142: 電機機械17 | C142: 1560 中砂 | D142: 電機機械 | E142: M1500 | F142: 789165 | G142: 751193 | H142: 5.05 | I142: 37972 | J142: 120 | K142: 98 | L142: 82 | M142: 17 | N142: 0 | O142: 0
A143: 電機機械5 | B143: 電機機械94 | C143: 1570 力肯 | D143: 電機機械 | E143: M1500 | F143: 52171 | G143: 22460 | H143: 132.28 | I143: 29711 | J143: 120 | K143: 98 | L143: 5 | M143: 94 | N143: 0 | O143: 0
A144: 電機機械72 | B144: 電機機械27 | C144: 1580 新麥 | D144: 電機機械 | E144: M1500 | F144: 351484 | G144: 312560 | H144: 12.45 | I144: 38924 | J144: 120 | K144: 98 | L144: 72 | M144: 27 | N144: 0 | O144: 0
A145: 電機機械11 | B145: 電機機械88 | C145: 1583 程泰 | D145: 電機機械 | E145: M1500 | F145: 414405 | G145: 205899 | H145: 101.27 | I145: 208506 | J145: 120 | K145: 98 | L145: 11 | M145: 88 | N145: 0 | O145: 0
A146: 電機機械55 | B146: 電機機械44 | C146: 1586 和勤 | D146: 電機機械 | E146: M1500 | F146: 184217 | G146: 145330 | H146: 26.76 | I146: 38887 | J146: 120 | K146: 98 | L146: 55 | M146: 44 | N146: 0 | O146: 0
A147: 電機機械31 | B147: 電機機械68 | C147: 1589 永冠-KY | D147: 電機機械 | E147: M1500 | F147: 667961 | G147: 420278 | H147: 58.93 | I147: 247683 | J147: 120 | K147: 98 | L147: 31 | M147: 68 | N147: 0 | O147: 0
A148: 電機機械15 | B148: 電機機械84 | C148: 1590 亞德客-KY | D148: 電機機械 | E148: M1500 | F148: 4139710 | G148: 2171413 | H148: 90.65 | I148: 1968297 | J148: 120 | K148: 98 | L148: 15 | M148: 84 | N148: 0 | O148: 0
A149: 電機機械50 | B149: 電機機械49 | C149: 1591 駿吉-KY | D149: 電機機械 | E149: M1500 | F149: 50028 | G149: 38316 | H149: 30.57 | I149: 11712 | J149: 120 | K149: 98 | L149: 50 | M149: 49 | N149: 0 | O149: 0
A150: 電機機械71 | B150: 電機機械28 | C150: 1597 直得 | D150: 電機機械 | E150: M1500 | F150: 120499 | G150: 106281 | H150: 13.38 | I150: 14218 | J150: 120 | K150: 98 | L150: 71 | M150: 28 | N150: 0 | O150: 0
A151: 電機機械42 | B151: 電機機械57 | C151: 1599 宏佳騰 | D151: 電機機械 | E151: M1500 | F151: 246130 | G151: 177997 | H151: 38.28 | I151: 68133 | J151: 120 | K151: 98 | L151: 42 | M151: 57 | N151: 0 | O151: 0
A152: 電機機械57 | B152: 電機機械42 | C152: 2049 上銀 | D152: 電機機械 | E152: M1500 | F152: 2357195 | G152: 1872071 | H152: 25.91 | I152: 485124 | J152: 120 | K152: 98 | L152: 57 | M152: 42 | N152: 0 | O152: 0
A153: 電機機械80 | B153: 電機機械19 | C153: 2066 世德 | D153: 電機機械 | E153: M1500 | F153: 254162 | G153: 237844 | H153: 6.86 | I153: 16318 | J153: 120 | K153: 98 | L153: 80 | M153: 19 | N153: 0 | O153: 0
A154: 電機機械29 | B154: 電機機械70 | C154: 2067 嘉鋼 | D154: 電機機械 | E154: M1500 | F154: 87921 | G154: 54255 | H154: 62.05 | I154: 33666 | J154: 120 | K154: 98 | L154: 29 | M154: 70 | N154: 0 | O154: 0
A155: 電機機械9 | B155: 電機機械90 | C155: 2070 精湛 | D155: 電機機械 | E155: M1500 | F155: 75686 | G155: 36283 | H155: 108.6 | I155: 39403 | J155: 120 | K155: 98 | L155: 9 | M155: 90 | N155: 0 | O155: 0
A156: 電機機械90 | B156: 電機機械9 | C156: 2230 泰茂 | D156: 電機機械 | E156: M1500 | F156: 222286 | G156: 253212 | H156: -12.21 | I156: -30926 | J156: 120 | K156: 98 | L156: 90 | M156: 9 | N156: 0 | O156: 0
A157: 電機機械63 | B157: 電機機械36 | C157: 2235 謚源 | D157: 電機機械 | E157: M1500 | F157: 50651 | G157: 41365 | H157: 22.45 | I157: 9286 | J157: 120 | K157: 98 | L157: 63 | M157: 36 | N157: 0 | O157: 0
A158: 電機機械38 | B158: 電機機械61 | C158: 2371 大同 | D158: 電機機械 | E158: M1500 | F158: 4261004 | G158: 2982824 | H158: 42.85 | I158: 1278180 | J158: 120 | K158: 98 | L158: 38 | M158: 61 | N158: =U158 -> 0 | O158: =V158 -> 0
A159: 電機機械21 | B159: 電機機械78 | C159: 3162 精確 | D159: 電機機械 | E159: M1500 | F159: 774396 | G159: 444314 | H159: 74.29 | I159: 330082 | J159: 120 | K159: 98 | L159: 21 | M159: 78 | N159: 0 | O159: 0
A160: 電機機械45 | B160: 電機機械54 | C160: 3167 大量 | D160: 電機機械 | E160: M1500 | F160: 773478 | G160: 571184 | H160: 35.42 | I160: 202294 | J160: 120 | K160: 98 | L160: 45 | M160: 54 | N160: 0 | O160: 0
A161: 電機機械70 | B161: 電機機械29 | C161: 3226 龍鋒 | D161: 電機機械 | E161: M1500 | F161: 114630 | G161: 100880 | H161: 13.63 | I161: 13750 | J161: 120 | K161: 98 | L161: 70 | M161: 29 | N161: 0 | O161: 0
A162: 電機機械97 | B162: 電機機械2 | C162: 3379 彬台 | D162: 電機機械 | E162: M1500 | F162: 32373 | G162: 72091 | H162: -55.09 | I162: -39718 | J162: 120 | K162: 98 | L162: 97 | M162: 2 | N162: 0 | O162: 0
A163: 電機機械53 | B163: 電機機械46 | C163: 3426 台興 | D163: 電機機械 | E163: M1500 | F163: 56006 | G163: 43973 | H163: 27.36 | I163: 12033 | J163: 120 | K163: 98 | L163: 53 | M163: 46 | N163: 0 | O163: 0
A164: 電機機械3 | B164: 電機機械96 | C164: 3685 元創精密 | D164: 電機機械 | E164: M1500 | F164: 169195 | G164: 68862 | H164: 145.7 | I164: 100333 | J164: 120 | K164: 98 | L164: 3 | M164: 96 | N164: 0 | O164: 0
A165: 電機機械69 | B165: 電機機械30 | C165: 4502 健信 | D165: 電機機械 | E165: M1500 | F165: 92948 | G165: 81065 | H165: 14.66 | I165: 11883 | J165: 120 | K165: 98 | L165: 69 | M165: 30 | N165: 0 | O165: 0
A166: 電機機械1 | B166: 電機機械98 | C166: 4503 金雨 | D166: 電機機械 | E166: M1500 | F166: 88840 | G166: 32035 | H166: 177.32 | I166: 56805 | J166: 120 | K166: 98 | L166: 1 | M166: 98 | N166: 0 | O166: 0
A167: 電機機械36 | B167: 電機機械63 | C167: 4506 崇友 | D167: 電機機械 | E167: M1500 | F167: 691130 | G167: 468857 | H167: 47.41 | I167: 222273 | J167: 120 | K167: 98 | L167: 36 | M167: 63 | N167: 0 | O167: 0
A168: 電機機械74 | B168: 電機機械25 | C168: 4510 高鋒 | D168: 電機機械 | E168: M1500 | F168: 145097 | G168: 129888 | H168: 11.71 | I168: 15209 | J168: 120 | K168: 98 | L168: 74 | M168: 25 | N168: 0 | O168: 0
A169: 電機機械98 | B169: 電機機械1 | C169: 4513 福裕 | D169: 電機機械 | E169: M1500 | F169: 85855 | G169: 235678 | H169: -63.57 | I169: -149823 | J169: 120 | K169: 98 | L169: 98 | M169: 1 | N169: 0 | O169: 0
A170: 電機機械27 | B170: 電機機械72 | C170: 4523 永彰 | D170: 電機機械 | E170: M1500 | F170: 90390 | G170: 53897 | H170: 67.71 | I170: 36493 | J170: 120 | K170: 98 | L170: 27 | M170: 72 | N170: 0 | O170: 0
A171: 電機機械20 | B171: 電機機械79 | C171: 4526 東台 | D171: 電機機械 | E171: M1500 | F171: 457427 | G171: 260616 | H171: 75.52 | I171: 196811 | J171: 120 | K171: 98 | L171: 20 | M171: 79 | N171: 0 | O171: 0
A172: 電機機械13 | B172: 電機機械86 | C172: 4527 方方土霖 | D172: 電機機械 | E172: M1500 | F172: 259374 | G172: 132427 | H172: 95.86 | I172: 126947 | J172: 120 | K172: 98 | L172: 13 | M172: 86 | N172: 0 | O172: 0
A173: 電機機械66 | B173: 電機機械33 | C173: 4528 江興鍛 | D173: 電機機械 | E173: M1500 | F173: 112396 | G173: 97043 | H173: 15.82 | I173: 15353 | J173: 120 | K173: 98 | L173: 66 | M173: 33 | N173: 0 | O173: 0
A174: 電機機械52 | B174: 電機機械47 | C174: 4532 瑞智 | D174: 電機機械 | E174: M1500 | F174: 2287991 | G174: 1789302 | H174: 27.87 | I174: 498689 | J174: 120 | K174: 98 | L174: 52 | M174: 47 | N174: 0 | O174: 0
A175: 電機機械68 | B175: 電機機械31 | C175: 4533 協易機 | D175: 電機機械 | E175: M1500 | F175: 281073 | G175: 243427 | H175: 15.47 | I175: 37646 | J175: 120 | K175: 98 | L175: 68 | M175: 31 | N175: 0 | O175: 0
A176: 電機機械7 | B176: 電機機械92 | C176: 4534 慶騰 | D176: 電機機械 | E176: M1500 | F176: 89778 | G176: 39481 | H176: 127.4 | I176: 50297 | J176: 120 | K176: 98 | L176: 7 | M176: 92 | N176: 0 | O176: 0
A177: 電機機械23 | B177: 電機機械76 | C177: 4535 至興 | D177: 電機機械 | E177: M1500 | F177: 219400 | G177: 129317 | H177: 69.66 | I177: 90083 | J177: 120 | K177: 98 | L177: 23 | M177: 76 | N177: 0 | O177: 0
A178: 電機機械61 | B178: 電機機械38 | C178: 4538 大詠城 | D178: 電機機械 | E178: M1500 | F178: 30569 | G178: 24718 | H178: 23.67 | I178: 5851 | J178: 120 | K178: 98 | L178: 61 | M178: 38 | N178: 0 | O178: 0
A179: 電機機械10 | B179: 電機機械89 | C179: 4540 全球傳動 | D179: 電機機械 | E179: M1500 | F179: 346896 | G179: 172266 | H179: 101.37 | I179: 174630 | J179: 120 | K179: 98 | L179: 10 | M179: 89 | N179: 0 | O179: 0
A180: 電機機械19 | B180: 電機機械80 | C180: 4543 萬在 | D180: 電機機械 | E180: M1500 | F180: 102889 | G180: 58378 | H180: 76.25 | I180: 44511 | J180: 120 | K180: 98 | L180: 19 | M180: 80 | N180: 0 | O180: 0
A181: 電機機械16 | B181: 電機機械83 | C181: 4549 桓達 | D181: 電機機械 | E181: M1500 | F181: 112628 | G181: 59268 | H181: 90.03 | I181: 53360 | J181: 120 | K181: 98 | L181: 16 | M181: 83 | N181: 0 | O181: 0
A182: 電機機械89 | B182: 電機機械10 | C182: 4550 長佳 | D182: 電機機械 | E182: M1500 | F182: 53866 | G182: 59661 | H182: -9.71 | I182: -5795 | J182: 120 | K182: 98 | L182: 89 | M182: 10 | N182: 0 | O182: 0
A183: 電機機械6 | B183: 電機機械93 | C183: 4552 力達-KY | D183: 電機機械 | E183: M1500 | F183: 320145 | G183: 139482 | H183: 129.52 | I183: 180663 | J183: 120 | K183: 98 | L183: 6 | M183: 93 | N183: 0 | O183: 0
A184: 電機機械81 | B184: 電機機械18 | C184: 4555 氣立 | D184: 電機機械 | E184: M1500 | F184: 134206 | G184: 127706 | H184: 5.09 | I184: 6500 | J184: 120 | K184: 98 | L184: 81 | M184: 18 | N184: 0 | O184: 0
A185: 電機機械32 | B185: 電機機械67 | C185: 4558 寶緯 | D185: 電機機械 | E185: M1500 | F185: 122094 | G185: 80282 | H185: 52.08 | I185: 41812 | J185: 120 | K185: 98 | L185: 32 | M185: 67 | N185: 0 | O185: 0
A186: 電機機械41 | B186: 電機機械58 | C186: 4560 強信-KY | D186: 電機機械 | E186: M1500 | F186: 178821 | G186: 127914 | H186: 39.8 | I186: 50907 | J186: 120 | K186: 98 | L186: 41 | M186: 58 | N186: 0 | O186: 0
A187: 電機機械14 | B187: 電機機械85 | C187: 4561 健椿 | D187: 電機機械 | E187: M1500 | F187: 94359 | G187: 49305 | H187: 91.38 | I187: 45054 | J187: 120 | K187: 98 | L187: 14 | M187: 85 | N187: 0 | O187: 0
A188: 電機機械8 | B188: 電機機械91 | C188: 4562 穎漢 | D188: 電機機械 | E188: M1500 | F188: 72816 | G188: 33043 | H188: 120.37 | I188: 39773 | J188: 120 | K188: 98 | L188: 8 | M188: 91 | N188: 0 | O188: 0
A189: 電機機械39 | B189: 電機機械60 | C189: 4563 百德 | D189: 電機機械 | E189: M1500 | F189: 239183 | G189: 167686 | H189: 42.64 | I189: 71497 | J189: 120 | K189: 98 | L189: 39 | M189: 60 | N189: 0 | O189: 0
A190: 電機機械94 | B190: 電機機械5 | C190: 4564 元翎 | D190: 電機機械 | E190: M1500 | F190: 46462 | G190: 64292 | H190: -27.73 | I190: -17830 | J190: 120 | K190: 98 | L190: 94 | M190: 5 | N190: 0 | O190: 0
A191: 電機機械62 | B191: 電機機械37 | C191: 4566 時碩工業 | D191: 電機機械 | E191: M1500 | F191: 466952 | G191: 379804 | H191: 22.95 | I191: 87148 | J191: 120 | K191: 98 | L191: 62 | M191: 37 | N191: 0 | O191: 0
A192: 電機機械96 | B192: 電機機械3 | C192: 4568 科際精密 | D192: 電機機械 | E192: M1500 | F192: 61213 | G192: 112873 | H192: -45.77 | I192: -51660 | J192: 120 | K192: 98 | L192: 96 | M192: 3 | N192: 0 | O192: 0
A193: 電機機械40 | B193: 電機機械59 | C193: 4571 鈞興-KY | D193: 電機機械 | E193: M1500 | F193: 264368 | G193: 186417 | H193: 41.82 | I193: 77951 | J193: 120 | K193: 98 | L193: 40 | M193: 59 | N193: 0 | O193: 0
A194: 電機機械84 | B194: 電機機械15 | C194: 4572 駐龍 | D194: 電機機械 | E194: M1500 | F194: 64032 | G194: 62395 | H194: 2.62 | I194: 1637 | J194: 120 | K194: 98 | L194: 84 | M194: 15 | N194: 0 | O194: 0
A195: 電機機械56 | B195: 電機機械43 | C195: 4576 大銀微系統 | D195: 電機機械 | E195: M1500 | F195: 321496 | G195: 255227 | H195: 25.96 | I195: 66269 | J195: 120 | K195: 98 | L195: 56 | M195: 43 | N195: 0 | O195: 0
A196: =D196&L196 -> 電機機械65 | B196: =D196&M196 -> 電機機械34 | C196: 4580 捷流閥業 | D196: 電機機械 | E196: M1500 | F196: 206306 | G196: 172825 | H196: 19.37 | I196: =F196-G196 -> 33481 | J196: =IF(E196="","",MATCH(E196,E:E,0)) -> 120 | K196: =COUNTIF(D:D,D196) -> 98 | L196: =IF(H196="","",RANK(H196,OFFSET(H$1,$J196-1,,$K196,),0)) -> 65 | M196: =IF(H196="","",RANK(H196,OFFSET(H$1,$J196-1,,$K196,),1)) -> 34 | N196: 0 | O196: 0
A197: 電機機械59 | B197: 電機機械40 | C197: 4583 台灣精銳 | D197: 電機機械 | E197: M1500 | F197: 312129 | G197: 249327 | H197: 25.19 | I197: 62802 | J197: 120 | K197: 98 | L197: 59 | M197: 40 | N197: 0 | O197: 0
A198: 電機機械76 | B198: 電機機械23 | C198: 4584 君帆 | D198: 電機機械 | E198: M1500 | F198: 86433 | G198: 78550 | H198: 10.04 | I198: 7883 | J198: 120 | K198: 98 | L198: 76 | M198: 23 | N198: 0 | O198: 0
A199: 電機機械12 | B199: 電機機械87 | C199: 5288 豐祥-KY | D199: 電機機械 | E199: M1500 | F199: 835163 | G199: 421616 | H199: 98.09 | I199: 413547 | J199: 120 | K199: 98 | L199: 12 | M199: 87 | N199: 0 | O199: 0
A200: 電機機械22 | B200: 電機機械77 | C200: 6122 擎邦 | D200: 電機機械 | E200: M1500 | F200: 349062 | G200: 200755 | H200: 73.87 | I200: 148307 | J200: 120 | K200: 98 | L200: 22 | M200: 77 | N200: 0 | O200: 0
... 2800 more rows

Sheet 表C_RAW
A1: 排名(正向) | B1: 排名(反向) | D1: TSE新產業_名稱 | E1: TSE新產業_代碼 | F1: 累計營收(千元) | G1: 去年累計營收(千元) | H1: 累計營收成長率％ | J1: 產業位址 | K1: 產業家數 | L1: 排名(正向) | M1: 排名(反向) | N1: 排名(正向) | O1: 排名(反向) | P1: 產業營收 | Q1: 單月營收(千元) | R1: 上月單月營收(千元) | S1: 本月較上月變動金額 | T1: 單月營收與上月比％ | U1: 排名(正向) | V1: 排名(反向)
C2: 公司 | E2: 2026-03-31 | F2: 2026-03-31 | G2: 2026-03-31 | H2: 2026-03-31 | N2: =U2 -> 33 | O2: =V2 -> 2 | P2: =_xlfn.UNIQUE($D$3:$D$2500,FALSE,FALSE) -> 水泥工業 | Q2: =SUMIF($D:$D,$P2,F:F) -> 52955010 | R2: =SUMIF($D:$D,$P2,G:G) -> 57191186 | S2: =Q2-R2 -> -4236176 | T2: =IF(VLOOKUP(P2,$D:$K,8,0)=1,"",ROUND(S2/R2*100,3)) -> -7.407 | U2: =IF($T2="",0,_xlfn.RANK.EQ(T2,T:T)) -> 33 | V2: =IF($T2="",0,_xlfn.RANK.EQ(T2,T:T,1)) -> 2
A3: =D3&L3 -> 水泥工業1 | B3: =D3&M3 -> 水泥工業7 | C3: 1101 台泥 | D3: 水泥工業 | E3: M1100 | F3: 33259418 | G3: 34972226 | H3: -4.9 | I3: =F3-G3 -> -1712808 | J3: =IF(E3="","",MATCH(E3,E:E,0)) -> 3 | K3: =COUNTIF(D:D,D3) -> 7 | L3: =IF(H3="","",RANK(H3,OFFSET(H$1,$J3-1,,$K3,),0)) -> 1 | M3: =IF(H3="","",RANK(H3,OFFSET(H$1,$J3-1,,$K3,),1)) -> 7 | N3: =U3 -> 19 | O3: 16 | P3: 食品工業 | Q3: =SUMIF($D:$D,$P3,F:F) -> 263166219 | R3: 253487724 | S3: =Q3-R3 -> 9678495 | T3: =IF(VLOOKUP(P3,$D:$K,8,0)=1,"",ROUND(S3/R3*100,3)) -> 3.818 | U3: =IF($T3="",0,_xlfn.RANK.EQ(T3,T:T)) -> 19 | V3: =IF($T3="",0,_xlfn.RANK.EQ(T3,T:T,1)) -> 16
A4: =D4&L4 -> 水泥工業4 | B4: =D4&M4 -> 水泥工業4 | C4: 1102 亞泥 | D4: 水泥工業 | E4: M1100 | F4: 14829486 | G4: 16594707 | H4: -10.64 | I4: =F4-G4 -> -1765221 | J4: =IF(E4="","",MATCH(E4,E:E,0)) -> 3 | K4: =COUNTIF(D:D,D4) -> 7 | L4: =IF(H4="","",RANK(H4,OFFSET(H$1,$J4-1,,$K4,),0)) -> 4 | M4: =IF(H4="","",RANK(H4,OFFSET(H$1,$J4-1,,$K4,),1)) -> 4 | N4: 26 | O4: 9 | P4: 塑膠工業 | Q4: 248846102 | R4: 251429535 | S4: -2583433 | T4: -1.027 | U4: 26 | V4: 9
A5: 水泥工業2 | B5: 水泥工業6 | C5: 1103 嘉泥 | D5: 水泥工業 | E5: M1100 | F5: 688369 | G5: 752454 | H5: -8.52 | I5: -64085 | J5: 3 | K5: 7 | L5: 2 | M5: 6 | N5: 32 | O5: 3 | P5: 紡織纖維 | Q5: 142360754 | R5: 149455024 | S5: -7094270 | T5: -4.747 | U5: 32 | V5: 3
A6: 水泥工業3 | B6: 水泥工業5 | C6: 1104 環泥 | D6: 水泥工業 | E6: M1100 | F6: 1759047 | G6: 1928654 | H6: -8.79 | I6: -169607 | J6: 3 | K6: 7 | L6: 3 | M6: 5 | N6: 12 | O6: 23 | P6: 電機機械 | Q6: 140127044 | R6: 128171644 | S6: 11955400 | T6: 9.328 | U6: 12 | V6: 23
A7: 水泥工業6 | B7: 水泥工業2 | C7: 1108 幸福 | D7: 水泥工業 | E7: M1100 | F7: 980706 | G7: 1212710 | H7: -19.13 | I7: -232004 | J7: 3 | K7: 7 | L7: 6 | M7: 2 | N7: 30 | O7: 5 | P7: 電器電纜 | Q7: 71350754 | R7: 73730706 | S7: -2379952 | T7: -3.228 | U7: 30 | V7: 5
A8: 水泥工業5 | B8: 水泥工業3 | C8: 1109 信大 | D8: 水泥工業 | E8: M1100 | F8: 855341 | G8: 989911 | H8: -13.59 | I8: -134570 | J8: 3 | K8: 7 | L8: 5 | M8: 3 | N8: 18 | O8: 17 | P8: 化學工業 | Q8: 82538662 | R8: 79068978 | S8: 3469684 | T8: 4.388 | U8: 18 | V8: 17
A9: 水泥工業7 | B9: 水泥工業1 | C9: 1110 東泥 | D9: 水泥工業 | E9: M1100 | F9: 582643 | G9: 740524 | H9: -21.32 | I9: -157881 | J9: 3 | K9: 7 | L9: 7 | M9: 1 | N9: 11 | O9: 24 | P9: 生技醫療業 | Q9: 85613331 | R9: 78155501 | S9: 7457830 | T9: 9.542 | U9: 11 | V9: 24
A10: 食品工業28 | B10: 食品工業6 | C10: 1201 味全 | D10: 食品工業 | E10: M1200 | F10: 5001067 | G10: 5215369 | H10: -4.11 | I10: -214302 | J10: 10 | K10: 33 | L10: 28 | M10: 6 | N10: 22 | O10: 13 | P10: 玻璃陶瓷 | Q10: 13144016 | R10: 12808286 | S10: 335730 | T10: 2.621 | U10: 22 | V10: 13
A11: 食品工業32 | B11: 食品工業2 | C11: 1203 味王 | D11: 食品工業 | E11: M1200 | F11: 1312851 | G11: 1532412 | H11: -14.33 | I11: -219561 | J11: 10 | K11: 33 | L11: 32 | M11: 2 | N11: 25 | O11: 10 | P11: 造紙工業 | Q11: 47027437 | R11: 46959624 | S11: 67813 | T11: 0.144 | U11: 25 | V11: 10
A12: 食品工業18 | B12: 食品工業16 | C12: 1210 大成 | D12: 食品工業 | E12: M1200 | F12: 26564977 | G12: 25542326 | H12: 4 | I12: 1022651 | J12: 10 | K12: 33 | L12: 18 | M12: 16 | N12: 28 | O12: 7 | P12: 鋼鐵工業 | Q12: 233266578 | R12: 239413493 | S12: -6146915 | T12: -2.567 | U12: 28 | V12: 7
A13: 食品工業7 | B13: 食品工業27 | C13: 1213 大飲 | D13: 食品工業 | E13: M1200 | F13: 77083 | G13: 66141 | H13: 16.54 | I13: 10942 | J13: 10 | K13: 33 | L13: 7 | M13: 27 | N13: 15 | O13: 20 | P13: 橡膠工業 | Q13: 55857205 | R13: 53106804 | S13: 2750401 | T13: 5.179 | U13: 15 | V13: 20
A14: 食品工業11 | B14: 食品工業23 | C14: 1215 卜蜂 | D14: 食品工業 | E14: M1200 | F14: 7176319 | G14: 6697082 | H14: 7.16 | I14: 479237 | J14: 10 | K14: 33 | L14: 11 | M14: 23 | N14: 29 | O14: 6 | P14: 汽車工業 | Q14: 172031070 | R14: 176808918 | S14: -4777848 | T14: -2.702 | U14: 29 | V14: 6
A15: 食品工業19 | B15: 食品工業15 | C15: 1216 統一 | D15: 食品工業 | E15: M1200 | F15: 175016437 | G15: 169266002 | H15: 3.4 | I15: 5750435 | J15: 10 | K15: 33 | L15: 19 | M15: 15 | N15: 4 | O15: 31 | P15: 半導體業 | Q15: 2141819410 | R15: 1650831685 | S15: 490987725 | T15: 29.742 | U15: 4 | V15: 31
A16: 食品工業25 | B16: 食品工業9 | C16: 1217 愛之味 | D16: 食品工業 | E16: M1200 | F16: 1166214 | G16: 1185670 | H16: -1.64 | I16: -19456 | J16: 10 | K16: 33 | L16: 25 | M16: 9 | N16: 2 | O16: 33 | P16: 電腦及週邊設備業 | Q16: 3451951272 | R16: 2310998108 | S16: 1140953164 | T16: 49.371 | U16: 2 | V16: 33
A17: 食品工業13 | B17: 食品工業21 | C17: 1218 泰山 | D17: 食品工業 | E17: M1200 | F17: 2653122 | G17: 2499326 | H17: 6.15 | I17: 153796 | J17: 10 | K17: 33 | L17: 13 | M17: 21 | N17: 13 | O17: 22 | P17: 光電業 | Q17: 325338261 | R17: 304941808 | S17: 20396453 | T17: 6.689 | U17: 13 | V17: 22
A18: 食品工業23 | B18: 食品工業11 | C18: 1219 福壽 | D18: 食品工業 | E18: M1200 | F18: 3635378 | G18: 3635481 | H18: 0 | I18: -103 | J18: 10 | K18: 33 | L18: 23 | M18: 11 | N18: 9 | O18: 26 | P18: 通訊網路業 | Q18: 352536432 | R18: 305382723 | S18: 47153709 | T18: 15.441 | U18: 9 | V18: 26
A19: 食品工業26 | B19: 食品工業8 | C19: 1220 台榮 | D19: 食品工業 | E19: M1200 | F19: 732202 | G19: 758249 | H19: -3.44 | I19: -26047 | J19: 10 | K19: 33 | L19: 26 | M19: 8 | N19: 8 | O19: 27 | P19: 電子零組件 | Q19: 740009881 | R19: 624314837 | S19: 115695044 | T19: 18.532 | U19: 8 | V19: 27
A20: 食品工業21 | B20: 食品工業13 | C20: 1225 福懋油 | D20: 食品工業 | E20: M1200 | F20: 3281183 | G20: 3220752 | H20: 1.88 | I20: 60431 | J20: 10 | K20: 33 | L20: 21 | M20: 13 | N20: 1 | O20: 34 | P20: 電子通路業 | Q20: 1260139978 | R20: 814600535 | S20: 445539443 | T20: 54.694 | U20: 1 | V20: 34
A21: 食品工業8 | B21: 食品工業26 | C21: 1227 佳格 | D21: 食品工業 | E21: M1200 | F21: 7770503 | G21: 6880311 | H21: 12.94 | I21: 890192 | J21: 10 | K21: 33 | L21: 8 | M21: 26 | N21: 10 | O21: 25 | P21: 資訊服務業 | Q21: 52694405 | R21: 47176814 | S21: 5517591 | T21: 11.696 | U21: 10 | V21: 25
A22: 食品工業10 | B22: 食品工業24 | C22: 1229 聯華 | D22: 食品工業 | E22: M1200 | F22: 2616213 | G22: 2421955 | H22: 8.02 | I22: 194258 | J22: 10 | K22: 33 | L22: 10 | M22: 24 | N22: 6 | O22: 29 | P22: 其他電子業 | Q22: 2394105901 | R22: 1867521319 | S22: 526584582 | T22: 28.197 | U22: 6 | V22: 29
A23: 食品工業12 | B23: 食品工業22 | C23: 1231 聯華食 | D23: 食品工業 | E23: M1200 | F23: 3348538 | G23: 3125895 | H23: 7.12 | I23: 222643 | J23: 10 | K23: 33 | L23: 12 | M23: 22 | N23: 3 | O23: 32 | P23: 建材營造 | Q23: 156330557 | R23: 109771963 | S23: 46558594 | T23: 42.414 | U23: 3 | V23: 32
A24: 食品工業9 | B24: 食品工業25 | C24: 1232 大統益 | D24: 食品工業 | E24: M1200 | F24: 5894059 | G24: 5397170 | H24: 9.21 | I24: 496889 | J24: 10 | K24: 33 | L24: 9 | M24: 25 | N24: 31 | O24: 4 | P24: 航運業 | Q24: 367585825 | R24: 385575917 | S24: -17990092 | T24: -4.666 | U24: 31 | V24: 4
A25: 食品工業17 | B25: 食品工業17 | C25: 1233 天仁 | D25: 食品工業 | E25: M1200 | F25: 573804 | G25: 551138 | H25: 4.11 | I25: 22666 | J25: 10 | K25: 33 | L25: 17 | M25: 17 | N25: 14 | O25: 21 | P25: 觀光餐旅 | Q25: 53154545 | R25: 49862734 | S25: 3291811 | T25: 6.602 | U25: 14 | V25: 21
A26: 食品工業16 | B26: 食品工業18 | C26: 1234 黑松 | D26: 食品工業 | E26: M1200 | F26: 2328332 | G26: 2229771 | H26: 4.42 | I26: 98561 | J26: 10 | K26: 33 | L26: 16 | M26: 18 | N26: 5 | O26: 30 | P26: 金融業 | Q26: =SUMIF($D:$D,$P26,F:F) -> 132517282 | R26: 102140718 | S26: =Q26-R26 -> 30376564 | T26: 29.74 | U26: =IF($T26="",0,_xlfn.RANK.EQ(T26,T:T)) -> 5 | V26: 30
A27: 食品工業2 | B27: 食品工業32 | C27: 1235 興泰 | D27: 食品工業 | E27: M1200 | F27: 66770 | G27: 28420 | H27: 134.94 | I27: 38350 | J27: 10 | K27: 33 | L27: 2 | M27: 32 | N27: 21 | O27: 14 | P27: 貿易百貨 | Q27: 116771882 | R27: 112834766 | S27: 3937116 | T27: 3.489 | U27: 21 | V27: 14
A28: 食品工業14 | B28: 食品工業20 | C28: 1236 宏亞 | D28: 食品工業 | E28: M1200 | F28: 545487 | G28: 515973 | H28: 5.72 | I28: 29514 | J28: 10 | K28: 33 | L28: 14 | M28: 20 | N28: 7 | O28: 28 | P28: 文化創意業 | Q28: 19310878 | R28: 15830237 | S28: 3480641 | T28: 21.987 | U28: 7 | V28: 28
A29: 食品工業3 | B29: 食品工業31 | C29: 1256 鮮活果汁-KY | D29: 食品工業 | E29: M1200 | F29: 1140959 | G29: 735498 | H29: 55.13 | I29: 405461 | J29: 10 | K29: 33 | L29: 3 | M29: 31 | N29: 20 | O29: 15 | P29: 農業科技 | Q29: 1285829 | R29: 1240116 | S29: 45713 | T29: 3.686 | U29: 20 | V29: 15
A30: 食品工業15 | B30: 食品工業19 | C30: 1264 德麥 | D30: 食品工業 | E30: M1200 | F30: 1735229 | G30: 1648839 | H30: 5.24 | I30: 86390 | J30: 10 | K30: 33 | L30: 15 | M30: 19 | N30: =U30 -> 23 | O30: =V30 -> 12 | P30: 綠能環保 | Q30: =SUMIF($D:$D,$P30,F:F) -> 35211705 | R30: =SUMIF($D:$D,$P30,G:G) -> 34383629 | S30: =Q30-R30 -> 828076 | T30: 2.408 | U30: 23 | V30: 12
A31: 食品工業5 | B31: 食品工業29 | C31: 1294 漢田生技 | D31: 食品工業 | E31: M1200 | F31: 228051 | G31: 174677 | H31: 30.56 | I31: 53374 | J31: 10 | K31: 33 | L31: 5 | M31: 29 | N31: 16 | O31: 19 | P31: 數位雲端 | Q31: 58790348 | R31: 55938029 | S31: 2852319 | T31: 5.099 | U31: 16 | V31: 19
A32: 食品工業30 | B32: 食品工業4 | C32: 1295 生合 | D32: 食品工業 | E32: M1200 | F32: 214544 | G32: 233724 | H32: -8.21 | I32: -19180 | J32: 10 | K32: 33 | L32: 30 | M32: 4 | N32: 34 | O32: 1 | P32: 運動休閒 | Q32: 161439777 | R32: 176992301 | S32: -15552524 | T32: -8.787 | U32: 34 | V32: 1
A33: 食品工業24 | B33: 食品工業10 | C33: 1702 南僑 | D33: 食品工業 | E33: M1200 | F33: 5815646 | G33: 5858566 | H33: -0.73 | I33: -42920 | J33: 10 | K33: 33 | L33: 24 | M33: 10 | N33: 17 | O33: 18 | P33: 居家生活 | Q33: 68710518 | R33: 65472722 | S33: 3237796 | T33: 4.945 | U33: 17 | V33: 18
A34: 食品工業27 | B34: 食品工業7 | C34: 1737 臺鹽 | D34: 食品工業 | E34: M1200 | F34: 789500 | G34: 819189 | H34: -3.62 | I34: -29689 | J34: 10 | K34: 33 | L34: 27 | M34: 7 | N34: 24 | O34: 11 | P34: 油電燃氣業 | Q34: 192975771 | R34: 192509967 | S34: 465804 | T34: 0.242 | U34: 24 | V34: 11
A35: 食品工業29 | B35: 食品工業5 | C35: 1796 金穎生技 | D35: 食品工業 | E35: M1200 | F35: 153198 | G35: 166427 | H35: -7.95 | I35: -13229 | J35: 10 | K35: 33 | L35: 29 | M35: 5 | N35: 27 | O35: 8 | P35: 其他 | Q35: 154465519 | R35: 156573517 | S35: -2107998 | T35: -1.346 | U35: 27 | V35: 8
A36: 食品工業1 | B36: 食品工業33 | C36: 3054 立萬利 | D36: 食品工業 | E36: M1200 | F36: 135881 | G36: 18272 | H36: 643.66 | I36: 117609 | J36: 10 | K36: 33 | L36: 1 | M36: 33 | N36: 0 | O36: 0 | P36: 存託憑證 | W36: *存託憑證不納入統計
A37: 食品工業22 | B37: 食品工業12 | C37: 4205 中華食 | D37: 食品工業 | E37: M1200 | F37: 492896 | G37: 483991 | H37: 1.84 | I37: 8905 | J37: 10 | K37: 33 | L37: 22 | M37: 12 | N37: 0 | O37: 0 | P37: 0
A38: 食品工業20 | B38: 食品工業14 | C38: 4207 環泰 | D38: 食品工業 | E38: M1200 | F38: 1397460 | G38: 1357702 | H38: 2.93 | I38: 39758 | J38: 10 | K38: 33 | L38: 20 | M38: 14 | N38: 0 | O38: 0
A39: 食品工業33 | B39: 食品工業1 | C39: 6846 綠茵 | D39: 食品工業 | E39: M1200 | F39: 198092 | G39: 232761 | H39: -14.89 | I39: -34669 | J39: 10 | K39: 33 | L39: 33 | M39: 1 | N39: 0 | O39: 0
A40: 食品工業6 | B40: 食品工業28 | C40: 7743 金利食安 | D40: 食品工業 | E40: M1200 | F40: 154076 | G40: 119678 | H40: 28.74 | I40: 34398 | J40: 10 | K40: 33 | L40: 6 | M40: 28 | N40: 0 | O40: 0
A41: 食品工業4 | B41: 食品工業30 | C41: 7780 大研生醫* | D41: 食品工業 | E41: M1200 | F41: 463842 | G41: 334781 | H41: 38.55 | I41: 129061 | J41: 10 | K41: 33 | L41: 4 | M41: 30 | N41: 0 | O41: 0
A42: 食品工業31 | B42: 食品工業3 | C42: 7791 皇家可口 | D42: 食品工業 | E42: M1200 | F42: 486306 | G42: 534176 | H42: -8.96 | I42: -47870 | J42: 10 | K42: 33 | L42: 31 | M42: 3 | N42: 0 | O42: 0
A43: 塑膠工業17 | B43: 塑膠工業9 | C43: 1301 台塑 | D43: 塑膠工業 | E43: M1300 | F43: 41985122 | G43: 47202204 | H43: -11.05 | I43: -5217082 | J43: 43 | K43: 25 | L43: 17 | M43: 9 | N43: 0 | O43: 0
A44: 塑膠工業4 | B44: 塑膠工業22 | C44: 1303 南亞 | D44: 塑膠工業 | E44: M1300 | F44: 68596393 | G44: 65551631 | H44: 4.64 | I44: 3044762 | J44: 43 | K44: 25 | L44: 4 | M44: 22 | N44: 0 | O44: 0
A45: 塑膠工業18 | B45: 塑膠工業8 | C45: 1304 台聚 | D45: 塑膠工業 | E45: M1300 | F45: 10747608 | G45: 12147296 | H45: -11.52 | I45: -1399688 | J45: 43 | K45: 25 | L45: 18 | M45: 8 | N45: 0 | O45: 0
A46: 塑膠工業3 | B46: 塑膠工業23 | C46: 1305 華夏 | D46: 塑膠工業 | E46: M1300 | F46: 2673712 | G46: 2462111 | H46: 8.59 | I46: 211601 | J46: 43 | K46: 25 | L46: 3 | M46: 23 | N46: 0 | O46: 0
A47: 塑膠工業8 | B47: 塑膠工業18 | C47: 1307 三芳 | D47: 塑膠工業 | E47: M1300 | F47: 2952810 | G47: 2931014 | H47: 0.74 | I47: 21796 | J47: 43 | K47: 25 | L47: 8 | M47: 18 | N47: 0 | O47: 0
A48: 塑膠工業19 | B48: 塑膠工業7 | C48: 1308 亞聚 | D48: 塑膠工業 | E48: M1300 | F48: 1301866 | G48: 1534396 | H48: -15.15 | I48: -232530 | J48: 43 | K48: 25 | L48: 19 | M48: 7 | N48: 0 | O48: 0
A49: 塑膠工業21 | B49: 塑膠工業5 | C49: 1309 台達化 | D49: 塑膠工業 | E49: M1300 | F49: 3335906 | G49: 4232841 | H49: -21.19 | I49: -896935 | J49: 43 | K49: 25 | L49: 21 | M49: 5 | N49: 0 | O49: 0
A50: 塑膠工業13 | B50: 塑膠工業13 | C50: 1310 台苯 | D50: 塑膠工業 | E50: M1300 | F50: 2184647 | G50: 2293712 | H50: -4.75 | I50: -109065 | J50: 43 | K50: 25 | L50: 13 | M50: 13 | N50: 0 | O50: 0
A51: 塑膠工業1 | B51: 塑膠工業25 | C51: 1312 國喬 | D51: 塑膠工業 | E51: M1300 | F51: 7505498 | G51: 5697446 | H51: 31.73 | I51: 1808052 | J51: 43 | K51: 25 | L51: 1 | M51: 25 | N51: 0 | O51: 0
A52: 塑膠工業9 | B52: 塑膠工業17 | C52: 1313 聯成 | D52: 塑膠工業 | E52: M1300 | F52: 14431139 | G52: 14552511 | H52: -0.83 | I52: -121372 | J52: 43 | K52: 25 | L52: 9 | M52: 17 | N52: 0 | O52: 0
A53: 塑膠工業24 | B53: 塑膠工業2 | C53: 1314 中石化 | D53: 塑膠工業 | E53: M1300 | F53: 4092344 | G53: 6503269 | H53: -37.07 | I53: -2410925 | J53: 43 | K53: 25 | L53: 24 | M53: 2 | N53: 0 | O53: 0
A54: 塑膠工業22 | B54: 塑膠工業4 | C54: 1315 達新 | D54: 塑膠工業 | E54: M1300 | F54: 397677 | G54: 541182 | H54: -26.52 | I54: -143505 | J54: 43 | K54: 25 | L54: 22 | M54: 4 | N54: 0 | O54: 0
A55: 塑膠工業16 | B55: 塑膠工業10 | C55: 1321 大洋 | D55: 塑膠工業 | E55: M1300 | F55: 896640 | G55: 998185 | H55: -10.17 | I55: -101545 | J55: 43 | K55: 25 | L55: 16 | M55: 10 | N55: 0 | O55: 0
A56: 塑膠工業7 | B56: 塑膠工業19 | C56: 1323 永裕 | D56: 塑膠工業 | E56: M1300 | F56: 531593 | G56: 527053 | H56: 0.86 | I56: 4540 | J56: 43 | K56: 25 | L56: 7 | M56: 19 | N56: 0 | O56: 0
A57: 塑膠工業15 | B57: 塑膠工業11 | C57: 1324 地球 | D57: 塑膠工業 | E57: M1300 | F57: 169793 | G57: 184764 | H57: -8.1 | I57: -14971 | J57: 43 | K57: 25 | L57: 15 | M57: 11 | N57: 0 | O57: 0
A58: 塑膠工業23 | B58: 塑膠工業3 | C58: 1325 恒大 | D58: 塑膠工業 | E58: M1300 | F58: 57239 | G58: 82236 | H58: -30.4 | I58: -24997 | J58: 43 | K58: 25 | L58: 23 | M58: 3 | N58: 0 | O58: 0
A59: 塑膠工業5 | B59: 塑膠工業21 | C59: 1326 台化 | D59: 塑膠工業 | E59: M1300 | F59: 81749811 | G59: 78909389 | H59: 3.6 | I59: 2840422 | J59: 43 | K59: 25 | L59: 5 | M59: 21 | N59: 0 | O59: 0
A60: 塑膠工業20 | B60: 塑膠工業6 | C60: 1337 再生-KY | D60: 塑膠工業 | E60: M1300 | F60: 152451 | G60: 182332 | H60: -16.39 | I60: -29881 | J60: 43 | K60: 25 | L60: 20 | M60: 6 | N60: 0 | O60: 0
A61: 塑膠工業25 | B61: 塑膠工業1 | C61: 1340 勝悅-KY | D61: 塑膠工業 | E61: M1300 | F61: 11597 | G61: 61054 | H61: -81.01 | I61: -49457 | J61: 43 | K61: 25 | L61: 25 | M61: 1 | N61: 0 | O61: 0
A62: 塑膠工業11 | B62: 塑膠工業15 | C62: 1341 富林-KY | D62: 塑膠工業 | E62: M1300 | F62: 680063 | G62: 690050 | H62: -1.45 | I62: -9987 | J62: 43 | K62: 25 | L62: 11 | M62: 15 | N62: 0 | O62: 0
A63: 塑膠工業6 | B63: 塑膠工業20 | C63: 4303 信立 | D63: 塑膠工業 | E63: M1300 | F63: 227639 | G63: 224223 | H63: 1.52 | I63: 3416 | J63: 43 | K63: 25 | L63: 6 | M63: 20 | N63: 0 | O63: 0
A64: 塑膠工業12 | B64: 塑膠工業14 | C64: 4304 勝昱 | D64: 塑膠工業 | E64: M1300 | F64: 92359 | G64: 94573 | H64: -2.34 | I64: -2214 | J64: 43 | K64: 25 | L64: 12 | M64: 14 | N64: 0 | O64: 0
A65: 塑膠工業14 | B65: 塑膠工業12 | C65: 4305 世坤 | D65: 塑膠工業 | E65: M1300 | F65: 234276 | G65: 248406 | H65: -5.69 | I65: -14130 | J65: 43 | K65: 25 | L65: 14 | M65: 12 | N65: 0 | O65: 0
A66: 塑膠工業2 | B66: 塑膠工業24 | C66: 4306 炎洲 | D66: 塑膠工業 | E66: M1300 | F66: 3266823 | G66: 2999371 | H66: 8.92 | I66: 267452 | J66: 43 | K66: 25 | L66: 2 | M66: 24 | N66: 0 | O66: 0
A67: 塑膠工業10 | B67: 塑膠工業16 | C67: 9950 萬國通 | D67: 塑膠工業 | E67: M1300 | F67: 571096 | G67: 578286 | H67: -1.24 | I67: -7190 | J67: 43 | K67: 25 | L67: 10 | M67: 16 | N67: 0 | O67: 0
A68: =D68&L68 -> 紡織纖維18 | B68: =D68&M68 -> 紡織纖維35 | C68: 1402 遠東新 | D68: 紡織纖維 | E68: M1400 | F68: 61276819 | G68: 63803549 | H68: -3.96 | I68: =F68-G68 -> -2526730 | J68: =IF(E68="","",MATCH(E68,E:E,0)) -> 68 | K68: =COUNTIF(D:D,D68) -> 52 | L68: =IF(H68="","",RANK(H68,OFFSET(H$1,$J68-1,,$K68,),0)) -> 18 | M68: =IF(H68="","",RANK(H68,OFFSET(H$1,$J68-1,,$K68,),1)) -> 35 | N68: 0 | O68: 0
A69: 紡織纖維19 | B69: 紡織纖維34 | C69: 1409 新纖 | D69: 紡織纖維 | E69: M1400 | F69: 10047898 | G69: 10542162 | H69: -4.69 | I69: -494264 | J69: 68 | K69: 52 | L69: 19 | M69: 34 | N69: 0 | O69: 0
A70: 紡織纖維17 | B70: 紡織纖維36 | C70: 1410 南染 | D70: 紡織纖維 | E70: M1400 | F70: 50290 | G70: 50765 | H70: -0.94 | I70: -475 | J70: 68 | K70: 52 | L70: 17 | M70: 36 | N70: 0 | O70: 0
A71: 紡織纖維42 | B71: 紡織纖維11 | C71: 1413 宏洲 | D71: 紡織纖維 | E71: M1400 | F71: 437912 | G71: 599962 | H71: -27.01 | I71: -162050 | J71: 68 | K71: 52 | L71: 42 | M71: 11 | N71: 0 | O71: 0
A72: 紡織纖維34 | B72: 紡織纖維19 | C72: 1414 東和 | D72: 紡織纖維 | E72: M1400 | F72: 113452 | G72: 133301 | H72: -14.89 | I72: -19849 | J72: 68 | K72: 52 | L72: 34 | M72: 19 | N72: 0 | O72: 0
A73: 紡織纖維2 | B73: 紡織纖維51 | C73: 1417 嘉裕 | D73: 紡織纖維 | E73: M1400 | F73: 73809 | G73: 55141 | H73: 33.86 | I73: 18668 | J73: 68 | K73: 52 | L73: 2 | M73: 51 | N73: 0 | O73: 0
A74: 紡織纖維51 | B74: 紡織纖維2 | C74: 1418 東華 | D74: 紡織纖維 | E74: M1400 | F74: 648 | G74: 2840 | H74: -77.18 | I74: -2192 | J74: 68 | K74: 52 | L74: 51 | M74: 2 | N74: 0 | O74: 0
A75: 紡織纖維1 | B75: 紡織纖維52 | C75: 1419 新紡 | D75: 紡織纖維 | E75: M1400 | F75: 1453047 | G75: 1063760 | H75: 36.6 | I75: 389287 | J75: 68 | K75: 52 | L75: 1 | M75: 52 | N75: 0 | O75: 0
A76: 紡織纖維10 | B76: 紡織纖維43 | C76: 1423 利華 | D76: 紡織纖維 | E76: M1400 | F76: 31233 | G76: 28389 | H76: 10.02 | I76: 2844 | J76: 68 | K76: 52 | L76: 10 | M76: 43 | N76: 0 | O76: 0
A77: 紡織纖維28 | B77: 紡織纖維25 | C77: 1434 福懋 | D77: 紡織纖維 | E77: M1400 | F77: 6979321 | G77: 7687773 | H77: -9.22 | I77: -708452 | J77: 68 | K77: 52 | L77: 28 | M77: 25 | N77: 0 | O77: 0
A78: 紡織纖維37 | B78: 紡織纖維16 | C78: 1440 南紡 | D78: 紡織纖維 | E78: M1400 | F78: 3372657 | G78: 4192369 | H78: -19.55 | I78: -819712 | J78: 68 | K78: 52 | L78: 37 | M78: 16 | N78: 0 | O78: 0
A79: 紡織纖維45 | B79: 紡織纖維8 | C79: 1441 大東 | D79: 紡織纖維 | E79: M1400 | F79: 289133 | G79: 403126 | H79: -28.28 | I79: -113993 | J79: 68 | K79: 52 | L79: 45 | M79: 8 | N79: 0 | O79: 0
A80: 紡織纖維9 | B80: 紡織纖維44 | C80: 1444 力麗 | D80: 紡織纖維 | E80: M1400 | F80: 2142663 | G80: 1932178 | H80: 10.89 | I80: 210485 | J80: 68 | K80: 52 | L80: 9 | M80: 44 | N80: 0 | O80: 0
A81: 紡織纖維33 | B81: 紡織纖維20 | C81: 1445 大宇 | D81: 紡織纖維 | E81: M1400 | F81: 171054 | G81: 200423 | H81: -14.65 | I81: -29369 | J81: 68 | K81: 52 | L81: 33 | M81: 20 | N81: 0 | O81: 0
A82: 紡織纖維49 | B82: 紡織纖維4 | C82: 1446 宏和 | D82: 紡織纖維 | E82: M1400 | F82: 180694 | G82: 293912 | H82: -38.52 | I82: -113218 | J82: 68 | K82: 52 | L82: 49 | M82: 4 | N82: 0 | O82: 0
A83: 紡織纖維7 | B83: 紡織纖維46 | C83: 1447 力鵬 | D83: 紡織纖維 | E83: M1400 | F83: 8071598 | G83: 6937551 | H83: 16.35 | I83: 1134047 | J83: 68 | K83: 52 | L83: 7 | M83: 46 | N83: 0 | O83: 0
A84: 紡織纖維5 | B84: 紡織纖維48 | C84: 1449 佳和 | D84: 紡織纖維 | E84: M1400 | F84: 792390 | G84: 649112 | H84: 22.07 | I84: 143278 | J84: 68 | K84: 52 | L84: 5 | M84: 48 | N84: 0 | O84: 0
A85: 紡織纖維8 | B85: 紡織纖維45 | C85: 1451 年興 | D85: 紡織纖維 | E85: M1400 | F85: 1528004 | G85: 1350745 | H85: 13.12 | I85: 177259 | J85: 68 | K85: 52 | L85: 8 | M85: 45 | N85: 0 | O85: 0
A86: 紡織纖維23 | B86: 紡織纖維30 | C86: 1452 宏益 | D86: 紡織纖維 | E86: M1400 | F86: 328337 | G86: 350094 | H86: -6.21 | I86: -21757 | J86: 68 | K86: 52 | L86: 23 | M86: 30 | N86: 0 | O86: 0
A87: 紡織纖維43 | B87: 紡織纖維10 | C87: 1454 台富 | D87: 紡織纖維 | E87: M1400 | F87: 294179 | G87: 404599 | H87: -27.29 | I87: -110420 | J87: 68 | K87: 52 | L87: 43 | M87: 10 | N87: 0 | O87: 0
A88: 紡織纖維46 | B88: 紡織纖維7 | C88: 1455 集盛 | D88: 紡織纖維 | E88: M1400 | F88: 1265739 | G88: 1859817 | H88: -31.94 | I88: -594078 | J88: 68 | K88: 52 | L88: 46 | M88: 7 | N88: 0 | O88: 0
A89: 紡織纖維41 | B89: 紡織纖維12 | C89: 1457 宜進 | D89: 紡織纖維 | E89: M1400 | F89: 647285 | G89: 856262 | H89: -24.41 | I89: -208977 | J89: 68 | K89: 52 | L89: 41 | M89: 12 | N89: 0 | O89: 0
A90: 紡織纖維47 | B90: 紡織纖維6 | C90: 1459 聯發 | D90: 紡織纖維 | E90: M1400 | F90: 231160 | G90: 362646 | H90: -36.26 | I90: -131486 | J90: 68 | K90: 52 | L90: 47 | M90: 6 | N90: 0 | O90: 0
A91: 紡織纖維40 | B91: 紡織纖維13 | C91: 1460 宏遠 | D91: 紡織纖維 | E91: M1400 | F91: 1697865 | G91: 2172667 | H91: -21.85 | I91: -474802 | J91: 68 | K91: 52 | L91: 40 | M91: 13 | N91: 0 | O91: 0
A92: 紡織纖維52 | B92: 紡織纖維1 | C92: 1463 強盛新 | D92: 紡織纖維 | E92: M1400 | F92: 68559 | G92: 654241 | H92: -89.52 | I92: -585682 | J92: 68 | K92: 52 | L92: 52 | M92: 1 | N92: 0 | O92: 0
A93: 紡織纖維32 | B93: 紡織纖維21 | C93: 1464 得力 | D93: 紡織纖維 | E93: M1400 | F93: 2986296 | G93: 3462317 | H93: -13.75 | I93: -476021 | J93: 68 | K93: 52 | L93: 32 | M93: 21 | N93: 0 | O93: 0
A94: 紡織纖維6 | B94: 紡織纖維47 | C94: 1465 偉全 | D94: 紡織纖維 | E94: M1400 | F94: 98481 | G94: 83853 | H94: 17.44 | I94: 14628 | J94: 68 | K94: 52 | L94: 6 | M94: 47 | N94: =U94 -> 0 | O94: =V94 -> 0
A95: 紡織纖維38 | B95: 紡織纖維15 | C95: 1466 聚隆 | D95: 紡織纖維 | E95: M1400 | F95: 547834 | G95: 686681 | H95: -20.22 | I95: -138847 | J95: 68 | K95: 52 | L95: 38 | M95: 15 | N95: 0 | O95: 0
A96: 紡織纖維20 | B96: 紡織纖維33 | C96: 1467 南緯 | D96: 紡織纖維 | E96: M1400 | F96: 1182633 | G96: 1243203 | H96: -4.87 | I96: -60570 | J96: 68 | K96: 52 | L96: 20 | M96: 33 | N96: 0 | O96: 0
A97: 紡織纖維50 | B97: 紡織纖維3 | C97: 1468 昶和 | D97: 紡織纖維 | E97: M1400 | F97: 127625 | G97: 246458 | H97: -48.22 | I97: -118833 | J97: 68 | K97: 52 | L97: 50 | M97: 3 | N97: 0 | O97: 0
A98: 紡織纖維30 | B98: 紡織纖維23 | C98: 1470 大統新創 | D98: 紡織纖維 | E98: M1400 | F98: 191305 | G98: 213942 | H98: -10.58 | I98: -22637 | J98: 68 | K98: 52 | L98: 30 | M98: 23 | N98: 0 | O98: 0
A99: 紡織纖維39 | B99: 紡織纖維14 | C99: 1473 台南 | D99: 紡織纖維 | E99: M1400 | F99: 1959137 | G99: 2496138 | H99: -21.51 | I99: -537001 | J99: 68 | K99: 52 | L99: 39 | M99: 14 | N99: 0 | O99: 0
A100: 紡織纖維25 | B100: 紡織纖維28 | C100: 1474 弘裕 | D100: 紡織纖維 | E100: M1400 | F100: 691030 | G100: 743410 | H100: -7.05 | I100: -52380 | J100: 68 | K100: 52 | L100: 25 | M100: 28 | N100: 0 | O100: 0
A101: 紡織纖維31 | B101: 紡織纖維22 | C101: 1475 業旺 | D101: 紡織纖維 | E101: M1400 | F101: 347870 | G101: 390932 | H101: -11.02 | I101: -43062 | J101: 68 | K101: 52 | L101: 31 | M101: 22 | N101: 0 | O101: 0
A102: 紡織纖維13 | B102: 紡織纖維40 | C102: 1476 儒鴻 | D102: 紡織纖維 | E102: M1400 | F102: 9621070 | G102: 9374606 | H102: 2.63 | I102: 246464 | J102: 68 | K102: 52 | L102: 13 | M102: 40 | N102: 0 | O102: 0
A103: 紡織纖維29 | B103: 紡織纖維24 | C103: 1477 聚陽 | D103: 紡織纖維 | E103: M1400 | F103: 8896989 | G103: 9923923 | H103: -10.35 | I103: -1026934 | J103: 68 | K103: 52 | L103: 29 | M103: 24 | N103: 0 | O103: 0
A104: 紡織纖維24 | B104: 紡織纖維29 | C104: 4401 東隆興 | D104: 紡織纖維 | E104: M1400 | F104: 877393 | G104: 935684 | H104: -6.23 | I104: -58291 | J104: 68 | K104: 52 | L104: 24 | M104: 29 | N104: 0 | O104: 0
A105: 紡織纖維44 | B105: 紡織纖維9 | C105: 4402 郡都開發 | D105: 紡織纖維 | E105: M1400 | F105: 5055 | G105: 6961 | H105: -27.38 | I105: -1906 | J105: 68 | K105: 52 | L105: 44 | M105: 9 | N105: 0 | O105: 0
A106: 紡織纖維48 | B106: 紡織纖維5 | C106: 4406 新昕纖 | D106: 紡織纖維 | E106: M1400 | F106: 76818 | G106: 123720 | H106: -37.91 | I106: -46902 | J106: 68 | K106: 52 | L106: 48 | M106: 5 | N106: 0 | O106: 0
A107: 紡織纖維27 | B107: 紡織纖維26 | C107: 4413 飛寶企業 | D107: 紡織纖維 | E107: M1400 | F107: 118497 | G107: 130473 | H107: -9.18 | I107: -11976 | J107: 68 | K107: 52 | L107: 27 | M107: 26 | N107: 0 | O107: 0
A108: 紡織纖維16 | B108: 紡織纖維37 | C108: 4414 如興 | D108: 紡織纖維 | E108: M1400 | F108: 3296426 | G108: 3284902 | H108: 0.35 | I108: 11524 | J108: 68 | K108: 52 | L108: 16 | M108: 37 | N108: 0 | O108: 0
A109: 紡織纖維35 | B109: 紡織纖維18 | C109: 4417 金洲 | D109: 紡織纖維 | E109: M1400 | F109: 680008 | G109: 806551 | H109: -15.69 | I109: -126543 | J109: 68 | K109: 52 | L109: 35 | M109: 18 | N109: 0 | O109: 0
A110: 紡織纖維26 | B110: 紡織纖維27 | C110: 4420 光明 | D110: 紡織纖維 | E110: M1400 | F110: 229484 | G110: 248252 | H110: -7.56 | I110: -18768 | J110: 68 | K110: 52 | L110: 26 | M110: 27 | N110: 0 | O110: 0
A111: 紡織纖維21 | B111: 紡織纖維32 | C111: 4426 利勤 | D111: 紡織纖維 | E111: M1400 | F111: 217182 | G111: 231108 | H111: -6.03 | I111: -13926 | J111: 68 | K111: 52 | L111: 21 | M111: 32 | N111: 0 | O111: 0
A112: 紡織纖維22 | B112: 紡織纖維31 | C112: 4432 銘旺實 | D112: 紡織纖維 | E112: M1400 | F112: 237593 | G112: 252887 | H112: -6.05 | I112: -15294 | J112: 68 | K112: 52 | L112: 22 | M112: 31 | N112: 0 | O112: 0
A113: 紡織纖維36 | B113: 紡織纖維17 | C113: 4433 興采 | D113: 紡織纖維 | E113: M1400 | F113: 647017 | G113: 779902 | H113: -17.04 | I113: -132885 | J113: 68 | K113: 52 | L113: 36 | M113: 17 | N113: 0 | O113: 0
A114: 紡織纖維15 | B114: 紡織纖維38 | C114: 4438 廣越 | D114: 紡織纖維 | E114: M1400 | F114: 2772556 | G114: 2756948 | H114: 0.57 | I114: 15608 | J114: 68 | K114: 52 | L114: 15 | M114: 38 | N114: 0 | O114: 0
A115: 紡織纖維14 | B115: 紡織纖維39 | C115: 4439 冠星-KY | D115: 紡織纖維 | E115: M1400 | F115: 1813533 | G115: 1776469 | H115: 2.09 | I115: 37064 | J115: 68 | K115: 52 | L115: 14 | M115: 39 | N115: 0 | O115: 0
A116: 紡織纖維3 | B116: 紡織纖維50 | C116: 4440 宜新實業 | D116: 紡織纖維 | E116: M1400 | F116: 294726 | G116: 227118 | H116: 29.77 | I116: 67608 | J116: 68 | K116: 52 | L116: 3 | M116: 50 | N116: 0 | O116: 0
A117: 紡織纖維4 | B117: 紡織纖維49 | C117: 4441 振大環球 | D117: 紡織纖維 | E117: M1400 | F117: 1889968 | G117: 1509501 | H117: 25.2 | I117: 380467 | J117: 68 | K117: 52 | L117: 4 | M117: 49 | N117: 0 | O117: 0
A118: 紡織纖維12 | B118: 紡織纖維41 | C118: 4442 竣邦-KY | D118: 紡織纖維 | E118: M1400 | F118: 437136 | G118: 410085 | H118: 6.6 | I118: 27051 | J118: 68 | K118: 52 | L118: 12 | M118: 41 | N118: 0 | O118: 0
A119: 紡織纖維11 | B119: 紡織纖維42 | C119: 6506 雙邦 | D119: 紡織纖維 | E119: M1400 | F119: 571346 | G119: 521616 | H119: 9.53 | I119: 49730 | J119: 68 | K119: 52 | L119: 11 | M119: 42 | N119: 0 | O119: 0
A120: 電機機械31 | B120: 電機機械68 | C120: 1503 士電 | D120: 電機機械 | E120: M1500 | F120: 11558698 | G120: 10294698 | H120: 12.28 | I120: 1264000 | J120: 120 | K120: 98 | L120: 31 | M120: 68 | N120: 0 | O120: 0
A121: 電機機械51 | B121: 電機機械48 | C121: 1504 東元 | D121: 電機機械 | E121: M1500 | F121: 14198478 | G121: 13701115 | H121: 3.63 | I121: 497363 | J121: 120 | K121: 98 | L121: 51 | M121: 48 | N121: 0 | O121: 0
A122: 電機機械27 | B122: 電機機械72 | C122: 1506 正道 | D122: 電機機械 | E122: M1500 | F122: 290125 | G122: 251614 | H122: 15.31 | I122: 38511 | J122: 120 | K122: 98 | L122: 27 | M122: 72 | N122: 0 | O122: 0
A123: 電機機械57 | B123: 電機機械42 | C123: 1513 中興電 | D123: 電機機械 | E123: M1500 | F123: 6490639 | G123: 6447658 | H123: 0.67 | I123: 42981 | J123: 120 | K123: 98 | L123: 57 | M123: 42 | N123: 0 | O123: 0
A124: 電機機械22 | B124: 電機機械77 | C124: 1514 亞力 | D124: 電機機械 | E124: M1500 | F124: 2539752 | G124: 2020928 | H124: 25.67 | I124: 518824 | J124: 120 | K124: 98 | L124: 22 | M124: 77 | N124: 0 | O124: 0
A125: 電機機械52 | B125: 電機機械47 | C125: 1515 力山 | D125: 電機機械 | E125: M1500 | F125: 1050350 | G125: 1014493 | H125: 3.53 | I125: 35857 | J125: 120 | K125: 98 | L125: 52 | M125: 47 | N125: 0 | O125: 0
A126: 電機機械83 | B126: 電機機械16 | C126: 1517 利奇 | D126: 電機機械 | E126: M1500 | F126: 435444 | G126: 550262 | H126: -20.87 | I126: -114818 | J126: 120 | K126: 98 | L126: 83 | M126: 16 | N126: 0 | O126: 0
A127: 電機機械41 | B127: 電機機械58 | C127: 1519 華城 | D127: 電機機械 | E127: M1500 | F127: 4756515 | G127: 4421261 | H127: 7.58 | I127: 335254 | J127: 120 | K127: 98 | L127: 41 | M127: 58 | N127: 0 | O127: 0
A128: 電機機械81 | B128: 電機機械18 | C128: 1526 日馳 | D128: 電機機械 | E128: M1500 | F128: 161967 | G128: 200582 | H128: -19.25 | I128: -38615 | J128: 120 | K128: 98 | L128: 81 | M128: 18 | N128: 0 | O128: 0
A129: 電機機械85 | B129: 電機機械14 | C129: 1527 鑽全 | D129: 電機機械 | E129: M1500 | F129: 629386 | G129: 816060 | H129: -22.88 | I129: -186674 | J129: 120 | K129: 98 | L129: 85 | M129: 14 | N129: 0 | O129: 0
A130: 電機機械16 | B130: 電機機械83 | C130: 1528 恩德 | D130: 電機機械 | E130: M1500 | F130: 748194 | G130: 571401 | H130: 30.94 | I130: 176793 | J130: 120 | K130: 98 | L130: 16 | M130: 83 | N130: 0 | O130: 0
A131: 電機機械68 | B131: 電機機械31 | C131: 1529 樂事綠能 | D131: 電機機械 | E131: M1500 | F131: 248511 | G131: 266543 | H131: -6.77 | I131: -18032 | J131: 120 | K131: 98 | L131: 68 | M131: 31 | N131: 0 | O131: 0
A132: =D132&L132 -> 電機機械82 | B132: =D132&M132 -> 電機機械17 | C132: 1530 亞崴 | D132: 電機機械 | E132: M1500 | F132: 444813 | G132: 552359 | H132: -19.47 | I132: =F132-G132 -> -107546 | J132: =IF(E132="","",MATCH(E132,E:E,0)) -> 120 | K132: =COUNTIF(D:D,D132) -> 98 | L132: =IF(H132="","",RANK(H132,OFFSET(H$1,$J132-1,,$K132,),0)) -> 82 | M132: =IF(H132="","",RANK(H132,OFFSET(H$1,$J132-1,,$K132,),1)) -> 17 | N132: 0 | O132: 0
A133: 電機機械78 | B133: 電機機械21 | C133: 1531 高林股 | D133: 電機機械 | E133: M1500 | F133: 347486 | G133: 410520 | H133: -15.35 | I133: -63034 | J133: 120 | K133: 98 | L133: 78 | M133: 21 | N133: 0 | O133: 0
A134: 電機機械33 | B134: 電機機械66 | C134: 1532 勤美 | D134: 電機機械 | E134: M1500 | F134: 3292951 | G134: 2990065 | H134: 10.13 | I134: 302886 | J134: 120 | K134: 98 | L134: 33 | M134: 66 | N134: 0 | O134: 0
A135: 電機機械77 | B135: 電機機械22 | C135: 1535 中宇 | D135: 電機機械 | E135: M1500 | F135: 2203311 | G135: 2469799 | H135: -10.79 | I135: -266488 | J135: 120 | K135: 98 | L135: 77 | M135: 22 | N135: 0 | O135: 0
A136: 電機機械61 | B136: 電機機械38 | C136: 1537 廣隆 | D136: 電機機械 | E136: M1500 | F136: 1713831 | G136: 1750132 | H136: -2.07 | I136: -36301 | J136: 120 | K136: 98 | L136: 61 | M136: 38 | N136: 0 | O136: 0
A137: 電機機械98 | B137: 電機機械1 | C137: 1538 正峰 | D137: 電機機械 | E137: M1500 | F137: 10760 | G137: 30620 | H137: -64.86 | I137: -19860 | J137: 120 | K137: 98 | L137: 98 | M137: 1 | N137: 0 | O137: 0
A138: 電機機械92 | B138: 電機機械7 | C138: 1539 巨庭 | D138: 電機機械 | E138: M1500 | F138: 241975 | G138: 356799 | H138: -32.18 | I138: -114824 | J138: 120 | K138: 98 | L138: 92 | M138: 7 | N138: 0 | O138: 0
A139: 電機機械94 | B139: 電機機械5 | C139: 1540 喬福 | D139: 電機機械 | E139: M1500 | F139: 86231 | G139: 129829 | H139: -33.58 | I139: -43598 | J139: 120 | K139: 98 | L139: 94 | M139: 5 | N139: 0 | O139: 0
A140: 電機機械90 | B140: 電機機械9 | C140: 1541 錩泰 | D140: 電機機械 | E140: M1500 | F140: 598810 | G140: 847635 | H140: -29.36 | I140: -248825 | J140: 120 | K140: 98 | L140: 90 | M140: 9 | N140: 0 | O140: 0
A141: 電機機械67 | B141: 電機機械32 | C141: 1558 伸興 | D141: 電機機械 | E141: M1500 | F141: 1926175 | G141: 2044322 | H141: -5.78 | I141: -118147 | J141: 120 | K141: 98 | L141: 67 | M141: 32 | N141: 0 | O141: 0
A142: 電機機械17 | B142: 電機機械82 | C142: 1560 中砂 | D142: 電機機械 | E142: M1500 | F142: 2293276 | G142: 1771630 | H142: 29.44 | I142: 521646 | J142: 120 | K142: 98 | L142: 17 | M142: 82 | N142: 0 | O142: 0
A143: 電機機械59 | B143: 電機機械40 | C143: 1570 力肯 | D143: 電機機械 | E143: M1500 | F143: 119412 | G143: 121072 | H143: -1.37 | I143: -1660 | J143: 120 | K143: 98 | L143: 59 | M143: 40 | N143: 0 | O143: 0
A144: 電機機械58 | B144: 電機機械41 | C144: 1580 新麥 | D144: 電機機械 | E144: M1500 | F144: 1094432 | G144: 1089039 | H144: 0.5 | I144: 5393 | J144: 120 | K144: 98 | L144: 58 | M144: 41 | N144: 0 | O144: 0
A145: 電機機械40 | B145: 電機機械59 | C145: 1583 程泰 | D145: 電機機械 | E145: M1500 | F145: 932415 | G145: 863760 | H145: 7.95 | I145: 68655 | J145: 120 | K145: 98 | L145: 40 | M145: 59 | N145: 0 | O145: 0
A146: 電機機械56 | B146: 電機機械43 | C146: 1586 和勤 | D146: 電機機械 | E146: M1500 | F146: 547977 | G146: 542289 | H146: 1.05 | I146: 5688 | J146: 120 | K146: 98 | L146: 56 | M146: 43 | N146: 0 | O146: 0
A147: 電機機械50 | B147: 電機機械49 | C147: 1589 永冠-KY | D147: 電機機械 | E147: M1500 | F147: 1733327 | G147: 1667147 | H147: 3.97 | I147: 66180 | J147: 120 | K147: 98 | L147: 50 | M147: 49 | N147: 0 | O147: 0
A148: 電機機械23 | B148: 電機機械76 | C148: 1590 亞德客-KY | D148: 電機機械 | E148: M1500 | F148: 10013505 | G148: 8096083 | H148: 23.68 | I148: 1917422 | J148: 120 | K148: 98 | L148: 23 | M148: 76 | N148: 0 | O148: 0
A149: 電機機械1 | B149: 電機機械98 | C149: 1591 駿吉-KY | D149: 電機機械 | E149: M1500 | F149: 132360 | G149: 13538 | H149: 877.69 | I149: 118822 | J149: 120 | K149: 98 | L149: 1 | M149: 98 | N149: 0 | O149: 0
A150: 電機機械15 | B150: 電機機械84 | C150: 1597 直得 | D150: 電機機械 | E150: M1500 | F150: 334402 | G150: 253359 | H150: 31.99 | I150: 81043 | J150: 120 | K150: 98 | L150: 15 | M150: 84 | N150: 0 | O150: 0
A151: 電機機械18 | B151: 電機機械81 | C151: 1599 宏佳騰 | D151: 電機機械 | E151: M1500 | F151: 637637 | G151: 495965 | H151: 28.56 | I151: 141672 | J151: 120 | K151: 98 | L151: 18 | M151: 81 | N151: 0 | O151: 0
A152: 電機機械34 | B152: 電機機械65 | C152: 2049 上銀 | D152: 電機機械 | E152: M1500 | F152: 6379288 | G152: 5838780 | H152: 9.26 | I152: 540508 | J152: 120 | K152: 98 | L152: 34 | M152: 65 | N152: 0 | O152: 0
A153: 電機機械53 | B153: 電機機械46 | C153: 2066 世德 | D153: 電機機械 | E153: M1500 | F153: 730578 | G153: 707519 | H153: 3.26 | I153: 23059 | J153: 120 | K153: 98 | L153: 53 | M153: 46 | N153: 0 | O153: 0
A154: 電機機械62 | B154: 電機機械37 | C154: 2067 嘉鋼 | D154: 電機機械 | E154: M1500 | F154: 230032 | G154: 238435 | H154: -3.52 | I154: -8403 | J154: 120 | K154: 98 | L154: 62 | M154: 37 | N154: 0 | O154: 0
A155: 電機機械35 | B155: 電機機械64 | C155: 2070 精湛 | D155: 電機機械 | E155: M1500 | F155: 158078 | G155: 145009 | H155: 9.01 | I155: 13069 | J155: 120 | K155: 98 | L155: 35 | M155: 64 | N155: 0 | O155: 0
A156: 電機機械7 | B156: 電機機械92 | C156: 2230 泰茂 | D156: 電機機械 | E156: M1500 | F156: 731529 | G156: 449559 | H156: 62.72 | I156: 281970 | J156: 120 | K156: 98 | L156: 7 | M156: 92 | N156: 0 | O156: 0
A157: 電機機械60 | B157: 電機機械39 | C157: 2235 謚源 | D157: 電機機械 | E157: M1500 | F157: 143786 | G157: 145804 | H157: -1.38 | I157: -2018 | J157: 120 | K157: 98 | L157: 60 | M157: 39 | N157: 0 | O157: 0
A158: 電機機械37 | B158: 電機機械62 | C158: 2371 大同 | D158: 電機機械 | E158: M1500 | F158: 11487899 | G158: 10544961 | H158: 8.94 | I158: 942938 | J158: 120 | K158: 98 | L158: 37 | M158: 62 | N158: =U158 -> 0 | O158: =V158 -> 0
A159: 電機機械45 | B159: 電機機械54 | C159: 3162 精確 | D159: 電機機械 | E159: M1500 | F159: 1968695 | G159: 1839945 | H159: 7 | I159: 128750 | J159: 120 | K159: 98 | L159: 45 | M159: 54 | N159: 0 | O159: 0
A160: 電機機械3 | B160: 電機機械96 | C160: 3167 大量 | D160: 電機機械 | E160: M1500 | F160: 1946206 | G160: 843436 | H160: 130.75 | I160: 1102770 | J160: 120 | K160: 98 | L160: 3 | M160: 96 | N160: 0 | O160: 0
A161: 電機機械95 | B161: 電機機械4 | C161: 3226 龍鋒 | D161: 電機機械 | E161: M1500 | F161: 339879 | G161: 526569 | H161: -35.45 | I161: -186690 | J161: 120 | K161: 98 | L161: 95 | M161: 4 | N161: 0 | O161: 0
A162: 電機機械93 | B162: 電機機械6 | C162: 3379 彬台 | D162: 電機機械 | E162: M1500 | F162: 184353 | G162: 273520 | H162: -32.6 | I162: -89167 | J162: 120 | K162: 98 | L162: 93 | M162: 6 | N162: 0 | O162: 0
A163: 電機機械88 | B163: 電機機械11 | C163: 3426 台興 | D163: 電機機械 | E163: M1500 | F163: 146331 | G163: 201814 | H163: -27.49 | I163: -55483 | J163: 120 | K163: 98 | L163: 88 | M163: 11 | N163: 0 | O163: 0
A164: 電機機械9 | B164: 電機機械90 | C164: 3685 元創精密 | D164: 電機機械 | E164: M1500 | F164: 356819 | G164: 240859 | H164: 48.14 | I164: 115960 | J164: 120 | K164: 98 | L164: 9 | M164: 90 | N164: 0 | O164: 0
A165: 電機機械21 | B165: 電機機械78 | C165: 4502 健信 | D165: 電機機械 | E165: M1500 | F165: 254546 | G165: 199451 | H165: 27.62 | I165: 55095 | J165: 120 | K165: 98 | L165: 21 | M165: 78 | N165: 0 | O165: 0
A166: 電機機械13 | B166: 電機機械86 | C166: 4503 金雨 | D166: 電機機械 | E166: M1500 | F166: 161837 | G166: 119613 | H166: 35.3 | I166: 42224 | J166: 120 | K166: 98 | L166: 13 | M166: 86 | N166: 0 | O166: 0
A167: 電機機械28 | B167: 電機機械71 | C167: 4506 崇友 | D167: 電機機械 | E167: M1500 | F167: 1819322 | G167: 1593104 | H167: 14.2 | I167: 226218 | J167: 120 | K167: 98 | L167: 28 | M167: 71 | N167: 0 | O167: 0
A168: 電機機械14 | B168: 電機機械85 | C168: 4510 高鋒 | D168: 電機機械 | E168: M1500 | F168: 417515 | G168: 311327 | H168: 34.11 | I168: 106188 | J168: 120 | K168: 98 | L168: 14 | M168: 85 | N168: 0 | O168: 0
A169: 電機機械5 | B169: 電機機械94 | C169: 4513 福裕 | D169: 電機機械 | E169: M1500 | F169: 405139 | G169: 235593 | H169: 71.97 | I169: 169546 | J169: 120 | K169: 98 | L169: 5 | M169: 94 | N169: 0 | O169: 0
A170: 電機機械4 | B170: 電機機械95 | C170: 4523 永彰 | D170: 電機機械 | E170: M1500 | F170: 356096 | G170: 161008 | H170: 121.17 | I170: 195088 | J170: 120 | K170: 98 | L170: 4 | M170: 95 | N170: 0 | O170: 0
A171: 電機機械89 | B171: 電機機械10 | C171: 4526 東台 | D171: 電機機械 | E171: M1500 | F171: 1075681 | G171: 1520148 | H171: -29.24 | I171: -444467 | J171: 120 | K171: 98 | L171: 89 | M171: 10 | N171: 0 | O171: 0
A172: 電機機械64 | B172: 電機機械33 | C172: 4527 方方土霖 | D172: 電機機械 | E172: M1500 | F172: 572086 | G172: 606013 | H172: -5.6 | I172: -33927 | J172: 120 | K172: 98 | L172: 64 | M172: 33 | N172: 0 | O172: 0
A173: 電機機械64 | B173: 電機機械33 | C173: 4528 江興鍛 | D173: 電機機械 | E173: M1500 | F173: 353248 | G173: 374222 | H173: -5.6 | I173: -20974 | J173: 120 | K173: 98 | L173: 64 | M173: 33 | N173: 0 | O173: 0
A174: 電機機械76 | B174: 電機機械23 | C174: 4532 瑞智 | D174: 電機機械 | E174: M1500 | F174: 6041396 | G174: 6626688 | H174: -8.83 | I174: -585292 | J174: 120 | K174: 98 | L174: 76 | M174: 23 | N174: 0 | O174: 0
A175: 電機機械80 | B175: 電機機械19 | C175: 4533 協易機 | D175: 電機機械 | E175: M1500 | F175: 870124 | G175: 1049988 | H175: -17.13 | I175: -179864 | J175: 120 | K175: 98 | L175: 80 | M175: 19 | N175: 0 | O175: 0
A176: 電機機械36 | B176: 電機機械63 | C176: 4534 慶騰 | D176: 電機機械 | E176: M1500 | F176: 217274 | G176: 199352 | H176: 8.99 | I176: 17922 | J176: 120 | K176: 98 | L176: 36 | M176: 63 | N176: 0 | O176: 0
A177: 電機機械69 | B177: 電機機械30 | C177: 4535 至興 | D177: 電機機械 | E177: M1500 | F177: 592055 | G177: 639530 | H177: -7.42 | I177: -47475 | J177: 120 | K177: 98 | L177: 69 | M177: 30 | N177: 0 | O177: 0
A178: 電機機械20 | B178: 電機機械79 | C178: 4538 大詠城 | D178: 電機機械 | E178: M1500 | F178: 89056 | G178: 69594 | H178: 27.97 | I178: 19462 | J178: 120 | K178: 98 | L178: 20 | M178: 79 | N178: 0 | O178: 0
A179: 電機機械6 | B179: 電機機械93 | C179: 4540 全球傳動 | D179: 電機機械 | E179: M1500 | F179: 788261 | G179: 471680 | H179: 67.12 | I179: 316581 | J179: 120 | K179: 98 | L179: 6 | M179: 93 | N179: 0 | O179: 0
A180: 電機機械12 | B180: 電機機械87 | C180: 4543 萬在 | D180: 電機機械 | E180: M1500 | F180: 245430 | G180: 176149 | H180: 39.33 | I180: 69281 | J180: 120 | K180: 98 | L180: 12 | M180: 87 | N180: 0 | O180: 0
A181: 電機機械72 | B181: 電機機械27 | C181: 4549 桓達 | D181: 電機機械 | E181: M1500 | F181: 266324 | G181: 289645 | H181: -8.05 | I181: -23321 | J181: 120 | K181: 98 | L181: 72 | M181: 27 | N181: 0 | O181: 0
A182: 電機機械29 | B182: 電機機械70 | C182: 4550 長佳 | D182: 電機機械 | E182: M1500 | F182: 218368 | G182: 192435 | H182: 13.48 | I182: 25933 | J182: 120 | K182: 98 | L182: 29 | M182: 70 | N182: 0 | O182: 0
A183: 電機機械64 | B183: 電機機械33 | C183: 4552 力達-KY | D183: 電機機械 | E183: M1500 | F183: 739578 | G183: 783490 | H183: -5.6 | I183: -43912 | J183: 120 | K183: 98 | L183: 64 | M183: 33 | N183: 0 | O183: 0
A184: 電機機械43 | B184: 電機機械56 | C184: 4555 氣立 | D184: 電機機械 | E184: M1500 | F184: 405227 | G184: 378214 | H184: 7.14 | I184: 27013 | J184: 120 | K184: 98 | L184: 43 | M184: 56 | N184: 0 | O184: 0
A185: 電機機械86 | B185: 電機機械13 | C185: 4558 寶緯 | D185: 電機機械 | E185: M1500 | F185: 303832 | G185: 395915 | H185: -23.26 | I185: -92083 | J185: 120 | K185: 98 | L185: 86 | M185: 13 | N185: 0 | O185: 0
A186: 電機機械54 | B186: 電機機械45 | C186: 4560 強信-KY | D186: 電機機械 | E186: M1500 | F186: 451565 | G186: 438403 | H186: 3 | I186: 13162 | J186: 120 | K186: 98 | L186: 54 | M186: 45 | N186: 0 | O186: 0
A187: 電機機械42 | B187: 電機機械57 | C187: 4561 健椿 | D187: 電機機械 | E187: M1500 | F187: 230944 | G187: 214791 | H187: 7.52 | I187: 16153 | J187: 120 | K187: 98 | L187: 42 | M187: 57 | N187: 0 | O187: 0
A188: 電機機械75 | B188: 電機機械24 | C188: 4562 穎漢 | D188: 電機機械 | E188: M1500 | F188: 176779 | G188: 193079 | H188: -8.44 | I188: -16300 | J188: 120 | K188: 98 | L188: 75 | M188: 24 | N188: 0 | O188: 0
A189: 電機機械91 | B189: 電機機械8 | C189: 4563 百德 | D189: 電機機械 | E189: M1500 | F189: 550598 | G189: 809752 | H189: -32 | I189: -259154 | J189: 120 | K189: 98 | L189: 91 | M189: 8 | N189: 0 | O189: 0
A190: 電機機械96 | B190: 電機機械3 | C190: 4564 元翎 | D190: 電機機械 | E190: M1500 | F190: 193642 | G190: 307896 | H190: -37.11 | I190: -114254 | J190: 120 | K190: 98 | L190: 96 | M190: 3 | N190: 0 | O190: 0
A191: 電機機械39 | B191: 電機機械60 | C191: 4566 時碩工業 | D191: 電機機械 | E191: M1500 | F191: 1354549 | G191: 1252349 | H191: 8.16 | I191: 102200 | J191: 120 | K191: 98 | L191: 39 | M191: 60 | N191: 0 | O191: 0
A192: 電機機械71 | B192: 電機機械28 | C192: 4568 科際精密 | D192: 電機機械 | E192: M1500 | F192: 279705 | G192: 304110 | H192: -8.03 | I192: -24405 | J192: 120 | K192: 98 | L192: 71 | M192: 28 | N192: 0 | O192: 0
A193: 電機機械73 | B193: 電機機械26 | C193: 4571 鈞興-KY | D193: 電機機械 | E193: M1500 | F193: 783926 | G193: 854824 | H193: -8.29 | I193: -70898 | J193: 120 | K193: 98 | L193: 73 | M193: 26 | N193: 0 | O193: 0
A194: 電機機械48 | B194: 電機機械51 | C194: 4572 駐龍 | D194: 電機機械 | E194: M1500 | F194: 182818 | G194: 171889 | H194: 6.36 | I194: 10929 | J194: 120 | K194: 98 | L194: 48 | M194: 51 | N194: 0 | O194: 0
A195: 電機機械10 | B195: 電機機械89 | C195: 4576 大銀微系統 | D195: 電機機械 | E195: M1500 | F195: 855044 | G195: 587785 | H195: 45.47 | I195: 267259 | J195: 120 | K195: 98 | L195: 10 | M195: 89 | N195: 0 | O195: 0
A196: =D196&L196 -> 電機機械46 | B196: =D196&M196 -> 電機機械53 | C196: 4580 捷流閥業 | D196: 電機機械 | E196: M1500 | F196: 574221 | G196: 537228 | H196: 6.89 | I196: =F196-G196 -> 36993 | J196: =IF(E196="","",MATCH(E196,E:E,0)) -> 120 | K196: =COUNTIF(D:D,D196) -> 98 | L196: =IF(H196="","",RANK(H196,OFFSET(H$1,$J196-1,,$K196,),0)) -> 46 | M196: =IF(H196="","",RANK(H196,OFFSET(H$1,$J196-1,,$K196,),1)) -> 53 | N196: 0 | O196: 0
A197: 電機機械49 | B197: 電機機械50 | C197: 4583 台灣精銳 | D197: 電機機械 | E197: M1500 | F197: 858339 | G197: 811862 | H197: 5.72 | I197: 46477 | J197: 120 | K197: 98 | L197: 49 | M197: 50 | N197: 0 | O197: 0
A198: 電機機械87 | B198: 電機機械12 | C198: 4584 君帆 | D198: 電機機械 | E198: M1500 | F198: 262818 | G198: 356341 | H198: -26.25 | I198: -93523 | J198: 120 | K198: 98 | L198: 87 | M198: 12 | N198: 0 | O198: 0
A199: 電機機械38 | B199: 電機機械61 | C199: 5288 豐祥-KY | D199: 電機機械 | E199: M1500 | F199: 2061141 | G199: 1892248 | H199: 8.93 | I199: 168893 | J199: 120 | K199: 98 | L199: 38 | M199: 61 | N199: 0 | O199: 0
A200: 電機機械74 | B200: 電機機械25 | C200: 6122 擎邦 | D200: 電機機械 | E200: M1500 | F200: 840988 | G200: 917134 | H200: -8.3 | I200: -76146 | J200: 120 | K200: 98 | L200: 74 | M200: 25 | N200: 0 | O200: 0
... 2800 more rows
